Workbook

Sheet Change Log (hidden)
A1: Table 12. Revision Tracking
A2: Version | B2: Date | C2: Update | D2: Description | F2: Last Saved | G2: 2024-04-27T16:20:56
A3: 1.1.1 | B3: 2019-10-22 | C3: Allowable Traffic for Rutting (ATR) | D3: Changed the calculation of ATR from standalone MATLAB based to VBA based, adding a library for temperatures and stresses. | F3: Last Updated | G3: 2023-04-29T17:49:26
A4: 1.1.2 | B4: 2019-10-31 | C4: 508 Compliance | D4: Changed plot series color and markings, removed Table ranges set for 50 states, used Ranges directly for dropdown list. Rearranged command buttons, modified keystrokes and added keystroke text in worksheets. Modified the code to protect worksheets and reset Excel setting when user exit after incomplete data input
A5: 1.1.2 | B5: 2019-12-16 | C5: Bug fix, Using RSI Index and Language Check | D5: When user cancels the selection of a folder for High/Low Temperature, the button for data selection is no longer disabled. Updated Table 11 format. Coded caution message when default Mircosoft Excel language is not English. Using Rutting Strain index instead of Allowable Traffic for Rutting (ATR)
A6: 2.0 | B6: 2020-06-09 | C6: Change in Temperature Database | D6: Expanded temperature database to 20 years, monthly averaged and separated into 3 segments - segment 1 (5AM to 12PM), segment 2 (12PM to 7PM) and segment 3 (7PM to 5AM). 2798 stations from MERRA 2 are expected in the database.
A7: 2.0 | B7: 2020-08-24 | C7: Input Data Graphs | D7: Added graphs of experimental permanent deformation for high temperature and low temperature in "Input Data" screen.
A8: 2.0 | B8: 2020-11-23 | C8: Additional Information | D8: Added Additional Information handle, with button for function calling in "Input Data" screen.
A9: 2.0 | B9: 2020-12-04 | C9: Generic Input Format | D9: Added draft generic input data format alternative to ampt formats. Key identifications: "AMPT-RUT-HT"/"AMPT-RUT-LT"; "[VERSION]"; "[SPECIMEN IDENTIFICATION]"; "[UNIT]"; and "[RUTTING TEST DATA]".
A10: 2.0 | B10: 2020-12-08 | C10: Data Separators | D10: Modified data separators to be flexible between comma, space and tab symbols for numeric data inputs.
A11: 2.0 | B11: 2020-12-08 | C11: US Units | D11: Added SSR-data unit conversion (SI to US) for generic data structure input format.
A12: 2.0 | B12: 2021-01-12 | C12: Updated Generic Input Format | D12: Updated code to match description of generic input file format from FHWA (including sign convention).
A13: 2.0 | B13: 2021-01-12 | C13: Database Selection Algorithm | D13: Updated database's folder selection algorithm.
A14: 2.0 | B14: 2021-01-12 | C14: Instructions | D14: Updated instructions to reflect changes in version 2.0.
A15: 2.0 | B15: 2021-02-01 | C15: Bridge Functionality | D15: Added "Reanalyze Data from Previous FlexMAT File" and its batch functionality.
A16: 2.1.1 | B16: 2021-11-15 | C16: Strain Reading sign Convention | D16: Adopted "Retraction is negative" as sign convention for strain readings. Note, only the generic data structure presents this convention. Throughout FlexMAT the convention is "compression is positive".
A17: 2.1.2 | B17: 2022-06-15 | C17: Input Versatility | D17: Included functionality to diferentiate between inputs of (1) 'Legacy' IPC Input format, (2) Standard format v1.0 (compression positive, extension positive) and (3) Standard format v2.0 (compression positive, retraction positive). FlexMAT reads input files and determine adequate sign convention and expected structure. Notice, regardless of input format, specimen retraction is displayed as positive on FlexMAT's graphs.
A18: 2.1.2 | B18: 2022-06-15 | C18: Unprotect Sheets Functionality | D18: Changed "Unprotect Sheet" functionality to become a Private function, hiding it from list of macros on developer.
A19: 2.1.2 | B19: 2022-07-04 | C19: Table 2 Formatting | D19: Updated background clearing of table 2 that presented an issue, not clearing the last row. This issue was coming from a bad last row reference that was set to the absoute row address of 617. This was fixed with a dynamic reference to the last row of table 3 and one column to the left of the limit of table 3.
A20: 2.1.2 | B20: 2022-07-04 | C20: Instructions Update | D20: Updated the instructions tab to discuss solution of "Compile error in hidden module […]"
A21: 2.1.3 | B21: 2022-10-17 | C21: Disclaimer Update | D21: Included disclaimer functionality and userform when opening FlexMAT.
A22: 2.1.4.1 | B22: 2023-02-16 | C22: RSI existence bug fix | D22: Fixed the problem of opening the program when an RSI value is present, correcting the sheet reference.
A23: 2.1.4.3 | B23: 2023-03-20 | C23: Formatting | D23: Changed tables and styles to be consistent with FlexMAT Cracking v2.1.4.3.
A24: 2.1.4.5 | B24: 2023-04-28 | C24: Removing Access to Macros | D24: Every function that was not private received an argument named "voidInput" that has no interference in the procedures.
A25: 2.2 | B25: 2024-04-21 | C25: Change version number for release | D25: The version number was changed to 2.2. No other changes were made.

Sheet Start
A2: BEFORE YOU START: FlexMAT™ v2.2 requires the following configurations setup:
A3: o Enable macro access. FlexMAT™ v2.2 is a macro-based software and requires permission from Excel to run its algorithms. To do that, go to "File > Options > Trust Center > Trust Center Settings > Macro Settings" and:
A4: 1) under "Macro Settings", "Disable all macros with notification" configuration is suggested and further enabling FlexMAT™ macros when requested;
A5: 2) under "Developer Macro Settings" check the "Trust access to the VBA project object model" checkbox, to give FlexMAT™ permission to install required libraries (when needed and available).
A11: Start Program Shortcut: (Alt + S)

Sheet Instructions (hidden)
A2: BEFORE YOU START: FlexMAT™ v2.2 requires the following Excel configurations setup:
A3: o Solver add-in needs to be enabled. To do that go to: "File > Options > Add-ins > Manage: Excel Add-ins > Solver" and check the Solver add-in check box. Observation: The solver functionality in Excel can generate an error identified by the message "Compile error in hidden module [...]". This issue can lock Excel, preventing users from closing it normally and getting stuck on the error message. To fix this issue: (1) make sure to close all instances of Excel, including FlexMAT and potential background instances; (2) re-open a new Excel workbook; (3) disable (if needed) and re-enable solver on the Workbook opened in step 2; (4) re-open FlexMAT, which should no longer present the issue.
A4: o Trusted macro access. FlexMAT is a macro-based software and requires permission from Excel to run its algorithms. To do that, go to "File > Options > Trust Center > Trust Center Settings > Macro Settings" and:
A5: 1) under "Macro Settings", "Disable all macros with notification" configuration is suggested and further enabling FlexMAT macros when requested;
A6: 2) under "Developer Macro Settings" check the "Trust access to the VBA project object model" checkbox, to give FlexMAT permission to install required libraries (when needed and available).
A7: ----------------------------------------------------------------------------------------------------------------------------------------------------------------------------------------------------------------------------------------------
A8: Workbook Purpose: FlexMAT-Rutting can be used to analyze Stress Sweep Rutting (SSR) test results.
A9: How to Use: The workbook requires test data in the standard format. Please check the sample lab data files provided.
A10: ----------------------------------------------------------------------------------------------------------------------------------------------------------------------------------------------------------------------------------------------
A11: Worksheets Description:
A12: Input Data: This worksheet contains options to select number of specimens and command buttons that can import lab test data that follow specific data structure. Please check the sample lab data files provided and data structure description for details on stress sweep for rutting data input format.
A13: o Select the number of test specimen (minimum 1 and maximum of 5) at high and low temperature from the dropdown list. The size of the Table 2 and 3 will change to fit the total number of replicates provided in drop down list.
A14: o Command buttons ‘Load High Temp Data’ and ‘Load Low Temp Data’ will be enabled only after selected number of specimens. Use them to import measured permanent strain values. The input takes selection of one folder for each temperature test - high and low. The number of files in the folder should match the selected number of specimens.
A15: o Model parameters are automatically computed once both test data are loaded using command buttons.
A16: o Press ‘Clear All Inputs’ button to remove all data that is currently in the template. Note that the ‘Clear All Inputs’ button will revert to the blank template.
A17: ----------------------------------------------------------------------------------------------------------------------------------------------------------------------------------------------------------------------------------------------
A18: Permanent Strain Model Coeff: This worksheet computes shift model coefficients using the SSR test results.
A19: o No user action is required.
A20: o The chart shows the measured and predicted strain data with computed model coefficients.
A21: ----------------------------------------------------------------------------------------------------------------------------------------------------------------------------------------------------------------------------------------------
A22: Input to FlexPAVE: Provides a summary of the shift factor model coefficients, which can be exported as an input file to FlexPAVE™.
A23: o Use ‘Export FlexPAVE 1.1 Inputs’ and ‘Export FlexPAVE 2.0 Inputs’ button to export computed parameters as FlexPAVE™ input files.
A24: o For the location of interest, select state, city, and layer type from the dropdown list.
A25: o The calculations of RSI require a specific temperature database. Use the button ‘Select Database Folder’ to select that folder in your computer. Check provided for the database folder.
A26: o Use ‘Rutting Strain Index (RSI)’ button to calculate the allowable traffic and average permanent strain for 20 years of design life.
A27: ----------------------------------------------------------------------------------------------------------------------------------------------------------------------------------------------------------------------------------------------
A28: Rutting Index Parameter: This worksheet is activated once ‘Rutting Strain Index (RSI)’ button is pushed and presents the monthly evolution of average permanent strain for 20 years in the selected conditions, used in the calculation of RSI.
A29: o No user action is required.
A30: o The RSI value for the given conditions is found in cell "B5".

Sheet Input Data (hidden)
A1: FlexMAT™ v2.2 Rutting
A2: Number of Specimens
A3: High Temperature
A4: Low Temperature
A5: Load High Temperature Data (Press Alt + h)
A6: Load Low Temperature Data (Press Alt + l)
A7: Table 1. Test Temperature
A8: Replicates Info | B8: Rep. 1
A9: TH Specimen ID
A10: TH (°C)
A11: TL Specimen ID
A12: TL (°C)
A13: Clear All Data (Press Alt + c)
A14: Reanalyze Data from Previous FlexMAT (Press Alt + r)
A15: Reanalyze Data from Previous FlexMAT (Batch Mode) (Press Alt + b)
A16: Fill Additional Information (Press Alt + i)
A17: Table 2. Permanent Strain from High Temperature Tests | H17: Table 3. Permanent Strain from Low Temperature Tests
A18: Cycle | B18: εvp - Rep. 1 | H18: Cycle | I18: εvp - Rep. 1
A19: 1 | H19: 1
A20: 2 | H20: 2
A21: 3 | H21: 3
A22: 4 | H22: 4
A23: 5 | H23: 5
A24: 6 | H24: 6
A25: 7 | H25: 7
A26: 8 | H26: 8
A27: 9 | H27: 9
A28: 10 | H28: 10
A29: 11 | H29: 11
A30: 12 | H30: 12
A31: 13 | H31: 13
A32: 14 | H32: 14
A33: 15 | H33: 15
A34: 16 | H34: 16
A35: 17 | H35: 17
A36: 18 | H36: 18
A37: 19 | H37: 19
A38: 20 | H38: 20
A39: 21 | H39: 21
A40: 22 | H40: 22
A41: 23 | H41: 23
A42: 24 | H42: 24
A43: 25 | H43: 25
A44: 26 | H44: 26
A45: 27 | H45: 27
A46: 28 | H46: 28
A47: 29 | H47: 29
A48: 30 | H48: 30
A49: 31 | H49: 31
A50: 32 | H50: 32
A51: 33 | H51: 33
A52: 34 | H52: 34
A53: 35 | H53: 35
A54: 36 | H54: 36
A55: 37 | H55: 37
A56: 38 | H56: 38
A57: 39 | H57: 39
A58: 40 | H58: 40
A59: 41 | H59: 41
A60: 42 | H60: 42
A61: 43 | H61: 43
A62: 44 | H62: 44
A63: 45 | H63: 45
A64: 46 | H64: 46
A65: 47 | H65: 47
A66: 48 | H66: 48
A67: 49 | H67: 49
A68: 50 | H68: 50
A69: 51 | H69: 51
A70: 52 | H70: 52
A71: 53 | H71: 53
A72: 54 | H72: 54
A73: 55 | H73: 55
A74: 56 | H74: 56
A75: 57 | H75: 57
A76: 58 | H76: 58
A77: 59 | H77: 59
A78: 60 | H78: 60
A79: 61 | H79: 61
A80: 62 | H80: 62
A81: 63 | H81: 63
A82: 64 | H82: 64
A83: 65 | H83: 65
A84: 66 | H84: 66
A85: 67 | H85: 67
A86: 68 | H86: 68
A87: 69 | H87: 69
A88: 70 | H88: 70
A89: 71 | H89: 71
A90: 72 | H90: 72
A91: 73 | H91: 73
A92: 74 | H92: 74
A93: 75 | H93: 75
A94: 76 | H94: 76
A95: 77 | H95: 77
A96: 78 | H96: 78
A97: 79 | H97: 79
A98: 80 | H98: 80
A99: 81 | H99: 81
A100: 82 | H100: 82
A101: 83 | H101: 83
A102: 84 | H102: 84
A103: 85 | H103: 85
A104: 86 | H104: 86
A105: 87 | H105: 87
A106: 88 | H106: 88
A107: 89 | H107: 89
A108: 90 | H108: 90
A109: 91 | H109: 91
A110: 92 | H110: 92
A111: 93 | H111: 93
A112: 94 | H112: 94
A113: 95 | H113: 95
A114: 96 | H114: 96
A115: 97 | H115: 97
A116: 98 | H116: 98
A117: 99 | H117: 99
A118: 100 | H118: 100
A119: 101 | H119: 101
A120: 102 | H120: 102
A121: 103 | H121: 103
A122: 104 | H122: 104
A123: 105 | H123: 105
A124: 106 | H124: 106
A125: 107 | H125: 107
A126: 108 | H126: 108
A127: 109 | H127: 109
A128: 110 | H128: 110
A129: 111 | H129: 111
A130: 112 | H130: 112
A131: 113 | H131: 113
A132: 114 | H132: 114
A133: 115 | H133: 115
A134: 116 | H134: 116
A135: 117 | H135: 117
A136: 118 | H136: 118
A137: 119 | H137: 119
A138: 120 | H138: 120
A139: 121 | H139: 121
A140: 122 | H140: 122
A141: 123 | H141: 123
A142: 124 | H142: 124
A143: 125 | H143: 125
A144: 126 | H144: 126
A145: 127 | H145: 127
A146: 128 | H146: 128
A147: 129 | H147: 129
A148: 130 | H148: 130
A149: 131 | H149: 131
A150: 132 | H150: 132
A151: 133 | H151: 133
A152: 134 | H152: 134
A153: 135 | H153: 135
A154: 136 | H154: 136
A155: 137 | H155: 137
A156: 138 | H156: 138
A157: 139 | H157: 139
A158: 140 | H158: 140
A159: 141 | H159: 141
A160: 142 | H160: 142
A161: 143 | H161: 143
A162: 144 | H162: 144
A163: 145 | H163: 145
A164: 146 | H164: 146
A165: 147 | H165: 147
A166: 148 | H166: 148
A167: 149 | H167: 149
A168: 150 | H168: 150
A169: 151 | H169: 151
A170: 152 | H170: 152
A171: 153 | H171: 153
A172: 154 | H172: 154
A173: 155 | H173: 155
A174: 156 | H174: 156
A175: 157 | H175: 157
A176: 158 | H176: 158
A177: 159 | H177: 159
A178: 160 | H178: 160
A179: 161 | H179: 161
A180: 162 | H180: 162
A181: 163 | H181: 163
A182: 164 | H182: 164
A183: 165 | H183: 165
A184: 166 | H184: 166
A185: 167 | H185: 167
A186: 168 | H186: 168
A187: 169 | H187: 169
A188: 170 | H188: 170
A189: 171 | H189: 171
A190: 172 | H190: 172
A191: 173 | H191: 173
A192: 174 | H192: 174
A193: 175 | H193: 175
A194: 176 | H194: 176
A195: 177 | H195: 177
A196: 178 | H196: 178
A197: 179 | H197: 179
A198: 180 | H198: 180
A199: 181 | H199: 181
A200: 182 | H200: 182
... 418 more rows

Sheet Permanent Strain Model Coeff (hidden)
A2: Table 4. Reference Curve | D2: Table 5. Total Shift Factor Calculation | N2: Table 6. Reduced Load Time Shift Factor Calculation | R2: Table 7. Vertical Stress Shift Factor Calculation | W2: Table 8. Reduced and Vertical Stress Shift Factor
A3: Parameter | B3: Value | D3: Loading Block | E3: Temp (°C) | F3: σv (kPa) | G3: Total measured viscoplastic Strain | H3: Nref | I3: Ref Model εvp@N=Nref | J3: Sq. Error | K3: atotal | L3: Predicted atotal | N3: Temperature Range | O3: log (ξp) | P3: aξp | R3: σv (kPa) | S3: aσv @TL | T3: aσv @TH | U3: log (σv/Pa) | W3: Shift Factor | X3: Value
A4: Average TH (°C) | B4: =AVERAGE('Input Data'!$B$10:OFFSET('Input Data'!$B$10,0,NSpecimenHTemp-1)) ->  | D4: TH_εvp@N=200 | E4: =$B$4 ->  | F4: 758.4 | G4: =B219 ->  | H4: 200 | I4: =$B$6*H4/($B$7+H4)^$B$8 -> 0 | J4: =(G4-I4)^2 ->  | K4: =LOG(H4/200) -> 0 | L4: =$X$4*$O$5+$X$5+$X$10*(LOG10(F4/101.32)-0.88) ->  | N4: TL | O4: =LOG(0.4/10^((0.000642*E7^2-0.15649*E7+5.231563)-(0.000642*E4^2-0.15649*E4+5.231563))) ->  | P4: =K8 -> -1.578598529 | R4: 551.58 | S4: =K7-($X$4*$O$4+$X$5) ->  | T4: =K5 -> -0.5919060635 | U4: =LOG(R4/101) -> 0.7372871367 | W4: p1 | X4: =SLOPE(P4:P5,O4:O5) -> 
A5: Average TL (°C) | B5: =AVERAGE('Input Data'!$B$12:OFFSET('Input Data'!$B$12,0,NSpecimenLTemp-1)) ->  | D5: TH_εvp@N=400 | E5: =$B$4 ->  | F5: 551.58 | G5: =B419 ->  | H5: 251.1827872 | I5: 0 | K5: =LOG((H5-200)/200) -> -0.5919060635 | L5: =$X$4*$O$5+$X$5+$X$10*(LOG10(F5/101.32)-0.88) ->  | N5: TH | O5: =LOG(0.4) -> -0.3979400087 | P5: =K4 -> 0 | R5: 758.4 | S5: =K8-($X$4*$O$4+$X$5) ->  | T5: =K4 -> 0 | U5: =LOG(R5/101) -> 0.8755769505 | W5: p2 | X5: =INTERCEPT(P4:P5,O4:O5) -> 
A6: ε0 | D6: TH_εvp@N=600 | E6: =$B$4 ->  | F6: 965.27 | G6: =B619 ->  | H6: 1090.32149 | I6: 0 | K6: =LOG((H6-H5)/200) -> 0.6228037563 | L6: =$X$4*$O$5+$X$5+$X$10*(LOG10(F6/101.32)-0.88) ->  | R6: 965.27 | S6: =K9-($X$4*$O$4+$X$5) ->  | T6: =tblTotalSFCalc[[#This Row],[atotal]] -> 0.6228037563 | U6: =LOG(R6/101) -> 0.980327435 | W6: Measured D @ TH | X6: =SLOPE(T4:T6,U4:U6) -> 4.960639356 | JF6: 0
A7: N1 | D7: TL_εvp@N=200 | E7: =$B$5 ->  | F7: 551.58 | G7: =I219 ->  | H7: 2.357902745 | I7: 0 | K7: =LOG(H7/200) -> -1.928504108 | L7: =$X$4*$O$4+$X$5+$X$11*(LOG10(F7/101.32)-0.88) ->  | W7: Measured D @ TL | X7: =SLOPE(S4:S6,U4:U6) -> 
A8: β | D8: TL_εvp@N=400 | E8: =$B$5 ->  | F8: 758.4 | G8: =I419 ->  | H8: 7.635441928 | I8: 0 | K8: =LOG((H8-H7)/200) -> -1.578598529 | L8: =$X$4*$O$4+$X$5+$X$11*(LOG10(F8/101.32)-0.88) ->  | W8: d1 | X8: =SLOPE(X6:X7,E6:E7) -> 
A9: Sum Sq. Error | B9: =SUM(F20:F219) ->  | D9: TL_εvp@N=600 | E9: =$B$5 ->  | F9: 965.27 | G9: =I619 ->  | H9: 19.39067927 | I9: 0 | K9: =LOG((H9-H8)/200) -> -1.230798593 | L9: =$X$4*$O$4+$X$5+$X$11*(LOG10(F9/101.32)-0.88) ->  | W9: d2 | X9: =INTERCEPT(X6:X7,E6:E7) -> 
W10: Predicted D @ TH | X10: =$X$8*E6+$X$9 -> 
W11: Predicted D @ TL | X11: =$X$8*E7+$X$9 -> 
A18: Table 9. Model Fit for High Temperature Test Data | H18: Table 10. Model Fit for Low Temperature Test Data
A19: Cycle | B19: εvp - Average | C19: ΔNred | D19: Nred | E19: Model Prediction | F19: Sq. Error | H19: Cycle | I19: εvp - Average | J19: ΔNred | K19: Nred | L19: Model Prediction | M19: Sq. Error
A20: 1 | B20: =AVERAGE('Input Data'!B19:OFFSET('Input Data'!B19,0,(MAX(NSpecimenHTemp,1)-1))) ->  | C20: 1 | D20: 1 | E20: =$B$6*D20/($B$7+D20)^$B$8 -> 0 | F20: =(B20-E20)^2 ->  | H20: 1 | I20: =AVERAGE('Input Data'!I19:OFFSET('Input Data'!I19,0,(MAX(NSpecimenLTemp,1)-1))) ->  | J20: =1*10^$L$7 ->  | K20: =J20 ->  | L20: =$B$6*K20/($B$7+K20)^$B$8 ->  | M20: =(I20-L20)^2 -> 
A21: 2 | B21: =AVERAGE('Input Data'!B20:OFFSET('Input Data'!B20,0,(MAX(NSpecimenHTemp,1)-1))) ->  | C21: 1 | D21: =D20+C21 -> 2 | E21: 0 | H21: 2 | I21: =AVERAGE('Input Data'!I20:OFFSET('Input Data'!I20,0,(MAX(NSpecimenLTemp,1)-1))) ->  | J21: =1*10^$L$7 ->  | K21: =K20+J21 -> 
A22: 3 | B22: =AVERAGE('Input Data'!B21:OFFSET('Input Data'!B21,0,(MAX(NSpecimenHTemp,1)-1))) ->  | C22: 1 | D22: 3 | E22: 0 | H22: 3 | I22: =AVERAGE('Input Data'!I21:OFFSET('Input Data'!I21,0,(MAX(NSpecimenLTemp,1)-1))) -> 
A23: 4 | B23: =AVERAGE('Input Data'!B22:OFFSET('Input Data'!B22,0,(MAX(NSpecimenHTemp,1)-1))) ->  | C23: 1 | D23: 4 | E23: 0 | H23: 4 | I23: =AVERAGE('Input Data'!I22:OFFSET('Input Data'!I22,0,(MAX(NSpecimenLTemp,1)-1))) -> 
A24: 5 | B24: =AVERAGE('Input Data'!B23:OFFSET('Input Data'!B23,0,(MAX(NSpecimenHTemp,1)-1))) ->  | C24: 1 | D24: 5 | E24: 0 | H24: 5 | I24: =AVERAGE('Input Data'!I23:OFFSET('Input Data'!I23,0,(MAX(NSpecimenLTemp,1)-1))) -> 
A25: 6 | B25: =AVERAGE('Input Data'!B24:OFFSET('Input Data'!B24,0,(MAX(NSpecimenHTemp,1)-1))) ->  | C25: 1 | D25: 6 | E25: 0 | H25: 6 | I25: =AVERAGE('Input Data'!I24:OFFSET('Input Data'!I24,0,(MAX(NSpecimenLTemp,1)-1))) -> 
A26: 7 | B26: =AVERAGE('Input Data'!B25:OFFSET('Input Data'!B25,0,(MAX(NSpecimenHTemp,1)-1))) ->  | C26: 1 | D26: 7 | E26: 0 | H26: 7 | I26: =AVERAGE('Input Data'!I25:OFFSET('Input Data'!I25,0,(MAX(NSpecimenLTemp,1)-1))) -> 
A27: 8 | B27: =AVERAGE('Input Data'!B26:OFFSET('Input Data'!B26,0,(MAX(NSpecimenHTemp,1)-1))) ->  | C27: 1 | D27: 8 | E27: 0 | H27: 8 | I27: =AVERAGE('Input Data'!I26:OFFSET('Input Data'!I26,0,(MAX(NSpecimenLTemp,1)-1))) -> 
A28: 9 | B28: =AVERAGE('Input Data'!B27:OFFSET('Input Data'!B27,0,(MAX(NSpecimenHTemp,1)-1))) ->  | C28: 1 | D28: 9 | E28: 0 | H28: 9 | I28: =AVERAGE('Input Data'!I27:OFFSET('Input Data'!I27,0,(MAX(NSpecimenLTemp,1)-1))) -> 
A29: 10 | B29: =AVERAGE('Input Data'!B28:OFFSET('Input Data'!B28,0,(MAX(NSpecimenHTemp,1)-1))) ->  | C29: 1 | D29: 10 | E29: 0 | H29: 10 | I29: =AVERAGE('Input Data'!I28:OFFSET('Input Data'!I28,0,(MAX(NSpecimenLTemp,1)-1))) -> 
A30: 11 | B30: =AVERAGE('Input Data'!B29:OFFSET('Input Data'!B29,0,(MAX(NSpecimenHTemp,1)-1))) ->  | C30: 1 | D30: 11 | E30: 0 | H30: 11 | I30: =AVERAGE('Input Data'!I29:OFFSET('Input Data'!I29,0,(MAX(NSpecimenLTemp,1)-1))) -> 
A31: 12 | B31: =AVERAGE('Input Data'!B30:OFFSET('Input Data'!B30,0,(MAX(NSpecimenHTemp,1)-1))) ->  | C31: 1 | D31: 12 | E31: 0 | H31: 12 | I31: =AVERAGE('Input Data'!I30:OFFSET('Input Data'!I30,0,(MAX(NSpecimenLTemp,1)-1))) -> 
A32: 13 | B32: =AVERAGE('Input Data'!B31:OFFSET('Input Data'!B31,0,(MAX(NSpecimenHTemp,1)-1))) ->  | C32: 1 | D32: 13 | E32: 0 | H32: 13 | I32: =AVERAGE('Input Data'!I31:OFFSET('Input Data'!I31,0,(MAX(NSpecimenLTemp,1)-1))) -> 
A33: 14 | B33: =AVERAGE('Input Data'!B32:OFFSET('Input Data'!B32,0,(MAX(NSpecimenHTemp,1)-1))) ->  | C33: 1 | D33: 14 | E33: 0 | H33: 14 | I33: =AVERAGE('Input Data'!I32:OFFSET('Input Data'!I32,0,(MAX(NSpecimenLTemp,1)-1))) -> 
A34: 15 | B34: =AVERAGE('Input Data'!B33:OFFSET('Input Data'!B33,0,(MAX(NSpecimenHTemp,1)-1))) ->  | C34: 1 | D34: 15 | E34: 0 | H34: 15 | I34: =AVERAGE('Input Data'!I33:OFFSET('Input Data'!I33,0,(MAX(NSpecimenLTemp,1)-1))) -> 
A35: 16 | B35: =AVERAGE('Input Data'!B34:OFFSET('Input Data'!B34,0,(MAX(NSpecimenHTemp,1)-1))) ->  | C35: 1 | D35: 16 | E35: 0 | H35: 16 | I35: =AVERAGE('Input Data'!I34:OFFSET('Input Data'!I34,0,(MAX(NSpecimenLTemp,1)-1))) -> 
A36: 17 | B36: =AVERAGE('Input Data'!B35:OFFSET('Input Data'!B35,0,(MAX(NSpecimenHTemp,1)-1))) ->  | C36: 1 | D36: 17 | E36: 0 | H36: 17 | I36: =AVERAGE('Input Data'!I35:OFFSET('Input Data'!I35,0,(MAX(NSpecimenLTemp,1)-1))) -> 
A37: 18 | B37: =AVERAGE('Input Data'!B36:OFFSET('Input Data'!B36,0,(MAX(NSpecimenHTemp,1)-1))) ->  | C37: 1 | D37: 18 | E37: 0 | H37: 18 | I37: =AVERAGE('Input Data'!I36:OFFSET('Input Data'!I36,0,(MAX(NSpecimenLTemp,1)-1))) -> 
A38: 19 | B38: =AVERAGE('Input Data'!B37:OFFSET('Input Data'!B37,0,(MAX(NSpecimenHTemp,1)-1))) ->  | C38: 1 | D38: 19 | E38: 0 | H38: 19 | I38: =AVERAGE('Input Data'!I37:OFFSET('Input Data'!I37,0,(MAX(NSpecimenLTemp,1)-1))) -> 
A39: 20 | B39: =AVERAGE('Input Data'!B38:OFFSET('Input Data'!B38,0,(MAX(NSpecimenHTemp,1)-1))) ->  | C39: 1 | D39: 20 | E39: 0 | H39: 20 | I39: =AVERAGE('Input Data'!I38:OFFSET('Input Data'!I38,0,(MAX(NSpecimenLTemp,1)-1))) -> 
A40: 21 | B40: =AVERAGE('Input Data'!B39:OFFSET('Input Data'!B39,0,(MAX(NSpecimenHTemp,1)-1))) ->  | C40: 1 | D40: 21 | E40: 0 | H40: 21 | I40: =AVERAGE('Input Data'!I39:OFFSET('Input Data'!I39,0,(MAX(NSpecimenLTemp,1)-1))) -> 
A41: 22 | B41: =AVERAGE('Input Data'!B40:OFFSET('Input Data'!B40,0,(MAX(NSpecimenHTemp,1)-1))) ->  | C41: 1 | D41: 22 | E41: 0 | H41: 22 | I41: =AVERAGE('Input Data'!I40:OFFSET('Input Data'!I40,0,(MAX(NSpecimenLTemp,1)-1))) -> 
A42: 23 | B42: =AVERAGE('Input Data'!B41:OFFSET('Input Data'!B41,0,(MAX(NSpecimenHTemp,1)-1))) ->  | C42: 1 | D42: 23 | E42: 0 | H42: 23 | I42: =AVERAGE('Input Data'!I41:OFFSET('Input Data'!I41,0,(MAX(NSpecimenLTemp,1)-1))) -> 
A43: 24 | B43: =AVERAGE('Input Data'!B42:OFFSET('Input Data'!B42,0,(MAX(NSpecimenHTemp,1)-1))) ->  | C43: 1 | D43: 24 | E43: 0 | H43: 24 | I43: =AVERAGE('Input Data'!I42:OFFSET('Input Data'!I42,0,(MAX(NSpecimenLTemp,1)-1))) -> 
A44: 25 | B44: =AVERAGE('Input Data'!B43:OFFSET('Input Data'!B43,0,(MAX(NSpecimenHTemp,1)-1))) ->  | C44: 1 | D44: 25 | E44: 0 | H44: 25 | I44: =AVERAGE('Input Data'!I43:OFFSET('Input Data'!I43,0,(MAX(NSpecimenLTemp,1)-1))) -> 
A45: 26 | B45: =AVERAGE('Input Data'!B44:OFFSET('Input Data'!B44,0,(MAX(NSpecimenHTemp,1)-1))) ->  | C45: 1 | D45: 26 | E45: 0 | H45: 26 | I45: =AVERAGE('Input Data'!I44:OFFSET('Input Data'!I44,0,(MAX(NSpecimenLTemp,1)-1))) -> 
A46: 27 | B46: =AVERAGE('Input Data'!B45:OFFSET('Input Data'!B45,0,(MAX(NSpecimenHTemp,1)-1))) ->  | C46: 1 | D46: 27 | E46: 0 | H46: 27 | I46: =AVERAGE('Input Data'!I45:OFFSET('Input Data'!I45,0,(MAX(NSpecimenLTemp,1)-1))) -> 
A47: 28 | B47: =AVERAGE('Input Data'!B46:OFFSET('Input Data'!B46,0,(MAX(NSpecimenHTemp,1)-1))) ->  | C47: 1 | D47: 28 | E47: 0 | H47: 28 | I47: =AVERAGE('Input Data'!I46:OFFSET('Input Data'!I46,0,(MAX(NSpecimenLTemp,1)-1))) -> 
A48: 29 | B48: =AVERAGE('Input Data'!B47:OFFSET('Input Data'!B47,0,(MAX(NSpecimenHTemp,1)-1))) ->  | C48: 1 | D48: 29 | E48: 0 | H48: 29 | I48: =AVERAGE('Input Data'!I47:OFFSET('Input Data'!I47,0,(MAX(NSpecimenLTemp,1)-1))) -> 
A49: 30 | B49: =AVERAGE('Input Data'!B48:OFFSET('Input Data'!B48,0,(MAX(NSpecimenHTemp,1)-1))) ->  | C49: 1 | D49: 30 | E49: 0 | H49: 30 | I49: =AVERAGE('Input Data'!I48:OFFSET('Input Data'!I48,0,(MAX(NSpecimenLTemp,1)-1))) -> 
A50: 31 | B50: =AVERAGE('Input Data'!B49:OFFSET('Input Data'!B49,0,(MAX(NSpecimenHTemp,1)-1))) ->  | C50: 1 | D50: 31 | E50: 0 | H50: 31 | I50: =AVERAGE('Input Data'!I49:OFFSET('Input Data'!I49,0,(MAX(NSpecimenLTemp,1)-1))) -> 
A51: 32 | B51: =AVERAGE('Input Data'!B50:OFFSET('Input Data'!B50,0,(MAX(NSpecimenHTemp,1)-1))) ->  | C51: 1 | D51: 32 | E51: 0 | H51: 32 | I51: =AVERAGE('Input Data'!I50:OFFSET('Input Data'!I50,0,(MAX(NSpecimenLTemp,1)-1))) -> 
A52: 33 | B52: =AVERAGE('Input Data'!B51:OFFSET('Input Data'!B51,0,(MAX(NSpecimenHTemp,1)-1))) ->  | C52: 1 | D52: 33 | E52: 0 | H52: 33 | I52: =AVERAGE('Input Data'!I51:OFFSET('Input Data'!I51,0,(MAX(NSpecimenLTemp,1)-1))) -> 
A53: 34 | B53: =AVERAGE('Input Data'!B52:OFFSET('Input Data'!B52,0,(MAX(NSpecimenHTemp,1)-1))) ->  | C53: 1 | D53: 34 | E53: 0 | H53: 34 | I53: =AVERAGE('Input Data'!I52:OFFSET('Input Data'!I52,0,(MAX(NSpecimenLTemp,1)-1))) -> 
A54: 35 | B54: =AVERAGE('Input Data'!B53:OFFSET('Input Data'!B53,0,(MAX(NSpecimenHTemp,1)-1))) ->  | C54: 1 | D54: 35 | E54: 0 | H54: 35 | I54: =AVERAGE('Input Data'!I53:OFFSET('Input Data'!I53,0,(MAX(NSpecimenLTemp,1)-1))) -> 
A55: 36 | B55: =AVERAGE('Input Data'!B54:OFFSET('Input Data'!B54,0,(MAX(NSpecimenHTemp,1)-1))) ->  | C55: 1 | D55: 36 | E55: 0 | H55: 36 | I55: =AVERAGE('Input Data'!I54:OFFSET('Input Data'!I54,0,(MAX(NSpecimenLTemp,1)-1))) -> 
A56: 37 | B56: =AVERAGE('Input Data'!B55:OFFSET('Input Data'!B55,0,(MAX(NSpecimenHTemp,1)-1))) ->  | C56: 1 | D56: 37 | E56: 0 | H56: 37 | I56: =AVERAGE('Input Data'!I55:OFFSET('Input Data'!I55,0,(MAX(NSpecimenLTemp,1)-1))) -> 
A57: 38 | B57: =AVERAGE('Input Data'!B56:OFFSET('Input Data'!B56,0,(MAX(NSpecimenHTemp,1)-1))) ->  | C57: 1 | D57: 38 | E57: 0 | H57: 38 | I57: =AVERAGE('Input Data'!I56:OFFSET('Input Data'!I56,0,(MAX(NSpecimenLTemp,1)-1))) -> 
A58: 39 | B58: =AVERAGE('Input Data'!B57:OFFSET('Input Data'!B57,0,(MAX(NSpecimenHTemp,1)-1))) ->  | C58: 1 | D58: 39 | E58: 0 | H58: 39 | I58: =AVERAGE('Input Data'!I57:OFFSET('Input Data'!I57,0,(MAX(NSpecimenLTemp,1)-1))) -> 
A59: 40 | B59: =AVERAGE('Input Data'!B58:OFFSET('Input Data'!B58,0,(MAX(NSpecimenHTemp,1)-1))) ->  | C59: 1 | D59: 40 | E59: 0 | H59: 40 | I59: =AVERAGE('Input Data'!I58:OFFSET('Input Data'!I58,0,(MAX(NSpecimenLTemp,1)-1))) -> 
A60: 41 | B60: =AVERAGE('Input Data'!B59:OFFSET('Input Data'!B59,0,(MAX(NSpecimenHTemp,1)-1))) ->  | C60: 1 | D60: 41 | E60: 0 | H60: 41 | I60: =AVERAGE('Input Data'!I59:OFFSET('Input Data'!I59,0,(MAX(NSpecimenLTemp,1)-1))) -> 
A61: 42 | B61: =AVERAGE('Input Data'!B60:OFFSET('Input Data'!B60,0,(MAX(NSpecimenHTemp,1)-1))) ->  | C61: 1 | D61: 42 | E61: 0 | H61: 42 | I61: =AVERAGE('Input Data'!I60:OFFSET('Input Data'!I60,0,(MAX(NSpecimenLTemp,1)-1))) -> 
A62: 43 | B62: =AVERAGE('Input Data'!B61:OFFSET('Input Data'!B61,0,(MAX(NSpecimenHTemp,1)-1))) ->  | C62: 1 | D62: 43 | E62: 0 | H62: 43 | I62: =AVERAGE('Input Data'!I61:OFFSET('Input Data'!I61,0,(MAX(NSpecimenLTemp,1)-1))) -> 
A63: 44 | B63: =AVERAGE('Input Data'!B62:OFFSET('Input Data'!B62,0,(MAX(NSpecimenHTemp,1)-1))) ->  | C63: 1 | D63: 44 | E63: 0 | H63: 44 | I63: =AVERAGE('Input Data'!I62:OFFSET('Input Data'!I62,0,(MAX(NSpecimenLTemp,1)-1))) -> 
A64: 45 | B64: =AVERAGE('Input Data'!B63:OFFSET('Input Data'!B63,0,(MAX(NSpecimenHTemp,1)-1))) ->  | C64: 1 | D64: 45 | E64: 0 | H64: 45 | I64: =AVERAGE('Input Data'!I63:OFFSET('Input Data'!I63,0,(MAX(NSpecimenLTemp,1)-1))) -> 
A65: 46 | B65: =AVERAGE('Input Data'!B64:OFFSET('Input Data'!B64,0,(MAX(NSpecimenHTemp,1)-1))) ->  | C65: 1 | D65: 46 | E65: 0 | H65: 46 | I65: =AVERAGE('Input Data'!I64:OFFSET('Input Data'!I64,0,(MAX(NSpecimenLTemp,1)-1))) -> 
A66: 47 | B66: =AVERAGE('Input Data'!B65:OFFSET('Input Data'!B65,0,(MAX(NSpecimenHTemp,1)-1))) ->  | C66: 1 | D66: 47 | E66: 0 | H66: 47 | I66: =AVERAGE('Input Data'!I65:OFFSET('Input Data'!I65,0,(MAX(NSpecimenLTemp,1)-1))) -> 
A67: 48 | B67: =AVERAGE('Input Data'!B66:OFFSET('Input Data'!B66,0,(MAX(NSpecimenHTemp,1)-1))) ->  | C67: 1 | D67: 48 | E67: 0 | H67: 48 | I67: =AVERAGE('Input Data'!I66:OFFSET('Input Data'!I66,0,(MAX(NSpecimenLTemp,1)-1))) -> 
A68: 49 | B68: =AVERAGE('Input Data'!B67:OFFSET('Input Data'!B67,0,(MAX(NSpecimenHTemp,1)-1))) ->  | C68: 1 | D68: 49 | E68: 0 | H68: 49 | I68: =AVERAGE('Input Data'!I67:OFFSET('Input Data'!I67,0,(MAX(NSpecimenLTemp,1)-1))) -> 
A69: 50 | B69: =AVERAGE('Input Data'!B68:OFFSET('Input Data'!B68,0,(MAX(NSpecimenHTemp,1)-1))) ->  | C69: 1 | D69: 50 | E69: 0 | H69: 50 | I69: =AVERAGE('Input Data'!I68:OFFSET('Input Data'!I68,0,(MAX(NSpecimenLTemp,1)-1))) -> 
A70: 51 | B70: =AVERAGE('Input Data'!B69:OFFSET('Input Data'!B69,0,(MAX(NSpecimenHTemp,1)-1))) ->  | C70: 1 | D70: 51 | E70: 0 | H70: 51 | I70: =AVERAGE('Input Data'!I69:OFFSET('Input Data'!I69,0,(MAX(NSpecimenLTemp,1)-1))) -> 
A71: 52 | B71: =AVERAGE('Input Data'!B70:OFFSET('Input Data'!B70,0,(MAX(NSpecimenHTemp,1)-1))) ->  | C71: 1 | D71: 52 | E71: 0 | H71: 52 | I71: =AVERAGE('Input Data'!I70:OFFSET('Input Data'!I70,0,(MAX(NSpecimenLTemp,1)-1))) -> 
A72: 53 | B72: =AVERAGE('Input Data'!B71:OFFSET('Input Data'!B71,0,(MAX(NSpecimenHTemp,1)-1))) ->  | C72: 1 | D72: 53 | E72: 0 | H72: 53 | I72: =AVERAGE('Input Data'!I71:OFFSET('Input Data'!I71,0,(MAX(NSpecimenLTemp,1)-1))) -> 
A73: 54 | B73: =AVERAGE('Input Data'!B72:OFFSET('Input Data'!B72,0,(MAX(NSpecimenHTemp,1)-1))) ->  | C73: 1 | D73: 54 | E73: 0 | H73: 54 | I73: =AVERAGE('Input Data'!I72:OFFSET('Input Data'!I72,0,(MAX(NSpecimenLTemp,1)-1))) -> 
A74: 55 | B74: =AVERAGE('Input Data'!B73:OFFSET('Input Data'!B73,0,(MAX(NSpecimenHTemp,1)-1))) ->  | C74: 1 | D74: 55 | E74: 0 | H74: 55 | I74: =AVERAGE('Input Data'!I73:OFFSET('Input Data'!I73,0,(MAX(NSpecimenLTemp,1)-1))) -> 
A75: 56 | B75: =AVERAGE('Input Data'!B74:OFFSET('Input Data'!B74,0,(MAX(NSpecimenHTemp,1)-1))) ->  | C75: 1 | D75: 56 | E75: 0 | H75: 56 | I75: =AVERAGE('Input Data'!I74:OFFSET('Input Data'!I74,0,(MAX(NSpecimenLTemp,1)-1))) -> 
A76: 57 | B76: =AVERAGE('Input Data'!B75:OFFSET('Input Data'!B75,0,(MAX(NSpecimenHTemp,1)-1))) ->  | C76: 1 | D76: 57 | E76: 0 | H76: 57 | I76: =AVERAGE('Input Data'!I75:OFFSET('Input Data'!I75,0,(MAX(NSpecimenLTemp,1)-1))) -> 
A77: 58 | B77: =AVERAGE('Input Data'!B76:OFFSET('Input Data'!B76,0,(MAX(NSpecimenHTemp,1)-1))) ->  | C77: 1 | D77: 58 | E77: 0 | H77: 58 | I77: =AVERAGE('Input Data'!I76:OFFSET('Input Data'!I76,0,(MAX(NSpecimenLTemp,1)-1))) -> 
A78: 59 | B78: =AVERAGE('Input Data'!B77:OFFSET('Input Data'!B77,0,(MAX(NSpecimenHTemp,1)-1))) ->  | C78: 1 | D78: 59 | E78: 0 | H78: 59 | I78: =AVERAGE('Input Data'!I77:OFFSET('Input Data'!I77,0,(MAX(NSpecimenLTemp,1)-1))) -> 
A79: 60 | B79: =AVERAGE('Input Data'!B78:OFFSET('Input Data'!B78,0,(MAX(NSpecimenHTemp,1)-1))) ->  | C79: 1 | D79: 60 | E79: 0 | H79: 60 | I79: =AVERAGE('Input Data'!I78:OFFSET('Input Data'!I78,0,(MAX(NSpecimenLTemp,1)-1))) -> 
A80: 61 | B80: =AVERAGE('Input Data'!B79:OFFSET('Input Data'!B79,0,(MAX(NSpecimenHTemp,1)-1))) ->  | C80: 1 | D80: 61 | E80: 0 | H80: 61 | I80: =AVERAGE('Input Data'!I79:OFFSET('Input Data'!I79,0,(MAX(NSpecimenLTemp,1)-1))) -> 
A81: 62 | B81: =AVERAGE('Input Data'!B80:OFFSET('Input Data'!B80,0,(MAX(NSpecimenHTemp,1)-1))) ->  | C81: 1 | D81: 62 | E81: 0 | H81: 62 | I81: =AVERAGE('Input Data'!I80:OFFSET('Input Data'!I80,0,(MAX(NSpecimenLTemp,1)-1))) -> 
A82: 63 | B82: =AVERAGE('Input Data'!B81:OFFSET('Input Data'!B81,0,(MAX(NSpecimenHTemp,1)-1))) ->  | C82: 1 | D82: 63 | E82: 0 | H82: 63 | I82: =AVERAGE('Input Data'!I81:OFFSET('Input Data'!I81,0,(MAX(NSpecimenLTemp,1)-1))) -> 
A83: 64 | B83: =AVERAGE('Input Data'!B82:OFFSET('Input Data'!B82,0,(MAX(NSpecimenHTemp,1)-1))) ->  | C83: 1 | D83: 64 | E83: 0 | H83: 64 | I83: =AVERAGE('Input Data'!I82:OFFSET('Input Data'!I82,0,(MAX(NSpecimenLTemp,1)-1))) -> 
A84: 65 | B84: =AVERAGE('Input Data'!B83:OFFSET('Input Data'!B83,0,(MAX(NSpecimenHTemp,1)-1))) ->  | C84: 1 | D84: 65 | E84: =$B$6*D84/($B$7+D84)^$B$8 -> 0 | F84: =(B84-E84)^2 ->  | H84: 65 | I84: =AVERAGE('Input Data'!I83:OFFSET('Input Data'!I83,0,(MAX(NSpecimenLTemp,1)-1))) ->  | L84: =$B$6*K84/($B$7+K84)^$B$8 ->  | M84: =(I84-L84)^2 -> 
A85: 66 | B85: =AVERAGE('Input Data'!B84:OFFSET('Input Data'!B84,0,(MAX(NSpecimenHTemp,1)-1))) ->  | C85: 1 | D85: =D84+C85 -> 66 | E85: 0 | H85: 66 | I85: =AVERAGE('Input Data'!I84:OFFSET('Input Data'!I84,0,(MAX(NSpecimenLTemp,1)-1))) ->  | J85: =1*10^$L$7 ->  | K85: =K84+J85 -> 
A86: 67 | B86: =AVERAGE('Input Data'!B85:OFFSET('Input Data'!B85,0,(MAX(NSpecimenHTemp,1)-1))) ->  | C86: 1 | D86: 67 | E86: 0 | H86: 67 | I86: =AVERAGE('Input Data'!I85:OFFSET('Input Data'!I85,0,(MAX(NSpecimenLTemp,1)-1))) -> 
A87: 68 | B87: =AVERAGE('Input Data'!B86:OFFSET('Input Data'!B86,0,(MAX(NSpecimenHTemp,1)-1))) ->  | C87: 1 | D87: 68 | E87: 0 | H87: 68 | I87: =AVERAGE('Input Data'!I86:OFFSET('Input Data'!I86,0,(MAX(NSpecimenLTemp,1)-1))) -> 
A88: 69 | B88: =AVERAGE('Input Data'!B87:OFFSET('Input Data'!B87,0,(MAX(NSpecimenHTemp,1)-1))) ->  | C88: 1 | D88: 69 | E88: 0 | H88: 69 | I88: =AVERAGE('Input Data'!I87:OFFSET('Input Data'!I87,0,(MAX(NSpecimenLTemp,1)-1))) -> 
A89: 70 | B89: =AVERAGE('Input Data'!B88:OFFSET('Input Data'!B88,0,(MAX(NSpecimenHTemp,1)-1))) ->  | C89: 1 | D89: 70 | E89: 0 | H89: 70 | I89: =AVERAGE('Input Data'!I88:OFFSET('Input Data'!I88,0,(MAX(NSpecimenLTemp,1)-1))) -> 
A90: 71 | B90: =AVERAGE('Input Data'!B89:OFFSET('Input Data'!B89,0,(MAX(NSpecimenHTemp,1)-1))) ->  | C90: 1 | D90: 71 | E90: 0 | H90: 71 | I90: =AVERAGE('Input Data'!I89:OFFSET('Input Data'!I89,0,(MAX(NSpecimenLTemp,1)-1))) -> 
A91: 72 | B91: =AVERAGE('Input Data'!B90:OFFSET('Input Data'!B90,0,(MAX(NSpecimenHTemp,1)-1))) ->  | C91: 1 | D91: 72 | E91: 0 | H91: 72 | I91: =AVERAGE('Input Data'!I90:OFFSET('Input Data'!I90,0,(MAX(NSpecimenLTemp,1)-1))) -> 
A92: 73 | B92: =AVERAGE('Input Data'!B91:OFFSET('Input Data'!B91,0,(MAX(NSpecimenHTemp,1)-1))) ->  | C92: 1 | D92: 73 | E92: 0 | H92: 73 | I92: =AVERAGE('Input Data'!I91:OFFSET('Input Data'!I91,0,(MAX(NSpecimenLTemp,1)-1))) -> 
A93: 74 | B93: =AVERAGE('Input Data'!B92:OFFSET('Input Data'!B92,0,(MAX(NSpecimenHTemp,1)-1))) ->  | C93: 1 | D93: 74 | E93: 0 | H93: 74 | I93: =AVERAGE('Input Data'!I92:OFFSET('Input Data'!I92,0,(MAX(NSpecimenLTemp,1)-1))) -> 
A94: 75 | B94: =AVERAGE('Input Data'!B93:OFFSET('Input Data'!B93,0,(MAX(NSpecimenHTemp,1)-1))) ->  | C94: 1 | D94: 75 | E94: 0 | H94: 75 | I94: =AVERAGE('Input Data'!I93:OFFSET('Input Data'!I93,0,(MAX(NSpecimenLTemp,1)-1))) -> 
A95: 76 | B95: =AVERAGE('Input Data'!B94:OFFSET('Input Data'!B94,0,(MAX(NSpecimenHTemp,1)-1))) ->  | C95: 1 | D95: 76 | E95: 0 | H95: 76 | I95: =AVERAGE('Input Data'!I94:OFFSET('Input Data'!I94,0,(MAX(NSpecimenLTemp,1)-1))) -> 
A96: 77 | B96: =AVERAGE('Input Data'!B95:OFFSET('Input Data'!B95,0,(MAX(NSpecimenHTemp,1)-1))) ->  | C96: 1 | D96: 77 | E96: 0 | H96: 77 | I96: =AVERAGE('Input Data'!I95:OFFSET('Input Data'!I95,0,(MAX(NSpecimenLTemp,1)-1))) -> 
A97: 78 | B97: =AVERAGE('Input Data'!B96:OFFSET('Input Data'!B96,0,(MAX(NSpecimenHTemp,1)-1))) ->  | C97: 1 | D97: 78 | E97: 0 | H97: 78 | I97: =AVERAGE('Input Data'!I96:OFFSET('Input Data'!I96,0,(MAX(NSpecimenLTemp,1)-1))) -> 
A98: 79 | B98: =AVERAGE('Input Data'!B97:OFFSET('Input Data'!B97,0,(MAX(NSpecimenHTemp,1)-1))) ->  | C98: 1 | D98: 79 | E98: 0 | H98: 79 | I98: =AVERAGE('Input Data'!I97:OFFSET('Input Data'!I97,0,(MAX(NSpecimenLTemp,1)-1))) -> 
A99: 80 | B99: =AVERAGE('Input Data'!B98:OFFSET('Input Data'!B98,0,(MAX(NSpecimenHTemp,1)-1))) ->  | C99: 1 | D99: 80 | E99: 0 | H99: 80 | I99: =AVERAGE('Input Data'!I98:OFFSET('Input Data'!I98,0,(MAX(NSpecimenLTemp,1)-1))) -> 
A100: 81 | B100: =AVERAGE('Input Data'!B99:OFFSET('Input Data'!B99,0,(MAX(NSpecimenHTemp,1)-1))) ->  | C100: 1 | D100: 81 | E100: 0 | H100: 81 | I100: =AVERAGE('Input Data'!I99:OFFSET('Input Data'!I99,0,(MAX(NSpecimenLTemp,1)-1))) -> 
A101: 82 | B101: =AVERAGE('Input Data'!B100:OFFSET('Input Data'!B100,0,(MAX(NSpecimenHTemp,1)-1))) ->  | C101: 1 | D101: 82 | E101: 0 | H101: 82 | I101: =AVERAGE('Input Data'!I100:OFFSET('Input Data'!I100,0,(MAX(NSpecimenLTemp,1)-1))) -> 
A102: 83 | B102: =AVERAGE('Input Data'!B101:OFFSET('Input Data'!B101,0,(MAX(NSpecimenHTemp,1)-1))) ->  | C102: 1 | D102: 83 | E102: 0 | H102: 83 | I102: =AVERAGE('Input Data'!I101:OFFSET('Input Data'!I101,0,(MAX(NSpecimenLTemp,1)-1))) -> 
A103: 84 | B103: =AVERAGE('Input Data'!B102:OFFSET('Input Data'!B102,0,(MAX(NSpecimenHTemp,1)-1))) ->  | C103: 1 | D103: 84 | E103: 0 | H103: 84 | I103: =AVERAGE('Input Data'!I102:OFFSET('Input Data'!I102,0,(MAX(NSpecimenLTemp,1)-1))) -> 
A104: 85 | B104: =AVERAGE('Input Data'!B103:OFFSET('Input Data'!B103,0,(MAX(NSpecimenHTemp,1)-1))) ->  | C104: 1 | D104: 85 | E104: 0 | H104: 85 | I104: =AVERAGE('Input Data'!I103:OFFSET('Input Data'!I103,0,(MAX(NSpecimenLTemp,1)-1))) -> 
A105: 86 | B105: =AVERAGE('Input Data'!B104:OFFSET('Input Data'!B104,0,(MAX(NSpecimenHTemp,1)-1))) ->  | C105: 1 | D105: 86 | E105: 0 | H105: 86 | I105: =AVERAGE('Input Data'!I104:OFFSET('Input Data'!I104,0,(MAX(NSpecimenLTemp,1)-1))) -> 
A106: 87 | B106: =AVERAGE('Input Data'!B105:OFFSET('Input Data'!B105,0,(MAX(NSpecimenHTemp,1)-1))) ->  | C106: 1 | D106: 87 | E106: 0 | H106: 87 | I106: =AVERAGE('Input Data'!I105:OFFSET('Input Data'!I105,0,(MAX(NSpecimenLTemp,1)-1))) -> 
A107: 88 | B107: =AVERAGE('Input Data'!B106:OFFSET('Input Data'!B106,0,(MAX(NSpecimenHTemp,1)-1))) ->  | C107: 1 | D107: 88 | E107: 0 | H107: 88 | I107: =AVERAGE('Input Data'!I106:OFFSET('Input Data'!I106,0,(MAX(NSpecimenLTemp,1)-1))) -> 
A108: 89 | B108: =AVERAGE('Input Data'!B107:OFFSET('Input Data'!B107,0,(MAX(NSpecimenHTemp,1)-1))) ->  | C108: 1 | D108: 89 | E108: 0 | H108: 89 | I108: =AVERAGE('Input Data'!I107:OFFSET('Input Data'!I107,0,(MAX(NSpecimenLTemp,1)-1))) -> 
A109: 90 | B109: =AVERAGE('Input Data'!B108:OFFSET('Input Data'!B108,0,(MAX(NSpecimenHTemp,1)-1))) ->  | C109: 1 | D109: 90 | E109: 0 | H109: 90 | I109: =AVERAGE('Input Data'!I108:OFFSET('Input Data'!I108,0,(MAX(NSpecimenLTemp,1)-1))) -> 
A110: 91 | B110: =AVERAGE('Input Data'!B109:OFFSET('Input Data'!B109,0,(MAX(NSpecimenHTemp,1)-1))) ->  | C110: 1 | D110: 91 | E110: 0 | H110: 91 | I110: =AVERAGE('Input Data'!I109:OFFSET('Input Data'!I109,0,(MAX(NSpecimenLTemp,1)-1))) -> 
A111: 92 | B111: =AVERAGE('Input Data'!B110:OFFSET('Input Data'!B110,0,(MAX(NSpecimenHTemp,1)-1))) ->  | C111: 1 | D111: 92 | E111: 0 | H111: 92 | I111: =AVERAGE('Input Data'!I110:OFFSET('Input Data'!I110,0,(MAX(NSpecimenLTemp,1)-1))) -> 
A112: 93 | B112: =AVERAGE('Input Data'!B111:OFFSET('Input Data'!B111,0,(MAX(NSpecimenHTemp,1)-1))) ->  | C112: 1 | D112: 93 | E112: 0 | H112: 93 | I112: =AVERAGE('Input Data'!I111:OFFSET('Input Data'!I111,0,(MAX(NSpecimenLTemp,1)-1))) -> 
A113: 94 | B113: =AVERAGE('Input Data'!B112:OFFSET('Input Data'!B112,0,(MAX(NSpecimenHTemp,1)-1))) ->  | C113: 1 | D113: 94 | E113: 0 | H113: 94 | I113: =AVERAGE('Input Data'!I112:OFFSET('Input Data'!I112,0,(MAX(NSpecimenLTemp,1)-1))) -> 
A114: 95 | B114: =AVERAGE('Input Data'!B113:OFFSET('Input Data'!B113,0,(MAX(NSpecimenHTemp,1)-1))) ->  | C114: 1 | D114: 95 | E114: 0 | H114: 95 | I114: =AVERAGE('Input Data'!I113:OFFSET('Input Data'!I113,0,(MAX(NSpecimenLTemp,1)-1))) -> 
A115: 96 | B115: =AVERAGE('Input Data'!B114:OFFSET('Input Data'!B114,0,(MAX(NSpecimenHTemp,1)-1))) ->  | C115: 1 | D115: 96 | E115: 0 | H115: 96 | I115: =AVERAGE('Input Data'!I114:OFFSET('Input Data'!I114,0,(MAX(NSpecimenLTemp,1)-1))) -> 
A116: 97 | B116: =AVERAGE('Input Data'!B115:OFFSET('Input Data'!B115,0,(MAX(NSpecimenHTemp,1)-1))) ->  | C116: 1 | D116: 97 | E116: 0 | H116: 97 | I116: =AVERAGE('Input Data'!I115:OFFSET('Input Data'!I115,0,(MAX(NSpecimenLTemp,1)-1))) -> 
A117: 98 | B117: =AVERAGE('Input Data'!B116:OFFSET('Input Data'!B116,0,(MAX(NSpecimenHTemp,1)-1))) ->  | C117: 1 | D117: 98 | E117: 0 | H117: 98 | I117: =AVERAGE('Input Data'!I116:OFFSET('Input Data'!I116,0,(MAX(NSpecimenLTemp,1)-1))) -> 
A118: 99 | B118: =AVERAGE('Input Data'!B117:OFFSET('Input Data'!B117,0,(MAX(NSpecimenHTemp,1)-1))) ->  | C118: 1 | D118: 99 | E118: 0 | H118: 99 | I118: =AVERAGE('Input Data'!I117:OFFSET('Input Data'!I117,0,(MAX(NSpecimenLTemp,1)-1))) -> 
A119: 100 | B119: =AVERAGE('Input Data'!B118:OFFSET('Input Data'!B118,0,(MAX(NSpecimenHTemp,1)-1))) ->  | C119: 1 | D119: 100 | E119: 0 | H119: 100 | I119: =AVERAGE('Input Data'!I118:OFFSET('Input Data'!I118,0,(MAX(NSpecimenLTemp,1)-1))) -> 
A120: 101 | B120: =AVERAGE('Input Data'!B119:OFFSET('Input Data'!B119,0,(MAX(NSpecimenHTemp,1)-1))) ->  | C120: 1 | D120: 101 | E120: 0 | H120: 101 | I120: =AVERAGE('Input Data'!I119:OFFSET('Input Data'!I119,0,(MAX(NSpecimenLTemp,1)-1))) -> 
A121: 102 | B121: =AVERAGE('Input Data'!B120:OFFSET('Input Data'!B120,0,(MAX(NSpecimenHTemp,1)-1))) ->  | C121: 1 | D121: 102 | E121: 0 | H121: 102 | I121: =AVERAGE('Input Data'!I120:OFFSET('Input Data'!I120,0,(MAX(NSpecimenLTemp,1)-1))) -> 
A122: 103 | B122: =AVERAGE('Input Data'!B121:OFFSET('Input Data'!B121,0,(MAX(NSpecimenHTemp,1)-1))) ->  | C122: 1 | D122: 103 | E122: 0 | H122: 103 | I122: =AVERAGE('Input Data'!I121:OFFSET('Input Data'!I121,0,(MAX(NSpecimenLTemp,1)-1))) -> 
A123: 104 | B123: =AVERAGE('Input Data'!B122:OFFSET('Input Data'!B122,0,(MAX(NSpecimenHTemp,1)-1))) ->  | C123: 1 | D123: 104 | E123: 0 | H123: 104 | I123: =AVERAGE('Input Data'!I122:OFFSET('Input Data'!I122,0,(MAX(NSpecimenLTemp,1)-1))) -> 
A124: 105 | B124: =AVERAGE('Input Data'!B123:OFFSET('Input Data'!B123,0,(MAX(NSpecimenHTemp,1)-1))) ->  | C124: 1 | D124: 105 | E124: 0 | H124: 105 | I124: =AVERAGE('Input Data'!I123:OFFSET('Input Data'!I123,0,(MAX(NSpecimenLTemp,1)-1))) -> 
A125: 106 | B125: =AVERAGE('Input Data'!B124:OFFSET('Input Data'!B124,0,(MAX(NSpecimenHTemp,1)-1))) ->  | C125: 1 | D125: 106 | E125: 0 | H125: 106 | I125: =AVERAGE('Input Data'!I124:OFFSET('Input Data'!I124,0,(MAX(NSpecimenLTemp,1)-1))) -> 
A126: 107 | B126: =AVERAGE('Input Data'!B125:OFFSET('Input Data'!B125,0,(MAX(NSpecimenHTemp,1)-1))) ->  | C126: 1 | D126: 107 | E126: 0 | H126: 107 | I126: =AVERAGE('Input Data'!I125:OFFSET('Input Data'!I125,0,(MAX(NSpecimenLTemp,1)-1))) -> 
A127: 108 | B127: =AVERAGE('Input Data'!B126:OFFSET('Input Data'!B126,0,(MAX(NSpecimenHTemp,1)-1))) ->  | C127: 1 | D127: 108 | E127: 0 | H127: 108 | I127: =AVERAGE('Input Data'!I126:OFFSET('Input Data'!I126,0,(MAX(NSpecimenLTemp,1)-1))) -> 
A128: 109 | B128: =AVERAGE('Input Data'!B127:OFFSET('Input Data'!B127,0,(MAX(NSpecimenHTemp,1)-1))) ->  | C128: 1 | D128: 109 | E128: 0 | H128: 109 | I128: =AVERAGE('Input Data'!I127:OFFSET('Input Data'!I127,0,(MAX(NSpecimenLTemp,1)-1))) -> 
A129: 110 | B129: =AVERAGE('Input Data'!B128:OFFSET('Input Data'!B128,0,(MAX(NSpecimenHTemp,1)-1))) ->  | C129: 1 | D129: 110 | E129: 0 | H129: 110 | I129: =AVERAGE('Input Data'!I128:OFFSET('Input Data'!I128,0,(MAX(NSpecimenLTemp,1)-1))) -> 
A130: 111 | B130: =AVERAGE('Input Data'!B129:OFFSET('Input Data'!B129,0,(MAX(NSpecimenHTemp,1)-1))) ->  | C130: 1 | D130: 111 | E130: 0 | H130: 111 | I130: =AVERAGE('Input Data'!I129:OFFSET('Input Data'!I129,0,(MAX(NSpecimenLTemp,1)-1))) -> 
A131: 112 | B131: =AVERAGE('Input Data'!B130:OFFSET('Input Data'!B130,0,(MAX(NSpecimenHTemp,1)-1))) ->  | C131: 1 | D131: 112 | E131: 0 | H131: 112 | I131: =AVERAGE('Input Data'!I130:OFFSET('Input Data'!I130,0,(MAX(NSpecimenLTemp,1)-1))) -> 
A132: 113 | B132: =AVERAGE('Input Data'!B131:OFFSET('Input Data'!B131,0,(MAX(NSpecimenHTemp,1)-1))) ->  | C132: 1 | D132: 113 | E132: 0 | H132: 113 | I132: =AVERAGE('Input Data'!I131:OFFSET('Input Data'!I131,0,(MAX(NSpecimenLTemp,1)-1))) -> 
A133: 114 | B133: =AVERAGE('Input Data'!B132:OFFSET('Input Data'!B132,0,(MAX(NSpecimenHTemp,1)-1))) ->  | C133: 1 | D133: 114 | E133: 0 | H133: 114 | I133: =AVERAGE('Input Data'!I132:OFFSET('Input Data'!I132,0,(MAX(NSpecimenLTemp,1)-1))) -> 
A134: 115 | B134: =AVERAGE('Input Data'!B133:OFFSET('Input Data'!B133,0,(MAX(NSpecimenHTemp,1)-1))) ->  | C134: 1 | D134: 115 | E134: 0 | H134: 115 | I134: =AVERAGE('Input Data'!I133:OFFSET('Input Data'!I133,0,(MAX(NSpecimenLTemp,1)-1))) -> 
A135: 116 | B135: =AVERAGE('Input Data'!B134:OFFSET('Input Data'!B134,0,(MAX(NSpecimenHTemp,1)-1))) ->  | C135: 1 | D135: 116 | E135: 0 | H135: 116 | I135: =AVERAGE('Input Data'!I134:OFFSET('Input Data'!I134,0,(MAX(NSpecimenLTemp,1)-1))) -> 
A136: 117 | B136: =AVERAGE('Input Data'!B135:OFFSET('Input Data'!B135,0,(MAX(NSpecimenHTemp,1)-1))) ->  | C136: 1 | D136: 117 | E136: 0 | H136: 117 | I136: =AVERAGE('Input Data'!I135:OFFSET('Input Data'!I135,0,(MAX(NSpecimenLTemp,1)-1))) -> 
A137: 118 | B137: =AVERAGE('Input Data'!B136:OFFSET('Input Data'!B136,0,(MAX(NSpecimenHTemp,1)-1))) ->  | C137: 1 | D137: 118 | E137: 0 | H137: 118 | I137: =AVERAGE('Input Data'!I136:OFFSET('Input Data'!I136,0,(MAX(NSpecimenLTemp,1)-1))) -> 
A138: 119 | B138: =AVERAGE('Input Data'!B137:OFFSET('Input Data'!B137,0,(MAX(NSpecimenHTemp,1)-1))) ->  | C138: 1 | D138: 119 | E138: 0 | H138: 119 | I138: =AVERAGE('Input Data'!I137:OFFSET('Input Data'!I137,0,(MAX(NSpecimenLTemp,1)-1))) -> 
A139: 120 | B139: =AVERAGE('Input Data'!B138:OFFSET('Input Data'!B138,0,(MAX(NSpecimenHTemp,1)-1))) ->  | C139: 1 | D139: 120 | E139: 0 | H139: 120 | I139: =AVERAGE('Input Data'!I138:OFFSET('Input Data'!I138,0,(MAX(NSpecimenLTemp,1)-1))) -> 
A140: 121 | B140: =AVERAGE('Input Data'!B139:OFFSET('Input Data'!B139,0,(MAX(NSpecimenHTemp,1)-1))) ->  | C140: 1 | D140: 121 | E140: 0 | H140: 121 | I140: =AVERAGE('Input Data'!I139:OFFSET('Input Data'!I139,0,(MAX(NSpecimenLTemp,1)-1))) -> 
A141: 122 | B141: =AVERAGE('Input Data'!B140:OFFSET('Input Data'!B140,0,(MAX(NSpecimenHTemp,1)-1))) ->  | C141: 1 | D141: 122 | E141: 0 | H141: 122 | I141: =AVERAGE('Input Data'!I140:OFFSET('Input Data'!I140,0,(MAX(NSpecimenLTemp,1)-1))) -> 
A142: 123 | B142: =AVERAGE('Input Data'!B141:OFFSET('Input Data'!B141,0,(MAX(NSpecimenHTemp,1)-1))) ->  | C142: 1 | D142: 123 | E142: 0 | H142: 123 | I142: =AVERAGE('Input Data'!I141:OFFSET('Input Data'!I141,0,(MAX(NSpecimenLTemp,1)-1))) -> 
A143: 124 | B143: =AVERAGE('Input Data'!B142:OFFSET('Input Data'!B142,0,(MAX(NSpecimenHTemp,1)-1))) ->  | C143: 1 | D143: 124 | E143: 0 | H143: 124 | I143: =AVERAGE('Input Data'!I142:OFFSET('Input Data'!I142,0,(MAX(NSpecimenLTemp,1)-1))) -> 
A144: 125 | B144: =AVERAGE('Input Data'!B143:OFFSET('Input Data'!B143,0,(MAX(NSpecimenHTemp,1)-1))) ->  | C144: 1 | D144: 125 | E144: 0 | H144: 125 | I144: =AVERAGE('Input Data'!I143:OFFSET('Input Data'!I143,0,(MAX(NSpecimenLTemp,1)-1))) -> 
A145: 126 | B145: =AVERAGE('Input Data'!B144:OFFSET('Input Data'!B144,0,(MAX(NSpecimenHTemp,1)-1))) ->  | C145: 1 | D145: 126 | E145: 0 | H145: 126 | I145: =AVERAGE('Input Data'!I144:OFFSET('Input Data'!I144,0,(MAX(NSpecimenLTemp,1)-1))) -> 
A146: 127 | B146: =AVERAGE('Input Data'!B145:OFFSET('Input Data'!B145,0,(MAX(NSpecimenHTemp,1)-1))) ->  | C146: 1 | D146: 127 | E146: 0 | H146: 127 | I146: =AVERAGE('Input Data'!I145:OFFSET('Input Data'!I145,0,(MAX(NSpecimenLTemp,1)-1))) -> 
A147: 128 | B147: =AVERAGE('Input Data'!B146:OFFSET('Input Data'!B146,0,(MAX(NSpecimenHTemp,1)-1))) ->  | C147: 1 | D147: 128 | E147: 0 | H147: 128 | I147: =AVERAGE('Input Data'!I146:OFFSET('Input Data'!I146,0,(MAX(NSpecimenLTemp,1)-1))) -> 
A148: 129 | B148: =AVERAGE('Input Data'!B147:OFFSET('Input Data'!B147,0,(MAX(NSpecimenHTemp,1)-1))) ->  | C148: 1 | D148: 129 | E148: =$B$6*D148/($B$7+D148)^$B$8 -> 0 | F148: =(B148-E148)^2 ->  | H148: 129 | I148: =AVERAGE('Input Data'!I147:OFFSET('Input Data'!I147,0,(MAX(NSpecimenLTemp,1)-1))) ->  | L148: =$B$6*K148/($B$7+K148)^$B$8 ->  | M148: =(I148-L148)^2 -> 
A149: 130 | B149: =AVERAGE('Input Data'!B148:OFFSET('Input Data'!B148,0,(MAX(NSpecimenHTemp,1)-1))) ->  | C149: 1 | D149: =D148+C149 -> 130 | E149: 0 | H149: 130 | I149: =AVERAGE('Input Data'!I148:OFFSET('Input Data'!I148,0,(MAX(NSpecimenLTemp,1)-1))) ->  | J149: =1*10^$L$7 ->  | K149: =K148+J149 -> 
A150: 131 | B150: =AVERAGE('Input Data'!B149:OFFSET('Input Data'!B149,0,(MAX(NSpecimenHTemp,1)-1))) ->  | C150: 1 | D150: 131 | E150: 0 | H150: 131 | I150: =AVERAGE('Input Data'!I149:OFFSET('Input Data'!I149,0,(MAX(NSpecimenLTemp,1)-1))) -> 
A151: 132 | B151: =AVERAGE('Input Data'!B150:OFFSET('Input Data'!B150,0,(MAX(NSpecimenHTemp,1)-1))) ->  | C151: 1 | D151: 132 | E151: 0 | H151: 132 | I151: =AVERAGE('Input Data'!I150:OFFSET('Input Data'!I150,0,(MAX(NSpecimenLTemp,1)-1))) -> 
A152: 133 | B152: =AVERAGE('Input Data'!B151:OFFSET('Input Data'!B151,0,(MAX(NSpecimenHTemp,1)-1))) ->  | C152: 1 | D152: 133 | E152: 0 | H152: 133 | I152: =AVERAGE('Input Data'!I151:OFFSET('Input Data'!I151,0,(MAX(NSpecimenLTemp,1)-1))) -> 
A153: 134 | B153: =AVERAGE('Input Data'!B152:OFFSET('Input Data'!B152,0,(MAX(NSpecimenHTemp,1)-1))) ->  | C153: 1 | D153: 134 | E153: 0 | H153: 134 | I153: =AVERAGE('Input Data'!I152:OFFSET('Input Data'!I152,0,(MAX(NSpecimenLTemp,1)-1))) -> 
A154: 135 | B154: =AVERAGE('Input Data'!B153:OFFSET('Input Data'!B153,0,(MAX(NSpecimenHTemp,1)-1))) ->  | C154: 1 | D154: 135 | E154: 0 | H154: 135 | I154: =AVERAGE('Input Data'!I153:OFFSET('Input Data'!I153,0,(MAX(NSpecimenLTemp,1)-1))) -> 
A155: 136 | B155: =AVERAGE('Input Data'!B154:OFFSET('Input Data'!B154,0,(MAX(NSpecimenHTemp,1)-1))) ->  | C155: 1 | D155: 136 | E155: 0 | H155: 136 | I155: =AVERAGE('Input Data'!I154:OFFSET('Input Data'!I154,0,(MAX(NSpecimenLTemp,1)-1))) -> 
A156: 137 | B156: =AVERAGE('Input Data'!B155:OFFSET('Input Data'!B155,0,(MAX(NSpecimenHTemp,1)-1))) ->  | C156: 1 | D156: 137 | E156: 0 | H156: 137 | I156: =AVERAGE('Input Data'!I155:OFFSET('Input Data'!I155,0,(MAX(NSpecimenLTemp,1)-1))) -> 
A157: 138 | B157: =AVERAGE('Input Data'!B156:OFFSET('Input Data'!B156,0,(MAX(NSpecimenHTemp,1)-1))) ->  | C157: 1 | D157: 138 | E157: 0 | H157: 138 | I157: =AVERAGE('Input Data'!I156:OFFSET('Input Data'!I156,0,(MAX(NSpecimenLTemp,1)-1))) -> 
A158: 139 | B158: =AVERAGE('Input Data'!B157:OFFSET('Input Data'!B157,0,(MAX(NSpecimenHTemp,1)-1))) ->  | C158: 1 | D158: 139 | E158: 0 | H158: 139 | I158: =AVERAGE('Input Data'!I157:OFFSET('Input Data'!I157,0,(MAX(NSpecimenLTemp,1)-1))) -> 
A159: 140 | B159: =AVERAGE('Input Data'!B158:OFFSET('Input Data'!B158,0,(MAX(NSpecimenHTemp,1)-1))) ->  | C159: 1 | D159: 140 | E159: 0 | H159: 140 | I159: =AVERAGE('Input Data'!I158:OFFSET('Input Data'!I158,0,(MAX(NSpecimenLTemp,1)-1))) -> 
A160: 141 | B160: =AVERAGE('Input Data'!B159:OFFSET('Input Data'!B159,0,(MAX(NSpecimenHTemp,1)-1))) ->  | C160: 1 | D160: 141 | E160: 0 | H160: 141 | I160: =AVERAGE('Input Data'!I159:OFFSET('Input Data'!I159,0,(MAX(NSpecimenLTemp,1)-1))) -> 
A161: 142 | B161: =AVERAGE('Input Data'!B160:OFFSET('Input Data'!B160,0,(MAX(NSpecimenHTemp,1)-1))) ->  | C161: 1 | D161: 142 | E161: 0 | H161: 142 | I161: =AVERAGE('Input Data'!I160:OFFSET('Input Data'!I160,0,(MAX(NSpecimenLTemp,1)-1))) -> 
A162: 143 | B162: =AVERAGE('Input Data'!B161:OFFSET('Input Data'!B161,0,(MAX(NSpecimenHTemp,1)-1))) ->  | C162: 1 | D162: 143 | E162: 0 | H162: 143 | I162: =AVERAGE('Input Data'!I161:OFFSET('Input Data'!I161,0,(MAX(NSpecimenLTemp,1)-1))) -> 
A163: 144 | B163: =AVERAGE('Input Data'!B162:OFFSET('Input Data'!B162,0,(MAX(NSpecimenHTemp,1)-1))) ->  | C163: 1 | D163: 144 | E163: 0 | H163: 144 | I163: =AVERAGE('Input Data'!I162:OFFSET('Input Data'!I162,0,(MAX(NSpecimenLTemp,1)-1))) -> 
A164: 145 | B164: =AVERAGE('Input Data'!B163:OFFSET('Input Data'!B163,0,(MAX(NSpecimenHTemp,1)-1))) ->  | C164: 1 | D164: 145 | E164: 0 | H164: 145 | I164: =AVERAGE('Input Data'!I163:OFFSET('Input Data'!I163,0,(MAX(NSpecimenLTemp,1)-1))) -> 
A165: 146 | B165: =AVERAGE('Input Data'!B164:OFFSET('Input Data'!B164,0,(MAX(NSpecimenHTemp,1)-1))) ->  | C165: 1 | D165: 146 | E165: 0 | H165: 146 | I165: =AVERAGE('Input Data'!I164:OFFSET('Input Data'!I164,0,(MAX(NSpecimenLTemp,1)-1))) -> 
A166: 147 | B166: =AVERAGE('Input Data'!B165:OFFSET('Input Data'!B165,0,(MAX(NSpecimenHTemp,1)-1))) ->  | C166: 1 | D166: 147 | E166: 0 | H166: 147 | I166: =AVERAGE('Input Data'!I165:OFFSET('Input Data'!I165,0,(MAX(NSpecimenLTemp,1)-1))) -> 
A167: 148 | B167: =AVERAGE('Input Data'!B166:OFFSET('Input Data'!B166,0,(MAX(NSpecimenHTemp,1)-1))) ->  | C167: 1 | D167: 148 | E167: 0 | H167: 148 | I167: =AVERAGE('Input Data'!I166:OFFSET('Input Data'!I166,0,(MAX(NSpecimenLTemp,1)-1))) -> 
A168: 149 | B168: =AVERAGE('Input Data'!B167:OFFSET('Input Data'!B167,0,(MAX(NSpecimenHTemp,1)-1))) ->  | C168: 1 | D168: 149 | E168: 0 | H168: 149 | I168: =AVERAGE('Input Data'!I167:OFFSET('Input Data'!I167,0,(MAX(NSpecimenLTemp,1)-1))) -> 
A169: 150 | B169: =AVERAGE('Input Data'!B168:OFFSET('Input Data'!B168,0,(MAX(NSpecimenHTemp,1)-1))) ->  | C169: 1 | D169: 150 | E169: 0 | H169: 150 | I169: =AVERAGE('Input Data'!I168:OFFSET('Input Data'!I168,0,(MAX(NSpecimenLTemp,1)-1))) -> 
A170: 151 | B170: =AVERAGE('Input Data'!B169:OFFSET('Input Data'!B169,0,(MAX(NSpecimenHTemp,1)-1))) ->  | C170: 1 | D170: 151 | E170: 0 | H170: 151 | I170: =AVERAGE('Input Data'!I169:OFFSET('Input Data'!I169,0,(MAX(NSpecimenLTemp,1)-1))) -> 
A171: 152 | B171: =AVERAGE('Input Data'!B170:OFFSET('Input Data'!B170,0,(MAX(NSpecimenHTemp,1)-1))) ->  | C171: 1 | D171: 152 | E171: 0 | H171: 152 | I171: =AVERAGE('Input Data'!I170:OFFSET('Input Data'!I170,0,(MAX(NSpecimenLTemp,1)-1))) -> 
A172: 153 | B172: =AVERAGE('Input Data'!B171:OFFSET('Input Data'!B171,0,(MAX(NSpecimenHTemp,1)-1))) ->  | C172: 1 | D172: 153 | E172: 0 | H172: 153 | I172: =AVERAGE('Input Data'!I171:OFFSET('Input Data'!I171,0,(MAX(NSpecimenLTemp,1)-1))) -> 
A173: 154 | B173: =AVERAGE('Input Data'!B172:OFFSET('Input Data'!B172,0,(MAX(NSpecimenHTemp,1)-1))) ->  | C173: 1 | D173: 154 | E173: 0 | H173: 154 | I173: =AVERAGE('Input Data'!I172:OFFSET('Input Data'!I172,0,(MAX(NSpecimenLTemp,1)-1))) -> 
A174: 155 | B174: =AVERAGE('Input Data'!B173:OFFSET('Input Data'!B173,0,(MAX(NSpecimenHTemp,1)-1))) ->  | C174: 1 | D174: 155 | E174: 0 | H174: 155 | I174: =AVERAGE('Input Data'!I173:OFFSET('Input Data'!I173,0,(MAX(NSpecimenLTemp,1)-1))) -> 
A175: 156 | B175: =AVERAGE('Input Data'!B174:OFFSET('Input Data'!B174,0,(MAX(NSpecimenHTemp,1)-1))) ->  | C175: 1 | D175: 156 | E175: 0 | H175: 156 | I175: =AVERAGE('Input Data'!I174:OFFSET('Input Data'!I174,0,(MAX(NSpecimenLTemp,1)-1))) -> 
A176: 157 | B176: =AVERAGE('Input Data'!B175:OFFSET('Input Data'!B175,0,(MAX(NSpecimenHTemp,1)-1))) ->  | C176: 1 | D176: 157 | E176: 0 | H176: 157 | I176: =AVERAGE('Input Data'!I175:OFFSET('Input Data'!I175,0,(MAX(NSpecimenLTemp,1)-1))) -> 
A177: 158 | B177: =AVERAGE('Input Data'!B176:OFFSET('Input Data'!B176,0,(MAX(NSpecimenHTemp,1)-1))) ->  | C177: 1 | D177: 158 | E177: 0 | H177: 158 | I177: =AVERAGE('Input Data'!I176:OFFSET('Input Data'!I176,0,(MAX(NSpecimenLTemp,1)-1))) -> 
A178: 159 | B178: =AVERAGE('Input Data'!B177:OFFSET('Input Data'!B177,0,(MAX(NSpecimenHTemp,1)-1))) ->  | C178: 1 | D178: 159 | E178: 0 | H178: 159 | I178: =AVERAGE('Input Data'!I177:OFFSET('Input Data'!I177,0,(MAX(NSpecimenLTemp,1)-1))) -> 
A179: 160 | B179: =AVERAGE('Input Data'!B178:OFFSET('Input Data'!B178,0,(MAX(NSpecimenHTemp,1)-1))) ->  | C179: 1 | D179: 160 | E179: 0 | H179: 160 | I179: =AVERAGE('Input Data'!I178:OFFSET('Input Data'!I178,0,(MAX(NSpecimenLTemp,1)-1))) -> 
A180: 161 | B180: =AVERAGE('Input Data'!B179:OFFSET('Input Data'!B179,0,(MAX(NSpecimenHTemp,1)-1))) ->  | C180: 1 | D180: 161 | E180: 0 | H180: 161 | I180: =AVERAGE('Input Data'!I179:OFFSET('Input Data'!I179,0,(MAX(NSpecimenLTemp,1)-1))) -> 
A181: 162 | B181: =AVERAGE('Input Data'!B180:OFFSET('Input Data'!B180,0,(MAX(NSpecimenHTemp,1)-1))) ->  | C181: 1 | D181: 162 | E181: 0 | H181: 162 | I181: =AVERAGE('Input Data'!I180:OFFSET('Input Data'!I180,0,(MAX(NSpecimenLTemp,1)-1))) -> 
A182: 163 | B182: =AVERAGE('Input Data'!B181:OFFSET('Input Data'!B181,0,(MAX(NSpecimenHTemp,1)-1))) ->  | C182: 1 | D182: 163 | E182: 0 | H182: 163 | I182: =AVERAGE('Input Data'!I181:OFFSET('Input Data'!I181,0,(MAX(NSpecimenLTemp,1)-1))) -> 
A183: 164 | B183: =AVERAGE('Input Data'!B182:OFFSET('Input Data'!B182,0,(MAX(NSpecimenHTemp,1)-1))) ->  | C183: 1 | D183: 164 | E183: 0 | H183: 164 | I183: =AVERAGE('Input Data'!I182:OFFSET('Input Data'!I182,0,(MAX(NSpecimenLTemp,1)-1))) -> 
A184: 165 | B184: =AVERAGE('Input Data'!B183:OFFSET('Input Data'!B183,0,(MAX(NSpecimenHTemp,1)-1))) ->  | C184: 1 | D184: 165 | E184: 0 | H184: 165 | I184: =AVERAGE('Input Data'!I183:OFFSET('Input Data'!I183,0,(MAX(NSpecimenLTemp,1)-1))) -> 
A185: 166 | B185: =AVERAGE('Input Data'!B184:OFFSET('Input Data'!B184,0,(MAX(NSpecimenHTemp,1)-1))) ->  | C185: 1 | D185: 166 | E185: 0 | H185: 166 | I185: =AVERAGE('Input Data'!I184:OFFSET('Input Data'!I184,0,(MAX(NSpecimenLTemp,1)-1))) -> 
A186: 167 | B186: =AVERAGE('Input Data'!B185:OFFSET('Input Data'!B185,0,(MAX(NSpecimenHTemp,1)-1))) ->  | C186: 1 | D186: 167 | E186: 0 | H186: 167 | I186: =AVERAGE('Input Data'!I185:OFFSET('Input Data'!I185,0,(MAX(NSpecimenLTemp,1)-1))) -> 
A187: 168 | B187: =AVERAGE('Input Data'!B186:OFFSET('Input Data'!B186,0,(MAX(NSpecimenHTemp,1)-1))) ->  | C187: 1 | D187: 168 | E187: 0 | H187: 168 | I187: =AVERAGE('Input Data'!I186:OFFSET('Input Data'!I186,0,(MAX(NSpecimenLTemp,1)-1))) -> 
A188: 169 | B188: =AVERAGE('Input Data'!B187:OFFSET('Input Data'!B187,0,(MAX(NSpecimenHTemp,1)-1))) ->  | C188: 1 | D188: 169 | E188: 0 | H188: 169 | I188: =AVERAGE('Input Data'!I187:OFFSET('Input Data'!I187,0,(MAX(NSpecimenLTemp,1)-1))) -> 
A189: 170 | B189: =AVERAGE('Input Data'!B188:OFFSET('Input Data'!B188,0,(MAX(NSpecimenHTemp,1)-1))) ->  | C189: 1 | D189: 170 | E189: 0 | H189: 170 | I189: =AVERAGE('Input Data'!I188:OFFSET('Input Data'!I188,0,(MAX(NSpecimenLTemp,1)-1))) -> 
A190: 171 | B190: =AVERAGE('Input Data'!B189:OFFSET('Input Data'!B189,0,(MAX(NSpecimenHTemp,1)-1))) ->  | C190: 1 | D190: 171 | E190: 0 | H190: 171 | I190: =AVERAGE('Input Data'!I189:OFFSET('Input Data'!I189,0,(MAX(NSpecimenLTemp,1)-1))) -> 
A191: 172 | B191: =AVERAGE('Input Data'!B190:OFFSET('Input Data'!B190,0,(MAX(NSpecimenHTemp,1)-1))) ->  | C191: 1 | D191: 172 | E191: 0 | H191: 172 | I191: =AVERAGE('Input Data'!I190:OFFSET('Input Data'!I190,0,(MAX(NSpecimenLTemp,1)-1))) -> 
A192: 173 | B192: =AVERAGE('Input Data'!B191:OFFSET('Input Data'!B191,0,(MAX(NSpecimenHTemp,1)-1))) ->  | C192: 1 | D192: 173 | E192: 0 | H192: 173 | I192: =AVERAGE('Input Data'!I191:OFFSET('Input Data'!I191,0,(MAX(NSpecimenLTemp,1)-1))) -> 
A193: 174 | B193: =AVERAGE('Input Data'!B192:OFFSET('Input Data'!B192,0,(MAX(NSpecimenHTemp,1)-1))) ->  | C193: 1 | D193: 174 | E193: 0 | H193: 174 | I193: =AVERAGE('Input Data'!I192:OFFSET('Input Data'!I192,0,(MAX(NSpecimenLTemp,1)-1))) -> 
A194: 175 | B194: =AVERAGE('Input Data'!B193:OFFSET('Input Data'!B193,0,(MAX(NSpecimenHTemp,1)-1))) ->  | C194: 1 | D194: 175 | E194: 0 | H194: 175 | I194: =AVERAGE('Input Data'!I193:OFFSET('Input Data'!I193,0,(MAX(NSpecimenLTemp,1)-1))) -> 
A195: 176 | B195: =AVERAGE('Input Data'!B194:OFFSET('Input Data'!B194,0,(MAX(NSpecimenHTemp,1)-1))) ->  | C195: 1 | D195: 176 | E195: 0 | H195: 176 | I195: =AVERAGE('Input Data'!I194:OFFSET('Input Data'!I194,0,(MAX(NSpecimenLTemp,1)-1))) -> 
A196: 177 | B196: =AVERAGE('Input Data'!B195:OFFSET('Input Data'!B195,0,(MAX(NSpecimenHTemp,1)-1))) ->  | C196: 1 | D196: 177 | E196: 0 | H196: 177 | I196: =AVERAGE('Input Data'!I195:OFFSET('Input Data'!I195,0,(MAX(NSpecimenLTemp,1)-1))) -> 
A197: 178 | B197: =AVERAGE('Input Data'!B196:OFFSET('Input Data'!B196,0,(MAX(NSpecimenHTemp,1)-1))) ->  | C197: 1 | D197: 178 | E197: 0 | H197: 178 | I197: =AVERAGE('Input Data'!I196:OFFSET('Input Data'!I196,0,(MAX(NSpecimenLTemp,1)-1))) -> 
A198: 179 | B198: =AVERAGE('Input Data'!B197:OFFSET('Input Data'!B197,0,(MAX(NSpecimenHTemp,1)-1))) ->  | C198: 1 | D198: 179 | E198: 0 | H198: 179 | I198: =AVERAGE('Input Data'!I197:OFFSET('Input Data'!I197,0,(MAX(NSpecimenLTemp,1)-1))) -> 
A199: 180 | B199: =AVERAGE('Input Data'!B198:OFFSET('Input Data'!B198,0,(MAX(NSpecimenHTemp,1)-1))) ->  | C199: 1 | D199: 180 | E199: 0 | H199: 180 | I199: =AVERAGE('Input Data'!I198:OFFSET('Input Data'!I198,0,(MAX(NSpecimenLTemp,1)-1))) -> 
A200: 181 | B200: =AVERAGE('Input Data'!B199:OFFSET('Input Data'!B199,0,(MAX(NSpecimenHTemp,1)-1))) ->  | C200: 1 | D200: 181 | E200: 0 | H200: 181 | I200: =AVERAGE('Input Data'!I199:OFFSET('Input Data'!I199,0,(MAX(NSpecimenLTemp,1)-1))) -> 
A201: 182 | B201: =AVERAGE('Input Data'!B200:OFFSET('Input Data'!B200,0,(MAX(NSpecimenHTemp,1)-1))) ->  | C201: 1 | D201: 182 | E201: 0 | H201: 182 | I201: =AVERAGE('Input Data'!I200:OFFSET('Input Data'!I200,0,(MAX(NSpecimenLTemp,1)-1))) -> 
A202: 183 | B202: =AVERAGE('Input Data'!B201:OFFSET('Input Data'!B201,0,(MAX(NSpecimenHTemp,1)-1))) ->  | C202: 1 | D202: 183 | E202: 0 | H202: 183 | I202: =AVERAGE('Input Data'!I201:OFFSET('Input Data'!I201,0,(MAX(NSpecimenLTemp,1)-1))) -> 
A203: 184 | B203: =AVERAGE('Input Data'!B202:OFFSET('Input Data'!B202,0,(MAX(NSpecimenHTemp,1)-1))) ->  | C203: 1 | D203: 184 | E203: 0 | H203: 184 | I203: =AVERAGE('Input Data'!I202:OFFSET('Input Data'!I202,0,(MAX(NSpecimenLTemp,1)-1))) -> 
A204: 185 | B204: =AVERAGE('Input Data'!B203:OFFSET('Input Data'!B203,0,(MAX(NSpecimenHTemp,1)-1))) ->  | C204: 1 | D204: 185 | E204: 0 | H204: 185 | I204: =AVERAGE('Input Data'!I203:OFFSET('Input Data'!I203,0,(MAX(NSpecimenLTemp,1)-1))) -> 
A205: 186 | B205: =AVERAGE('Input Data'!B204:OFFSET('Input Data'!B204,0,(MAX(NSpecimenHTemp,1)-1))) ->  | C205: 1 | D205: 186 | E205: 0 | H205: 186 | I205: =AVERAGE('Input Data'!I204:OFFSET('Input Data'!I204,0,(MAX(NSpecimenLTemp,1)-1))) -> 
A206: 187 | B206: =AVERAGE('Input Data'!B205:OFFSET('Input Data'!B205,0,(MAX(NSpecimenHTemp,1)-1))) ->  | C206: 1 | D206: 187 | E206: 0 | H206: 187 | I206: =AVERAGE('Input Data'!I205:OFFSET('Input Data'!I205,0,(MAX(NSpecimenLTemp,1)-1))) -> 
A207: 188 | B207: =AVERAGE('Input Data'!B206:OFFSET('Input Data'!B206,0,(MAX(NSpecimenHTemp,1)-1))) ->  | C207: 1 | D207: 188 | E207: 0 | H207: 188 | I207: =AVERAGE('Input Data'!I206:OFFSET('Input Data'!I206,0,(MAX(NSpecimenLTemp,1)-1))) -> 
... 412 more rows

Sheet Input to FlexPAVE (hidden)
A2: Inputs to FlexPAVE
A3: Reference Model
A4: ε0 | B4: ='Permanent Strain Model Coeff'!B6 -> 0
A5: N1 | B5: ='Permanent Strain Model Coeff'!B7 -> 0
A6: β | B6: ='Permanent Strain Model Coeff'!B8 -> 0
A8: Reduced Load Time Shift Factor Model
A9: p1 | B9: ='Permanent Strain Model Coeff'!X4 -> 
A10: p2 | B10: ='Permanent Strain Model Coeff'!X5 -> 
A12: Vertical Stress Shift Factor Model
A13: d1 | B13: ='Permanent Strain Model Coeff'!X8 -> 
A14: d2 | B14: ='Permanent Strain Model Coeff'!X9 -> 
A16: Tref (°C) | B16: ='Permanent Strain Model Coeff'!B4 -> 
A17: Export FlexPAVE Inputs (Press Alt + 1)
A18: Export FlexPAVE Inputs (Press Alt + 2)
A19: Rutting Strain Index (RSI)
A20: State
A21: City
A22: Layer Type
A23: City Coordinates (Lat/Long)
A24: Nearest Station (Lat/Long)
A25: Station Code
A26: Calculate RSI (Press Alt + r)
A27: Select Dabase Folder Location (Press Alt + s)

Sheet Rutting Index Parameter (hidden)
A1: Rutting Strain Index (RSI)
A2: Layer Type:
A3: State:
A4: City:
A5: RSI for 20 year Traffic:
A8: Table 11. Average Permanent Strain Over 20 years
A9: Time (Month) | B9: Average Permanent Strain

Sheet States List (hidden)
B1: State | D1: Database folder | BH1: State ID | BI1: City (County) | BJ1: Latitude | BK1: Longitude | BM1: Station | BN1: Latitude | BO1: Longitude
B2: AK | BH2: AK | BI2: Wainwright (North Slope) | BJ2: 70.638 | BK2: -159.9713 | BM2: 118838 | BN2: 18 | BO2: -66.875
B3: AL | G3: AK | H3: AL | I3: AR | J3: AZ | K3: CA | L3: CO | M3: CT | N3: DC | O3: DE | P3: FL | Q3: GA | R3: HI | S3: IA | T3: ID | U3: IL | V3: IN | W3: KS | X3: KY | Y3: LA | Z3: MA | AA3: MD | AB3: ME | AC3: MI | AD3: MN | AE3: MO | AF3: MS | AG3: MT | AH3: NC | AI3: ND | AJ3: NE | AK3: NH | AL3: NJ | AM3: NM | AN3: NV | AO3: NY | AP3: OH | AQ3: OK | AR3: OR | AS3: PA | AT3: PR | AU3: RI | AV3: SC | AW3: SD | AX3: TN | AY3: TX | AZ3: UT | BA3: VA | BB3: VT | BC3: WA | BD3: WI | BE3: WV | BF3: WY | BH3: AK | BI3: Atqasuk (North Slope) | BJ3: 70.481 | BK3: -157.3835 | BM3: 118839 | BN3: 18 | BO3: -66.25
B4: AR | G4: Adak (Aleutians West) | H4: Abanda (Chambers) | I4: Adona (Perry) | J4: Aguila (Maricopa) | K4: Acalanes Ridge (Contra Costa) | L4: Acres Green (Douglas) | M4: Ansonia (New Haven) | N4: Washington (District of Columbia) | O4: Arden (New Castle) | P4: Acacia Villas (Palm Beach) | Q4: Abbeville (Wilcox) | R4: Ahuimanu (Honolulu) | S4: Ackley (Hardin) | T4: Aberdeen (Bingham) | U4: Abingdon (Knox) | V4: Aberdeen (Porter) | W4: Abbyville (Reno) | X4: Adairville (Logan) | Y4: Abbeville (Vermilion) | Z4: Acushnet Center (Bristol) | AA4: Aberdeen (Harford) | AB4: Auburn (Androscoggin) | AC4: Addison (Lenawee) | AD4: Ada (Norman) | AE4: Adrian (Bates) | AF4: Abbeville (Lafayette) | AG4: Absarokee (Stillwater) | AH4: Aberdeen (Moore) | AI4: Abercrombie (Richland) | AJ4: Abie (Butler) | AK4: Berlin (Coos) | AL4: Absecon (Atlantic) | AM4: Abeytas (Socorro) | AN4: Alamo (Lincoln) | AO4: Accord (Ulster) | AP4: Aberdeen (Brown) | AQ4: Achille (Bryan) | AR4: Adair Village (Benton) | AS4: Aaronsburg (Centre) | AT4: Aceitunas (Moca) | AU4: Ashaway (Washington) | AV4: Abbeville (Abbeville) | AW4: Aberdeen (Brown) | AX4: Adams (Robertson) | AY4: Abbott (Hill) | AZ4: Alpine (Utah) | BA4: Abingdon (Washington) | BB4: Albany (Orleans) | BC4: Aberdeen (Grays Harbor) | BD4: Abbotsford (Clark) | BE4: Accoville (Logan) | BF4: Afton (Lincoln) | BH4: AK | BI4: Prudhoe Bay (North Slope) | BJ4: 70.3128 | BK4: -148.6957 | BM4: 119848 | BN4: 19 | BO4: -155.625
B5: AZ | G5: Akhiok (Kodiak Island) | H5: Abbeville (Henry) | I5: Alexander (Pulaski) | J5: Ajo (Pima) | K5: Acampo (San Joaquin) | L5: Aetna Estates (Arapahoe) | M5: Baltic (New London) | O5: Ardencroft (New Castle) | P5: Alachua (Alachua) | Q5: Acworth (Cobb) | R5: Aiea (Honolulu) | S5: Ackworth (Warren) | T5: Acequia (Minidoka) | U5: Adair (McDonough) | V5: Advance (Boone) | W5: Abilene (Dickinson) | X5: Ages (Harlan) | Y5: Abita Springs (St. Tammany) | Z5: Agawam Town (Hampden) | AA5: Aberdeen Proving Ground (Harford) | AB5: Augusta (Kennebec) | AC5: Adrian (Lenawee) | AD5: Adams (Mower) | AE5: Advance (Stoddard) | AF5: Aberdeen (Monroe) | AG5: Alberton (Mineral) | AH5: Advance (Davie) | AI5: Adams (Walsh) | AJ5: Adams (Gage) | AK5: Blodgett Landing (Merrimack) | AL5: Allendale (Bergen) | AM5: Abiquiu (Rio Arriba) | AN5: Austin (Lander) | AO5: Adams (Jefferson) | AP5: Ada (Hardin) | AQ5: Ada (Pontotoc) | AR5: Adams (Umatilla) | AS5: Abbottstown (Adams) | AT5: Adjuntas (Adjuntas) | AU5: Bradford (Washington) | AV5: Aiken (Aiken) | AW5: Agar (Sully) | AX5: Adamsville (McNairy) | AY5: Abernathy (Lubbock) | AZ5: Alta (Salt Lake) | BA5: Accomac (Accomack) | BB5: Ascutney (Windsor) | BC5: Aberdeen Gardens (Grays Harbor) | BD5: Abrams (Oconto) | BE5: Addison (Webster) | BF5: Albany (Albany) | BH5: AK | BI5: Nuiqsut (North Slope) | BJ5: 70.2135 | BK5: -150.9897 | BM5: 120424 | BN5: 19.5 | BO5: -155.625
B6: CA | G6: Akiachak (Bethel) | H6: Adamsville (Jefferson) | I6: Alicia (Lawrence) | J6: Ak Chin (Pima) | K6: Acton (Los Angeles) | L6: Aguilar (Las Animas) | M6: Bantam (Litchfield) | O6: Ardentown (New Castle) | P6: Alafaya (Orange) | Q6: Adairsville (Bartow) | R6: Ainaloa (Hawaii) | S6: Adair (Guthrie) | T6: Albion (Cassia) | U6: Addieville (Washington) | V6: Akron (Fulton) | W6: Ada (Ottawa) | X6: Albany (Clinton) | Y6: Addis (West Baton Rouge) | Z6: Amesbury Town (Essex) | AA6: Accident (Garrett) | AB6: Bangor (Penobscot) | AC6: Advance (Charlevoix) | AD6: Adrian (Nobles) | AE6: Affton (St. Louis) | AF6: Ackerman (Choctaw) | AG6: Alder (Madison) | AH6: Ahoskie (Hertford) | AI6: Alamo (Williams) | AJ6: Ainsworth (Brown) | AK6: Center Ossipee (Carroll) | AL6: Allenhurst (Monmouth) | AM6: Acomita Lake (Cibola) | AN6: Baker (White Pine) | AO6: Adams Center (Jefferson) | AP6: Adamsville (Muskingum) | AQ6: Adair (Mayes) | AR6: Adrian (Malheur) | AS6: Ackermanville (Northampton) | AT6: Aguada (Aguada) | AU6: Carolina (Washington) | AV6: Alcolu (Clarendon) | AW6: Agency Village (Roberts) | AX6: Alamo (Crockett) | AY6: Abilene (Taylor) | AZ6: Altamont (Duchesne) | BA6: Adwolf (Smyth) | BB6: Barre (Washington) | BC6: Acme (Whatcom) | BD6: Adams (Adams) | BE6: Albright (Preston) | BF6: Albin (Laramie) | BH6: AK | BI6: Kaktovik (North Slope) | BJ6: 70.1231 | BK6: -143.6257 | BM6: 120425 | BN6: 19.5 | BO6: -155
B7: CO | D7: Layer Types | E7: Column1 | G7: Akiak (Bethel) | H7: Addison (Winston) | I7: Allport (Lonoke) | J7: Ak-Chin Village (Pinal) | K7: Adelanto (San Bernardino) | L7: Air Force Academy (El Paso) | M7: Bethlehem Village (Litchfield) | O7: Bear (New Castle) | P7: Alford (Jackson) | Q7: Adel (Cook) | R7: Anahola (Kauai) | S7: Adel (Dallas) | T7: American Falls (Power) | U7: Addison (DuPage) | V7: Alamo (Montgomery) | W7: Admire (Lyon) | X7: Alexandria (Campbell) | Y7: Albany (Livingston) | Z7: Amherst Center (Hampshire) | AA7: Accokeek (Prince George's) | AB7: Bath (Sagadahoc) | AC7: Ahmeek (Keweenaw) | AD7: Afton (Washington) | AE7: Agency (Buchanan) | AF7: Alcorn State University (Claiborne) | AG7: Alzada (Carter) | AH7: Alamance (Alamance) | AI7: Alexander (McKenzie) | AJ7: Albion (Boone) | AK7: Center Sandwich (Carroll) | AL7: Allentown (Monmouth) | AM7: Adelino (Valencia) | AN7: Battle Mountain (Lander) | AO7: Addison (Steuben) | AP7: Addyston (Hamilton) | AQ7: Addington (Jefferson) | AR7: Albany (Linn) | AS7: Adamsburg (Westmoreland) | AT7: Aguadilla (Aguadilla) | AU7: Central Falls (Providence) | AV7: Allendale (Allendale) | AW7: Akaska (Walworth) | AX7: Alcoa (Blount) | AY7: Abram (Hidalgo) | AZ7: Alton (Kane) | BA7: Alberta (Brunswick) | BB7: Barton (Orleans) | BC7: Addy (Stevens) | BD7: Adell (Sheboygan) | BE7: Alderson (Greenbrier) | BF7: Alcova (Natrona) | BH7: AK | BI7: Point Lay (North Slope) | BJ7: 69.7442 | BK7: -162.8678 | BM7: 121000 | BN7: 20 | BO7: -155.625
B8: CT | D8: Surface Layer | E8: 1 | G8: Akutan (Aleutians East) | H8: Akron (Hale) | I8: Alma (Crawford) | J8: Alamo Lake (La Paz) | K8: Adin (Modoc) | L8: Akron (Washington) | M8: Blue Hills (Hartford) | O8: Bellefonte (New Castle) | P8: Allentown (Santa Rosa) | Q8: Adrian (Emanuel) | R8: Captain Cook (Hawaii) | S8: Afton (Union) | T8: Ammon (Bonneville) | U8: Adeline (Ogle) | V8: Albany (Delaware) | W8: Agenda (Republic) | X8: Allen (Floyd) | Y8: Alexandria (Rapides) | Z8: Attleboro (Bristol) | AA8: Adamstown (Frederick) | AB8: Belfast (Waldo) | AC8: Akron (Tuscola) | AD8: Aitkin (Aitkin) | AE8: Airport Drive (Jasper) | AF8: Algoma (Pontotoc) | AG8: Amsterdam (Gallatin) | AH8: Albemarle (Stanly) | AI8: Alice (Cass) | AJ8: Alda (Hall) | AK8: Claremont (Sullivan) | AL8: Allenwood (Monmouth) | AM8: Agua Fria (Santa Fe) | AN8: Beatty (Nye) | AO8: Afton (Chenango) | AP8: Adelphi (Ross) | AQ8: Afton (Ottawa) | AR8: Aloha (Washington) | AS8: Adamstown (Lancaster) | AT8: Aguas Buenas (Aguas Buenas) | AU8: Chepachet (Providence) | AV8: Anderson (Anderson) | AW8: Albee (Grant) | AX8: Alexandria (DeKalb) | AY8: Ackerly (Dawson) | AZ8: Amalga (Cache) | BA8: Alexandria (Alexandria) | BB8: Beecher Falls (Essex) | BC8: Ahtanum (Yakima) | BD8: Albany (Green) | BE8: Alum Creek (Lincoln) | BF8: Alpine (Lincoln) | BH8: AK | BI8: Point Hope (North Slope) | BJ8: 68.3445 | BK8: -166.6738 | BM8: 122150 | BN8: 21 | BO8: -156.875
B9: DC | D9: Intermediate Layer | E9: 2 | G9: Alakanuk (Kusilvak) | H9: Alabaster (Shelby) | I9: Almyra (Arkansas) | J9: Ali Chuk (Pima) | K9: Agoura Hills (Los Angeles) | L9: Alamosa (Alamosa) | M9: Branford Center (New Haven) | O9: Bethany Beach (Sussex) | P9: Altamonte Springs (Seminole) | Q9: Ailey (Montgomery) | R9: Discovery Harbour (Hawaii) | S9: Agency (Wapello) | T9: Arbon Valley (Power) | U9: Albany (Whiteside) | V9: Albion (Noble) | W9: Agra (Phillips) | X9: Allensville (Todd) | Y9: Ama (St. Charles) | Z9: Baldwinville (Worcester) | AA9: Adelphi (Prince George's) | AB9: Biddeford (York) | AC9: Alanson (Emmet) | AD9: Akeley (Hubbard) | AE9: Alba (Jasper) | AF9: Alligator (Bolivar) | AG9: Anaconda (Deer Lodge) | AH9: Alliance (Pamlico) | AI9: Almont (Morton) | AJ9: Alexandria (Thayer) | AK9: Concord (Merrimack) | AL9: Alpha (Warren) | AM9: Alamillo (Socorro) | AN9: Beaverdam (Lincoln) | AO9: Airmont (Rockland) | AP9: Adena (Jefferson) | AQ9: Agra (Lincoln) | AR9: Alpine (Benton) | AS9: Adamsville (Crawford) | AT9: Aguas Claras (Ceiba) | AU9: Clayville (Providence) | AV9: Andrews (Williamsburg) | AW9: Alcester (Union) | AX9: Algood (Putnam) | AY9: Addison (Dallas) | AZ9: American Fork (Utah) | BA9: Allisonia (Pulaski) | BB9: Bellows Falls (Windham) | BC9: Airway Heights (Spokane) | BD9: Algoma (Kewaunee) | BE9: Amherstdale (Logan) | BF9: Alpine Northeast (Lincoln) | BH9: AK | BI9: Anaktuvuk Pass (North Slope) | BJ9: 68.15 | BK9: -151.7162 | BM9: 122724 | BN9: 21.5 | BO9: -158.125
B10: DE | D10: Base Layer | E10: 3 | G10: Alatna (Yukon-Koyukuk) | H10: Albertville (Marshall) | I10: Alpena (Boone) | J10: Ali Chukson (Pima) | K10: Agua Dulce (Los Angeles) | L10: Alamosa East (Alamosa) | M10: Bridgeport (Fairfield) | O10: Bethel (Sussex) | P10: Altha (Calhoun) | Q10: Alamo (Wheeler) | R10: East Honolulu (Honolulu) | S10: Ainsworth (Washington) | T10: Arco (Butte) | U10: Albers (Clinton) | V10: Alexandria (Madison) | W10: Albert (Barton) | X10: Anchorage (Jefferson) | Y10: Amelia (St. Mary) | Z10: Barnstable Town (Barnstable) | AA10: Algonquin (Dorchester) | AB10: Brewer (Penobscot) | AC10: Alba (Antrim) | AD10: Albany (Stearns) | AE10: Albany (Gentry) | AF10: Amory (Monroe) | AG10: Antelope (Sheridan) | AH10: Altamahaw (Alamance) | AI10: Alsen (Cavalier) | AJ10: Allen (Dixon) | AK10: Contoocook (Merrimack) | AL10: Alpine (Bergen) | AM10: Alamo (Socorro) | AN10: Bennett Springs (Lincoln) | AO10: Akron (Erie) | AP10: Akron (Summit) | AQ10: Akins (Sequoyah) | AR10: Alsea (Benton) | AS10: Addison (Somerset) | AT10: Aguilita (Juana Díaz) | AU10: Cranston (Providence) | AV10: Antreville (Abbeville) | AW10: Alexandria (Hanson) | AX10: Allardt (Fentress) | AY10: Adrian (Oldham) | AZ10: Aneth (San Juan) | BA10: Altavista (Campbell) | BB10: Burlington (Chittenden) | BC10: Albion (Whitman) | BD10: Allenton (Washington) | BE10: Anawalt (McDowell) | BF10: Alpine Northwest (Lincoln) | BH10: AK | BI10: Arctic Village (Yukon-Koyukuk) | BJ10: 68.1421 | BK10: -145.4957 | BM10: 123297 | BN10: 22 | BO10: -160
B11: FL | G11: Alcan Border (Southeast Fairbanks) | H11: Alexander City (Tallapoosa) | I11: Altheimer (Jefferson) | J11: Ali Molina (Pima) | K11: Aguanga (Riverside) | L11: Allenspark (Boulder) | M11: Bristol (Hartford) | O11: Blades (Sussex) | P11: Altoona (Lake) | Q11: Alapaha (Berrien) | R11: Eden Roc (Hawaii) | S11: Akron (Plymouth) | T11: Arimo (Bannock) | U11: Albion (Edwards) | V11: Alfordsville (Daviess) | W11: Alden (Rice) | X11: Annville (Jackson) | Y11: Amite City (Tangipahoa) | Z11: Beverly (Essex) | AA11: Allen (Wicomico) | AB11: Brunswick Station (Cumberland) | AC11: Albion (Calhoun) | AD11: Albert Lea (Freeborn) | AE11: Aldrich (Polk) | AF11: Anguilla (Sharkey) | AG11: Arlee (Lake) | AH11: Andrews (Cherokee) | AI11: Ambrose (Divide) | AJ11: Alliance (Box Butte) | AK11: Dover (Strafford) | AL11: Anderson (Warren) | AM11: Alamogordo (Otero) | AN11: Blue Diamond (Clark) | AO11: Albany (Albany) | AP11: Albany (Athens) | AQ11: Albany (Bryan) | AR11: Altamont (Klamath) | AS11: Akron (Lancaster) | AT11: Aibonito (Aibonito) | AU11: Cumberland Hill (Providence) | AV11: Arcadia (Spartanburg) | AW11: Allen (Bennett) | AX11: Altamont (Grundy) | AY11: Agua Dulce (Nueces) | AZ11: Annabella (Sevier) | BA11: Amelia Court House (Amelia) | BB11: Cambridge (Lamoille) | BC11: Alder (Pierce) | BD11: Allouez (Brown) | BE11: Anmoore (Harrison) | BF11: Alta (Teton) | BH11: AK | BI11: Red Dog Mine (Northwest Arctic) | BJ11: 68.0645 | BK11: -162.8668 | BM11: 123298 | BN11: 22 | BO11: -159.375
B12: GA | G12: Aleknagik (Dillingham) | H12: Alexandria (Calhoun) | I12: Altus (Franklin) | J12: Alpine (Apache) | K12: Ahwahnee (Madera) | L12: Alma (Park) | M12: Broad Brook (Hartford) | O12: Bowers (Kent) | P12: Alturas (Polk) | Q12: Albany (Dougherty) | R12: Eleele (Kauai) | S12: Albert City (Buena Vista) | T12: Ashton (Fremont) | U12: Aledo (Mercer) | V12: Alton (Crawford) | W12: Alexander (Rush) | X12: Anthoston (Henderson) | Y12: Anacoco (Vernon) | Z12: Bliss Corner (Bristol) | AA12: Andrews AFB (Prince George's) | AB12: Calais (Washington) | AC12: Alden (Antrim) | AD12: Alberta (Stevens) | AE12: Alexandria (Clark) | AF12: Arcola (Washington) | AG12: Ashland (Rosebud) | AH12: Angier (Harnett) | AI12: Amenia (Cass) | AJ12: Alma (Harlan) | AK12: East Merrimack (Hillsborough) | AL12: Andover (Sussex) | AM12: Albuquerque (Bernalillo) | AN12: Boulder City (Clark) | AO12: Albertson (Nassau) | AP12: Alexandria (Licking) | AQ12: Albion (Pushmataha) | AR12: Amity (Yamhill) | AS12: Alba (Bradford) | AT12: Alianza (Camuy) | AU12: East Providence (Providence) | AV12: Arcadia Lakes (Richland) | AW12: Alpena (Jerauld) | AX12: Andersonville (Anderson) | AY12: Aguilares (Webb) | AZ12: Antimony (Garfield) | BA12: Amherst (Amherst) | BB12: Derby Center (Orleans) | BC12: Alderton (Pierce) | BD12: Alma (Buffalo) | BE12: Ansted (Fayette) | BF12: Antelope Hills (Natrona) | BH12: AK | BI12: Kivalina (Northwest Arctic) | BJ12: 67.733 | BK12: -164.5212 | BM12: 126302 | BN12: 24.5 | BO12: -81.875
B13: HI | G13: Aleneva (Kodiak Island) | H13: Aliceville (Pickens) | I13: Amagon (Jackson) | J13: Amado (Santa Cruz) | K13: Airport (Stanislaus) | L13: Alpine (Rio Grande) | M13: Byram (Fairfield) | O13: Bridgeville (Sussex) | P13: Alva (Lee) | Q13: Aldora (Lamar) | R13: Ewa Beach (Honolulu) | S13: Albia (Monroe) | T13: Athol (Kootenai) | U13: Alexis (Warren) | V13: Altona (DeKalb) | W13: Allen (Lyon) | X13: Arjay (Bell) | Y13: Angie (Washington) | Z13: Boston (Suffolk) | AA13: Annapolis (Anne Arundel) | AB13: Cape Neddick (York) | AC13: Algonac (St. Clair) | AD13: Albertville (Wright) | AE13: Allendale (Worth) | AF13: Arnold Line (Lamar) | AG13: Augusta (Lewis and Clark) | AH13: Ansonville (Anson) | AI13: Amidon (Slope) | AJ13: Alvo (Cass) | AK13: Franklin (Merrimack) | AL13: Annandale (Hunterdon) | AM13: Alcalde (Rio Arriba) | AN13: Bunkerville (Clark) | AO13: Albion (Orleans) | AP13: Alger (Hardin) | AQ13: Alderson (Pittsburg) | AR13: Annex (Malheur) | AS13: Albion (Erie) | AT13: Añasco (Añasco) | AU13: Foster Center (Providence) | AV13: Arial (Pickens) | AW13: Altamont (Deuel) | AX13: Apison (Hamilton) | AY13: Airport Heights (Starr) | AZ13: Apple Valley (Washington) | BA13: Annandale (Fairfax) | BB13: Derby Line (Orleans) | BC13: Alderwood Manor (Snohomish) | BD13: Alma Center (Jackson) | BE13: Apple Grove (Mason) | BF13: Arapahoe (Fremont) | BH13: AK | BI13: Noatak (Northwest Arctic) | BJ13: 67.5987 | BK13: -163.0309 | BM13: 126880 | BN13: 25 | BO13: -80.625
B14: IA | G14: Allakaket (Yukon-Koyukuk) | H14: Allgood (Blount) | I14: Amity (Clark) | J14: Anegam (Pima) | K14: Alameda (Alameda) | L14: Altona (Boulder) | M14: Cannondale (Fairfield) | O14: Brookside (New Castle) | P14: Andrews (Levy) | Q14: Allenhurst (Liberty) | R14: Ewa Gentry (Honolulu) | S14: Albion (Marshall) | T14: Atomic City (Bingham) | U14: Algonquin (McHenry) | V14: Ambia (Benton) | W14: Alma (Wabaunsee) | X14: Arlington (Carlisle) | Y14: Arabi (St. Bernard) | Z14: Braintree Town (Norfolk) | AA14: Annapolis Neck (Anne Arundel) | AB14: Caribou (Aroostook) | AC14: Allegan (Allegan) | AD14: Alden (Freeborn) | AE14: Allenville (Cape Girardeau) | AF14: Artesia (Lowndes) | AG14: Avon (Powell) | AH14: Apex (Wake) | AI14: Anamoose (McHenry) | AJ14: Ames (Dodge) | AK14: Groveton (Coos) | AL14: Asbury (Warren) | AM14: Algodones (Sandoval) | AN14: Caliente (Lincoln) | AO14: Alden (Erie) | AP14: Alliance (Stark) | AQ14: Alex (Grady) | AR14: Antelope (Wasco) | AS14: Albrightsville (Carbon) | AT14: Animas (Arecibo) | AU14: Greene (Kent) | AV14: Atlantic Beach (Horry) | AW14: Anderson (Minnehaha) | AX14: Ardmore (Giles) | AY14: Airport Road Addition (Brooks) | AZ14: Aurora (Sevier) | BA14: Appalachia (Wise) | BB14: East Barre (Washington) | BC14: Alger (Skagit) | BD14: Almena (Barron) | BE14: Arbovale (Pocahontas) | BF14: Arlington (Carbon) | BH14: AK | BI14: Wiseman (Yukon-Koyukuk) | BJ14: 67.4371 | BK14: -150.1334 | BM14: 127455 | BN14: 25.5 | BO14: -81.25
B15: ID | G15: Ambler (Northwest Arctic) | H15: Altoona (Etowah) | I15: Anthonyville (Crittenden) | J15: Antares (Mohave) | K15: Alamo (Contra Costa) | L15: Amherst (Phillips) | M15: Canton Valley (Hartford) | O15: Camden (Kent) | P15: Anna Maria (Manatee) | Q15: Allentown (Twiggs) | R15: Ewa Villages (Honolulu) | S15: Alburnett (Linn) | T15: Bancroft (Caribou) | U15: Alhambra (Madison) | V15: Amboy (Miami) | W15: Almena (Norton) | X15: Artemus (Knox) | Y15: Arcadia (Bienville) | Z15: Bridgewater (Plymouth) | AA15: Antietam (Washington) | AB15: Chisholm (Franklin) | AC15: Allen (Hillsdale) | AD15: Aldrich (Wadena) | AE15: Alma (Lafayette) | AF15: Ashland (Benton) | AG15: Azure (Hill) | AH15: Aquadale (Stanly) | AI15: Aneta (Nelson) | AJ15: Amherst (Buffalo) | AK15: Hampton Beach (Rockingham) | AL15: Asbury Park (Monmouth) | AM15: Angel Fire (Colfax) | AN15: Cal-Nev-Ari (Clark) | AO15: Alexander (Genesee) | AP15: Alvordton (Williams) | AQ15: Aline (Alfalfa) | AR15: Arlington (Gilliam) | AS15: Alburtis (Lehigh) | AT15: Anon Raices (Ponce) | AU15: Greenville (Providence) | AV15: Awendaw (Charleston) | AW15: Andover (Day) | AX15: Arlington (Shelby) | AY15: Alamo (Hidalgo) | AZ15: Avon (Cache) | BA15: Apple Mountain Lake (Warren) | BB15: East Burke (Caledonia) | BC15: Algona (King) | BD15: Almond (Portage) | BE15: Athens (Mercer) | BF15: Arrowhead Springs (Sweetwater) | BH15: AK | BI15: Coldfoot (Yukon-Koyukuk) | BJ15: 67.2475 | BK15: -150.1079 | BM15: 127456 | BN15: 25.5 | BO15: -80.625
B16: IL | G16: Anaktuvuk Pass (North Slope) | H16: Andalusia (Covington) | I16: Antoine (Pike) | J16: Anthem (Maricopa) | K16: Albany (Alameda) | L16: Antonito (Conejos) | M16: Cheshire Village (New Haven) | O16: Cheswold (Kent) | P16: Apalachicola (Franklin) | Q16: Alma (Bacon) | R16: Fern Acres (Hawaii) | S16: Alden (Hardin) | T16: Banks (Boise) | U16: Allendale (Wabash) | V16: Americus (Tippecanoe) | W16: Alta Vista (Wabaunsee) | X16: Ashland (Boyd) | Y16: Arnaudville (St. Landry) | Z16: Brockton (Plymouth) | AA16: Aquasco (Prince George's) | AB16: Cousins Island (Cumberland) | AC16: Allen Park (Wayne) | AD16: Alexandria (Douglas) | AE16: Altamont (Daviess) | AF16: Baldwyn (Lee) | AG16: Babb (Glacier) | AH16: Arapahoe (Pamlico) | AI16: Antler (Bottineau) | AJ16: Anoka (Boyd) | AK16: Keene (Cheshire) | AL16: Ashland (Camden) | AM16: Animas (Hidalgo) | AN16: Carlin (Elko) | AO16: Alexandria Bay (Jefferson) | AP16: Amanda (Fairfield) | AQ16: Allen (Pontotoc) | AR16: Ashland (Jackson) | AS16: Aldan (Delaware) | AT16: Antón Ruíz (Humacao) | AU16: Harmony (Providence) | AV16: Aynor (Horry) | AW16: Antelope (Todd) | AX16: Ashland City (Cheatham) | AY16: Alamo Heights (Bexar) | AZ16: Ballard (Uintah) | BA16: Appomattox (Appomattox) | BB16: East Middlebury (Addison) | BC16: Allyn (Mason) | BD16: Altoona (Eau Claire) | BE16: Auburn (Ritchie) | BF16: Arvada (Sheridan) | BH16: AK | BI16: Ambler (Northwest Arctic) | BJ16: 67.0897 | BK16: -157.8725 | BM16: 128005 | BN16: 26 | BO16: -97.5
B17: IN | G17: Anchor Point (Kenai Peninsula) | H17: Anderson (Lauderdale) | I17: Arkadelphia (Clark) | J17: Apache Junction (Pinal) | K17: Albion (Mendocino) | L17: Applewood (Jefferson) | M17: Chester Center (Middlesex) | O17: Claymont (New Castle) | P17: Apollo Beach (Hillsborough) | Q17: Alpharetta (Fulton) | R17: Fern Forest (Hawaii) | S17: Alexander (Franklin) | T17: Basalt (Bingham) | U17: Allenville (Moultrie) | V17: Amo (Hendricks) | W17: Altamont (Labette) | X17: Auburn (Logan) | Y17: Ashland (Natchitoches) | Z17: Buzzards Bay (Barnstable) | AA17: Arbutus (Baltimore) | AB17: Cumberland Center (Cumberland) | AC17: Allendale (Ottawa) | AD17: Alpha (Jackson) | AE17: Altenburg (Perry) | AF17: Bassfield (Jefferson Davis) | AG17: Bainville (Roosevelt) | AH17: Archdale (Randolph) | AI17: Ardoch (Walsh) | AJ17: Anselmo (Custer) | AK17: Laconia (Belknap) | AL17: Atlantic City (Atlantic) | AM17: Anthony (Doña Ana) | AN17: Carson City (Carson City) | AO17: Alfred (Allegany) | AP17: Amberley (Hamilton) | AQ17: Altus (Jackson) | AR17: Astoria (Clatsop) | AS17: Alexandria (Huntingdon) | AT17: Arecibo (Arecibo) | AU17: Harrisville (Providence) | AV17: Bamberg (Bamberg) | AW17: Arlington (Kingsbury) | AX17: Athens (McMinn) | AY17: Alba (Wood) | AZ17: Bear River City (Box Elder) | BA17: Aquia Harbour (Stafford) | BB17: Enosburg Falls (Franklin) | BC17: Almira (Lincoln) | BD17: Amberg (Marinette) | BE17: Aurora (Preston) | BF17: Atlantic City (Fremont) | BH17: AK | BI17: Venetie (Yukon-Koyukuk) | BJ17: 67.0205 | BK17: -146.375 | BM17: 128031 | BN17: 26 | BO17: -81.25
B18: KS | G18: Anchorage (Anchorage) | H18: Anniston (Calhoun) | I18: Arkansas City (Desha) | J18: Arivaca (Pima) | K18: Alderpoint (Humboldt) | L18: Arboles (Archuleta) | M18: Collinsville (Hartford) | O18: Clayton (Kent) | P18: Apopka (Orange) | Q18: Alston (Montgomery) | R18: Haena (Kauai) | S18: Algona (Kossuth) | T18: Bellevue (Blaine) | U18: Allerton (Champaign) | V18: Anderson (Madison) | W18: Alton (Osborne) | X18: Audubon Park (Jefferson) | Y18: Athens (Claiborne) | Z18: Cambridge (Middlesex) | AA18: Arden on the Severn (Anne Arundel) | AB18: Eastport (Washington) | AC18: Alma (Gratiot) | AD18: Altura (Winona) | AE18: Alton (Oregon) | AF18: Batesville (Panola) | AG18: Baker (Fallon) | AH18: Archer Lodge (Johnston) | AI18: Argusville (Cass) | AJ18: Ansley (Custer) | AK18: Lebanon (Grafton) | AL18: Atlantic Highlands (Monmouth) | AM18: Anton Chico (Guadalupe) | AN18: Carter Springs (Douglas) | AO18: Allegany (Cattaraugus) | AP18: Amelia (Clermont) | AQ18: Alva (Woods) | AR18: Athena (Umatilla) | AS18: Alfarata (Mifflin) | AT18: Arroyo (Arroyo) | AU18: Hope Valley (Washington) | AV18: Barnwell (Barnwell) | AW18: Armour (Douglas) | AX18: Atoka (Tipton) | AY18: Albany (Shackelford) | AZ18: Beaver (Beaver) | BA18: Arcola (Loudoun) | BB18: Essex Junction (Chittenden) | BC18: Altoona (Wahkiakum) | BD18: Amery (Polk) | BE18: Bancroft (Putnam) | BF18: Auburn (Lincoln) | BH18: AK | BI18: Kiana (Northwest Arctic) | BJ18: 66.9726 | BK18: -160.4344 | BM18: 128032 | BN18: 26 | BO18: -80.625
B19: KY | G19: Anderson (Denali) | H19: Arab (Marshall) | I19: Ash Flat (Sharp) | J19: Arivaca Junction (Pima) | K19: Alhambra (Los Angeles) | L19: Aristocrat Ranchettes (Weld) | M19: Conning Towers Nautilus Park (New London) | O19: Dagsboro (Sussex) | P19: Arcadia (DeSoto) | Q19: Alto (Banks) | R19: Haiku-Pauwela (Maui) | S19: Alleman (Polk) | T19: Bennington (Bear Lake) | U19: Alma (Marion) | V19: Andrews (Huntington) | W19: Altoona (Wilson) | X19: Augusta (Bracken) | Y19: Atlanta (Winn) | Z19: Chelsea (Suffolk) | AA19: Arnold (Anne Arundel) | AB19: Ellsworth (Hancock) | AC19: Almont (Lapeer) | AD19: Alvarado (Marshall) | AE19: Amazonia (Andrew) | AF19: Bay Springs (Jasper) | AG19: Ballantine (Yellowstone) | AH19: Asheboro (Randolph) | AI19: Arnegard (McKenzie) | AJ19: Arapahoe (Furnas) | AK19: Manchester (Hillsborough) | AL19: Audubon (Camden) | AM19: Anzac Village (Cibola) | AN19: Cold Springs (Washoe) | AO19: Almond (Allegany) | AP19: Amesville (Athens) | AQ19: Amber (Grady) | AR19: Aumsville (Marion) | AS19: Aliquippa (Beaver) | AT19: Bairoa La Veinticinco (Caguas) | AU19: Kingston (Washington) | AV19: Batesburg-Leesville (Lexington) | AW19: Artas (Campbell) | AX19: Atwood (Carroll) | AY19: Aldine (Harris) | AZ19: Benjamin (Utah) | BA19: Arlington (Arlington) | BB19: Graniteville (Washington) | BC19: Amanda Park (Grays Harbor) | BD19: Amherst (Portage) | BE19: Barboursville (Cabell) | BF19: Baggs (Carbon) | BH19: AK | BI19: Kobuk (Northwest Arctic) | BJ19: 66.931 | BK19: -156.8934 | BM19: 128579 | BN19: 26.5 | BO19: -98.75
B20: LA | G20: Angoon (Hoonah-Angoon) | H20: Ardmore (Limestone) | I20: Ashdown (Little River) | J20: Arizona City (Pinal) | K20: Alhambra Valley (Contra Costa) | L20: Arriba (Lincoln) | M20: Cos Cob (Fairfield) | O20: Delaware City (New Castle) | P20: Archer (Alachua) | Q20: Ambrose (Coffee) | R20: Halaula (Hawaii) | S20: Allerton (Wayne) | T20: Blackfoot (Bingham) | U20: Alorton (St. Clair) | V20: Angola (Steuben) | W20: Americus (Lyon) | X20: Auxier (Floyd) | Y20: Avondale (Jefferson) | Z20: Chicopee (Hampden) | AA20: Ashton-Sandy Spring (Montgomery) | AB20: Falmouth Foreside (Cumberland) | AC20: Alpena (Alpena) | AD20: Amboy (Blue Earth) | AE20: Amity (DeKalb) | AF20: Bay St. Louis (Hancock) | AG20: Basin (Jefferson) | AH20: Asheville (Buncombe) | AI20: Arthur (Cass) | AJ20: Arcadia (Valley) | AK20: Melvin Village (Carroll) | AL20: Audubon Park (Camden) | AM20: Apache Creek (Catron) | AN20: Crescent Valley (Eureka) | AO20: Altamont (Albany) | AP20: Amherst (Lorain) | AQ20: Ames (Major) | AR20: Aurora (Marion) | AS20: Alleghenyville (Berks) | AT20: Bajadero (Arecibo) | AU20: Melville (Newport) | AV20: Beaufort (Beaufort) | AW20: Artesian (Sanborn) | AX20: Auburntown (Cannon) | AY20: Aledo (Parker) | AZ20: Benson (Cache) | BA20: Arrington (Nelson) | BB20: Greensboro Bend (Orleans) | BC20: Amboy (Clark) | BD20: Amherst Junction (Portage) | BE20: Barrackville (Marion) | BF20: Bairoil (Sweetwater) | BH20: AK | BI20: Evansville (Yukon-Koyukuk) | BJ20: 66.9205 | BK20: -151.4203 | BM20: 128580 | BN20: 26.5 | BO20: -98.125
B21: MA | G21: Aniak (Bethel) | H21: Argo (Jefferson) | I21: Atkins (Pope) | J21: Arizona Village (Mohave) | K21: Aliso Viejo (Orange) | L21: Arvada (Jefferson) | M21: Coventry Lake (Tolland) | O21: Delmar (Sussex) | P21: Aripeka (Pasco) | Q21: Americus (Sumter) | R21: Halawa (Honolulu) | S21: Allison (Butler) | T21: Blanchard (Bonner) | U21: Alpha (Henry) | V21: Arcadia (Hamilton) | W21: Andale (Sedgwick) | X21: Bancroft (Jefferson) | Y21: Baker (East Baton Rouge) | Z21: Cochituate (Middlesex) | AA21: Aspen Hill (Montgomery) | AB21: Gardiner (Kennebec) | AC21: Alpha (Iron) | AD21: Andover (Anoka) | AE21: Amoret (Bates) | AF21: Beaumont (Perry) | AG21: Batavia (Flathead) | AH21: Ashley Heights (Hoke) | AI21: Ashley (McIntosh) | AJ21: Archer (Merrick) | AK21: Milton Mills (Strafford) | AL21: Avalon (Cape May) | AM21: Aragon (Catron) | AN21: Crystal Bay (Washoe) | AO21: Altmar (Oswego) | AP21: Amsterdam (Jefferson) | AQ21: Amorita (Alfalfa) | AR21: Baker City (Baker) | AS21: Allenport (Washington) | AT21: Bajandas (Humacao) | AU21: Misquamicut (Washington) | AV21: Belton (Anderson) | AW21: Ashland Heights (Pennington) | AX21: Baileyton (Greene) | AY21: Alfred (Jim Wells) | AZ21: Beryl Junction (Iron) | BA21: Ashburn (Loudoun) | BB21: Hyde Park (Lamoille) | BC21: Ames Lake (King) | BD21: Angelica (Shawano) | BE21: Bartley (McDowell) | BF21: Bar Nunn (Natrona) | BH21: AK | BI21: Bettles (Yukon-Koyukuk) | BJ21: 66.9084 | BK21: -151.5369 | BM21: 128581 | BN21: 26.5 | BO21: -97.5
B22: MD | G22: Anvik (Yukon-Koyukuk) | H22: Ariton (Dale) | I22: Aubrey (Lee) | J22: Arlington (Maricopa) | K22: Alleghany (Sierra) | L22: Aspen (Pitkin) | M22: Crystal Lake (Tolland) | O22: Dewey Beach (Sussex) | P22: Asbury Lake (Clay) | Q22: Andersonville (Sumter) | R22: Haleiwa (Honolulu) | S22: Alta (Buena Vista) | T22: Bliss (Gooding) | U22: Alsey (Scott) | V22: Argos (Marshall) | W22: Andover (Butler) | X22: Bandana (Ballard) | Y22: Baldwin (St. Mary) | Z22: Cordaville (Worcester) | AA22: Baden (Prince George's) | AB22: Hallowell (Kennebec) | AC22: Amasa (Iron) | AD22: Angle Inlet (Lake of the Woods) | AE22: Amsterdam (Bates) | AF22: Beauregard (Copiah) | AG22: Bear Dance (Lake) | AH22: Askewville (Bertie) | AI22: Auburn (Walsh) | AJ22: Arlington (Washington) | AK22: Mountain Lakes (Grafton) | AL22: Avenel (Middlesex) | AM22: Arenas Valley (Grant) | AN22: Dayton (Lyon) | AO22: Amagansett (Suffolk) | AP22: Andersonville (Ross) | AQ22: Anadarko (Caddo) | AR22: Bandon (Coos) | AS22: Allensville (Mifflin) | AT22: Barahona (Morovis) | AU22: Narragansett Pier (Washington) | AV22: Belvedere (Aiken) | AW22: Ashton (Spink) | AX22: Baneberry (Jefferson) | AY22: Alice (Jim Wells) | AZ22: Bicknell (Wayne) | BA22: Ashland (Hanover) | BB22: Island Pond (Essex) | BC22: Anacortes (Skagit) | BD22: Aniwa (Shawano) | BE22: Bartow (Pocahontas) | BF22: Basin (Big Horn) | BH22: AK | BI22: Shungnak (Northwest Arctic) | BJ22: 66.8805 | BK22: -157.1499 | BM22: 128606 | BN22: 26.5 | BO22: -81.875
B23: ME | G23: Arctic Village (Yukon-Koyukuk) | H23: Arley (Winston) | I23: Augusta (Woodruff) | J23: Ash Fork (Yavapai) | K23: Allendale (Solano) | L23: Aspen Park (Jefferson) | M23: Danbury (Fairfield) | O23: Dover (Kent) | P23: Astatula (Lake) | Q23: Appling (Columbia) | R23: Haliimaile (Maui) | S23: Alta Vista (Chickasaw) | T23: Bloomington (Bear Lake) | U23: Alsip (Cook) | V23: Arlington (Rush) | W23: Anthony (Harper) | X23: Barbourmeade (Jefferson) | Y23: Ball (Rapides) | Z23: Dennis Port (Barnstable) | AA23: Bagtown (Washington) | AB23: Kittery Point (York) | AC23: Ann Arbor (Washtenaw) | AD23: Annandale (Wright) | AE23: Anderson (McDonald) | AF23: Beechwood (Warren) | AG23: Bearcreek (Carbon) | AH23: Atkinson (Pender) | AI23: Ayr (Cass) | AJ23: Arnold (Custer) | AK23: Nashua (Hillsborough) | AL23: Avon-by-the-Sea (Monmouth) | AM23: Arrey (Sierra) | AN23: Denio (Humboldt) | AO23: Ames (Montgomery) | AP23: Andover (Ashtabula) | AQ23: Antlers (Pushmataha) | AR23: Banks (Washington) | AS23: Allentown (Lehigh) | AT23: Barceloneta (Barceloneta) | AU23: Newport (Newport) | AV23: Bennettsville (Marlboro) | AW23: Astoria (Deuel) | AX23: Banner Hill (Unicoi) | AY23: Alice Acres (Jim Wells) | AZ23: Big Water (Kane) | BA23: Atkins (Smyth) | BB23: Jacksonville (Windham) | BC23: Anderson Island (Pierce) | BD23: Antigo (Langlade) | BE23: Bath (Morgan) | BF23: Bear River (Uinta) | BH23: AK | BI23: Kotzebue (Northwest Arctic) | BJ23: 66.8766 | BK23: -162.5231 | BM23: 128607 | BN23: 26.5 | BO23: -81.25
B24: MI | G24: Atka (Aleutians West) | H24: Ashford (Houston) | I24: Austin (Lonoke) | J24: Avenue B and C (Yuma) | K24: Allensworth (Tulare) | L24: Atwood (Logan) | M24: Danielson (Windham) | O24: Dover Base Housing (Kent) | P24: Astor (Lake) | Q24: Arabi (Crisp) | R24: Hana (Maui) | S24: Alton (Sioux) | T24: Boise (Ada) | U24: Altamont (Effingham) | V24: Ashley (DeKalb) | W24: Arcadia (Crawford) | X24: Barbourville (Knox) | Y24: Banks Springs (Caldwell) | Z24: Devens (Worcester) | AA24: Bakersville (Washington) | AB24: Lake Arrowhead (York) | AC24: Applegate (Sanilac) | AD24: Anoka (Anoka) | AE24: Annada (Pike) | AF24: Belmont (Tishomingo) | AG24: Beaver Creek (Hill) | AH24: Atlantic (Carteret) | AI24: Balfour (McHenry) | AJ24: Arthur (Arthur) | AK24: North Conway (Carroll) | AL24: Barclay (Camden) | AM24: Arroyo Hondo (Taos) | AN24: Double Spring (Douglas) | AO24: Amityville (Suffolk) | AP24: Anna (Shelby) | AQ24: Apache (Caddo) | AR24: Barlow (Clackamas) | AS24: Allenwood (Union) | AT24: Barranquitas (Barranquitas) | AU24: Newport East (Newport) | AV24: Berea (Greenville) | AW24: Aurora (Brookings) | AX24: Bartlett (Shelby) | AY24: Allen (Collin) | AZ24: Blanding (San Juan) | BA24: Atlantic (Accomack) | BB24: Jeffersonville (Lamoille) | BC24: Arlington (Snohomish) | BD24: Appleton (Outagamie) | BE24: Bayard (Grant) | BF24: Bedford (Lincoln) | BH24: AK | BI24: Noorvik (Northwest Arctic) | BJ24: 66.8292 | BK24: -161.0377 | BM24: 128608 | BN24: 26.5 | BO24: -80.625
B25: MN | G25: Atmautluak (Bethel) | H25: Ashland (Clay) | I25: Avilla (Saline) | J25: Avondale (Maricopa) | K25: Almanor (Plumas) | L25: Ault (Weld) | M25: Deep River Center (Middlesex) | O25: Edgemoor (New Castle) | P25: Atlantic Beach (Duval) | Q25: Aragon (Polk) | R25: Hanalei (Kauai) | S25: Altoona (Polk) | T25: Bonners Ferry (Boundary) | U25: Alto Pass (Union) | V25: Atlanta (Hamilton) | W25: Argonia (Sumner) | X25: Bardstown (Nelson) | Y25: Barataria (Jefferson) | Z25: East Dennis (Barnstable) | AA25: Ballenger Creek (Frederick) | AB25: Lewiston (Androscoggin) | AC25: Arcadia (Manistee) | AD25: Apple Valley (Dakota) | AE25: Annapolis (Iron) | AF25: Belzoni (Humphreys) | AG25: Belfry (Carbon) | AH25: Atlantic Beach (Carteret) | AI25: Balta (Pierce) | AJ25: Ashland (Saunders) | AK25: North Haverhill (Grafton) | AL25: Barnegat Light (Ocean) | AM25: Arroyo Seco (Taos) | AN25: Dry Valley (Lincoln) | AO25: Amsterdam (Montgomery) | AP25: Ansonia (Darke) | AQ25: Arapaho (Custer) | AR25: Barview (Coos) | AS25: Allison (Fayette) | AT25: Bartolo (Río Grande) | AU25: Pascoag (Providence) | AV25: Bethune (Kershaw) | AW25: Aurora Center (Aurora) | AX25: Baxter (Putnam) | AY25: Alma (Ellis) | AZ25: Bluebell (Duchesne) | BA25: Augusta Springs (Augusta) | BB25: Jericho (Chittenden) | BC25: Arlington Heights (Snohomish) | BD25: Arcadia (Trempealeau) | BE25: Beards Fork (Fayette) | BF25: Bessemer Bend (Natrona) | BH25: AK | BI25: Chalkyitsik (Yukon-Koyukuk) | BJ25: 66.6468 | BK25: -143.7822 | BM25: 128609 | BN25: 26.5 | BO25: -80
B26: MO | G26: Atqasuk (North Slope) | H26: Ashville (St. Clair) | I26: Avoca (Benton) | J26: Avra Valley (Pima) | K26: Alondra Park (Los Angeles) | L26: Aurora (Adams) | M26: Derby (New Haven) | O26: Ellendale (Sussex) | P26: Atlantis (Palm Beach) | Q26: Arcade (Jackson) | R26: Hanamaulu (Kauai) | S26: Alvord (Lyon) | T26: Bovill (Latah) | U26: Alton (Madison) | V26: Attica (Fountain) | W26: Arkansas City (Cowley) | X26: Bardwell (Carlisle) | Y26: Basile (Evangeline) | Z26: East Douglas (Worcester) | AA26: Baltimore (Baltimore) | AB26: Lisbon Falls (Androscoggin) | AC26: Argentine (Genesee) | AD26: Appleton (Swift) | AE26: Anniston (Mississippi) | AF26: Benoit (Bolivar) | AG26: Belgrade (Gallatin) | AH26: Aulander (Bertie) | AI26: Bantry (McHenry) | AJ26: Ashton (Sherman) | AK26: North Walpole (Cheshire) | AL26: Barrington (Camden) | AM26: Artesia (Eddy) | AN26: Dyer (Esmeralda) | AO26: Andover (Allegany) | AP26: Antioch (Monroe) | AQ26: Arcadia (Oklahoma) | AR26: Bay City (Tillamook) | AS26: Allison Park (Allegheny) | AT26: Bayamón (Bayamón) | AU26: Pawtucket (Providence) | AV26: Bishopville (Lee) | AW26: Avon (Bon Homme) | AX26: Bean Station (Grainger) | AY26: Alpine (Brewster) | AZ26: Bluff (San Juan) | BA26: Bailey's Crossroads (Fairfax) | BB26: Johnson (Lamoille) | BC26: Artondale (Pierce) | BD26: Arena (Iowa) | BE26: Beaver (Raleigh) | BF26: Beulah (Crook) | BH26: AK | BI26: Selawik (Northwest Arctic) | BJ26: 66.5988 | BK26: -159.9995 | BM26: 129154 | BN26: 27 | BO26: -99.375
B27: MS | G27: Attu Station (Aleutians West) | H27: Athens (Limestone) | I27: Bald Knob (White) | J27: Aztec (Yuma) | K27: Alpaugh (Tulare) | L27: Avon (Eagle) | M27: East Brooklyn (Windham) | O27: Elsmere (New Castle) | P27: Auburndale (Polk) | Q27: Argyle (Clinch) | R27: Hanapepe (Kauai) | S27: Amana (Iowa) | T27: Buhl (Twin Falls) | U27: Altona (Knox) | V27: Auburn (DeKalb) | W27: Arlington (Reno) | X27: Barlow (Ballard) | Y27: Baskin (Franklin) | Z27: East Falmouth (Barnstable) | AA27: Baltimore Highlands (Baltimore) | AB27: Little Falls (Cumberland) | AC27: Armada (Macomb) | AD27: Arco (Lincoln) | AE27: Appleton City (St. Clair) | AF27: Bentonia (Yazoo) | AG27: Belknap (Sanders) | AH27: Aurora (Beaufort) | AI27: Barney (Richland) | AJ27: Aten (Cedar) | AK27: North Woodstock (Grafton) | AL27: Bay Head (Ocean) | AM27: Atoka (Eddy) | AN27: East Valley (Douglas) | AO27: Angelica (Allegany) | AP27: Antwerp (Paulding) | AQ27: Ardmore (Carter) | AR27: Bayside Gardens (Tillamook) | AS27: Allport (Clearfield) | AT27: Benítez (Canóvanas) | AU27: Providence (Providence) | AV27: Blacksburg (Cherokee) | AW27: Badger (Kingsbury) | AX27: Beersheba Springs (Grundy) | AY27: Alto (Cherokee) | AZ27: Bluffdale (Salt Lake) | BA27: Baskerville (Mecklenburg) | BB27: Ludlow (Windsor) | BC27: Ashford (Pierce) | BD27: Argonne (Forest) | BE27: Beckley (Raleigh) | BF27: Big Horn (Sheridan) | BH27: AK | BI27: Fort Yukon (Yukon-Koyukuk) | BJ27: 66.5806 | BK27: -145.2416 | BM27: 129155 | BN27: 27 | BO27: -98.75
B28: MT | G28: Badger (Fairbanks North Star) | H28: Atmore (Escambia) | I28: Banks (Bradley) | J28: Bagdad (Yavapai) | K28: Alpine (San Diego) | L28: Avondale (Pueblo) | M28: Essex Village (Middlesex) | O28: Farmington (Kent) | P28: Aucilla (Jefferson) | Q28: Arlington (Calhoun) | R28: Hauula (Honolulu) | S28: Ames (Story) | T28: Burley (Cassia) | U28: Alvan (Vermilion) | V28: Aurora (Dearborn) | W28: Arma (Crawford) | X28: Beattyville (Lee) | Y28: Bastrop (Morehouse) | Z28: East Harwich (Barnstable) | AA28: Barclay (Queen Anne's) | AB28: Littlejohn Island (Cumberland) | AC28: Ashley (Gratiot) | AD28: Arden Hills (Ramsey) | AE28: Arbela (Scotland) | AF28: Beulah (Bolivar) | AG28: Belt (Cascade) | AH28: Autryville (Sampson) | AI28: Barton (Pierce) | AJ28: Atkinson (Holt) | AK28: Pinardville (Hillsborough) | AL28: Bayonne (Hudson) | AM28: Aztec (San Juan) | AN28: Elko (Elko) | AO28: Angola (Erie) | AP28: Apple Creek (Wayne) | AQ28: Arkoma (Le Flore) | AR28: Beatty (Klamath) | AS28: Almedia (Columbia) | AT28: Betances (Cabo Rojo) | AU28: Quonochontaug (Washington) | AV28: Blackville (Barnwell) | AW28: Baltic (Minnehaha) | AX28: Bell Buckle (Bedford) | AY28: Alto Bonito Heights (Starr) | AZ28: Bonanza (Uintah) | BA28: Bassett (Henry) | BB28: Lyndonville (Caledonia) | BC28: Asotin (Asotin) | BD28: Argyle (Lafayette) | BE28: Beech Bottom (Brooke) | BF28: Big Piney (Sublette) | BH28: AK | BI28: Alatna (Yukon-Koyukuk) | BJ28: 66.5638 | BK28: -152.8392 | BM28: 129156 | BN28: 27 | BO28: -98.125
B29: NC | G29: Bear Creek (Kenai Peninsula) | H29: Attalla (Etowah) | I29: Barling (Sebastian) | J29: Bear Flat (Gila) | K29: Alpine Village (Alpine) | L29: Bark Ranch (Boulder) | M29: Falls Village (Litchfield) | O29: Felton (Kent) | P29: Avalon (Santa Rosa) | Q29: Arnoldsville (Oglethorpe) | R29: Hawaiian Acres (Hawaii) | S29: Anamosa (Jones) | T29: Butte City (Butte) | U29: Amboy (Lee) | V29: Austin (Scott) | W29: Asherville (Mitchell) | X29: Beaver Dam (Ohio) | Y29: Baton Rouge (East Baton Rouge) | Z29: East Pepperell (Middlesex) | AA29: Barnesville (Montgomery) | AB29: North Windham (Cumberland) | AC29: Athens (Calhoun) | AD29: Argyle (Marshall) | AE29: Arbyrd (Dunklin) | AF29: Big Creek (Calhoun) | AG29: Biddle (Powder River) | AH29: Avery Creek (Buncombe) | AI29: Bathgate (Pembina) | AJ29: Atlanta (Phelps) | AK29: Portsmouth (Rockingham) | AL29: Beach Haven (Ocean) | AM29: Bayard (Grant) | AN29: Ely (White Pine) | AO29: Angola on the Lake (Erie) | AP29: Apple Valley (Knox) | AQ29: Armstrong (Bryan) | AR29: Beaver (Tillamook) | AS29: Alsace Manor (Berks) | AT29: Boquerón (Cabo Rojo) | AU29: Valley Falls (Providence) | AV29: Blenheim (Marlboro) | AW29: Bancroft (Kingsbury) | AX29: Belle Meade (Davidson) | AY29: Alton (Hidalgo) | AZ29: Boulder (Garfield) | BA29: Basye (Shenandoah) | BB29: Manchester (Bennington) | BC29: Auburn (King) | BD29: Arkansaw (Pepin) | BE29: Belington (Barbour) | BF29: Bondurant (Sublette) | BH29: AK | BI29: Allakaket (Yukon-Koyukuk) | BJ29: 66.5506 | BK29: -152.627 | BM29: 129157 | BN29: 27 | BO29: -97.5
B30: ND | G30: Beaver (Yukon-Koyukuk) | H30: Auburn (Lee) | I30: Bassett (Mississippi) | J30: Beaver Dam (Mohave) | K30: Alta (Placer) | L30: Basalt (Eagle) | M30: Fenwick (Middlesex) | O30: Fenwick Island (Sussex) | P30: Aventura (Miami-Dade) | Q30: Ashburn (Turner) | R30: Hawaiian Beaches (Hawaii) | S30: Anderson (Fremont) | T30: Caldwell (Canyon) | U30: Anchor (McLean) | V30: Avilla (Noble) | W30: Ashland (Clark) | X30: Bedford (Trimble) | Y30: Bawcomville (Ouachita) | Z30: East Sandwich (Barnstable) | AA30: Barrelville (Allegany) | AB30: Old Town (Penobscot) | AC30: Atlanta (Montmorency) | AD30: Arlington (Sibley) | AE30: Arcadia (Iron) | AF30: Big Point (Jackson) | AG30: Big Arm (Lake) | AH30: Avon (Dare) | AI30: Beach (Golden Valley) | AJ30: Auburn (Nemaha) | AK30: Rochester (Strafford) | AL30: Beach Haven West (Ocean) | AM30: Beclabito (San Juan) | AN30: Empire (Washoe) | AO30: Antwerp (Jefferson) | AP30: Aquilla (Geauga) | AQ30: Arnett (Ellis) | AR30: Beavercreek (Clackamas) | AS30: Altamont (Schuylkill) | AT30: Breñas (Vega Alta) | AU30: Wakefield-Peacedale (Washington) | AV30: Bluffton (Beaufort) | AW30: Batesland (Oglala Lakota) | AX30: Bells (Crockett) | AY30: Alvarado (Johnson) | AZ30: Bountiful (Davis) | BA30: Bayside (Accomack) | BB30: Manchester Center (Bennington) | BC30: Bainbridge Island (Kitsap) | BD30: Arkdale (Adams) | BE30: Belle (Kanawha) | BF30: Boulder (Sublette) | BH30: AK | BI30: Beaver (Yukon-Koyukuk) | BJ30: 66.383 | BK30: -147.3219 | BM30: 129182 | BN30: 27 | BO30: -81.875
B31: NE | G31: Beluga (Kenai Peninsula) | H31: Autaugaville (Autauga) | I31: Batesville (Independence) | J31: Beaver Valley (Gila) | K31: Alta Sierra (Nevada) | L31: Battlement Mesa (Garfield) | M31: Gales Ferry (New London) | O31: Frankford (Sussex) | P31: Avon Park (Highlands) | Q31: Athens (Clarke) | R31: Hawaiian Ocean View (Hawaii) | S31: Andover (Clinton) | T31: Cambridge (Washington) | U31: Andalusia (Rock Island) | V31: Avoca (Lawrence) | W31: Assaria (Saline) | X31: Beech Grove (McLean) | Y31: Bayou Blue (Lafourche) | Z31: Easthampton Town (Hampshire) | AA31: Barton (Allegany) | AB31: Portland (Cumberland) | AC31: Attica (Lapeer) | AD31: Ashby (Grant) | AE31: Archie (Cass) | AF31: Biloxi (Harrison) | AG31: Big Sandy (Chouteau) | AH31: Ayden (Pitt) | AI31: Belcourt (Rolette) | AJ31: Aurora (Hamilton) | AK31: Sanbornville (Carroll) | AL31: Beachwood (Ocean) | AM31: Belen (Valencia) | AN31: Enterprise (Clark) | AO31: Apalachin (Tioga) | AP31: Arcadia (Hancock) | AQ31: Arpelar (Pittsburg) | AR31: Beaverton (Washington) | AS31: Altoona (Blair) | AT31: Buena Vista (Arroyo) | AU31: Warwick (Kent) | AV31: Blythewood (Richland) | AW31: Bath (Brown) | AX31: Benton (Polk) | AY31: Alvin (Brazoria) | AZ31: Brian Head (Iron) | BA31: Bealeton (Fauquier) | BB31: Marshfield (Washington) | BC31: Bangor Base (Kitsap) | BD31: Arlington (Columbia) | BE31: Belmont (Pleasants) | BF31: Boulder Flats (Fremont) | BH31: AK | BI31: Birch Creek (Yukon-Koyukuk) | BJ31: 66.2686 | BK31: -145.8698 | BM31: 129183 | BN31: 27 | BO31: -81.25
B32: NH | G32: Bethel (Bethel) | H32: Avon (Houston) | I32: Bauxite (Saline) | J32: Benson (Cochise) | K32: Altadena (Los Angeles) | L32: Bayfield (La Plata) | M32: Georgetown (Fairfield) | O32: Frederica (Kent) | P32: Azalea Park (Orange) | Q32: Atlanta (Fulton) | R32: Hawaiian Paradise Park (Hawaii) | S32: Andrew (Jackson) | T32: Carey (Blaine) | U32: Andover (Henry) | V32: Avon (Hendricks) | W32: Atchison (Atchison) | X32: Beechmont (Muhlenberg) | Y32: Bayou Cane (Terrebonne) | Z32: Everett (Middlesex) | AA32: Bartonsville (Frederick) | AB32: Presque Isle (Aroostook) | AC32: Au Gres (Arenac) | AD32: Askov (Pine) | AE32: Arcola (Dade) | AF32: Blue Mountain (Tippah) | AG32: Big Sky (Gallatin) | AH32: Badin (Stanly) | AI32: Belfield (Stark) | AJ32: Avoca (Cass) | AK32: Seabrook Beach (Rockingham) | AL32: Beattystown (Warren) | AM32: Bent (Otero) | AN32: Eureka (Eureka) | AO32: Aquebogue (Suffolk) | AP32: Arcanum (Darke) | AQ32: Asher (Pottawatomie) | AR32: Bellfountain (Benton) | AS32: Ambler (Montgomery) | AT32: Búfalo (Barceloneta) | AU32: Watch Hill (Washington) | AV32: Boiling Springs (Spartanburg) | AW32: Bath Corner (Brown) | AX32: Berry Hill (Davidson) | AY32: Alvord (Wise) | AZ32: Brigham City (Box Elder) | BA32: Bedford (Bedford) | BB32: Montpelier (Washington) | BC32: Banks Lake South (Grant) | BD32: Arpin (Wood) | BE32: Belva (Nicholas) | BF32: Brookhurst (Natrona) | BH32: AK | BI32: Shishmaref (Nome) | BJ32: 66.2372 | BK32: -166.1027 | BM32: 129184 | BN32: 27 | BO32: -80.625
B33: NJ | G33: Bettles (Yukon-Koyukuk) | H33: Axis (Mobile) | I33: Bay (Craighead) | J33: Beyerville (Santa Cruz) | K33: Alto (Marin) | L33: Bennett (Adams) | M33: Glastonbury Center (Hartford) | O33: Georgetown (Sussex) | P33: Babson Park (Polk) | Q33: Attapulgus (Decatur) | R33: Hawi (Hawaii) | S33: Anita (Cass) | T33: Cascade (Valley) | U33: Anna (Union) | V33: Bainbridge (Putnam) | W33: Athol (Smith) | X33: Beechwood Village (Jefferson) | Y33: Bayou Corne (Assumption) | Z33: Fall River (Bristol) | AA33: Beaver Creek (Washington) | AB33: Rockland (Knox) | AC33: Au Sable (Iosco) | AD33: Atwater (Kandiyohi) | AE33: Argyle (Osage) | AF33: Blue Springs (Union) | AG33: Big Timber (Sweet Grass) | AH33: Bailey (Nash) | AI33: Benedict (McLean) | AJ33: Axtell (Kearney) | AK33: Somersworth (Strafford) | AL33: Beckett (Gloucester) | AM33: Berino (Doña Ana) | AN33: Fallon (Churchill) | AO33: Arcade (Wyoming) | AP33: Archbold (Fulton) | AQ33: Ashland (Pittsburg) | AR33: Bend (Deschutes) | AS33: Ambridge (Beaver) | AT33: Cabán (Aguadilla) | AU33: Weekapaug (Washington) | AV33: Bonneau (Berkeley) | AW33: Belle Fourche (Butte) | AX33: Bethel Springs (McNairy) | AY33: Amada Acres (Starr) | AZ33: Bryce Canyon City (Garfield) | BA33: Belle Haven (Accomack) | BB33: Morrisville (Lamoille) | BC33: Barberton (Clark) | BD33: Ashippun (Dodge) | BE33: Benwood (Marshall) | BF33: Buffalo (Johnson) | BH33: AK | BI33: Deering (Northwest Arctic) | BJ33: 66.0723 | BK33: -162.7437 | BM33: 129730 | BN33: 27.5 | BO33: -99.375
B34: NM | G34: Big Delta (Southeast Fairbanks) | H34: Babbie (Covington) | I34: Bearden (Ouachita) | J34: Bisbee (Cochise) | K34: Alturas (Modoc) | L34: Berkley (Adams) | M34: Glenville (Fairfield) | O34: Glasgow (New Castle) | P34: Bagdad (Santa Rosa) | Q34: Auburn (Barrow) | R34: Heeia (Honolulu) | S34: Ankeny (Polk) | T34: Castleford (Twin Falls) | U34: Annapolis (Crawford) | V34: Bargersville (Johnson) | W34: Atlanta (Cowley) | X34: Belfry (Pike) | Y34: Bayou Country Club (Lafourche) | Z34: Fiskdale (Worcester) | AA34: Bel Air (Harford) | AB34: Saco (York) | AC34: Auburn (Bay) | AD34: Audubon (Becker) | AE34: Arkoe (Nodaway) | AF34: Bogue Chitto (Neshoba) | AG34: Bigfork (Flathead) | AH34: Bakersville (Mitchell) | AI34: Bergen (McHenry) | AJ34: Ayr (Adams) | AK34: South Hooksett (Merrimack) | AL34: Belford (Monmouth) | AM34: Bernalillo (Sandoval) | AN34: Fallon Station (Churchill) | AO34: Ardsley (Westchester) | AP34: Arlington (Hancock) | AQ34: Atoka (Atoka) | AR34: Bethany (Washington) | AS34: Amity Gardens (Berks) | AT34: Cabo Rojo (Cabo Rojo) | AU34: Woonsocket (Providence) | AV34: Bonneau Beach (Berkeley) | AW34: Belvidere (Jackson) | AX34: Bethpage (Sumner) | AY34: Amargosa (Jim Wells) | AZ34: Cache (Cache) | BA34: Bellwood (Chesterfield) | BB34: Newbury (Orange) | BC34: Baring (King) | BD34: Ashland (Ashland) | BE34: Bergoo (Webster) | BF34: Burlington (Big Horn) | BH34: AK | BI34: Hughes (Yukon-Koyukuk) | BJ34: 66.0452 | BK34: -154.2376 | BM34: 129731 | BN34: 27.5 | BO34: -98.75
B35: NV | G35: Big Lake (Matanuska-Susitna) | H35: Baileyton (Cullman) | I35: Beaver (Carroll) | J35: Bitter Springs (Coconino) | K35: Alum Rock (Santa Clara) | L35: Berthoud (Larimer) | M35: Groton (New London) | O35: Greenville (New Castle) | P35: Bal Harbour (Miami-Dade) | Q35: Augusta (Richmond) | R35: Hickam Housing (Honolulu) | S35: Anthon (Woodbury) | T35: Challis (Custer) | U35: Annawan (Henry) | V35: Bass Lake (Starke) | W35: Attica (Harper) | X35: Bellefonte (Greenup) | Y35: Bayou Gauche (St. Charles) | Z35: Fitchburg (Worcester) | AA35: Bel Air North (Harford) | AB35: Sanford (York) | AC35: Auburn Hills (Oakland) | AD35: Aurora (St. Louis) | AE35: Armstrong (Howard) | AF35: Bolton (Hinds) | AG35: Billings (Yellowstone) | AH35: Bald Head Island (Brunswick) | AI35: Berlin (LaMoure) | AJ35: Bancroft (Cuming) | AK35: Suissevale (Carroll) | AL35: Belle Mead (Somerset) | AM35: Bibo (Cibola) | AN35: Fernley (Lyon) | AO35: Argyle (Washington) | AP35: Arlington Heights (Hamilton) | AQ35: Atwood (Hughes) | AR35: Biggs Junction (Sherman) | AS35: Ancient Oaks (Lehigh) | AT35: Cacao (Quebradillas) | AU35: Wyoming (Washington) | AV35: Bowman (Orangeburg) | AW35: Beresford (Union) | AX35: Big Sandy (Benton) | AY35: Amarillo (Potter) | AZ35: Cannonville (Garfield) | BA35: Belmont (Loudoun) | BB35: Newfane (Windham) | BC35: Barstow (Ferry) | BD35: Ashwaubenon (Brown) | BE35: Berwind (McDowell) | BF35: Burns (Laramie) | BH35: AK | BI35: Stevens Village (Yukon-Koyukuk) | BJ35: 66.025 | BK35: -149.0803 | BM35: 129732 | BN35: 27.5 | BO35: -98.125
B36: NY | G36: Birch Creek (Yukon-Koyukuk) | H36: Bakerhill (Barbour) | I36: Beebe (White) | J36: Black Canyon City (Yavapai) | K36: Amador City (Amador) | L36: Bethune (Kit Carson) | M36: Groton Long Point (New London) | O36: Greenwood (Sussex) | P36: Baldwin (Duval) | Q36: Austell (Cobb) | R36: Hilo (Hawaii) | S36: Aplington (Butler) | T36: Chubbuck (Bannock) | U36: Antioch (Lake) | V36: Batesville (Ripley) | W36: Atwood (Rawlins) | X36: Bellemeade (Jefferson) | Y36: Bayou Goula (Iberville) | Z36: Forestdale (Barnstable) | AA36: Bel Air South (Harford) | AB36: South Eliot (York) | AC36: Augusta (Kalamazoo) | AD36: Austin (Mower) | AE36: Arnold (Jefferson) | AF36: Booneville (Prentiss) | AG36: Birney (Rosebud) | AH36: Balfour (Henderson) | AI36: Berthold (Ward) | AJ36: Barada (Richardson) | AK36: Suncook (Merrimack) | AL36: Belleplain (Cape May) | AM36: Black Rock (McKinley) | AN36: Fish Springs (Douglas) | AO36: Arkport (Steuben) | AP36: Ashland (Ashland) | AQ36: Avant (Osage) | AR36: Black Butte Ranch (Deschutes) | AS36: Annville (Lebanon) | AT36: Caguas (Caguas) | AV36: Boykin (Kershaw) | AW36: Big Stone City (Grant) | AX36: Blaine (Grainger) | AY36: Amaya (Zavala) | AZ36: Carbonville (Carbon) | BA36: Belmont Estates (Rockingham) | BB36: Newport (Orleans) | BC36: Basin City (Franklin) | BD36: Athens (Marathon) | BE36: Bethany (Brooke) | BF36: Byron (Big Horn) | BH36: AK | BI36: Buckland (Northwest Arctic) | BJ36: 65.9784 | BK36: -161.1341 | BM36: 129733 | BN36: 27.5 | BO36: -97.5
B37: OH | G37: Brevig Mission (Nome) | H37: Ballplay (Etowah) | I37: Beedeville (Jackson) | J37: Blackwater (Pinal) | K37: American Canyon (Napa) | L37: Beulah Valley (Pueblo) | M37: Guilford Center (New Haven) | O37: Harrington (Kent) | P37: Balm (Hillsborough) | Q37: Avalon (Stephens) | R37: Holualoa (Hawaii) | S37: Arcadia (Carroll) | T37: Clark Fork (Bonner) | U37: Apple Canyon Lake (Jo Daviess) | V37: Battle Ground (Tippecanoe) | W37: Auburn (Shawnee) | X37: Belleview (Boone) | Y37: Bayou L'Ourse (Assumption) | Z37: Framingham (Middlesex) | AA37: Beltsville (Prince George's) | AB37: South Paris (Oxford) | AC37: Bad Axe (Huron) | AD37: Avoca (Murray) | AE37: Arrow Point (Barry) | AF37: Boyle (Bolivar) | AG37: Black Eagle (Cascade) | AH37: Banner Elk (Avery) | AI37: Beulah (Mercer) | AJ37: Barneston (Gage) | AK37: Tilton Northfield (Belknap) | AL37: Bellmawr (Camden) | AM37: Blanco (San Juan) | AN37: Fort McDermitt (Humboldt) | AO37: Arlington (Dutchess) | AP37: Ashley (Delaware) | AQ37: Badger Lee (Sequoyah) | AR37: Blodgett (Benton) | AS37: Apollo (Armstrong) | AT37: Calzada (Ponce) | AV37: Bradley (Greenwood) | AW37: Bijou Hills (Brule) | AX37: Bloomingdale (Sullivan) | AY37: Ames (Liberty) | AZ37: Castle Dale (Emery) | BA37: Belspring (Pulaski) | BB37: Newport Center (Orleans) | BC37: Battle Ground (Clark) | BD37: Auburndale (Wood) | BE37: Bethlehem (Ohio) | BF37: Carpenter (Laramie) | BH37: AK | BI37: Circle (Yukon-Koyukuk) | BJ37: 65.7936 | BK37: -144.1813 | BM37: 129757 | BN37: 27.5 | BO37: -82.5
B38: OK | G38: Buckland (Northwest Arctic) | H38: Banks (Pike) | I38: Bella Vista (Benton) | J38: Bluewater (La Paz) | K38: Amesti (Santa Cruz) | L38: Black Forest (El Paso) | M38: Hartford (Hartford) | O38: Hartly (Kent) | P38: Bardmoor (Pinellas) | Q38: Avera (Jefferson) | R38: Honalo (Hawaii) | S38: Archer (O'Brien) | T38: Clayton (Custer) | U38: Apple River (Jo Daviess) | V38: Bedford (Lawrence) | W38: Augusta (Butler) | X38: Bellevue (Campbell) | Y38: Bayou Vista (St. Mary) | Z38: Franklin Town (Norfolk) | AA38: Benedict (Charles) | AB38: South Portland (Cumberland) | AC38: Baldwin (Lake) | AD38: Avon (Stearns) | AE38: Arrow Rock (Saline) | AF38: Brandon (Rankin) | AG38: Boneau (Chouteau) | AH38: Barker Heights (Henderson) | AI38: Binford (Griggs) | AJ38: Bartlett (Wheeler) | AK38: Union (Carroll) | AL38: Belmar (Monmouth) | AM38: Bloomfield (San Juan) | AN38: Gabbs (Nye) | AO38: Armonk (Westchester) | AP38: Ashtabula (Ashtabula) | AQ38: Ballou (Mayes) | AR38: Boardman (Morrow) | AS38: Applewold (Armstrong) | AT38: Campanilla (Toa Baja) | AV38: Branchville (Orangeburg) | AW38: Bison (Perkins) | AX38: Blountville (Sullivan) | AY38: Amherst (Lamb) | AZ38: Castle Valley (Grand) | BA38: Belview (Montgomery) | BB38: North Bennington (Bennington) | BC38: Bay Center (Pacific) | BD38: Augusta (Eau Claire) | BE38: Beverly (Randolph) | BF38: Carter (Uinta) | BH38: AK | BI38: Diomede (Nome) | BJ38: 65.7536 | BK38: -168.9219 | BM38: 129758 | BN38: 27.5 | BO38: -81.875
B39: OR | G39: Buffalo Soapstone (Matanuska-Susitna) | H39: Bay Minette (Baldwin) | I39: Bellefonte (Boone) | J39: Bouse (La Paz) | K39: Anaheim (Orange) | L39: Black Hawk (Gilpin) | M39: Hazardville (Hartford) | O39: Henlopen Acres (Sussex) | P39: Bartow (Polk) | Q39: Avondale Estates (DeKalb) | R39: Honaunau-Napoopoo (Hawaii) | S39: Aredale (Butler) | T39: Clifton (Franklin) | U39: Arcola (Douglas) | V39: Beech Grove (Marion) | W39: Aurora (Cloud) | X39: Bellewood (Jefferson) | Y39: Belcher (Caddo) | Z39: Gardner (Worcester) | AA39: Bensville (Charles) | AB39: South Windham (Cumberland) | AC39: Bancroft (Shiawassee) | AD39: Babbitt (St. Louis) | AE39: Asbury (Jasper) | AF39: Braxton (Simpson) | AG39: Bonner-West Riverside (Missoula) | AH39: Barker Ten Mile (Robeson) | AI39: Bisbee (Towner) | AJ39: Bartley (Red Willow) | AK39: West Stewartstown (Coos) | AL39: Belvidere (Warren) | AM39: Bluewater Acres (Cibola) | AN39: Gardnerville (Douglas) | AO39: Asharoken (Suffolk) | AP39: Ashville (Pickaway) | AQ39: Barnsdall (Osage) | AR39: Bonanza (Klamath) | AS39: Arcadia University (Montgomery) | AT39: Campo Rico (Canóvanas) | AV39: Briarcliffe Acres (Horry) | AW39: Blackhawk (Meade) | AX39: Bluff City (Sullivan) | AY39: Amistad (Val Verde) | AZ39: Cedar City (Iron) | BA39: Benns Church (Isle of Wight) | BB39: North Hartland (Windsor) | BC39: Bay View (Skagit) | BD39: Avoca (Iowa) | BE39: Big Chimney (Kanawha) | BF39: Casper (Natrona) | BH39: AK | BI39: Huslia (Yukon-Koyukuk) | BJ39: 65.7002 | BK39: -156.3386 | BM39: 129759 | BN39: 27.5 | BO39: -81.25
B40: PA | G40: Butte (Matanuska-Susitna) | H40: Bayou La Batre (Mobile) | I40: Belleville (Yell) | J40: Bowie (Cochise) | K40: Anchor Bay (Mendocino) | L40: Blanca (Costilla) | M40: Heritage Village (New Haven) | O40: Highland Acres (Kent) | P40: Bascom (Jackson) | Q40: Baconton (Mitchell) | R40: Honokaa (Hawaii) | S40: Arion (Crawford) | T40: Coeur d'Alene (Kootenai) | U40: Arenzville (Cass) | V40: Berne (Adams) | W40: Axtell (Marshall) | X40: Benham (Harlan) | Y40: Belle Chasse (Plaquemines) | Z40: Gloucester (Essex) | AA40: Berlin (Worcester) | AB40: Steep Falls (Cumberland) | AC40: Bangor (Van Buren) | AD40: Backus (Cass) | AE40: Ash Grove (Greene) | AF40: Bridgetown (DeSoto) | AG40: Boulder (Jefferson) | AH40: Bath (Beaufort) | AI40: Bismarck (Burleigh) | AJ40: Bassett (Rock) | AK40: West Swanzey (Cheshire) | AL40: Bergenfield (Bergen) | AM40: Bluewater Village (Cibola) | AN40: Gardnerville Ranchos (Douglas) | AO40: Athens (Greene) | AP40: Athalia (Lawrence) | AQ40: Bartlesville (Washington) | AR40: Brogan (Malheur) | AS40: Archbald (Lackawanna) | AT40: Camuy (Camuy) | AV40: Brookdale (Orangeburg) | AW40: Blucksberg Mountain (Meade) | AX40: Bolivar (Hardeman) | AY40: Anacua (Starr) | AZ40: Cedar Fort (Utah) | BA40: Bensley (Chesterfield) | BB40: North Springfield (Windsor) | BC40: Beaux Arts Village (King) | BD40: Babcock (Wood) | BE40: Big Creek (Logan) | BF40: Casper Mountain (Natrona) | BH40: AK | BI40: Wales (Nome) | BJ40: 65.6119 | BK40: -168.0773 | BM40: 129760 | BN40: 27.5 | BO40: -80.625
B41: RI | G41: Cantwell (Denali) | H41: Bear Creek (Marion) | I41: Ben Lomond (Sevier) | J41: Brenda (La Paz) | K41: Anderson (Shasta) | L41: Blende (Pueblo) | M41: Higganum (Middlesex) | O41: Hockessin (New Castle) | P41: Bay Harbor Islands (Miami-Dade) | Q41: Bainbridge (Decatur) | R41: Honolulu (Honolulu) | S41: Arispe (Union) | T41: Conkling Park (Kootenai) | U41: Argenta (Macon) | V41: Bethany (Morgan) | W41: Baileyville (Nemaha) | X41: Benton (Marshall) | Y41: Belle Rose (Assumption) | Z41: Green Harbor-Cedar Crest (Plymouth) | AA41: Berwyn Heights (Prince George's) | AB41: Waterville (Kennebec) | AC41: Baraga (Baraga) | AD41: Badger (Roseau) | AE41: Ashburn (Pike) | AF41: Brookhaven (Lincoln) | AG41: Box Elder (Hill) | AH41: Bayboro (Pamlico) | AI41: Blanchard (Traill) | AJ41: Battle Creek (Madison) | AK41: Woodsville (Grafton) | AL41: Berlin (Camden) | AM41: Boles Acres (Otero) | AN41: Genoa (Douglas) | AO41: Atlantic Beach (Nassau) | AP41: Athens (Athens) | AQ41: Bearden (Okfuskee) | AR41: Brookings (Curry) | AS41: Ardmore (Montgomery) | AT41: Candelaria (Toa Baja) | AV41: Brunson (Hampton) | AW41: Blunt (Hughes) | AX41: Bon Aqua Junction (Hickman) | AY41: Anahuac (Chambers) | AZ41: Cedar Hills (Utah) | BA41: Berryville (Clarke) | BB41: North Troy (Orleans) | BC41: Belfair (Mason) | BD41: Bagley (Grant) | BE41: Big Sandy (McDowell) | BF41: Centennial (Albany) | BH41: AK | BI41: Central (Yukon-Koyukuk) | BJ41: 65.5213 | BK41: -144.6409 | BM41: 130306 | BN41: 28 | BO41: -99.375
B42: SC | G42: Central (Yukon-Koyukuk) | H42: Beatrice (Monroe) | I42: Benton (Saline) | J42: Bryce (Graham) | K42: Angels (Calaveras) | L42: Blue River (Summit) | M42: Jewett City (New London) | O42: Houston (Kent) | P42: Bay Hill (Orange) | Q42: Baldwin (Habersham) | R42: Honomu (Hawaii) | S42: Arlington (Fayette) | T42: Cottonwood (Idaho) | U42: Arlington (Bureau) | V42: Beverly Shores (Porter) | W42: Baldwin City (Douglas) | X42: Berea (Madison) | Y42: Belmont (Sabine) | Z42: Greenfield Town (Franklin) | AA42: Bethesda (Montgomery) | AB42: West Kennebunk (York) | AC42: Barnes Lake-Millers Lake (Lapeer) | AD42: Bagley (Clearwater) | AE42: Ashland (Boone) | AF42: Brooksville (Noxubee) | AG42: Boyd (Carbon) | AH42: Bayshore (New Hanover) | AI42: Bottineau (Bottineau) | AJ42: Bayard (Morrill) | AL42: Bernardsville (Somerset) | AM42: Bosque Farms (Valencia) | AN42: Gerlach (Washoe) | AO42: Attica (Wyoming) | AP42: Attica (Seneca) | AQ42: Beaver (Beaver) | AR42: Brooks (Marion) | AS42: Arendtsville (Adams) | AT42: Candelaria Arenas (Toa Baja) | AV42: Bucksport (Horry) | AW42: Bonesteel (Gregory) | AX42: Bowman (Cumberland) | AY42: Anderson (Grimes) | AZ42: Centerfield (Sanpete) | BA42: Bethel Manor (York) | BB42: North Westminster (Windham) | BC42: Bell Hill (Clallam) | BD42: Baileys Harbor (Door) | BE42: Birch River (Nicholas) | BF42: Cheyenne (Laramie) | BH42: AK | BI42: Livengood (Yukon-Koyukuk) | BJ42: 65.4817 | BK42: -148.4171 | BM42: 130307 | BN42: 28 | BO42: -98.75
B43: SD | G43: Chalkyitsik (Yukon-Koyukuk) | H43: Beaverton (Lamar) | I43: Bentonville (Benton) | J43: Buckeye (Maricopa) | K43: Angwin (Napa) | L43: Blue Sky (Morgan) | M43: Kensington (Hartford) | O43: Kent Acres (Kent) | P43: Bay Lake (Orange) | Q43: Ball Ground (Cherokee) | R43: Iroquois Point (Honolulu) | S43: Armstrong (Emmet) | T43: Council (Adams) | U43: Arlington Heights (Cook) | V43: Bicknell (Knox) | W43: Barnard (Lincoln) | X43: Berry (Harrison) | Y43: Benton (Bossier) | Z43: Hanscom AFB (Middlesex) | AA43: Betterton (Kent) | AB43: Westbrook (Cumberland) | AC43: Baroda (Berrien) | AD43: Baker (Clay) | AE43: Ashley (Pike) | AF43: Bruce (Calhoun) | AG43: Bozeman (Gallatin) | AH43: Bayview (Beaufort) | AI43: Bowbells (Burke) | AJ43: Bazile Mills (Knox) | AL43: Beverly (Burlington) | AM43: Brazos (Rio Arriba) | AN43: Glenbrook (Douglas) | AO43: Au Sable Forks (Clinton) | AP43: Atwater (Portage) | AQ43: Bee (Johnston) | AR43: Brownsville (Linn) | AS43: Aristes (Columbia) | AT43: Candelero Abajo (Humacao) | AV43: Buffalo (Union) | AW43: Bowdle (Edmunds) | AX43: Braden (Fayette) | AY43: Andrews (Andrews) | AZ43: Centerville (Davis) | BA43: Big Island (Bedford) | BB43: Old Bennington (Bennington) | BC43: Bellevue (King) | BD43: Baldwin (St. Croix) | BE43: Blacksville (Monongalia) | BF43: Chugcreek (Platte) | BH43: AK | BI43: Rampart (Yukon-Koyukuk) | BJ43: 65.4087 | BK43: -149.9916 | BM43: 130308 | BN43: 28 | BO43: -98.125
B44: TN | G44: Chase (Matanuska-Susitna) | H44: Belgreen (Franklin) | I44: Bergman (Boone) | J44: Buckshot (Yuma) | K44: Antelope (Sacramento) | L44: Bonanza (Saguache) | M44: Lake Pocotopaug (Middlesex) | O44: Kenton (Kent) | P44: Bay Pines (Pinellas) | Q44: Barnesville (Lamar) | R44: Kaaawa (Honolulu) | S44: Arnolds Park (Dickinson) | T44: Craigmont (Lewis) | U44: Armington (Tazewell) | V44: Birdseye (Dubois) | W44: Barnes (Washington) | X44: Betsy Layne (Floyd) | Y44: Bernice (Union) | Z44: Harwich Center (Barnstable) | AA44: Bier (Allegany) | AB44: York Harbor (York) | AC44: Barryton (Mecosta) | AD44: Balaton (Lyon) | AE44: Atlanta (Macon) | AF44: Buckatunna (Wayne) | AG44: Brady (Pondera) | AH44: Bear Grass (Martin) | AI44: Bowdon (Wells) | AJ44: Beatrice (Gage) | AL44: Blackwells Mills (Somerset) | AM44: Brimhall Nizhoni (McKinley) | AN44: Golconda (Humboldt) | AO44: Auburn (Cayuga) | AP44: Aurora (Portage) | AQ44: Beggs (Okmulgee) | AR44: Bull Mountain (Washington) | AS44: Arlington Heights (Monroe) | AT44: Candelero Arriba (Humacao) | AV44: Burnettown (Aiken) | AW44: Box Elder (Pennington) | AX44: Bradford (Gibson) | AY44: Angleton (Brazoria) | AZ44: Central (Washington) | BA44: Big Stone Gap (Wise) | BB44: Orleans (Orleans) | BC44: Bellingham (Whatcom) | BD44: Balsam Lake (Polk) | BE44: Blennerhassett (Wood) | BF44: Chugwater (Platte) | BH44: AK | BI44: Brevig Mission (Nome) | BJ44: 65.3413 | BK44: -166.4953 | BM44: 130309 | BN44: 28 | BO44: -97.5
B45: TX | G45: Chefornak (Bethel) | H45: Belk (Fayette) | I45: Berryville (Carroll) | J45: Bullhead City (Mohave) | K45: Antioch (Contra Costa) | L45: Bonanza Mountain Estates (Boulder) | M45: Lakeville (Litchfield) | O45: Laurel (Sussex) | P45: Bayonet Point (Pasco) | Q45: Bartow (Jefferson) | R45: Kaanapali (Maui) | S45: Arthur (Ida) | T45: Crouch (Boise) | U45: Aroma Park (Kankakee) | V45: Blanford (Vermillion) | W45: Bartlett (Labette) | X45: Big Clifty (Grayson) | Y45: Berwick (St. Mary) | Z45: Harwich Port (Barnstable) | AA45: Big Pool (Washington) | AC45: Barton Hills (Washtenaw) | AD45: Ball Club (Itasca) | AE45: Augusta (St. Charles) | AF45: Bude (Franklin) | AG45: Bridger (Carbon) | AH45: Beaufort (Carteret) | AI45: Bowman (Bowman) | AJ45: Beaver City (Furnas) | AL45: Blackwood (Camden) | AM45: Buckhorn (Grant) | AN45: Golden Valley (Washoe) | AO45: Aurora (Cayuga) | AP45: Austinburg (Ashtabula) | AQ45: Belfonte (Sequoyah) | AR45: Bunker Hill (Coos) | AS45: Armagh (Indiana) | AT45: Canóvanas (Canóvanas) | AV45: Burton (Beaufort) | AW45: Bradley (Clark) | AX45: Bransford (Sumner) | AY45: Angus (Navarro) | AZ45: Central Valley (Sevier) | BA45: Blacksburg (Montgomery) | BB45: Perkinsville (Windsor) | BC45: Benton City (Benton) | BD45: Bancroft (Portage) | BE45: Bluefield (Mercer) | BF45: Clearmont (Sheridan) | BH45: AK | BI45: Teller (Nome) | BJ45: 65.2531 | BK45: -166.342 | BM45: 130310 | BN45: 28 | BO45: -96.875
B46: UT | G46: Chena Ridge (Fairbanks North Star) | H46: Bellamy (Sumter) | I46: Bethel Heights (Benton) | J46: Burnside (Apache) | K46: Anza (Riverside) | L46: Boone (Pueblo) | M46: Litchfield (Litchfield) | O46: Leipsic (Kent) | P46: Bayport (Hernando) | Q46: Barwick (Thomas) | R46: Kahaluu (Honolulu) | S46: Asbury (Dubuque) | T46: Culdesac (Nez Perce) | U46: Arrowsmith (McLean) | V46: Bloomfield (Greene) | W46: Basehor (Leavenworth) | X46: Blackey (Letcher) | Y46: Bienville (Bienville) | Z46: Haverhill (Essex) | AA46: Big Spring (Washington) | AC46: Bath (Clinton) | AD46: Barnesville (Clay) | AE46: Aullville (Lafayette) | AF46: Burnsville (Tishomingo) | AG46: Broadus (Powder River) | AH46: Beech Mountain (Avery) | AI46: Braddock (Emmons) | AJ46: Beaver Crossing (Seward) | AL46: Blawenburg (Somerset) | AM46: Caballo (Sierra) | AN46: Goldfield (Esmeralda) | AO46: Averill Park (Rensselaer) | AP46: Austintown (Mahoning) | AQ46: Bell (Adair) | AR46: Burns (Harney) | AS46: Arnold (Westmoreland) | AT46: Capitanejo (Juana Díaz) | AV46: Calhoun Falls (Abbeville) | AW46: Brandon (Minnehaha) | AX46: Brentwood (Williamson) | AY46: Anna (Collin) | AZ46: Charleston (Wasatch) | BA46: Blackstone (Nottoway) | BB46: Poultney (Rutland) | BC46: Bethel (Kitsap) | BD46: Bangor (La Crosse) | BE46: Bluewell (Mercer) | BF46: Clearview Acres (Sweetwater) | BH46: AK | BI46: Tanana (Yukon-Koyukuk) | BJ46: 65.1746 | BK46: -152.0684 | BM46: 130333 | BN46: 28 | BO46: -82.5
B47: VA | G47: Chenega (Valdez-Cordova) | H47: Belle Fontaine (Mobile) | I47: Big Flat (Baxter) | J47: Bylas (Graham) | K47: Apple Valley (San Bernardino) | L47: Boulder (Boulder) | M47: Long Hill (New London) | O47: Lewes (Sussex) | P47: Bayshore Gardens (Manatee) | Q47: Baxley (Appling) | R47: Kahaluu-Keauhou (Hawaii) | S47: Ashton (Osceola) | T47: Dalton Gardens (Kootenai) | U47: Arthur (Douglas) | V47: Bloomingdale (Parke) | W47: Bassett (Allen) | X47: Blaine (Lawrence) | Y47: Blanchard (Caddo) | Z47: Holyoke (Hampden) | AA47: Bishopville (Worcester) | AC47: Battle Creek (Calhoun) | AD47: Barnum (Carlton) | AE47: Aurora (Lawrence) | AF47: Byhalia (Marshall) | AG47: Broadview (Yellowstone) | AH47: Belhaven (Beaufort) | AI47: Briarwood (Cass) | AJ47: Bee (Seward) | AL47: Bloomingdale (Passaic) | AM47: Cañada de los Alamos (Santa Fe) | AN47: Goodsprings (Clark) | AO47: Avoca (Steuben) | AP47: Avon (Lorain) | AQ47: Bennington (Bryan) | AR47: Butte Falls (Jackson) | AS47: Arnold City (Fayette) | AT47: Carolina (Carolina) | AV47: Camden (Kershaw) | AW47: Brandt (Deuel) | AX47: Brighton (Tipton) | AY47: Annetta (Parker) | AZ47: Circleville (Piute) | BA47: Blairs (Pittsylvania) | BB47: Proctorsville (Windsor) | BC47: Bickleton (Klickitat) | BD47: Baraboo (Sauk) | BE47: Boaz (Wood) | BF47: Cody (Park) | BH47: AK | BI47: Port Clarence (Nome) | BJ47: 65.1108 | BK47: -166.7683 | BM47: 130334 | BN47: 28 | BO47: -81.875
B48: VI | G48: Chevak (Kusilvak) | H48: Benton (Lowndes) | I48: Bigelow (Perry) | J48: Cactus Flats (Graham) | K48: Aptos (Santa Cruz) | L48: Bow Mar (Arapahoe) | M48: Madison Center (New Haven) | O48: Little Creek (Kent) | P48: Beacon Square (Pasco) | Q48: Bellville (Evans) | R48: Kahuku (Honolulu) | S48: Aspinwall (Crawford) | T48: Dayton (Franklin) | U48: Ashkum (Iroquois) | V48: Bloomington (Monroe) | W48: Baxter Springs (Cherokee) | X48: Blandville (Ballard) | Y48: Bogalusa (Washington) | Z48: Housatonic (Berkshire) | AA48: Bivalve (Wicomico) | AC48: Bay City (Bay) | AD48: Barrett (Grant) | AE48: Auxvasse (Callaway) | AF48: Byram (Hinds) | AG48: Brockton (Roosevelt) | AH48: Bell Arthur (Pitt) | AI48: Brinsmade (Benson) | AJ48: Beemer (Cuming) | AL48: Bloomsbury (Hunterdon) | AM48: Canjilon (Rio Arriba) | AN48: Grass Valley (Pershing) | AO48: Avon (Livingston) | AP48: Avon Lake (Lorain) | AQ48: Bernice (Delaware) | AR48: Butteville (Marion) | AS48: Arnot (Tioga) | AT48: Carrizales (Hatillo) | AV48: Cameron (Calhoun) | AW48: Brant Lake (Lake) | AX48: Bristol (Sullivan) | AY48: Annetta North (Parker) | AZ48: Clarkston (Cache) | BA48: Bland (Bland) | BB48: Quechee (Windsor) | BC48: Big Lake (Skagit) | BD48: Barneveld (Iowa) | BE48: Bolivar (Jefferson) | BF48: Cokeville (Lincoln) | BH48: AK | BI48: Minto (Yukon-Koyukuk) | BJ48: 65.1033 | BK48: -149.5565 | BM48: 130335 | BN48: 28 | BO48: -81.25
B49: VT | G49: Chickaloon (Matanuska-Susitna) | H49: Berry (Fayette) | I49: Biggers (Randolph) | J49: Cactus Forest (Pinal) | K49: Aptos Hills-Larkin Valley (Santa Cruz) | L49: Brandon (Kiowa) | M49: Mansfield Center (Tolland) | O49: Long Neck (Sussex) | P49: Bear Creek (Pinellas) | Q49: Belvedere Park (DeKalb) | R49: Kahului (Maui) | S49: Atalissa (Muscatine) | T49: De Smet (Benewah) | U49: Ashland (Cass) | V49: Blountsville (Henry) | W49: Bazine (Ness) | X49: Bloomfield (Nelson) | Y49: Bonita (Morehouse) | Z49: Lawrence (Essex) | AA49: Bladensburg (Prince George's) | AC49: Bay Port (Huron) | AD49: Barry (Big Stone) | AE49: Ava (Douglas) | AF49: Caledonia (Lowndes) | AG49: Browning (Glacier) | AH49: Belmont (Gaston) | AI49: Brocket (Ramsey) | AJ49: Belden (Cedar) | AL49: Bogota (Bergen) | AM49: Cannon AFB (Curry) | AN49: Hawthorne (Mineral) | AO49: Babylon (Suffolk) | AP49: Bailey Lakes (Ashland) | AQ49: Bessie (Washita) | AR49: Camp Sherman (Jefferson) | AS49: Arona (Westmoreland) | AT49: Cataño (Cataño) | AV49: Campobello (Spartanburg) | AW49: Brentford (Spink) | AX49: Brownsville (Haywood) | AY49: Annetta South (Parker) | AZ49: Clawson (Emery) | BA49: Bloxom (Accomack) | BB49: Rutland (Rutland) | BC49: Bingen (Klickitat) | BD49: Barron (Barron) | BE49: Bolt (Raleigh) | BF49: Cora (Sublette) | BH49: AK | BI49: Manley Hot Springs (Yukon-Koyukuk) | BJ49: 65.0188 | BK49: -150.6452 | BM49: 130336 | BN49: 28 | BO49: -80.625
B50: WA | G50: Chicken (Southeast Fairbanks) | H50: Bessemer (Jefferson) | I50: Birdsong (Mississippi) | J50: Cameron (Coconino) | K50: Arbuckle (Colusa) | L50: Branson (Las Animas) | M50: Mashantucket (New London) | O50: Magnolia (Kent) | P50: Bee Ridge (Sarasota) | Q50: Berkeley Lake (Gwinnett) | R50: Kailua (Honolulu) | S50: Athelstan (Taylor) | T50: Deary (Latah) | U50: Ashley (Washington) | V50: Bluffton (Wells) | W50: Beattie (Marshall) | X50: Blue Ridge Manor (Jefferson) | Y50: Boothville (Plaquemines) | Z50: Leominster (Worcester) | AA50: Bloomington (Garrett) | AC50: Bay Shore (Charlevoix) | AD50: Battle Lake (Otter Tail) | AE50: Avilla (Jasper) | AF50: Calhoun City (Calhoun) | AG50: Busby (Big Horn) | AH50: Belville (Brunswick) | AI50: Brooktree Park (Cass) | AJ50: Belgrade (Nance) | AL50: Boonton (Morris) | AM50: Cañon (Sandoval) | AN50: Henderson (Clark) | AO50: Bainbridge (Chenango) | AP50: Bainbridge (Ross) | AQ50: Bethany (Oklahoma) | AR50: Canby (Clackamas) | AS50: Ashland (Schuylkill) | AT50: Cayey (Cayey) | AV50: Cane Savannah (Sumter) | AW50: Bridgewater (McCook) | AX50: Bruceton (Carroll) | AY50: Annona (Red River) | AZ50: Clear Creek (Carbon) | BA50: Blue Ridge (Botetourt) | BB50: Saxtons River (Windham) | BC50: Birch Bay (Whatcom) | BD50: Barronett (Barron) | BE50: Boomer (Fayette) | BF50: Cowley (Big Horn) | BH50: AK | BI50: Fox (Fairbanks North Star) | BJ50: 64.9749 | BK50: -147.609 | BM50: 130881 | BN50: 28.5 | BO50: -100
B51: WI | G51: Chignik (Lake and Peninsula) | H51: Billingsley (Autauga) | I51: Black Oak (Craighead) | J51: Camp Verde (Yavapai) | K51: Arcadia (Los Angeles) | L51: Breckenridge (Summit) | M51: Meriden (New Haven) | O51: Middletown (New Castle) | P51: Bell (Gilchrist) | Q51: Berlin (Colquitt) | R51: Kalaeloa (Honolulu) | S51: Atkins (Benton) | T51: Declo (Cassia) | U51: Ashmore (Coles) | V51: Boonville (Warrick) | W51: Bel Aire (Sedgwick) | X51: Bonnieville (Hart) | Y51: Bordelonville (Avoyelles) | Z51: Littleton Common (Middlesex) | AA51: Boonsboro (Washington) | AC51: Bay View (Emmet) | AD51: Baudette (Lake of the Woods) | AE51: Avondale (Clay) | AF51: Canton (Madison) | AG51: Butte (Silver Bow) | AH51: Belvoir (Pitt) | AI51: Buchanan (Stutsman) | AJ51: Bellevue (Sarpy) | AL51: Bordentown (Burlington) | AM51: Cañones (Rio Arriba) | AN51: Hiko (Lincoln) | AO51: Baiting Hollow (Suffolk) | AP51: Bairdstown (Wood) | AQ51: Bethel Acres (Pottawatomie) | AR51: Cannon Beach (Clatsop) | AS51: Ashley (Luzerne) | AT51: Cayuco (Utuado) | AV51: Carlisle (Union) | AW51: Bristol (Day) | AX51: Bulls Gap (Hawkins) | AY51: Anson (Jones) | AZ51: Clearfield (Davis) | BA51: Blue Ridge Shores (Louisa) | BB51: South Barre (Washington) | BC51: Black Diamond (King) | BD51: Bay City (Pierce) | BE51: Bowden (Randolph) | BF51: Crowheart (Fremont) | BH51: AK | BI51: Koyuk (Nome) | BJ51: 64.9411 | BK51: -161.1454 | BM51: 130882 | BN51: 28.5 | BO51: -99.375
B52: WV | G52: Chignik Lagoon (Lake and Peninsula) | H52: Birmingham (Jefferson) | I52: Black Rock (Lawrence) | J52: Campo Bonito (Pinal) | K52: Arcata (Humboldt) | L52: Brick Center (Arapahoe) | M52: Middletown (Middlesex) | O52: Milford (Sussex) | P52: Bellair-Meadowbrook Terrace (Clay) | Q52: Bethlehem (Barrow) | R52: Kalaheo (Kauai) | S52: Atlantic (Cass) | T52: Dietrich (Lincoln) | U52: Ashton (Lee) | V52: Borden (Clark) | W52: Belle Plaine (Sumner) | X52: Booneville (Owsley) | Y52: Bossier City (Bossier) | Z52: Lowell (Middlesex) | AA52: Bowie (Prince George's) | AC52: Beal City (Isabella) | AD52: Baxter (Crow Wing) | AE52: Bagnell (Miller) | AF52: Carrollton (Carroll) | AG52: Bynum (Teton) | AH52: Belwood (Cleveland) | AI52: Bucyrus (Adams) | AJ52: Bellwood (Butler) | AL52: Bound Brook (Somerset) | AM52: Canova (Rio Arriba) | AN52: Humboldt River Ranch (Pershing) | AO52: Baldwin (Nassau) | AP52: Ballville (Sandusky) | AQ52: Big Cabin (Craig) | AR52: Canyon City (Grant) | AS52: Ashville (Cambria) | AT52: Ceiba (Ceiba) | AV52: Catawba (York) | AW52: Britton (Marshall) | AX52: Burlison (Tipton) | AY52: Anthony (El Paso) | AZ52: Cleveland (Emery) | BA52: Bluefield (Tazewell) | BB52: South Burlington (Chittenden) | BC52: Blaine (Whatcom) | BD52: Bayfield (Bayfield) | BE52: Bradley (Raleigh) | BF52: Daniel (Sublette) | BH52: AK | BI52: Goldstream (Fairbanks North Star) | BJ52: 64.9339 | BK52: -148.0083 | BM52: 130883 | BN52: 28.5 | BO52: -98.75
B53: WY | G53: Chignik Lake (Lake and Peninsula) | H53: Black (Geneva) | I53: Black Springs (Montgomery) | J53: Cane Beds (Mohave) | K53: Arden-Arcade (Sacramento) | L53: Brighton (Adams) | M53: Milford city (New Haven) | O53: Millsboro (Sussex) | P53: Belle Glade (Palm Beach) | Q53: Between (Walton) | R53: Kalaoa (Hawaii) | S53: Auburn (Sac) | T53: Donnelly (Valley) | U53: Assumption (Christian) | V53: Boston (Wayne) | W53: Belleville (Republic) | X53: Boston (Nelson) | Y53: Bourg (Terrebonne) | Z53: Lynn (Essex) | AA53: Bowleys Quarters (Baltimore) | AC53: Bear Lake (Manistee) | AD53: Bayport (Washington) | AE53: Baker (Stoddard) | AF53: Carthage (Leake) | AG53: Camas (Sanders) | AH53: Bennett (Chatham) | AI53: Buffalo (Cass) | AJ53: Belmar (Keith) | AL53: Bradley Beach (Monmouth) | AM53: Capitan (Lincoln) | AN53: Imlay (Pershing) | AO53: Baldwin Harbor (Nassau) | AP53: Baltic (Tuscarawas) | AQ53: Billings (Noble) | AR53: Canyonville (Douglas) | AS53: Aspers (Adams) | AT53: Celada (Gurabo) | AV53: Cayce (Lexington) | AW53: Broadland (Beadle) | AX53: Burns (Dickson) | AY53: Anton (Hockley) | AZ53: Clinton (Davis) | BA53: Bobtown (Accomack) | BB53: South Royalton (Windsor) | BC53: Blyn (Clallam) | BD53: Bayside (Milwaukee) | BE53: Bradshaw (McDowell) | BF53: Dayton (Sheridan) | BH53: AK | BI53: Steele Creek (Fairbanks North Star) | BJ53: 64.9295 | BK53: -147.3955 | BM53: 130884 | BN53: 28.5 | BO53: -98.125
G54: Chiniak (Kodiak Island) | H54: Blountsville (Blount) | I54: Blevins (Hempstead) | J54: Canyon Day (Gila) | K54: Armona (Kings) | L54: Brookside (Fremont) | M54: Moodus (Middlesex) | O54: Millville (Sussex) | P54: Belle Isle (Orange) | Q54: Bishop (Oconee) | R54: Kalihiwai (Kauai) | S54: Audubon (Audubon) | T54: Dover (Bonner) | U54: Astoria (Fulton) | V54: Boswell (Benton) | W54: Beloit (Mitchell) | X54: Bowling Green (Warren) | Y54: Boutte (St. Charles) | Z54: Madaket (Nantucket) | AA54: Bowling Green (Allegany) | AC54: Beaverton (Gladwin) | AD54: Beardsley (Big Stone) | AE54: Bakersfield (Ozark) | AF54: Cary (Sharkey) | AG54: Camp Three (Musselshell) | AH54: Benson (Johnston) | AI54: Burlington (Ward) | AJ54: Belvidere (Thayer) | AL54: Bradley Gardens (Somerset) | AM54: Capulin (Union) | AN54: Incline Village (Washoe) | AO54: Baldwinsville (Onondaga) | AP54: Baltimore (Fairfield) | AQ54: Binger (Caddo) | AR54: Cape Meares (Tillamook) | AS54: Aspinwall (Allegheny) | AT54: Central Aguirre (Salinas) | AV54: Centerville (Anderson) | AW54: Brookings (Brookings) | AX54: Byrdstown (Pickett) | AY54: Appleby (Nacogdoches) | AZ54: Coalville (Summit) | BA54: Bon Air (Chesterfield) | BB54: South Shaftsbury (Bennington) | BC54: Bonney Lake (Pierce) | BD54: Bear Creek (Outagamie) | BE54: Bramwell (Mercer) | BF54: Deaver (Big Horn) | BH54: AK | BI54: Farmers Loop (Fairbanks North Star) | BJ54: 64.9061 | BK54: -147.6957 | BM54: 130885 | BN54: 28.5 | BO54: -97.5
G55: Chisana (Valdez-Cordova) | H55: Blue Ridge (Elmore) | I55: Blue Eye (Carroll) | J55: Carefree (Maricopa) | K55: Arnold (Calaveras) | L55: Broomfield (Broomfield) | M55: Moosup (Windham) | O55: Milton (Sussex) | P55: Belleair (Pinellas) | Q55: Blackshear (Pierce) | R55: Kaneohe (Honolulu) | S55: Aurelia (Cherokee) | T55: Downey (Bannock) | U55: Athens (Menard) | V55: Bourbon (Marshall) | W55: Belpre (Edwards) | X55: Bradfordsville (Marion) | Y55: Boyce (Rapides) | Z55: Malden (Middlesex) | AA55: Bowmans Addition (Allegany) | AC55: Beecher (Genesee) | AD55: Beaulieu (Mahnomen) | AE55: Baldwin Park (Cass) | AF55: Centreville (Wilkinson) | AG55: Cardwell (Jefferson) | AH55: Bent Creek (Buncombe) | AI55: Butte (McLean) | AJ55: Benedict (York) | AL55: Brainards (Warren) | AM55: Carlsbad (Eddy) | AN55: Indian Hills (Douglas) | AO55: Ballston Spa (Saratoga) | AP55: Bannock (Belmont) | AQ55: Bison (Garfield) | AR55: Carlton (Yamhill) | AS55: Atglen (Chester) | AT55: Cerrillos Hoyos (Ponce) | AV55: Central (Pickens) | AW55: Bruce (Brookings) | AX55: Calhoun (McMinn) | AY55: Aquilla (Hill) | AZ55: Copperton (Salt Lake) | BA55: Boones Mill (Franklin) | BB55: St. Albans (Franklin) | BC55: Bothell (King) | BD55: Beaver Dam (Dodge) | BE55: Brandonville (Preston) | BF55: Diamondville (Lincoln) | BH55: AK | BI55: Koyukuk (Yukon-Koyukuk) | BJ55: 64.9008 | BK55: -157.6946 | BM55: 130886 | BN55: 28.5 | BO55: -96.875
G56: Chistochina (Valdez-Cordova) | H56: Blue Springs (Barbour) | I56: Blue Mountain (Logan) | J56: Carrizo (Gila) | K56: Aromas (San Benito) | L56: Brush (Morgan) | M56: Mystic (New London) | O56: New Castle (New Castle) | P56: Belleair Beach (Pinellas) | Q56: Blairsville (Union) | R56: Kaneohe Station (Honolulu) | S56: Aurora (Buchanan) | T56: Driggs (Teton) | U56: Atkinson (Henry) | V56: Brazil (Clay) | W56: Belvue (Pottawatomie) | X56: Brandenburg (Meade) | Y56: Branch (Acadia) | Z56: Mansfield Center (Bristol) | AA56: Braddock Heights (Frederick) | AC56: Beechwood (Ottawa) | AD56: Beaver Bay (Lake) | AE56: Ballwin (St. Louis) | AF56: Charleston (Tallahatchie) | AG56: Carlton (Missoula) | AH56: Bermuda Run (Davie) | AI56: Buxton (Traill) | AJ56: Benkelman (Dundy) | AL56: Branchville (Sussex) | AM56: Carnuel (Bernalillo) | AN56: Indian Springs (Clark) | AO56: Balmville (Orange) | AP56: Barberton (Summit) | AQ56: Bixby (Tulsa) | AR56: Cascade Locks (Hood River) | AS56: Athens (Bradford) | AT56: Ciales (Ciales) | AV56: Central Pacolet (Spartanburg) | AW56: Bryant (Hamlin) | AX56: Camden (Benton) | AY56: Aransas Pass (San Patricio) | AZ56: Corinne (Box Elder) | BA56: Boston (Accomack) | BB56: Swanton (Franklin) | BC56: Bothell East (Snohomish) | BD56: Belgium (Ozaukee) | BE56: Brandywine (Pendleton) | BF56: Dixon (Carbon) | BH56: AK | BI56: Two Rivers (Fairbanks North Star) | BJ56: 64.8908 | BK56: -147.0898 | BM56: 130887 | BN56: 28.5 | BO56: -96.25
G57: Chitina (Valdez-Cordova) | H57: Boaz (Marshall) | I57: Bluff City (Nevada) | J57: Casa Blanca (Pinal) | K57: Arroyo Grande (San Luis Obispo) | L57: Buena Vista (Chaffee) | M57: Naugatuck (New Haven) | O57: Newark (New Castle) | P57: Belleair Bluffs (Pinellas) | Q57: Blakely (Early) | R57: Kapaa (Kauai) | S57: Avoca (Pottawattamie) | T57: Drummond (Fremont) | U57: Atlanta (Logan) | V57: Bremen (Marshall) | W57: Bendena (Doniphan) | X57: Breckinridge Center (Union) | Y57: Breaux Bridge (St. Martin) | Z57: Marion Center (Plymouth) | AA57: Brandywine (Prince George's) | AC57: Belding (Ionia) | AD57: Beaver Creek (Rock) | AE57: Baring (Knox) | AF57: Chunky (Newton) | AG57: Carter (Chouteau) | AH57: Bessemer City (Gaston) | AI57: Caledonia (Traill) | AJ57: Bennet (Lancaster) | AL57: Brass Castle (Warren) | AM57: Carrizozo (Lincoln) | AN57: Jackpot (Elko) | AO57: Bardonia (Rockland) | AP57: Barnesville (Belmont) | AQ57: Blackburn (Pawnee) | AR57: Cascadia (Linn) | AS57: Atkinson Mills (Mifflin) | AT57: Cidra (Cidra) | AV57: Chapin (Lexington) | AW57: Buffalo (Harding) | AX57: Carthage (Smith) | AY57: Archer City (Archer) | AZ57: Cornish (Cache) | BA57: Bowling Green (Caroline) | BB57: Vergennes (Addison) | BC57: Bothell West (Snohomish) | BD57: Bell Center (Crawford) | BE57: Brenton (Wyoming) | BF57: Douglas (Converse) | BH57: AK | BI57: Pleasant Valley (Fairbanks North Star) | BJ57: 64.8854 | BK57: -146.8986 | BM57: 130909 | BN57: 28.5 | BO57: -82.5
G58: Chuathbaluk (Bethel) | H58: Boligee (Greene) | I58: Blytheville (Mississippi) | J58: Casa Grande (Pinal) | K58: Artesia (Los Angeles) | L58: Burlington (Kit Carson) | M58: New Britain (Hartford) | O58: Newport (New Castle) | P58: Belleair Shore (Pinellas) | Q58: Bloomingdale (Chatham) | R58: Kapaau (Hawaii) | S58: Ayrshire (Palo Alto) | T58: Dubois (Clark) | U58: Atwood (Douglas) | V58: Bright (Dearborn) | W58: Benedict (Wilson) | X58: Bremen (Muhlenberg) | Y58: Bridge City (Jefferson) | Z58: Marlborough (Middlesex) | AA58: Breathedsville (Washington) | AC58: Bellaire (Antrim) | AD58: Becker (Sherburne) | AE58: Barnard (Nodaway) | AF58: Clara (Wayne) | AG58: Cascade (Cascade) | AH58: Bethania (Forsyth) | AI58: Calio (Cavalier) | AJ58: Bennington (Douglas) | AL58: Bridgeton (Cumberland) | AM58: Casa Colorada (Valencia) | AN58: Johnson Lane (Douglas) | AO58: Barker (Niagara) | AP58: Barnhill (Tuscarawas) | AQ58: Blackgum (Sequoyah) | AR58: Cave Junction (Josephine) | AS58: Atlantic (Crawford) | AT58: Coamo (Coamo) | AV58: Charleston (Charleston) | AW58: Buffalo Chip (Meade) | AX58: Caryville (Campbell) | AY58: Arcola (Fort Bend) | AZ58: Cottonwood Heights (Salt Lake) | BA58: Boyce (Clarke) | BB58: Waterbury (Washington) | BC58: Boulevard Park (King) | BD58: Belleville (Dane) | BE58: Bridgeport (Harrison) | BF58: Dubois (Fremont) | BH58: AK | BI58: College (Fairbanks North Star) | BJ58: 64.8694 | BK58: -147.8217 | BM58: 130910 | BN58: 28.5 | BO58: -81.875
G59: Circle (Yukon-Koyukuk) | H59: Bon Air (Talladega) | I59: Bodcaw (Nevada) | J59: Casas Adobes (Pima) | K59: Artois (Glenn) | L59: Byers (Arapahoe) | M59: New Hartford Center (Litchfield) | O59: North Star (New Castle) | P59: Belleview (Marion) | Q59: Blue Ridge (Fannin) | R59: Kapalua (Maui) | S59: Badger (Webster) | T59: Eagle (Ada) | U59: Auburn (Sangamon) | V59: Bristol (Elkhart) | W59: Bennington (Ottawa) | X59: Briarwood (Jefferson) | Y59: Broussard (Lafayette) | Z59: Marshfield Hills (Plymouth) | AA59: Brentwood (Prince George's) | AC59: Belleville (Wayne) | AD59: Bejou (Mahnomen) | AE59: Barnett (Morgan) | AF59: Clarksdale (Coahoma) | AG59: Charlo (Lake) | AH59: Bethel (Pitt) | AI59: Calvin (Cavalier) | AJ59: Berea (Box Butte) | AL59: Bridgeville (Warren) | AM59: Causey (Roosevelt) | AN59: Kingsbury (Douglas) | AO59: Barnum Island (Nassau) | AP59: Bascom (Seneca) | AQ59: Blackwell (Kay) | AR59: Cayuse (Umatilla) | AS59: Atlas (Northumberland) | AT59: Coco (Salinas) | AV59: Cheraw (Chesterfield) | AW59: Buffalo Gap (Custer) | AX59: Castalian Springs (Sumner) | AY59: Argyle (Denton) | AZ59: Cove (Cache) | BA59: Boydton (Mecklenburg) | BB59: Websterville (Washington) | BC59: Boyds (Ferry) | BD59: Bellevue (Brown) | BE59: Brookhaven (Monongalia) | BF59: East Thermopolis (Hot Springs) | BH59: AK | BI59: Ester (Fairbanks North Star) | BJ59: 64.8646 | BK59: -148.0916 | BM59: 130911 | BN59: 28.5 | BO59: -81.25
G60: Clam Gulch (Kenai Peninsula) | H60: Bon Secour (Baldwin) | I60: Bonanza (Sebastian) | J60: Catalina (Pima) | K60: Arvin (Kern) | L60: Calhan (El Paso) | M60: New Haven (New Haven) | O60: Ocean View (Sussex) | P60: Bellview (Escambia) | Q60: Bluffton (Clay) | R60: Kapolei (Honolulu) | S60: Bagley (Guthrie) | T60: East Hope (Bonner) | U60: Augusta (Hancock) | V60: Brook (Newton) | W60: Bentley (Sedgwick) | X60: Brodhead (Rockcastle) | Y60: Brownfields (East Baton Rouge) | Z60: Mashpee Neck (Barnstable) | AA60: Brock Hall (Prince George's) | AC60: Bellevue (Eaton) | AD60: Belgrade (Stearns) | AE60: Barnhart (Jefferson) | AF60: Cleary (Rankin) | AG60: Charlos Heights (Ravalli) | AH60: Bethlehem (Alexander) | AI60: Cando (Towner) | AJ60: Bertrand (Phelps) | AL60: Brielle (Monmouth) | AM60: Cedar Crest (Bernalillo) | AN60: Kingston (Lander) | AO60: Batavia (Genesee) | AP60: Batavia (Clermont) | AQ60: Blair (Jackson) | AR60: Cedar Hills (Washington) | AS60: Atlasburg (Washington) | AT60: Comerío (Comerío) | AV60: Cherryvale (Sumter) | AW60: Bullhead (Corson) | AX60: Cedar Hill (Robertson) | AY60: Arlington (Tarrant) | AZ60: Dammeron Valley (Washington) | BA60: Boykins (Southampton) | BB60: Wells River (Orange) | BC60: Brady (Grays Harbor) | BD60: Belmont (Lafayette) | BE60: Bruceton Mills (Preston) | BF60: Eden (Sweetwater) | BH60: AK | BI60: Fairbanks (Fairbanks North Star) | BJ60: 64.8353 | BK60: -147.6534 | BM60: 130912 | BN60: 28.5 | BO60: -80.625
G61: Clark's Point (Dillingham) | H61: Boykin (Wilcox) | I61: Bono (Craighead) | J61: Catalina Foothills (Pima) | K61: Ashland (Alameda) | L61: Campo (Baca) | M61: New London (New London) | O61: Odessa (New Castle) | P61: Berrydale (Santa Rosa) | Q61: Blythe (Richmond) | R61: Kaumakani (Kauai) | S61: Baldwin (Jackson) | T61: Eden (Jerome) | U61: Aurora (Kane) | V61: Brooklyn (Morgan) | W61: Benton (Butler) | X61: Broeck Pointe (Jefferson) | Y61: Brownsville (Ouachita) | Z61: Mattapoisett Center (Plymouth) | AA61: Brookeville (Montgomery) | AC61: Bendon (Benzie) | AD61: Belle Plaine (Scott) | AE61: Bates City (Lafayette) | AF61: Cleveland (Bolivar) | AG61: Chester (Liberty) | AH61: Beulaville (Duplin) | AI61: Cannon Ball (Sioux) | AJ61: Berwyn (Custer) | AL61: Brigantine (Atlantic) | AM61: Cedar Grove (Santa Fe) | AN61: Lakeridge (Douglas) | AO61: Bath (Steuben) | AP61: Batesville (Noble) | AQ61: Blanchard (McClain) | AR61: Cedar Mill (Washington) | AS61: Atwood (Armstrong) | AT61: Comunas (Yabucoa) | AV61: Chesnee (Spartanburg) | AW61: Burke (Gregory) | AX61: Celina (Clay) | AY61: Arp (Smith) | AZ61: Daniel (Wasatch) | BA61: Bracey (Mecklenburg) | BB61: West Brattleboro (Windham) | BC61: Bremerton (Kitsap) | BD61: Beloit (Rock) | BE61: Bruno (Logan) | BF61: Edgerton (Natrona) | BH61: AK | BI61: South Van Horn (Fairbanks North Star) | BJ61: 64.8091 | BK61: -147.7854 | BM61: 131452 | BN61: 29 | BO61: -103.125
G62: Coffman Cove (Prince of Wales-Hyder) | H62: Brantley (Crenshaw) | I62: Booneville (Logan) | J62: Cave Creek (Maricopa) | K62: Aspen Springs (Mono) | L62: Cañon City (Fremont) | M62: New Preston (Litchfield) | O62: Pike Creek (New Castle) | P62: Beverly Beach (Flagler) | Q62: Bogart (Oconee) | R62: Kaunakakai (Maui) | S62: Balltown (Dubuque) | T62: Elk City (Idaho) | U62: Ava (Jackson) | V62: Brooksburg (Jefferson) | W62: Bern (Nemaha) | X62: Bromley (Kenton) | Y62: Brusly (West Baton Rouge) | Z62: Medford (Middlesex) | AA62: Brooklyn Park (Anne Arundel) | AC62: Benton Harbor (Berrien) | AD62: Bellechester (Goodhue) | AE62: Battlefield (Greene) | AF62: Clinton (Hinds) | AG62: Chinook (Blaine) | AH62: Biltmore Forest (Buncombe) | AI62: Canton City (Pembina) | AJ62: Big Springs (Deuel) | AL62: Broadway (Warren) | AM62: Cedar Hill (San Juan) | AN62: Lamoille (Elko) | AO62: Baxter Estates (Nassau) | AP62: Bay View (Erie) | AQ62: Blanco (Pittsburg) | AR62: Central Point (Jackson) | AS62: Auburn (Schuylkill) | AT62: Coquí (Salinas) | AV62: Chester (Chester) | AW62: Bushnell (Brookings) | AX62: Centertown (Warren) | AY62: Arroyo Colorado Estates (Cameron) | AZ62: Delta (Millard) | BA62: Brambleton (Loudoun) | BB62: West Burke (Caledonia) | BC62: Brewster (Okanogan) | BD62: Benton (Lafayette) | BE62: Brush Fork (Mercer) | BF62: Elk Mountain (Carbon) | BH62: AK | BI62: Badger (Fairbanks North Star) | BJ62: 64.8006 | BK62: -147.3877 | BM62: 131456 | BN62: 29 | BO62: -100.625
G63: Cohoe (Kenai Peninsula) | H63: Brantleyville (Shelby) | I63: Bradford (White) | J63: Cedar Creek (Gila) | K63: Atascadero (San Luis Obispo) | L63: Capulin (Conejos) | M63: Newtown (Fairfield) | O63: Pike Creek Valley (New Castle) | P63: Beverly Hills (Citrus) | Q63: Bonanza (Clayton) | R63: Kawela Bay (Honolulu) | S63: Bancroft (Kossuth) | T63: Elk River (Clearwater) | U63: Aviston (Clinton) | V63: Brookston (White) | W63: Beverly (Lincoln) | X63: Brooks (Bullitt) | Y63: Bryceland (Bienville) | Z63: Melrose (Middlesex) | AA63: Brookmont (Montgomery) | AC63: Benton Heights (Berrien) | AD63: Bellingham (Lac qui Parle) | AE63: Bell City (Stoddard) | AF63: Cloverdale (Adams) | AG63: Choteau (Teton) | AH63: Biscoe (Montgomery) | AI63: Carpio (Ward) | AJ63: Bladen (Webster) | AL63: Brookdale (Essex) | AM63: Cedro (Bernalillo) | AN63: Las Vegas (Clark) | AO63: Bay Park (Nassau) | AP63: Bay Village (Cuyahoga) | AQ63: Blue (Bryan) | AR63: Chenoweth (Wasco) | AS63: Audubon (Montgomery) | AT63: Corazón (Guayama) | AV63: Chesterfield (Chesterfield) | AW63: Butler (Day) | AX63: Centerville (Hickman) | AY63: Arroyo Gardens (Cameron) | AZ63: Deseret (Millard) | BA63: Branchville (Southampton) | BB63: Westminster (Windham) | BC63: Bridgeport (Douglas) | BD63: Berlin (Green Lake) | BE63: Buckhannon (Upshur) | BF63: Encampment (Carbon) | BH63: AK | BI63: Chena Ridge (Fairbanks North Star) | BJ63: 64.7941 | BK63: -148.0357 | BM63: 131457 | BN63: 29 | BO63: -100
G64: Cold Bay (Aleutians East) | H64: Brent (Bibb) | I64: Bradley (Lafayette) | J64: Centennial Park (Mohave) | K64: Atherton (San Mateo) | L64: Carbondale (Garfield) | M64: Niantic (New London) | O64: Rehoboth Beach (Sussex) | P64: Big Coppitt Key (Monroe) | Q64: Boston (Thomas) | R64: Keaau (Hawaii) | S64: Bankston (Dubuque) | T64: Emmett (Gem) | U64: Avon (Fulton) | V64: Brookville (Franklin) | W64: Bird City (Cheyenne) | X64: Brooksville (Bracken) | Y64: Bunkie (Avoyelles) | Z64: Methuen Town (Essex) | AA64: Brookview (Dorchester) | AC64: Benzonia (Benzie) | AD64: Beltrami (Polk) | AE64: Bella Villa (St. Louis) | AF64: Coahoma (Coahoma) | AG64: Churchill (Gallatin) | AH64: Black Creek (Wilson) | AI64: Carrington (Foster) | AJ64: Blair (Washington) | AL64: Brookfield (Warren) | AM64: Chama (Rio Arriba) | AN64: Laughlin (Clark) | AO64: Bay Shore (Suffolk) | AP64: Beach City (Stark) | AQ64: Bluejacket (Craig) | AR64: Chiloquin (Klamath) | AS64: Austin (Potter) | AT64: Corcovado (Hatillo) | AV64: City View (Greenville) | AW64: Camp Crook (Harding) | AX64: Central (Carter) | AY64: Asherton (Dimmit) | AZ64: Deweyville (Box Elder) | BA64: Brandermill (Chesterfield) | BB64: White River Junction (Windsor) | BC64: Brier (Snohomish) | BD64: Big Bend (Waukesha) | BE64: Bud (Wyoming) | BF64: Esterbrook (Converse) | BH64: AK | BI64: Eagle (Southeast Fairbanks) | BJ64: 64.7813 | BK64: -141.1978 | BM64: 131458 | BN64: 29 | BO64: -99.375
G65: Coldfoot (Yukon-Koyukuk) | H65: Brewton (Escambia) | I65: Branch (Franklin) | J65: Central (Graham) | K65: Atwater (Merced) | L65: Cascade-Chipita Park (El Paso) | M65: Noank (New London) | O65: Rising Sun-Lebanon (Kent) | P65: Big Pine Key (Monroe) | Q65: Bostwick (Morgan) | R65: Kealakekua (Hawaii) | S65: Barnes City (Mahaska) | T65: Fairfield (Camas) | U65: Baldwin (Randolph) | V65: Brownsburg (Hendricks) | W65: Bison (Rush) | X65: Brownsboro Farm (Jefferson) | Y65: Buras (Plaquemines) | Z65: Middleborough Center (Plymouth) | AA65: Broomes Island (Calvert) | AC65: Berkley (Oakland) | AD65: Belview (Redwood) | AE65: Belle (Maries) | AF65: Coffeeville (Yalobusha) | AG65: Circle (McCone) | AH65: Black Mountain (Buncombe) | AI65: Carson (Grant) | AJ65: Bloomfield (Knox) | AL65: Brooklawn (Camden) | AM65: Chamberino (Doña Ana) | AN65: Lemmon Valley (Washoe) | AO65: Bayport (Suffolk) | AP65: Beachwood (Cuyahoga) | AQ65: Boise City (Cimarron) | AR65: Clatskanie (Columbia) | AS65: Avalon (Allegheny) | AT65: Corozal (Corozal) | AV65: Clarks Hill (McCormick) | AW65: Canistota (McCook) | AX65: Chapel Hill (Marshall) | AY65: Aspermont (Stonewall) | AZ65: Draper (Salt Lake) | BA65: Bridgewater (Rockingham) | BB65: Wilder (Windsor) | BC65: Brinnon (Jefferson) | BD65: Big Falls (Waupaca) | BE65: Buffalo (Putnam) | BF65: Ethete (Fremont) | BH65: AK | BI65: North Pole (Fairbanks North Star) | BJ65: 64.753 | BK65: -147.36 | BM65: 131459 | BN65: 29 | BO65: -98.75
G66: College (Fairbanks North Star) | H66: Bridgeport (Jackson) | I66: Briarcliff (Baxter) | J66: Central Heights-Midland City (Gila) | K66: Auberry (Fresno) | L66: Castle Pines (Douglas) | M66: North Granby (Hartford) | O66: Riverview (Kent) | P66: Biscayne Park (Miami-Dade) | Q66: Bowdon (Carroll) | R66: Kekaha (Kauai) | S66: Barnum (Webster) | T66: Ferdinand (Idaho) | U66: Banner (Fulton) | V66: Brownstown (Jackson) | W66: Blue Mound (Linn) | X66: Brownsboro Village (Jefferson) | Y66: Cade (St. Martin) | Z66: Millers Falls (Franklin) | AA66: Brownsville (Washington) | AC66: Berrien Springs (Berrien) | AD66: Bemidji (Beltrami) | AE66: Bellefontaine Neighbors (St. Louis) | AF66: Coldwater (Tate) | AG66: Clancy (Jefferson) | AH66: Bladenboro (Bladen) | AI66: Casselton (Cass) | AJ66: Bloomington (Franklin) | AL66: Browns Mills (Burlington) | AM66: Chamisal (Taos) | AN66: Logan Creek (Douglas) | AO66: Bayville (Nassau) | AP66: Beallsville (Monroe) | AQ66: Bokchito (Bryan) | AR66: Cloverdale (Tillamook) | AS66: Avella (Washington) | AT66: Corral Viejo (Ponce) | AV66: Clearwater (Aiken) | AW66: Canova (Miner) | AX66: Charleston (Bradley) | AY66: Atascocita (Harris) | AZ66: Duchesne (Duchesne) | BA66: Brightwood (Madison) | BB66: Winooski (Chittenden) | BC66: Browns Point (Pierce) | BD66: Birch Hill (Ashland) | BE66: Burlington (Mineral) | BF66: Etna (Lincoln) | BH66: AK | BI66: Eagle Village (Southeast Fairbanks) | BJ66: 64.7434 | BK66: -141.1138 | BM66: 131460 | BN66: 29 | BO66: -98.125
G67: Cooper Landing (Kenai Peninsula) | H67: Brighton (Jefferson) | I67: Brinkley (Monroe) | J67: Chandler (Maricopa) | K67: Auburn (Placer) | L67: Castle Pines Village (Douglas) | M67: North Grosvenor Dale (Windham) | O67: Rodney Village (Kent) | P67: Bithlo (Orange) | Q67: Bowersville (Hart) | R67: Keokea (Maui) | S67: Bartlett (Fremont) | T67: Fernan Lake Village (Kootenai) | U67: Bannockburn (Lake) | V67: Bruceville (Knox) | W67: Blue Rapids (Marshall) | X67: Brownsville (Edmonson) | Y67: Calhoun (Ouachita) | Z67: Millis-Clicquot (Norfolk) | AA67: Brunswick (Frederick) | AC67: Bessemer (Gogebic) | AD67: Bena (Cass) | AE67: Bellerive Acres (St. Louis) | AF67: Collins (Covington) | AG67: Clinton (Missoula) | AH67: Blowing Rock (Watauga) | AI67: Cathay (Wells) | AJ67: Blue Hill (Webster) | AL67: Brownville (Middlesex) | AM67: Chamita (Rio Arriba) | AN67: Lovelock (Pershing) | AO67: Baywood (Suffolk) | AP67: Beaver (Pike) | AQ67: Bokoshe (Le Flore) | AR67: Coburg (Lane) | AS67: Avis (Clinton) | AT67: Coto Laurel (Ponce) | AV67: Clemson (Pickens) | AW67: Canton (Lincoln) | AX67: Charlotte (Dickson) | AY67: Athens (Henderson) | AZ67: Dugway (Tooele) | BA67: Bristol (Bristol) | BB67: Woodstock (Windsor) | BC67: Brush Prairie (Clark) | BD67: Birchwood (Washburn) | BE67: Burnsville (Braxton) | BF67: Evanston (Uinta) | BH67: AK | BI67: Galena (Yukon-Koyukuk) | BJ67: 64.7381 | BK67: -156.8635 | BM67: 131461 | BN67: 29 | BO67: -97.5
G68: Copper Center (Valdez-Cordova) | H68: Brilliant (Marion) | I68: Brookland (Craighead) | J68: Charco (Pima) | K68: Auburn Lake Trails (El Dorado) | L68: Castle Rock (Douglas) | M68: Northwest Harwinton (Litchfield) | O68: Seaford (Sussex) | P68: Black Diamond (Citrus) | Q68: Bowman (Elbert) | R68: Kihei (Maui) | S68: Bassett (Chickasaw) | T68: Filer (Twin Falls) | U68: Bardolph (McDonough) | V68: Bryant (Jay) | W68: Bluff City (Harper) | X68: Buckhorn (Perry) | Y68: Calvin (Winn) | Z68: Monomoscoy Island (Barnstable) | AA68: Bryans Road (Charles) | AC68: Beulah (Benzie) | AD68: Benson (Swift) | AE68: Bellflower (Montgomery) | AF68: Collinsville (Lauderdale) | AG68: Clyde Park (Park) | AH68: Blue Clay Farms (New Hanover) | AI68: Cavalier (Pembina) | AJ68: Blue Springs (Gage) | AL68: Budd Lake (Morris) | AM68: Chamizal (Socorro) | AN68: Lund (White Pine) | AO68: Beacon (Dutchess) | AP68: Beavercreek (Greene) | AQ68: Boley (Okfuskee) | AR68: Columbia City (Columbia) | AS68: Avoca (Luzerne) | AT68: Coto Norte (Manatí) | AV68: Clifton (Spartanburg) | AW68: Caputa (Pennington) | AX68: Chattanooga (Hamilton) | AY68: Atlanta (Cass) | AZ68: Dutch John (Daggett) | BA68: Broadlands (Loudoun) | BC68: Bryant (Snohomish) | BD68: Birnamwood (Shawano) | BE68: Cairo (Ritchie) | BF68: Evansville (Natrona) | BH68: AK | BI68: Ruby (Yukon-Koyukuk) | BJ68: 64.7233 | BK68: -155.5005 | BM68: 131462 | BN68: 29 | BO68: -96.875
G69: Cordova (Valdez-Cordova) | H69: Bristow Cove (Etowah) | I69: Bryant (Saline) | J69: Chiawuli Tak (Pima) | K69: August (San Joaquin) | L69: Cathedral (Hinsdale) | M69: Norwalk (Fairfield) | O69: Selbyville (Sussex) | P69: Black Hammock (Seminole) | Q69: Boykin (Miller) | R69: Kilauea (Kauai) | S69: Batavia (Jefferson) | T69: Firth (Bingham) | U69: Barrington (Cook) | V69: Buck Creek (Tippecanoe) | W69: Bogue (Graham) | X69: Buckner (Oldham) | Y69: Cameron (Cameron) | Z69: Monson Center (Hampden) | AA69: Bryantown (Charles) | AC69: Beverly Hills (Oakland) | AD69: Bertha (Todd) | AE69: Bel-Nor (St. Louis) | AF69: Columbia (Marion) | AG69: Colstrip (Rosebud) | AH69: Boardman (Columbus) | AI69: Cayuga (Sargent) | AJ69: Bow Valley (Cedar) | AL69: Buena (Atlantic) | AM69: Chaparral (Doña Ana) | AN69: McDermitt (Humboldt) | AO69: Beaver Dam Lake (Orange) | AP69: Beaverdam (Allen) | AQ69: Boswell (Choctaw) | AR69: Condon (Gilliam) | AS69: Avon (Lebanon) | AT69: Culebra (Culebra) | AV69: Clinton (Laurens) | AW69: Carthage (Miner) | AX69: Chesterfield (Henderson) | AY69: Aubrey (Denton) | AZ69: Eagle Mountain (Utah) | BA69: Broadway (Rockingham) | BC69: Bryn Mawr-Skyway (King) | BD69: Biron (Wood) | BE69: Camden-on-Gauley (Webster) | BF69: Fairview (Lincoln) | BH69: AK | BI69: Moose Creek (Fairbanks North Star) | BJ69: 64.714 | BK69: -147.1639 | BM69: 131463 | BN69: 29 | BO69: -96.25
G70: Covenant Life (Haines) | H70: Brook Highland (Shelby) | I70: Buckner (Lafayette) | J70: Chilchinbito (Navajo) | K70: Avalon (Los Angeles) | L70: Catherine (Garfield) | M70: Norwich (New London) | O70: Slaughter Beach (Sussex) | P70: Bloomingdale (Hillsborough) | Q70: Braselton (Jackson) | R70: Ko Olina (Honolulu) | S70: Battle Creek (Ida) | T70: Fort Hall (Bannock) | U70: Barrington Hills (Cook) | V70: Buffalo (White) | W70: Bonner Springs (Wyandotte) | X70: Buffalo (Larue) | Y70: Campti (Natchitoches) | Z70: Monument Beach (Barnstable) | AA70: Buckeystown (Frederick) | AC70: Big Bay (Marquette) | AD70: Bethel (Anoka) | AE70: Bel-Ridge (St. Louis) | AF70: Columbus (Lowndes) | AG70: Columbia Falls (Flathead) | AH70: Bogue (Carteret) | AI70: Center (Oliver) | AJ70: Boys Town (Douglas) | AL70: Burleigh (Cape May) | AM70: Chical (Valencia) | AN70: McGill (White Pine) | AO70: Bedford Hills (Westchester) | AP70: Beckett Ridge (Butler) | AQ70: Bowlegs (Seminole) | AR70: Coos Bay (Coos) | AS70: Avondale (Chester) | AT70: Daguao (Naguabo) | AV70: Clio (Marlboro) | AW70: Castlewood (Hamlin) | AX70: Christiana (Rutherford) | AY70: Aurora (Wise) | AZ70: Echo (Summit) | BA70: Brodnax (Brunswick) | BC70: Buckley (Pierce) | BD70: Black Creek (Outagamie) | BE70: Cameron (Marshall) | BF70: Farson (Sweetwater) | BH70: AK | BI70: Nulato (Yukon-Koyukuk) | BJ70: 64.7052 | BK70: -158.2382 | BM70: 131464 | BN70: 29 | BO70: -95.625
G71: Craig (Prince of Wales-Hyder) | H71: Brookside (Jefferson) | I71: Bull Shoals (Marion) | J71: Chinle (Apache) | K71: Avenal (Kings) | L71: Cattle Creek (Garfield) | M71: Oakville (Litchfield) | O71: Smyrna (Kent) | P71: Blountstown (Calhoun) | Q71: Braswell (Paulding) | R71: Koloa (Kauai) | S71: Baxter (Jasper) | T71: Franklin (Franklin) | U71: Barry (Pike) | V71: Bunker Hill (Miami) | W71: Brewster (Thomas) | X71: Burgin (Mercer) | Y71: Cankton (St. Landry) | Z71: New Bedford (Bristol) | AA71: Burkittsville (Frederick) | AC71: Big Rapids (Mecosta) | AD71: Big Falls (Koochiching) | AE71: Belton (Cass) | AF71: Columbus AFB (Lowndes) | AG71: Columbus (Stillwater) | AH71: Boiling Spring Lakes (Brunswick) | AI71: Christine (Richland) | AJ71: Bradshaw (York) | AL71: Burlington (Burlington) | AM71: Chili (Rio Arriba) | AN71: Mesquite (Clark) | AO71: Belle Terre (Suffolk) | AP71: Bedford (Cuyahoga) | AQ71: Box (Sequoyah) | AR71: Coquille (Coos) | AS71: Avonia (Erie) | AT71: Dorado (Dorado) | AV71: Clover (York) | AW71: Cavour (Beadle) | AX71: Church Hill (Hawkins) | AY71: Austin (Travis) | AZ71: Eden (Weber) | BA71: Brookneal (Campbell) | BC71: Bucoda (Thurston) | BD71: Black Earth (Dane) | BE71: Capon Bridge (Hampshire) | BF71: Fontenelle (Lincoln) | BH71: AK | BI71: White Mountain (Nome) | BJ71: 64.6812 | BK71: -163.4228 | BM71: 131474 | BN71: 29 | BO71: -89.375
G72: Crooked Creek (Bethel) | H72: Brookwood (Tuscaloosa) | I72: Burdette (Mississippi) | J72: Chino Valley (Yavapai) | K72: Avery (Calaveras) | L72: Cedaredge (Delta) | M72: Old Greenwich (Fairfield) | O72: South Bethany (Sussex) | P72: Boca Raton (Palm Beach) | Q72: Bremen (Haralson) | R72: Kualapuu (Maui) | S72: Bayard (Guthrie) | T72: Fruitland (Payette) | U72: Bartelso (Clinton) | V72: Burket (Kosciusko) | W72: Bronson (Bourbon) | X72: Burkesville (Cumberland) | Y72: Carencro (Lafayette) | Z72: New Seabury (Barnstable) | AA72: Burtonsville (Montgomery) | AC72: Bingham Farms (Oakland) | AD72: Big Lake (Sherburne) | AE72: Bennett Springs (Laclede) | AF72: Como (Panola) | AG72: Condon (Missoula) | AH72: Boiling Springs (Cleveland) | AI72: Churchs Ferry (Ramsey) | AJ72: Brady (Lincoln) | AL72: Butler (Morris) | AM72: Chilili (Bernalillo) | AN72: Mina (Mineral) | AO72: Bellerose (Nassau) | AP72: Bedford Heights (Cuyahoga) | AQ72: Boynton (Muskogee) | AR72: Cornelius (Washington) | AS72: Avonmore (Westmoreland) | AT72: Duque (Naguabo) | AV72: Cokesbury (Greenwood) | AW72: Centerville (Turner) | AX72: Clarkrange (Fentress) | AY72: Austwell (Refugio) | AZ72: Elberta (Utah) | BA72: Buchanan (Botetourt) | BC72: Buena (Yakima) | BD72: Black River Falls (Jackson) | BE72: Carolina (Marion) | BF72: Fort Bridger (Uinta) | BH72: AK | BI72: Eielson AFB (Fairbanks North Star) | BJ72: 64.6741 | BK72: -147.0605 | BM72: 131485 | BN72: 29 | BO72: -82.5
G73: Crown Point (Kenai Peninsula) | H73: Broomtown (Cherokee) | I73: Cabot (Lonoke) | J73: Chloride (Mohave) | K73: Avila Beach (San Luis Obispo) | L73: Centennial (Arapahoe) | M73: Old Mystic (New London) | O73: St. Georges (New Castle) | P73: Bokeelia (Lee) | Q73: Brinson (Decatur) | R73: Kukuihaele (Hawaii) | S73: Beacon (Mahaska) | T73: Garden City (Ada) | U73: Bartlett (Cook) | V73: Burlington (Carroll) | W73: Brookville (Saline) | X73: Burlington (Boone) | Y73: Carlyss (Calcasieu) | Z73: Newburyport (Essex) | AA73: Butlertown (Kent) | AC73: Birch Run (Saginaw) | AD73: Bigelow (Nobles) | AE73: Benton (Scott) | AF73: Conehatta (Newton) | AG73: Conner (Ravalli) | AH73: Bolivia (Brunswick) | AI73: Cleveland (Stutsman) | AJ73: Brainard (Butler) | AL73: Buttzville (Warren) | AM73: Chimayo (Santa Fe) | AN73: Minden (Douglas) | AO73: Bellerose Terrace (Nassau) | AP73: Beechwood Trails (Licking) | AQ73: Bradley (Grady) | AR73: Corvallis (Benton) | AS73: Baden (Beaver) | AT73: El Combate (Cabo Rojo) | AV73: Columbia (Richland) | AW73: Central City (Lawrence) | AX73: Clarksburg (Carroll) | AY73: Avery (Red River) | AZ73: Elk Ridge (Utah) | BA73: Buckhall (Prince William) | BC73: Bunk Foss (Snohomish) | BD73: Blair (Trempealeau) | BE73: Carpendale (Mineral) | BF73: Fort Laramie (Goshen) | BH73: AK | BI73: Elim (Nome) | BJ73: 64.6184 | BK73: -162.2762 | BM73: 131486 | BN73: 29 | BO73: -81.875
G74: Deering (Northwest Arctic) | H74: Brundidge (Pike) | I74: Caddo Valley (Clark) | J74: Christopher Creek (Gila) | K74: Avocado Heights (Los Angeles) | L74: Center (Saguache) | M74: Old Saybrook Center (Middlesex) | O74: Townsend (New Castle) | P74: Bonifay (Holmes) | Q74: Bronwood (Terrell) | R74: Kula (Maui) | S74: Beaconsfield (Ringgold) | T74: Garden Valley (Boise) | U74: Bartonville (Peoria) | V74: Burnettsville (White) | W74: Brownell (Ness) | X74: Burna (Livingston) | Y74: Castor (Bienville) | Z74: Newton (Middlesex) | AA74: Cabin John (Montgomery) | AC74: Birmingham (Oakland) | AD74: Bigfork (Itasca) | AE74: Benton City (Audrain) | AF74: Corinth (Alcorn) | AG74: Conrad (Pondera) | AH74: Bolton (Columbus) | AI74: Clifford (Traill) | AJ74: Brewster (Blaine) | AL74: Byram Center (Sussex) | AM74: Chupadero (Santa Fe) | AN74: Moapa Town (Clark) | AO74: Belleville (Jefferson) | AP74: Bellaire (Belmont) | AQ74: Braggs (Muskogee) | AR74: Cottage Grove (Lane) | AS74: Baidland (Washington) | AT74: El Mangó (Juncos) | AV74: Converse (Spartanburg) | AW74: Chamberlain (Brule) | AX74: Clarksville (Montgomery) | AY74: Avinger (Cass) | AZ74: Elmo (Emery) | BA74: Buckingham Courthouse (Buckingham) | BC74: Burbank (Walla Walla) | BD74: Blanchardville (Lafayette) | BE74: Cass (Pocahontas) | BF74: Fort Washakie (Fremont) | BH74: AK | BI74: Four Mile Road (Yukon-Koyukuk) | BJ74: 64.6046 | BK74: -149.1223 | BM74: 131487 | BN74: 29 | BO74: -81.25
G75: Delta Junction (Southeast Fairbanks) | H75: Bucks (Mobile) | I75: Caldwell (St. Francis) | J75: Chuichu (Pinal) | K75: Azusa (Los Angeles) | L75: Central City (Gilpin) | M75: Oxoboxo River (New London) | O75: Viola (Kent) | P75: Bonita Springs (Lee) | Q75: Brookhaven (DeKalb) | R75: Kurtistown (Hawaii) | S75: Beaman (Grundy) | T75: Genesee (Latah) | U75: Basco (Hancock) | V75: Burns City (Martin) | W75: Bucklin (Ford) | X75: Burnside (Pulaski) | Y75: Catahoula (St. Martin) | Z75: North Adams (Berkshire) | AA75: California (St. Mary's) | AC75: Blissfield (Lenawee) | AD75: Bingham Lake (Cottonwood) | AE75: Berger (Franklin) | AF75: Courtland (Panola) | AG75: Cooke City (Park) | AH75: Bonnetsville (Sampson) | AI75: Cogswell (Sargent) | AJ75: Bridgeport (Morrill) | AL75: Caldwell (Essex) | AM75: Church Rock (McKinley) | AN75: Moapa Valley (Clark) | AO75: Bellmore (Nassau) | AP75: Bellbrook (Greene) | AQ75: Braman (Kay) | AR75: Cove (Union) | AS75: Baileyville (Centre) | AT75: El Negro (Yabucoa) | AV75: Conway (Horry) | AW75: Chancellor (Turner) | AX75: Cleveland (Bradley) | AY75: Azle (Tarrant) | AZ75: Elsinore (Sevier) | BA75: Buena Vista (Buena Vista) | BC75: Burien (King) | BD75: Bloomer (Chippewa) | BE75: Cassville (Monongalia) | BF75: Fox Farm-College (Laramie) | BH75: AK | BI75: Golovin (Nome) | BJ75: 64.5638 | BK75: -162.9988 | BM75: 132027 | BN75: 29.5 | BO75: -103.75
G76: Deltana (Southeast Fairbanks) | H76: Butler (Choctaw) | I76: Cale (Nevada) | J76: Cibecue (Navajo) | K76: Baker (San Bernardino) | L76: Chacra (Garfield) | M76: Pawcatuck (New London) | O76: Wilmington (New Castle) | P76: Boulevard Gardens (Broward) | Q76: Brooklet (Bulloch) | R76: Lahaina (Maui) | S76: Beaver (Boone) | T76: Georgetown (Bear Lake) | U76: Batavia (Kane) | V76: Burns Harbor (Porter) | W76: Bucyrus (Miami) | X76: Butler (Pendleton) | Y76: Cecilia (St. Martin) | Z76: North Amherst (Hampshire) | AA76: Calvert Beach (Calvert) | AC76: Bloomfield Hills (Oakland) | AD76: Birchwood Village (Washington) | AE76: Berkeley (St. Louis) | AF76: Crawford (Lowndes) | AG76: Coram (Flathead) | AH76: Boone (Watauga) | AI76: Coleharbor (McLean) | AJ76: Bristow (Boyd) | AL76: Califon (Hunterdon) | AM76: Cimarron (Colfax) | AN76: Mogul (Washoe) | AO76: Bellport (Suffolk) | AP76: Belle Center (Logan) | AQ76: Bray (Stephens) | AR76: Crabtree (Linn) | AS76: Bainbridge (Lancaster) | AT76: El Ojo (Santa Isabel) | AV76: Cope (Orangeburg) | AW76: Chelsea (Faulk) | AX76: Clifton (Wayne) | AY76: B and E (Starr) | AZ76: Elwood (Box Elder) | BA76: Bull Run (Prince William) | BC76: Burley (Kitsap) | BD76: Bloomfield (Walworth) | BE76: Cedar Grove (Kanawha) | BF76: Frannie (Big Horn) | BH76: AK | BI76: Nenana (Yukon-Koyukuk) | BJ76: 64.5384 | BK76: -149.0859 | BM76: 132028 | BN76: 29.5 | BO76: -103.125
G77: Denali Park (Denali) | H77: Calera (Shelby) | I77: Calico Rock (Izard) | J77: Cibola (La Paz) | K77: Bakersfield (Kern) | L77: Cheraw (Otero) | M77: Pemberwick (Fairfield) | O77: Wilmington Manor (New Castle) | P77: Bowling Green (Hardee) | Q77: Brooks (Fayette) | R77: Laie (Honolulu) | S77: Beaverdale (Des Moines) | T77: Glenns Ferry (Elmore) | U77: Batchtown (Calhoun) | V77: Butler (DeKalb) | W77: Buffalo (Wilson) | X77: Cadiz (Trigg) | Y77: Center Point (Avoyelles) | Z77: North Eastham (Barnstable) | AA77: Calverton (Montgomery) | AC77: Bloomingdale (Van Buren) | AD77: Bird Island (Renville) | AE77: Bernie (Stoddard) | AF77: Crenshaw (Quitman) | AG77: Corvallis (Ravalli) | AH77: Boonville (Yadkin) | AI77: Colfax (Richland) | AJ77: Broadwater (Morrill) | AL77: Camden (Camden) | AM77: City of the Sun (Luna) | AN77: Montello (Elko) | AO77: Belmont (Allegany) | AP77: Belle Valley (Noble) | AQ77: Breckenridge (Garfield) | AR77: Crane (Harney) | AS77: Bairdford (Allegheny) | AT77: El Paraiso (Ponce) | AV77: Cordova (Orangeburg) | AW77: Chester (Lake) | AX77: Clinton (Anderson) | AY77: Bacliff (Galveston) | AZ77: Emery (Emery) | BA77: Bull Run Mountain Estates (Prince William) | BC77: Burlington (Skagit) | BD77: Bloomington (Grant) | BE77: Century (Barbour) | BF77: Freedom (Lincoln) | BH77: AK | BI77: Salcha (Fairbanks North Star) | BJ77: 64.5272 | BK77: -146.904 | BM77: 132032 | BN77: 29.5 | BO77: -100.625
G78: Diamond Ridge (Kenai Peninsula) | H78: Calvert (Mobile) | I78: Calion (Union) | J78: Cienega Springs (La Paz) | K78: Baldwin Park (Los Angeles) | L78: Cherry Creek (Arapahoe) | M78: Plainfield Village (Windham) | O78: Woodside (Kent) | P78: Boynton Beach (Palm Beach) | Q78: Broxton (Coffee) | R78: Lanai City (Maui) | S78: Bedford (Taylor) | T78: Gooding (Gooding) | U78: Bath (Mason) | V78: Butlerville (Jennings) | W78: Buhler (Reno) | X78: Calhoun (McLean) | Y78: Central (East Baton Rouge) | Z78: North Falmouth (Barnstable) | AA78: Cambridge (Dorchester) | AC78: Boon (Wexford) | AD78: Biscay (McLeod) | AE78: Bertrand (Mississippi) | AF78: Crosby (Amite) | AG78: Corwin Springs (Park) | AH78: Bostic (Rutherford) | AI78: Columbus (Burke) | AJ78: Brock (Nemaha) | AL78: Cape May (Cape May) | AM78: Clayton (Union) | AN78: Mount Charleston (Clark) | AO78: Bemus Point (Chautauqua) | AP78: Bellefontaine (Logan) | AQ78: Brent (Sequoyah) | AR78: Crawfordsville (Linn) | AS78: Bakerstown (Allegheny) | AT78: El Tumbao (Guánica) | AV78: Coronaca (Greenwood) | AW78: Claire City (Roberts) | AX78: Coalfield (Morgan) | AY78: Bailey (Fannin) | AZ78: Emigration Canyon (Salt Lake) | BA78: Burke (Fairfax) | BC78: Camano (Island) | BD78: Blue Mounds (Dane) | BE78: Ceredo (Wayne) | BF78: Garland (Park) | BH78: AK | BI78: Nome (Nome) | BJ78: 64.5213 | BK78: -165.4053 | BM78: 132033 | BN78: 29.5 | BO78: -100
G79: Dillingham (Dillingham) | H79: Camden (Wilcox) | I79: Camden (Ouachita) | J79: Citrus Park (Maricopa) | K79: Ballard (Santa Barbara) | L79: Cherry Hills Village (Arapahoe) | M79: Plantsville (Hartford) | O79: Woodside East (Kent) | P79: Bradenton (Manatee) | Q79: Brunswick (Glynn) | R79: Launiupoko (Maui) | S79: Belle Plaine (Benton) | T79: Grace (Caribou) | U79: Bay View Gardens (Woodford) | V79: Cadiz (Henry) | W79: Bunker Hill (Russell) | X79: California (Campbell) | Y79: Chackbay (Lafourche) | Z79: North Lakeville (Plymouth) | AA79: Camp Springs (Prince George's) | AC79: Boyne City (Charlevoix) | AD79: Biwabik (St. Louis) | AE79: Bethany (Harrison) | AF79: Crowder (Quitman) | AG79: Craig (Lewis and Clark) | AH79: Bowmore (Hoke) | AI79: Conway (Walsh) | AJ79: Broken Bow (Custer) | AL79: Cape May Court House (Cape May) | AM79: Cliff (Grant) | AN79: Mount Wilson (Lincoln) | AO79: Bergen (Genesee) | AP79: Bellevue (Huron) | AQ79: Bridge Creek (Grady) | AR79: Creswell (Lane) | AS79: Baldwin (Allegheny) | AT79: Emajagua (Maunabo) | AV79: Cottageville (Colleton) | AW79: Claremont (Brown) | AX79: Coalmont (Grundy) | AY79: Bailey's Prairie (Brazoria) | AZ79: Enoch (Iron) | BA79: Burke Centre (Fairfax) | BC79: Camas (Clark) | BD79: Blue River (Grant) | BE79: Chapmanville (Logan) | BF79: Gillette (Campbell) | BH79: AK | BI79: Harding-Birch Lakes (Fairbanks North Star) | BJ79: 64.3711 | BK79: -146.5999 | BM79: 132034 | BN79: 29.5 | BO79: -99.375
G80: Diomede (Nome) | H80: Camp Hill (Tallapoosa) | I80: Cammack Village (Pulaski) | J80: Clacks Canyon (Mohave) | K80: Ballico (Merced) | L80: Cheyenne Wells (Cheyenne) | M80: Poquonock Bridge (New London) | O80: Wyoming (Kent) | P80: Bradenton Beach (Manatee) | Q80: Buchanan (Haralson) | R80: Laupahoehoe (Hawaii) | S80: Bellevue (Jackson) | T80: Grand View (Owyhee) | U80: Baylis (Pike) | V80: Cambridge City (Wayne) | W80: Burden (Cowley) | X80: Calvert City (Marshall) | Y80: Chalmette (St. Bernard) | Z80: North Pembroke (Plymouth) | AA80: Cape St. Claire (Anne Arundel) | AC80: Boyne Falls (Charlevoix) | AD80: Blackduck (Beltrami) | AE80: Bethel (Shelby) | AF80: Cruger (Holmes) | AG80: Crane (Richland) | AH80: Brevard (Transylvania) | AI80: Cooperstown (Griggs) | AJ80: Brownlee (Cherry) | AL80: Cape May Point (Cape May) | AM80: Cloudcroft (Otero) | AN80: Nellis AFB (Clark) | AO80: Bethpage (Nassau) | AP80: Bellville (Sandusky) | AQ80: Bridgeport (Caddo) | AR80: Culver (Jefferson) | AS80: Bally (Berks) | AT80: Esperanza (Vieques) | AV80: Coward (Florence) | AW80: Clark (Clark) | AX80: Collegedale (Hamilton) | AY80: Baird (Callahan) | AZ80: Enterprise (Washington) | BA80: Burkeville (Nottoway) | BC80: Canterwood (Pierce) | BD80: Bluffview (Sauk) | BE80: Charles Town (Jefferson) | BF80: Glendo (Platte) | BH80: AK | BI80: Shaktoolik (Nome) | BJ80: 64.3573 | BK80: -161.1983 | BM80: 132035 | BN80: 29.5 | BO80: -98.75
G81: Dot Lake (Southeast Fairbanks) | H81: Carbon Hill (Walker) | I81: Campbell Station (Jackson) | J81: Clarkdale (Yavapai) | K81: Bangor (Butte) | L81: Cimarron Hills (El Paso) | M81: Quinebaug (Windham) | P81: Bradley Junction (Polk) | Q81: Buckhead (Morgan) | R81: Lawai (Kauai) | S81: Belmond (Wright) | T81: Grangeville (Idaho) | U81: Beach Park (Lake) | V81: Camden (Carroll) | W81: Burdett (Pawnee) | X81: Camargo (Montgomery) | Y81: Charenton (St. Mary) | Z81: North Plymouth (Plymouth) | AA81: Capitol Heights (Prince George's) | AC81: Breckenridge (Gratiot) | AD81: Blaine (Anoka) | AE81: Beverly Hills (St. Louis) | AF81: Crystal Springs (Copiah) | AG81: Crow Agency (Big Horn) | AH81: Brices Creek (Craven) | AI81: Courtenay (Stutsman) | AJ81: Brownville (Nemaha) | AL81: Carlstadt (Bergen) | AM81: Clovis (Curry) | AN81: Nelson (Clark) | AO81: Billington Heights (Erie) | AP81: Belmont (Belmont) | AQ81: Briggs (Cherokee) | AR81: Dallas (Polk) | AS81: Bangor (Northampton) | AT81: Espino (Añasco) | AV81: Cowpens (Spartanburg) | AW81: Clear Lake (Deuel) | AX81: Collierville (Shelby) | AY81: Balch Springs (Dallas) | AZ81: Ephraim (Sanpete) | BA81: Callaghan (Alleghany) | BC81: Canyon Creek (Snohomish) | BD81: Boaz (Richland) | BE81: Charleston (Kanawha) | BF81: Glenrock (Converse) | BH81: AK | BI81: Kaltag (Yukon-Koyukuk) | BJ81: 64.3223 | BK81: -158.7436 | BM81: 132036 | BN81: 29.5 | BO81: -98.125
G82: Dot Lake Village (Southeast Fairbanks) | H82: Cardiff (Jefferson) | I82: Caraway (Craighead) | J82: Clay Springs (Navajo) | K82: Banning (Riverside) | L82: City of Creede (Mineral) | M82: Riverside (Fairfield) | P82: Brandon (Hillsborough) | Q82: Buena Vista (Marion) | R82: Leilani Estates (Hawaii) | S82: Bennett (Cedar) | T82: Greenleaf (Canyon) | U82: Beardstown (Cass) | V82: Campbellsburg (Washington) | W82: Burlingame (Osage) | X82: Cambridge (Jefferson) | Y82: Chataignier (Evangeline) | Z82: North Scituate (Plymouth) | AA82: Carlos (Allegany) | AC82: Breedsville (Van Buren) | AD82: Blomkest (Kandiyohi) | AE82: Bevier (Macon) | AF82: Darling (Quitman) | AG82: Culbertson (Roosevelt) | AH82: Bridgeton (Craven) | AI82: Crary (Ramsey) | AJ82: Brule (Keith) | AL82: Carteret (Middlesex) | AM82: Cobre (Grant) | AN82: Nixon (Washoe) | AO82: Binghamton (Broome) | AP82: Belmore (Putnam) | AQ82: Bristow (Creek) | AR82: Damascus (Clackamas) | AS82: Barkeyville (Venango) | AT82: Fajardo (Fajardo) | AV82: Cross Anchor (Spartanburg) | AW82: Colman (Moody) | AX82: Collinwood (Wayne) | AY82: Balcones Heights (Bexar) | AZ82: Erda (Tooele) | BA82: Calverton (Fauquier) | BC82: Carbonado (Pierce) | BD82: Bohners Lake (Racine) | BE82: Charlton Heights (Fayette) | BF82: Granger (Sweetwater) | BH82: AK | BI82: Anderson (Denali) | BJ82: 64.3074 | BK82: -149.1562 | BM82: 132037 | BN82: 29.5 | BO82: -97.5
G83: Dry Creek (Southeast Fairbanks) | H83: Carlisle-Rockledge (Etowah) | I83: Carlisle (Lonoke) | J83: Claypool (Gila) | K83: Barstow (San Bernardino) | L83: Clifton (Mesa) | M83: Rockville (Tolland) | P83: Branford (Suwannee) | Q83: Buford (Gwinnett) | R83: Lihue (Kauai) | S83: Bentley (Pottawattamie) | T83: Groveland (Bingham) | U83: Beason (Logan) | V83: Canaan (Jefferson) | W83: Burlington (Coffey) | X83: Campbellsburg (Henry) | Y83: Chatham (Jackson) | Z83: North Seekonk (Bristol) | AA83: Carney (Baltimore) | AC83: Brethren (Manistee) | AD83: Blooming Prairie (Steele) | AE83: Biehle (Perry) | AF83: De Kalb (Kemper) | AG83: Custer (Yellowstone) | AH83: Broad Creek (Carteret) | AI83: Crosby (Divide) | AJ83: Bruning (Thayer) | AL83: Cedar Glen Lakes (Ocean) | AM83: Cochiti (Sandoval) | AN83: North Las Vegas (Clark) | AO83: Binghamton University (Broome) | AP83: Beloit (Mahoning) | AQ83: Broken Arrow (Tulsa) | AR83: Days Creek (Douglas) | AS83: Barrville (Mifflin) | AT83: Florida (Florida) | AV83: Cross Hill (Laurens) | AW83: Colome (Tripp) | AX83: Colonial Heights (Sullivan) | AY83: Ballinger (Runnels) | AZ83: Escalante (Garfield) | BA83: Camptown (Isle of Wight) | BC83: Carlsborg (Clallam) | BD83: Bonduel (Shawano) | BE83: Chattaroy (Mingo) | BF83: Green River (Sweetwater) | BH83: AK | BI83: Whitestone (Southeast Fairbanks) | BJ83: 64.1528 | BK83: -145.9061 | BM83: 132038 | BN83: 29.5 | BO83: -96.875
G84: Eagle (Southeast Fairbanks) | H84: Carlton (Clarke) | I84: Carthage (Dallas) | J84: Clifton (Greenlee) | K84: Bass Lake (Madera) | L84: Coal Creek (Fremont) | M84: Salmon Brook (Hartford) | P84: Brent (Escambia) | Q84: Butler (Taylor) | R84: Maalaea (Maui) | S84: Benton (Ringgold) | T84: Hagerman (Gooding) | U84: Beaverville (Iroquois) | V84: Cannelburg (Daviess) | W84: Burns (Marion) | X84: Campbellsville (Taylor) | Y84: Chauvin (Terrebonne) | Z84: North Westport (Bristol) | AA84: Catonsville (Baltimore) | AC84: Bridgeport (Saginaw) | AD84: Bloomington (Hennepin) | AE84: Big Lake (Holt) | AF84: Decatur (Newton) | AG84: Cut Bank (Glacier) | AH84: Broadway (Lee) | AI84: Crystal (Pembina) | AJ84: Bruno (Butler) | AL84: Cedar Glen West (Ocean) | AM84: Cochiti Lake (Sandoval) | AN84: Oasis (Elko) | AO84: Black River (Jefferson) | AP84: Belpre (Washington) | AQ84: Broken Bow (McCurtain) | AR84: Dayton (Yamhill) | AS84: Bath (Northampton) | AT84: Fránquez (Morovis) | AV84: Dalzell (Sumter) | AW84: Colonial Pine Hills (Pennington) | AX84: Columbia (Maury) | AY84: Balmorhea (Reeves) | AZ84: Eureka (Juab) | BA84: Cana (Carroll) | BC84: Carnation (King) | BD84: Boscobel (Grant) | BE84: Chauncey (Logan) | BF84: Greybull (Big Horn) | BH84: AK | BI84: Big Delta (Southeast Fairbanks) | BJ84: 64.1486 | BK84: -145.7453 | BM84: 132039 | BN84: 29.5 | BO84: -96.25
G85: Eagle Village (Southeast Fairbanks) | H85: Carolina (Covington) | I85: Casa (Perry) | J85: Colorado City (Mohave) | K85: Bay Point (Contra Costa) | L85: Coaldale (Fremont) | M85: Saybrook Manor (Middlesex) | P85: Briny Breezes (Palm Beach) | Q85: Byromville (Dooly) | R85: Mahinahina (Maui) | S85: Berkley (Boone) | T85: Hailey (Blaine) | U85: Beckemeyer (Clinton) | V85: Cannelton (Perry) | W85: Burr Oak (Jewell) | X85: Campton (Wolfe) | Y85: Cheneyville (Rapides) | Z85: Northampton (Hampshire) | AA85: Cavetown (Washington) | AC85: Bridgman (Berrien) | AD85: Blue Earth (Faribault) | AE85: Big Spring (Montgomery) | AF85: DeLisle (Harrison) | AG85: Darby (Ravalli) | AH85: Brogden (Wayne) | AI85: Dahlen (Nelson) | AJ85: Brunswick (Antelope) | AL85: Cedarville (Cumberland) | AM85: Columbus (Luna) | AN85: Orovada (Humboldt) | AO85: Blasdell (Erie) | AP85: Bentleyville (Cuyahoga) | AQ85: Bromide (Johnston) | AR85: Dayville (Grant) | AS85: Baumstown (Berks) | AT85: Fuig (Guánica) | AV85: Darlington (Darlington) | AW85: Colton (Minnehaha) | AX85: Cookeville (Putnam) | AY85: Bandera (Bandera) | AZ85: Fairfield (Utah) | BA85: Cape Charles (Northampton) | BC85: Carson (Skamania) | BD85: Boulder Junction (Vilas) | BE85: Cheat Lake (Monongalia) | BF85: Grover (Lincoln) | BH85: AK | BI85: Chicken (Southeast Fairbanks) | BJ85: 64.0877 | BK85: -141.8283 | BM85: 132040 | BN85: 29.5 | BO85: -95.625
G86: Edna Bay (Prince of Wales-Hyder) | H86: Carrollton (Pickens) | I86: Cash (Craighead) | J86: Comobabi (Pima) | K86: Bayview (Humboldt) | L86: Cokedale (Las Animas) | M86: Shelton (Fairfield) | P86: Bristol (Liberty) | Q86: Byron (Peach) | R86: Maili (Honolulu) | S86: Bernard (Dubuque) | T86: Hamer (Jefferson) | U86: Bedford Park (Cook) | V86: Carbon (Clay) | W86: Burrton (Harvey) | X86: Caneyville (Grayson) | Y86: Choctaw (Lafourche) | Z86: Northwest Harwich (Barnstable) | AA86: Cearfoss (Washington) | AC86: Brighton (Livingston) | AD86: Bluffton (Otter Tail) | AE86: Bigelow (Holt) | AF86: Derma (Calhoun) | AG86: Dayton (Lake) | AH86: Brookford (Catawba) | AI86: Davenport (Cass) | AJ86: Burchard (Pawnee) | AL86: Chatham (Morris) | AM86: Conchas Dam (San Miguel) | AN86: Osino (Elko) | AO86: Blauvelt (Rockland) | AP86: Benton Ridge (Hancock) | AQ86: Brooksville (Pottawatomie) | AR86: Deer Island (Columbia) | AS86: Beallsville (Washington) | AT86: G. L. García (Cayey) | AV86: Denmark (Bamberg) | AW86: Columbia (Brown) | AX86: Coopertown (Robertson) | AY86: Bangs (Brown) | AZ86: Fairview (Sanpete) | BA86: Capron (Southampton) | BC86: Cascade Valley (Grant) | BD86: Bowler (Shawano) | BE86: Chelyan (Kanawha) | BF86: Guernsey (Platte) | BH86: AK | BI86: Delta Junction (Southeast Fairbanks) | BJ86: 64.0604 | BK86: -145.7058 | BM86: 132041 | BN86: 29.5 | BO86: -95
G87: Eek (Bethel) | H87: Castleberry (Conecuh) | I87: Caulksville (Logan) | J87: Concho (Apache) | K87: Beale AFB (Yuba) | L87: Collbran (Mesa) | M87: Sherwood Manor (Hartford) | P87: Broadview Park (Broward) | Q87: Cadwell (Laurens) | R87: Makaha (Honolulu) | S87: Bertram (Linn) | T87: Hansen (Twin Falls) | U87: Beecher (Will) | V87: Carlisle (Sullivan) | W87: Bushong (Lyon) | X87: Cannonsburg (Boyd) | Y87: Choudrant (Lincoln) | Z87: Norton Center (Bristol) | AA87: Cecilton (Cecil) | AC87: Britton (Lenawee) | AD87: Bock (Mille Lacs) | AE87: Billings (Christian) | AF87: Diamondhead (Hancock) | AG87: De Borgia (Mineral) | AH87: Brunswick (Columbus) | AI87: Dawson (Kidder) | AJ87: Burr (Otoe) | AL87: Cherry Hill Mall (Camden) | AM87: Cordova (Rio Arriba) | AN87: Owyhee (Elko) | AO87: Bliss (Wyoming) | AP87: Bentonville (Adams) | AQ87: Brush Creek (Delaware) | AR87: Depoe Bay (Lincoln) | AS87: Bear Creek Village (Luzerne) | AT87: Galateo (Toa Alta) | AV87: Dentsville (Richland) | AW87: Conde (Spink) | AX87: Copperhill (Polk) | AY87: Banquete (Nueces) | AZ87: Farmington (Davis) | BA87: Captains Cove (Accomack) | BC87: Cashmere (Chelan) | BD87: Boyceville (Dunn) | BE87: Chesapeake (Kanawha) | BF87: Hanna (Carbon) | BH87: AK | BI87: Ferry (Denali) | BJ87: 64.0496 | BK87: -148.9205 | BM87: 132042 | BN87: 29.5 | BO87: -94.375
G88: Egegik (Lake and Peninsula) | H88: Catherine (Wilcox) | I88: Cave City (Sharp) | J88: Congress (Yavapai) | K88: Bear Creek (Merced) | L88: Colona (Ouray) | M88: Simsbury Center (Hartford) | P88: Bronson (Levy) | Q88: Cairo (Grady) | R88: Makaha Valley (Honolulu) | S88: Bettendorf (Scott) | T88: Harrison (Kootenai) | U88: Beecher City (Effingham) | V88: Carmel (Hamilton) | W88: Bushton (Rice) | X88: Carlisle (Nicholas) | Y88: Church Point (Acadia) | Z88: Ocean Bluff-Brant Rock (Plymouth) | AA88: Cedarville (Prince George's) | AC88: Bronson (Branch) | AD88: Borup (Norman) | AE88: Birch Tree (Shannon) | AF88: D'Iberville (Harrison) | AG88: Deer Lodge (Powell) | AH88: Bryson City (Swain) | AI88: Dazey (Barnes) | AJ88: Burton (Keya Paha) | AL88: Chesilhurst (Camden) | AM88: Corona (Lincoln) | AN88: Pahrump (Nye) | AO88: Blodgett Mills (Cortland) | AP88: Berea (Cuyahoga) | AQ88: Brushy (Sequoyah) | AR88: Deschutes River Woods (Deschutes) | AS88: Bear Lake (Warren) | AT88: Garrochales (Barceloneta) | AV88: Dillon (Dillon) | AW88: Corn Creek (Mellette) | AX88: Cornersville (Marshall) | AY88: Bardwell (Ellis) | AZ88: Farr West (Weber) | BA88: Carrollton (Isle of Wight) | BC88: Castle Rock (Cowlitz) | BD88: Boyd (Chippewa) | BE88: Chester (Hancock) | BF88: Hartrandt (Natrona) | BH88: AK | BI88: Healy Lake (Southeast Fairbanks) | BJ88: 64.0281 | BK88: -144.6331 | BM88: 132046 | BN88: 29.5 | BO88: -91.875
G89: Eielson AFB (Fairbanks North Star) | H89: Cedar Bluff (Cherokee) | I89: Cave Springs (Benton) | J89: Coolidge (Pinal) | K89: Bear Valley (Mariposa) | L89: Colorado City (Pueblo) | M89: South Coventry (Tolland) | P89: Brooker (Bradford) | Q89: Calhoun (Gordon) | R89: Makakilo (Honolulu) | S89: Bevington (Madison) | T89: Hauser (Kootenai) | U89: Belgium (Vermilion) | V89: Carthage (Rush) | W89: Byers (Pratt) | X89: Carrollton (Carroll) | Y89: Claiborne (Ouachita) | Z89: Ocean Grove (Bristol) | AA89: Centreville (Queen Anne's) | AC89: Brooklyn (Jackson) | AD89: Bovey (Itasca) | AE89: Birmingham (Clay) | AF89: D'Lo (Simpson) | AG89: Denton (Fergus) | AH89: Buies Creek (Harnett) | AI89: De Lamere (Sargent) | AJ89: Burwell (Garfield) | AL89: Chester (Morris) | AM89: Corrales (Sandoval) | AN89: Panaca (Lincoln) | AO89: Bloomfield (Ontario) | AP89: Bergholz (Jefferson) | AQ89: Buffalo (Harper) | AR89: Detroit (Marion) | AS89: Bear Rocks (Fayette) | AT89: Guánica (Guánica) | AV89: Donalds (Abbeville) | AW89: Corona (Roberts) | AX89: Cottage Grove (Henry) | AY89: Barrera (Starr) | AZ89: Fayette (Sanpete) | BA89: Carrsville (Isle of Wight) | BC89: Cathcart (Snohomish) | BD89: Brandon (Fond du Lac) | BE89: Clarksburg (Harrison) | BF89: Hartville (Platte) | BH89: AK | BI89: Fort Greely (Southeast Fairbanks) | BJ89: 63.9678 | BK89: -145.7149 | BM89: 132047 | BN89: 29.5 | BO89: -91.25
G90: Ekwok (Dillingham) | H90: Center Point (Jefferson) | I90: Cedarville (Crawford) | J90: Copper Hill (Gila) | K90: Bear Valley Springs (Kern) | L90: Colorado Springs (El Paso) | M90: South Windham (Windham) | P90: Brookridge (Hernando) | Q90: Calvary (Grady) | R90: Makawao (Maui) | S90: Birmingham (Van Buren) | T90: Hayden (Kootenai) | U90: Belknap (Johnson) | V90: Cayuga (Vermillion) | W90: Caldwell (Sumner) | X90: Carrsville (Livingston) | Y90: Clarence (Natchitoches) | Z90: Onset (Plymouth) | AA90: Chance (Somerset) | AC90: Brown City (Sanilac) | AD90: Bowlus (Morrison) | AE90: Bismarck (St. Francois) | AF90: Doddsville (Sunflower) | AG90: Dillon (Beaverhead) | AH90: Bunn (Franklin) | AI90: Deering (McHenry) | AJ90: Bushnell (Kimball) | AL90: Clayton (Gloucester) | AM90: Costilla (Taos) | AN90: Paradise (Clark) | AO90: Bloomingburg (Sullivan) | AP90: Berkey (Lucas) | AQ90: Bull Hollow (Delaware) | AR90: Dillard (Douglas) | AS90: Beaver (Beaver) | AT90: Guayabal (Juana Díaz) | AV90: Due West (Abbeville) | AW90: Corsica (Douglas) | AX90: Cottontown (Sumner) | AY90: Barrett (Harris) | AZ90: Ferron (Emery) | BA90: Cascades (Loudoun) | BC90: Cathlamet (Wahkiakum) | BD90: Brice Prairie (La Crosse) | BE90: Clay (Clay) | BF90: Hawk Springs (Goshen) | BH90: AK | BI90: Healy (Denali) | BJ90: 63.9454 | BK90: -149.0152 | BM90: 132048 | BN90: 29.5 | BO90: -90.625
G91: Elfin Cove (Hoonah-Angoon) | H91: Centre (Cherokee) | I91: Center Ridge (Conway) | J91: Cordes Lakes (Yavapai) | K91: Beaumont (Riverside) | L91: Columbine (Jefferson) | M91: South Woodstock (Windham) | P91: Brooksville (Hernando) | Q91: Camak (Warren) | R91: Makena (Maui) | S91: Blairsburg (Hamilton) | T91: Hayden Lake (Kootenai) | U91: Belle Prairie City (Hamilton) | V91: Cedar Grove (Franklin) | W91: Cambridge (Cowley) | X91: Catlettsburg (Boyd) | Y91: Clarks (Caldwell) | Z91: Palmer Town (Hampden) | AA91: Charlestown (Cecil) | AC91: Brownlee Park (Calhoun) | AD91: Boy River (Cass) | AE91: Black Jack (St. Louis) | AF91: Drew (Sunflower) | AG91: Dixon (Sanders) | AH91: Bunnlevel (Harnett) | AI91: Denhoff (Sheridan) | AJ91: Butte (Boyd) | AL91: Clearbrook Park (Middlesex) | AM91: Cotton City (Hidalgo) | AN91: Paradise Valley (Humboldt) | AO91: Bloomville (Delaware) | AP91: Berlin (Holmes) | AQ91: Burbank (Osage) | AR91: Donald (Marion) | AS91: Beaver Falls (Beaver) | AT91: Guayama (Guayama) | AV91: Duncan (Spartanburg) | AW91: Cottonwood (Jackson) | AX91: Covington (Tipton) | AY91: Barry (Navarro) | AZ91: Fielding (Box Elder) | BA91: Castlewood (Russell) | BC91: Cavalero (Snohomish) | BD91: Brillion (Calumet) | BE91: Clearview (Ohio) | BF91: Hill View Heights (Weston) | BH91: AK | BI91: Unalakleet (Nome) | BJ91: 63.8922 | BK91: -160.786 | BM91: 132049 | BN91: 29.5 | BO91: -90
G92: Elim (Nome) | H92: Centreville (Bibb) | I92: Centerton (Benton) | J92: Cornfields (Apache) | K92: Beckwourth (Plumas) | L92: Columbine Valley (Arapahoe) | M92: Southport (Fairfield) | P92: Brownsdale (Santa Rosa) | Q92: Camilla (Mitchell) | R92: Manele (Maui) | S92: Blairstown (Benton) | T92: Hazelton (Jerome) | U92: Belle Rive (Jefferson) | V92: Cedar Lake (Lake) | W92: Caney (Montgomery) | X92: Cave City (Barren) | Y92: Clayton (Concordia) | Z92: Peabody (Essex) | AA92: Charlotte Hall (St. Mary's) | AC92: Brutus (Emmet) | AD92: Boyd (Lac qui Parle) | AE92: Blackburn (Saline) | AF92: Duck Hill (Montgomery) | AG92: Dodson (Phillips) | AH92: Burgaw (Pender) | AI92: Des Lacs (Ward) | AJ92: Byron (Thayer) | AL92: Clementon (Camden) | AM92: Coyote (Rio Arriba) | AN92: Pioche (Lincoln) | AO92: Blue Point (Suffolk) | AP92: Berlin Heights (Erie) | AQ92: Burlington (Alfalfa) | AR92: Drain (Douglas) | AS92: Beaver Meadows (Carbon) | AT92: Guayanilla (Guayanilla) | AV92: Dunean (Greenville) | AW92: Cow Creek (Sully) | AX92: Cowan (Franklin) | AY92: Barstow (Ward) | AZ92: Fillmore (Millard) | BA92: Catlett (Fauquier) | BC92: Centerville (Klickitat) | BD92: Bristol (Kenosha) | BE92: Clendenin (Kanawha) | BF92: Hillsdale (Laramie) | BH92: AK | BI92: Deltana (Southeast Fairbanks) | BJ92: 63.8724 | BK92: -145.2158 | BM92: 132050 | BN92: 29.5 | BO92: -89.375
G93: Emmonak (Kusilvak) | H93: Chatom (Washington) | I93: Central City (Sebastian) | J93: Cornville (Yavapai) | K93: Belden (Plumas) | L93: Comanche Creek (Arapahoe) | M93: Southwood Acres (Hartford) | P93: Brownsville (Miami-Dade) | Q93: Candler-McAfee (DeKalb) | R93: Maunaloa (Maui) | S93: Blakesburg (Wapello) | T93: Heyburn (Minidoka) | U93: Belleville (St. Clair) | V93: Center Point (Clay) | W93: Canton (McPherson) | X93: Cawood (Harlan) | Y93: Clinton (East Feliciana) | Z93: Pinehurst (Middlesex) | AA93: Charlton (Washington) | AC93: Buchanan (Berrien) | AD93: Braham (Isanti) | AE93: Blackwater (Cooper) | AF93: Dumas (Tippah) | AG93: Drummond (Granite) | AH93: Burlington (Alamance) | AI93: Devils Lake (Ramsey) | AJ93: Cairo (Hall) | AL93: Cliffside Park (Bergen) | AM93: Crownpoint (McKinley) | AN93: Preston (White Pine) | AO93: Bohemia (Suffolk) | AP93: Bethel (Clermont) | AQ93: Burneyville (Love) | AR93: Dufur (Wasco) | AS93: Beaver Springs (Snyder) | AT93: Guaynabo (Guaynabo) | AV93: Easley (Pickens) | AW93: Cresbard (Faulk) | AX93: Crab Orchard (Cumberland) | AY93: Bartlett (Williamson) | AZ93: Flaming Gorge (Daggett) | BA93: Cats Bridge (Accomack) | BC93: Central Park (Grays Harbor) | BD93: Brodhead (Green) | BE93: Coal City (Raleigh) | BF93: Hoback (Teton) | BH93: AK | BI93: Lake Minchumina (Yukon-Koyukuk) | BJ93: 63.798 | BK93: -152.3448 | BM93: 132060 | BN93: 29.5 | BO93: -83.125
G94: Ester (Fairbanks North Star) | H94: Chelsea (Shelby) | I94: Charleston (Franklin) | J94: Corona de Tucson (Pima) | K94: Bell (Los Angeles) | L94: Commerce City (Adams) | M94: Stafford Springs (Tolland) | P94: Buckhead Ridge (Glades) | Q94: Canon (Hart) | R94: Maunawili (Honolulu) | S94: Blanchard (Page) | T94: Hidden Springs (Ada) | U94: Bellevue (Peoria) | V94: Centerville (Wayne) | W94: Carbondale (Osage) | X94: Cayce (Fulton) | Y94: Colfax (Grant) | Z94: Pittsfield (Berkshire) | AA94: Chesapeake Beach (Calvert) | AC94: Buckley (Wexford) | AD94: Brainerd (Crow Wing) | AE94: Blairstown (Henry) | AF94: Duncan (Bolivar) | AG94: Dupuyer (Pondera) | AH94: Burnsville (Yancey) | AI94: Dickey (LaMoure) | AJ94: Callaway (Custer) | AL94: Cliffwood Beach (Monmouth) | AM94: Cruzville (Catron) | AN94: Rachel (Lincoln) | AO94: Bolivar (Allegany) | AP94: Bethesda (Belmont) | AQ94: Burns Flat (Washita) | AR94: Dundee (Yamhill) | AS94: Beaverdale (Cambria) | AT94: Gurabo (Gurabo) | AV94: East Gaffney (Cherokee) | AW94: Crocker (Clark) | AX94: Cross Plains (Robertson) | AY94: Barton Creek (Travis) | AZ94: Fort Duchesne (Uintah) | BA94: Cave Spring (Roanoke) | BC94: Centralia (Lewis) | BD94: Brookfield (Waukesha) | BE94: Coal Fork (Kanawha) | BF94: Homa Hills (Natrona) | BH94: AK | BI94: Gambell (Nome) | BJ94: 63.7538 | BK94: -171.6881 | BM94: 132061 | BN94: 29.5 | BO94: -82.5
G95: Eureka Roadhouse (Matanuska-Susitna) | H95: Cherokee (Colbert) | I95: Cherokee City (Benton) | J95: Cottonwood (Yavapai) | K95: Bell Canyon (Ventura) | L95: Conejos (Conejos) | M95: Stamford (Fairfield) | P95: Buckingham (Lee) | Q95: Canoochee (Emanuel) | R95: Mililani Mauka (Honolulu) | S95: Blencoe (Monona) | T95: Hollister (Twin Falls) | U95: Bellflower (McLean) | V95: Chalmers (White) | W95: Carlton (Dickinson) | X95: Cecilia (Hardin) | Y95: Collinston (Morehouse) | Z95: Pocasset (Barnstable) | AA95: Chesapeake City (Cecil) | AC95: Buena Vista (Saginaw) | AD95: Brandon (Douglas) | AE95: Blanchard (Atchison) | AF95: Durant (Holmes) | AG95: Dutton (Teton) | AH95: Butner (Granville) | AI95: Dickinson (Stark) | AJ95: Cambridge (Furnas) | AL95: Clifton (Passaic) | AM95: Crystal (San Juan) | AN95: Reno (Washoe) | AO95: Bolton Landing (Warren) | AP95: Bettsville (Seneca) | AQ95: Bushyhead (Rogers) | AR95: Dunes City (Lane) | AS95: Beavertown (Snyder) | AT95: H. Rivera Colón (Toa Alta) | AV95: East Sumter (Sumter) | AW95: Crooks (Minnehaha) | AX95: Crossville (Cumberland) | AY95: Bartonville (Denton) | AZ95: Fountain Green (Sanpete) | BA95: Cedar Bluff (Tazewell) | BC95: Chain Lake (Snohomish) | BD95: Brooklyn (Green) | BE95: Comfort (Boone) | BF95: Hudson (Fremont) | BH95: AK | BI95: Savoonga (Nome) | BJ95: 63.6797 | BK95: -170.4831 | BM95: 132062 | BN95: 29.5 | BO95: -81.875
G96: Evansville (Yukon-Koyukuk) | H96: Chickasaw (Mobile) | I96: Cherokee Village (Sharp) | J96: Cowlic (Pima) | K96: Bell Gardens (Los Angeles) | L96: Copper Mountain (Summit) | M96: Stonington (New London) | P96: Buenaventura Lakes (Osceola) | Q96: Canton (Cherokee) | R96: Mililani Town (Honolulu) | S96: Blockton (Taylor) | T96: Homedale (Owyhee) | U96: Bellmont (Wabash) | V96: Chandler (Warrick) | W96: Cassoday (Butler) | X96: Centertown (Ohio) | Y96: Columbia (Caldwell) | Z96: Popponesset (Barnstable) | AA96: Chesapeake Ranch Estates (Calvert) | AC96: Burlington (Calhoun) | AD96: Breckenridge (Wilkin) | AE96: Bland (Gasconade) | AF96: Ecru (Pontotoc) | AG96: East Glacier Park Village (Glacier) | AH96: Butters (Bladen) | AI96: Dodge (Dunn) | AJ96: Campbell (Franklin) | AL96: Clinton (Hunterdon) | AM96: Cuartelez (Santa Fe) | AN96: Round Hill Village (Douglas) | AO96: Boonville (Oneida) | AP96: Beulah Beach (Erie) | AQ96: Butler (Custer) | AR96: Durham (Washington) | AS96: Bechtelsville (Berks) | AT96: Hacienda San José (Caguas) | AV96: Eastover (Richland) | AW96: Custer (Custer) | AX96: Crump (Hardin) | AY96: Bastrop (Bastrop) | AZ96: Francis (Summit) | BA96: Central Garage (King William) | BC96: Chehalis (Lewis) | BD96: Brown Deer (Milwaukee) | BE96: Corinne (Wyoming) | BF96: Hulett (Crook) | BH96: AK | BI96: Dot Lake Village (Southeast Fairbanks) | BJ96: 63.6622 | BK96: -144.016 | BM96: 132063 | BN96: 29.5 | BO96: -81.25
G97: Excursion Inlet (Haines) | H97: Childersburg (Talladega) | I97: Cherry Valley (Cross) | J97: Crozier (Mohave) | K97: Bella Vista (Shasta) | L97: Cortez (Montezuma) | M97: Storrs (Tolland) | P97: Bunnell (Flagler) | Q97: Carl (Barrow) | R97: Mokuleia (Honolulu) | S97: Bloomfield (Davis) | T97: Hope (Bonner) | U97: Bellwood (Cook) | V97: Charlestown (Clark) | W97: Catharine (Ellis) | X97: Central City (Muhlenberg) | Y97: Convent (St. James) | Z97: Popponesset Island (Barnstable) | AA97: Chester (Queen Anne's) | AC97: Burr Oak (St. Joseph) | AD97: Breezy Point (Crow Wing) | AE97: Blodgett (Scott) | AF97: Eden (Yazoo) | AG97: East Helena (Lewis and Clark) | AH97: Buxton (Dare) | AI97: Donnybrook (Ward) | AJ97: Carleton (Thayer) | AL97: Closter (Bergen) | AM97: Cuba (Sandoval) | AN97: Ruhenstroth (Douglas) | AO97: Brasher Falls (St. Lawrence) | AP97: Beverly (Washington) | AQ97: Byars (McClain) | AR97: Eagle Crest (Deschutes) | AS97: Bedford (Bedford) | AT97: Hatillo (Hatillo) | AV97: Edgefield (Edgefield) | AW97: Dakota Dunes (Union) | AX97: Cumberland City (Stewart) | AY97: Batesville (Zavala) | AZ97: Fremont (Wayne) | BA97: Centreville (Fairfax) | BC97: Chelan (Chelan) | BD97: Browns Lake (Racine) | BE97: Covel (Wyoming) | BF97: Huntley (Goshen) | BH97: AK | BI97: Dry Creek (Southeast Fairbanks) | BJ97: 63.6255 | BK97: -144.6364 | BM97: 132602 | BN97: 30 | BO97: -104.375
G98: Fairbanks (Fairbanks North Star) | H98: Choccolocco (Calhoun) | I98: Chester (Crawford) | J98: Crystal Beach (Mohave) | K98: Bellflower (Los Angeles) | L98: Cotopaxi (Fremont) | M98: Suffield Depot (Hartford) | P98: Burnt Store Marina (Lee) | Q98: Carlton (Madison) | R98: Mountain View (Hawaii) | S98: Blue Grass (Scott) | T98: Horseshoe Bend (Boise) | U98: Belvidere (Boone) | V98: Chesterfield (Madison) | W98: Cawker City (Mitchell) | X98: Cerulean (Trigg) | Y98: Converse (Sabine) | Z98: Quincy (Norfolk) | AA98: Chestertown (Kent) | AC98: Burt (Saginaw) | AD98: Brewster (Nobles) | AE98: Bloomfield (Stoddard) | AF98: Edwards (Hinds) | AG98: East Missoula (Missoula) | AH98: Cajah's Mountain (Caldwell) | AI98: Douglas (Ward) | AJ98: Carroll (Wayne) | AL98: Clyde (Somerset) | AM98: Cubero (Cibola) | AN98: Ruth (White Pine) | AO98: Breesport (Chemung) | AP98: Bexley (Franklin) | AQ98: Byng (Pontotoc) | AR98: Eagle Point (Jackson) | AS98: Beech Creek (Clinton) | AT98: Hato Arriba (San Sebastián) | AV98: Edisto (Orangeburg) | AW98: Dallas (Gregory) | AX98: Cumberland Gap (Claiborne) | AY98: Bay City (Matagorda) | AZ98: Fruit Heights (Davis) | BA98: Chamberlayne (Henrico) | BC98: Chelan Falls (Chelan) | BD98: Brownsville (Dodge) | BE98: Cowen (Webster) | BF98: Hyattville (Big Horn) | BH98: AK | BI98: Denali Park (Denali) | BJ98: 63.5909 | BK98: -148.7107 | BM98: 132603 | BN98: 30 | BO98: -103.75
G99: False Pass (Aleutians East) | H99: Chunchula (Mobile) | I99: Chidester (Ouachita) | J99: Cutter (Gila) | K99: Belmont (San Mateo) | L99: Craig (Moffat) | M99: Tariffville (Hartford) | P99: Bushnell (Sumter) | Q99: Carnesville (Franklin) | R99: Naalehu (Hawaii) | S99: Bode (Humboldt) | T99: Huetter (Kootenai) | U99: Bement (Piatt) | V99: Chesterton (Porter) | W99: Cedar (Smith) | X99: Chaplin (Nelson) | Y99: Cotton Valley (Webster) | Z99: Randolph (Norfolk) | AA99: Cheverly (Prince George's) | AC99: Burton (Genesee) | AD99: Bricelyn (Faribault) | AE99: Bloomsdale (Ste. Genevieve) | AF99: Elliott (Grenada) | AG99: Edgar (Carbon) | AH99: Calabash (Brunswick) | AI99: Drake (McHenry) | AJ99: Cedar Bluffs (Saunders) | AL99: Collings Lakes (Atlantic) | AM99: Cundiyo (Santa Fe) | AN99: Sandy Valley (Clark) | AO99: Brentwood (Suffolk) | AP99: Blacklick Estates (Franklin) | AQ99: Byron (Alfalfa) | AR99: Echo (Umatilla) | AS99: Beech Mountain Lakes (Luzerne) | AT99: Hato Candal (Río Grande) | AV99: Edisto Beach (Colleton) | AW99: Dante (Charles Mix) | AX99: Dandridge (Jefferson) | AY99: Bayou Vista (Galveston) | AZ99: Garden (Rich) | BA99: Chantilly (Fairfax) | BC99: Cheney (Spokane) | BD99: Browntown (Green) | BE99: Crab Orchard (Raleigh) | BF99: Jackson (Teton) | BH99: AK | BI99: Dot Lake (Southeast Fairbanks) | BJ99: 63.5749 | BK99: -144.1815 | BM99: 132604 | BN99: 30 | BO99: -103.125
G100: Farm Loop (Matanuska-Susitna) | H100: Citronelle (Mobile) | I100: Clarendon (Monroe) | J100: Dateland (Yuma) | K100: Belvedere (Marin) | L100: Crawford (Delta) | M100: Terramuggus (Hartford) | P100: Butler Beach (St. Johns) | Q100: Carrollton (Carroll) | R100: Nanakuli (Honolulu) | S100: Bolan (Worth) | T100: Idaho City (Boise) | U100: Benld (Macoupin) | V100: Chrisney (Spencer) | W100: Cedar Point (Chase) | X100: Clarkson (Grayson) | Y100: Cottonport (Avoyelles) | Z100: Raynham Center (Bristol) | AA100: Chevy Chase (Montgomery) | AC100: Byron (Shiawassee) | AD100: Brook Park (Pine) | AE100: Blue Eye (Stone) | AF100: Ellisville (Jones) | AG100: Ekalaka (Carter) | AH100: Calypso (Duplin) | AI100: Drayton (Pembina) | AJ100: Cedar Creek (Cass) | AL100: Collingswood (Camden) | AM100: Cuyamungue (Santa Fe) | AN100: Schurz (Mineral) | AO100: Brewerton (Onondaga) | AP100: Bladensburg (Knox) | AQ100: Cache (Comanche) | AR100: Elgin (Union) | AS100: Belfast (Northampton) | AT100: Hormigueros (Hormigueros) | AV100: Ehrhardt (Bamberg) | AW100: Davis (Turner) | AX100: Darden (Henderson) | AY100: Bayside (Refugio) | AZ100: Garden City (Rich) | BA100: Charles City (Charles City) | BC100: Cherry Grove (Clark) | BD100: Bruce (Rusk) | BE100: Craigsville (Nicholas) | BF100: James Town (Sweetwater) | BH100: AK | BI100: Stebbins (Nome) | BJ100: 63.4705 | BK100: -162.2599 | BM100: 132605 | BN100: 30 | BO100: -102.5
G101: Farmers Loop (Fairbanks North Star) | H101: Clanton (Chilton) | I101: Clarkedale (Crittenden) | J101: Deer Creek (Gila) | K101: Ben Lomond (Santa Cruz) | L101: Crested Butte (Gunnison) | M101: Terryville (Litchfield) | P101: Cabana Colony (Palm Beach) | Q101: Cartersville (Bartow) | R101: Nanawale Estates (Hawaii) | S101: Bonaparte (Van Buren) | T101: Idaho Falls (Bonneville) | U101: Bensenville (DuPage) | V101: Churubusco (Whitley) | W101: Cedar Vale (Chautauqua) | X101: Claryville (Campbell) | Y101: Coushatta (Red River) | Z101: Revere (Suffolk) | AA101: Chevy Chase Section Five (Montgomery) | AC101: Byron Center (Kent) | AD101: Brooklyn Center (Hennepin) | AE101: Blue Springs (Jackson) | AF101: Enterprise (Clarke) | AG101: Elkhorn (Jefferson) | AH101: Camden (Camden) | AI101: Driscoll (Burleigh) | AJ101: Cedar Rapids (Boone) | AL101: Colonia (Middlesex) | AM101: Cuyamungue Grant (Santa Fe) | AN101: Searchlight (Clark) | AO101: Brewster (Putnam) | AP101: Blakeslee (Williams) | AQ101: Caddo (Bryan) | AR101: Elkton (Douglas) | AS101: Bell Acres (Allegheny) | AT101: Humacao (Humacao) | AV101: Elgin (Kershaw) | AW101: De Smet (Kingsbury) | AX101: Dayton (Rhea) | AY101: Baytown (Harris) | AZ101: Garland (Box Elder) | BA101: Charlotte Court House (Charlotte) | BC101: Chewelah (Stevens) | BD101: Brule (Douglas) | BE101: Cross Lanes (Kanawha) | BF101: Jeffrey City (Fremont) | BH101: AK | BI101: St. Michael (Nome) | BJ101: 63.4664 | BK101: -162.1324 | BM101: 132606 | BN101: 30 | BO101: -101.875
G102: Ferry (Denali) | H102: Clay (Jefferson) | I102: Clarksville (Johnson) | J102: Del Muerto (Apache) | K102: Benbow (Humboldt) | L102: Crestone (Saguache) | M102: Thompsonville (Hartford) | P102: Callahan (Nassau) | Q102: Cave Spring (Floyd) | R102: Napili-Honokowai (Maui) | S102: Bondurant (Polk) | T102: Inkom (Bannock) | U102: Benson (Woodford) | V102: Cicero (Hamilton) | W102: Centralia (Nemaha) | X102: Clay (Webster) | Y102: Covington (St. Tammany) | Z102: Sagamore (Barnstable) | AA102: Chevy Chase Section Three (Montgomery) | AC102: Caberfae (Wexford) | AD102: Brooklyn Park (Hennepin) | AE102: Blythedale (Harrison) | AF102: Escatawpa (Jackson) | AG102: Elliston (Powell) | AH102: Cameron (Moore) | AI102: Dunn Center (Dunn) | AJ102: Center (Knox) | AL102: Columbia (Warren) | AM102: Datil (Catron) | AN102: Silver City (Lyon) | AO102: Brewster Hill (Putnam) | AP102: Blanchester (Clinton) | AQ102: Calera (Bryan) | AR102: Enterprise (Wallowa) | AS102: Belle Vernon (Fayette) | AT102: Imbéry (Barceloneta) | AV102: Elko (Barnwell) | AW102: Deadwood (Lawrence) | AX102: Decatur (Meigs) | AY102: Bayview (Cameron) | AZ102: Genola (Utah) | BA102: Charlottesville (Charlottesville) | BC102: Chico (Kitsap) | BD102: Buffalo City (Buffalo) | BE102: Crum (Wayne) | BF102: Johnstown (Fremont) | BH102: AK | BI102: Cantwell (Denali) | BJ102: 63.379 | BK102: -148.8158 | BM102: 132607 | BN102: 30 | BO102: -101.25
G103: Fishhook (Matanuska-Susitna) | H103: Clayhatchee (Dale) | I103: Clinton (Van Buren) | J103: Dennehotso (Apache) | K103: Bend (Tehama) | L103: Cripple Creek (Teller) | M103: Torrington (Litchfield) | P103: Callaway (Bay) | Q103: Cecil (Cook) | R103: Ocean Pointe (Honolulu) | S103: Boone (Boone) | T103: Iona (Bonneville) | U103: Bentley (Hancock) | V103: Clarks Hill (Tippecanoe) | W103: Chanute (Neosho) | X103: Clay City (Powell) | Y103: Creola (Grant) | Z103: Salem (Essex) | AA103: Chevy Chase View (Montgomery) | AC103: Cadillac (Wexford) | AD103: Brooks (Red Lake) | AE103: Bogard (Carroll) | AF103: Ethel (Attala) | AG103: Elmo (Lake) | AH103: Candor (Montgomery) | AI103: Dunseith (Rolette) | AJ103: Central City (Merrick) | AL103: Concordia (Middlesex) | AM103: Deming (Luna) | AN103: Silver Peak (Esmeralda) | AO103: Briarcliff Manor (Westchester) | AP103: Bloomdale (Wood) | AQ103: Calumet (Canadian) | AR103: Eola (Polk) | AS103: Bellefonte (Centre) | AT103: Indios (Guayanilla) | AV103: Elloree (Orangeburg) | AW103: Dell Rapids (Minnehaha) | AX103: Decaturville (Decatur) | AY103: Beach City (Chambers) | AZ103: Glendale (Kane) | BA103: Chase City (Mecklenburg) | BC103: Chinook (Pacific) | BD103: Burlington (Racine) | BE103: Crumpler (McDowell) | BF103: Kaycee (Johnson) | BH103: AK | BI103: Tanacross (Southeast Fairbanks) | BJ103: 63.3523 | BK103: -143.4318 | BM103: 132608 | BN103: 30 | BO103: -100.625
G104: Flat (Yukon-Koyukuk) | H104: Clayton (Barbour) | I104: Coal Hill (Johnson) | J104: Desert Hills (Mohave) | K104: Benicia (Solano) | L104: Crisman (Boulder) | M104: Wallingford Center (New Haven) | P104: Campbell (Osceola) | Q104: Cedar Springs (Early) | R104: Olinda (Maui) | S104: Bouton (Dallas) | T104: Irwin (Bonneville) | U104: Benton (Franklin) | V104: Clarksburg (Decatur) | W104: Chapman (Dickinson) | X104: Cleaton (Muhlenberg) | Y104: Crescent (Iberville) | Z104: Seabrook (Barnstable) | AA104: Chevy Chase Village (Montgomery) | AC104: Caledonia (Kent) | AD104: Brookston (St. Louis) | AE104: Bolckow (Andrew) | AF104: Eupora (Webster) | AG104: Emigrant (Park) | AH104: Canton (Haywood) | AI104: Dwight (Richland) | AJ104: Ceresco (Saunders) | AL104: Corbin City (Atlantic) | AM104: Des Moines (Union) | AN104: Silver Springs (Lyon) | AO104: Bridgehampton (Suffolk) | AP104: Bloomingburg (Fayette) | AQ104: Calvin (Hughes) | AR104: Estacada (Clackamas) | AS104: Belleville (Mifflin) | AT104: Ingenio (Toa Baja) | AV104: Enoree (Spartanburg) | AW104: Delmont (Douglas) | AX104: Decherd (Franklin) | AY104: Bear Creek (Hays) | AZ104: Glenwood (Sevier) | BA104: Chase Crossing (Accomack) | BC104: Clallam Bay (Clallam) | BD104: Burnett (Dodge) | BE104: Cucumber (McDowell) | BF104: Kelly (Teton) | BH104: AK | BI104: Tok (Southeast Fairbanks) | BJ104: 63.329 | BK104: -143.038 | BM104: 132609 | BN104: 30 | BO104: -100
G105: Fort Greely (Southeast Fairbanks) | H105: Cleveland (Blount) | I105: College Station (Pulaski) | J105: Dewey-Humboldt (Yavapai) | K105: Benton (Mono) | L105: Crook (Logan) | M105: Waterbury (New Haven) | P105: Campbellton (Jackson) | Q105: Cedartown (Polk) | R105: Olowalu (Maui) | S105: Boxholm (Boone) | T105: Island Park (Fremont) | U105: Berkeley (Cook) | V105: Clarksville (Clark) | W105: Chase (Rice) | X105: Clinton (Hickman) | Y105: Crowley (Acadia) | Z105: Seconsett Island (Barnstable) | AA105: Chewsville (Washington) | AC105: Calumet (Houghton) | AD105: Brooten (Stearns) | AE105: Bolivar (Polk) | AF105: Falcon (Quitman) | AG105: Ennis (Madison) | AH105: Cape Carteret (Carteret) | AI105: East Dunseith (Rolette) | AJ105: Chadron (Dawes) | AL105: Country Lake Estates (Burlington) | AM105: Dexter (Chaves) | AN105: Skyland (Douglas) | AO105: Bridgeport (Madison) | AP105: Bloomingdale (Jefferson) | AQ105: Camargo (Dewey) | AR105: Eugene (Lane) | AS105: Bellevue (Allegheny) | AT105: Isabela (Isabela) | AV105: Estill (Hampton) | AW105: Dimock (Hutchinson) | AX105: Dickson (Dickson) | AY105: Beasley (Fort Bend) | AZ105: Goshen (Utah) | BA105: Chatham (Pittsylvania) | BC105: Clarkston (Asotin) | BD105: Butler (Waukesha) | BE105: Culloden (Cabell) | BF105: Kemmerer (Lincoln) | BH105: AK | BI105: Tetlin (Southeast Fairbanks) | BJ105: 63.1481 | BK105: -142.4947 | BM105: 132610 | BN105: 30 | BO105: -99.375
G106: Fort Yukon (Yukon-Koyukuk) | H106: Clio (Barbour) | I106: Colt (St. Francis) | J106: Dilkon (Navajo) | K106: Berkeley (Alameda) | L106: Crowley (Crowley) | M106: Wauregan (Windham) | P106: Canal Point (Palm Beach) | Q106: Centerville (Houston) | R106: Omao (Kauai) | S106: Boyden (Sioux) | T106: Jerome (Jerome) | U106: Berlin (Sangamon) | V106: Clay City (Clay) | W106: Chautauqua (Chautauqua) | X106: Cloverport (Breckinridge) | Y106: Cullen (Webster) | Z106: Shelburne Falls (Franklin) | AA106: Chillum (Prince George's) | AC106: Camden (Hillsdale) | AD106: Browerville (Todd) | AE106: Bonne Terre (St. Francois) | AF106: Falkner (Tippah) | AG106: Eureka (Lincoln) | AH106: Caroleen (Rutherford) | AI106: East Fairview (McKenzie) | AJ106: Chalco (Sarpy) | AL106: Crandon Lakes (Sussex) | AM106: Dixon (Rio Arriba) | AN106: Smith Valley (Lyon) | AO106: Brightwaters (Suffolk) | AP106: Bloomville (Seneca) | AQ106: Cameron (Le Flore) | AR106: Fair Oaks (Douglas) | AS106: Bellwood (Blair) | AT106: Jagual (San Lorenzo) | AV106: Eureka Mill (Chester) | AW106: Doland (Spink) | AX106: Dodson Branch (Jackson) | AY106: Beaumont (Jefferson) | AZ106: Granite (Salt Lake) | BA106: Chatmoss (Henry) | BC106: Clarkston Heights-Vineland (Asotin) | BD106: Butte des Morts (Winnebago) | BE106: Dailey (Randolph) | BF106: Kirby (Hot Springs) | BH106: AK | BI106: Kotlik (Kusilvak) | BJ106: 63.0305 | BK106: -163.5531 | BM106: 132611 | BN106: 30 | BO106: -98.75
G107: Four Mile Road (Yukon-Koyukuk) | H107: Coaling (Tuscaloosa) | I107: Concord (Cleburne) | J107: Dolan Springs (Mohave) | K107: Bermuda Dunes (Riverside) | L107: Dacono (Weld) | M107: Weatogue (Hartford) | P107: Cape Canaveral (Brevard) | Q107: Centralhatchee (Heard) | R107: Orchidlands Estates (Hawaii) | S107: Braddyville (Page) | T107: Juliaetta (Latah) | U107: Berwyn (Cook) | V107: Claypool (Kosciusko) | W107: Cheney (Sedgwick) | X107: Coal Run Village (Pike) | Y107: Cut Off (Lafourche) | Z107: Siasconset (Nantucket) | AA107: Choptank (Caroline) | AC107: Canada Creek Ranch (Montmorency) | AD107: Browns Valley (Traverse) | AE107: Boonville (Cooper) | AF107: Farmington (Alcorn) | AG107: Evaro (Missoula) | AH107: Carolina Beach (New Hanover) | AI107: Edgeley (LaMoure) | AJ107: Chambers (Holt) | AL107: Cresskill (Bergen) | AM107: Doña Ana (Doña Ana) | AN107: Spanish Springs (Washoe) | AO107: Brinckerhoff (Dutchess) | AP107: Blue Ash (Hamilton) | AQ107: Canadian (Pittsburg) | AR107: Fairview (Multnomah) | AS107: Belmont (Cambria) | AT107: Jauca (Santa Isabel) | AV107: Eutawville (Orangeburg) | AW107: Dolton (Turner) | AX107: Dover (Stewart) | AY107: Beckville (Panola) | AZ107: Grantsville (Tooele) | BA107: Cheriton (Northampton) | BC107: Clayton (Stevens) | BD107: Butternut (Ashland) | BE107: Daniels (Raleigh) | BF107: La Barge (Lincoln) | BH107: AK | BI107: Northway Junction (Southeast Fairbanks) | BJ107: 63.0136 | BK107: -141.7725 | BM107: 132612 | BN107: 30 | BO107: -98.125
G108: Fox (Fairbanks North Star) | H108: Coats Bend (Etowah) | I108: Conway (Faulkner) | J108: Doney Park (Coconino) | K108: Berry Creek (Butte) | L108: Dakota Ridge (Jefferson) | M108: West Haven (New Haven) | P108: Cape Coral (Lee) | Q108: Chamblee (DeKalb) | R108: Paauilo (Hawaii) | S108: Bradford (Franklin) | T108: Kamiah (Lewis) | U108: Bethalto (Madison) | V108: Clayton (Hendricks) | W108: Cherokee (Crawford) | X108: Cold Spring (Campbell) | Y108: Delcambre (Iberia) | Z108: Smith Mills (Bristol) | AA108: Church Creek (Dorchester) | AC108: Canadian Lakes (Mecosta) | AD108: Brownsdale (Mower) | AE108: Bosworth (Carroll) | AF108: Farrell (Coahoma) | AG108: Evergreen (Flathead) | AH108: Carolina Shores (Brunswick) | AI108: Edinburg (Walsh) | AJ108: Champion (Chase) | AL108: Crestwood Village (Ocean) | AM108: Dora (Roosevelt) | AN108: Sparks (Washoe) | AO108: Broadalbin (Fulton) | AP108: Blue Jay (Hamilton) | AQ108: Caney (Atoka) | AR108: Falls City (Polk) | AS108: Ben Avon (Allegheny) | AT108: Jayuya (Jayuya) | AV108: Fair Play (Oconee) | AW108: Draper (Jones) | AX108: Dowelltown (DeKalb) | AY108: Bedford (Tarrant) | AZ108: Green River (Emery) | BA108: Cherry Hill (Prince William) | BC108: Cle Elum (Kittitas) | BD108: Cable (Bayfield) | BE108: Danville (Boone) | BF108: La Grange (Goshen) | BH108: AK | BI108: Paxson (Valdez-Cordova) | BJ108: 63.0111 | BK108: -145.7312 | BM108: 132613 | BN108: 30 | BO108: -97.5
G109: Fox River (Kenai Peninsula) | H109: Coffee Springs (Geneva) | I109: Corinth (Yell) | J109: Donovan Estates (Yuma) | K109: Bertsch-Oceanview (Del Norte) | L109: De Beque (Mesa) | M109: West Simsbury (Hartford) | P109: Captiva (Lee) | Q109: Chatsworth (Murray) | R109: Pahala (Hawaii) | S109: Bradgate (Humboldt) | T109: Kellogg (Shoshone) | U109: Bethany (Moultrie) | V109: Clear Lake (Steuben) | W109: Cherryvale (Montgomery) | X109: Coldiron (Harlan) | Y109: Delhi (Richland) | Z109: Somerville (Middlesex) | AA109: Church Hill (Queen Anne's) | AC109: Capac (St. Clair) | AD109: Brownsville (Houston) | AE109: Bourbon (Crawford) | AF109: Fayette (Jefferson) | AG109: Fairfield (Teton) | AH109: Carrboro (Orange) | AI109: Edmore (Ramsey) | AJ109: Chapman (Merrick) | AL109: Dayton (Middlesex) | AM109: Dulce (Rio Arriba) | AN109: Spring Creek (Elko) | AO109: Brockport (Monroe) | AP109: Bluffton (Allen) | AQ109: Canton (Blaine) | AR109: Florence (Lane) | AS109: Ben Avon Heights (Allegheny) | AT109: Jobos (Guayama) | AV109: Fairfax (Allendale) | AW109: Dupree (Ziebach) | AX109: Doyle (White) | AY109: Bedias (Grimes) | AZ109: Gunnison (Sanpete) | BA109: Chesapeake (Chesapeake) | BC109: Clear Lake (Skagit) | BD109: Cadott (Chippewa) | BE109: Davis (Tucker) | BF109: Lakeview North (Platte) | BH109: AK | BI109: Nikolai (Yukon-Koyukuk) | BJ109: 63.0095 | BK109: -154.3763 | BM109: 132614 | BN109: 30 | BO109: -96.875
G110: Fritz Creek (Kenai Peninsula) | H110: Coffeeville (Clarke) | I110: Corning (Clay) | J110: Douglas (Cochise) | K110: Bethel Island (Contra Costa) | L110: Deer Trail (Arapahoe) | M110: Westbrook Center (Middlesex) | P110: Carrabelle (Franklin) | Q110: Chattahoochee Hills (Fulton) | R110: Pahoa (Hawaii) | S110: Brandon (Buchanan) | T110: Kendrick (Latah) | U110: Big Rock (Kane) | V110: Clermont (Marion) | W110: Chetopa (Labette) | X110: Coldstream (Jefferson) | Y110: Delta (Madison) | Z110: South Amherst (Hampshire) | AA110: Clarksburg (Montgomery) | AC110: Carleton (Monroe) | AD110: Brownton (McLeod) | AE110: Bowling Green (Pike) | AF110: Flora (Madison) | AG110: Fairview (Richland) | AH110: Carthage (Moore) | AI110: Egeland (Towner) | AJ110: Chappell (Deuel) | AL110: Deal (Monmouth) | AM110: Duran (Torrance) | AN110: Spring Valley (Clark) | AO110: Brocton (Chautauqua) | AP110: Boardman (Mahoning) | AQ110: Canute (Washita) | AR110: Foots Creek (Jackson) | AS110: Bendersville (Adams) | AT110: Juana Díaz (Juana Díaz) | AV110: Fairforest (Spartanburg) | AW110: Eagle Butte (Dewey) | AX110: Dresden (Weakley) | AY110: Bee Cave (Travis) | AZ110: Halchita (San Juan) | BA110: Chester (Chesterfield) | BC110: Clearview (Snohomish) | BD110: Caledonia (Racine) | BE110: Davy (McDowell) | BF110: Lance Creek (Niobrara) | BH110: AK | BI110: Mentasta Lake (Valdez-Cordova) | BJ110: 62.9867 | BK110: -143.5191 | BM110: 132615 | BN110: 30 | BO110: -96.25
G111: Funny River (Kenai Peninsula) | H111: Coker (Tuscaloosa) | I111: Cotter (Baxter) | J111: Dragoon (Cochise) | K111: Beverly Hills (Los Angeles) | L111: Del Norte (Rio Grande) | M111: Willimantic (Windham) | P111: Carrollwood (Hillsborough) | Q111: Chattanooga Valley (Walker) | R111: Paia (Maui) | S111: Brayton (Audubon) | T111: Ketchum (Blaine) | U111: Biggsville (Henderson) | V111: Clifford (Bartholomew) | W111: Chicopee (Crawford) | X111: Columbia (Adair) | Y111: Denham Springs (Livingston) | Z111: South Ashburnham (Worcester) | AA111: Clarysville (Allegany) | AC111: Carney (Menominee) | AD111: Bruno (Pine) | AE111: Bragg City (Pemiscot) | AF111: Florence (Rankin) | AG111: Fallon (Prairie) | AH111: Cary (Wake) | AI111: Elgin (Grant) | AJ111: Chester (Thayer) | AL111: Delaware Park (Warren) | AM111: Eagle Nest (Colfax) | AN111: Stagecoach (Lyon) | AO111: Bronx (Bronx) | AP111: Bolindale (Trumbull) | AQ111: Capron (Woods) | AR111: Forest Grove (Washington) | AS111: Benson (Somerset) | AT111: Juncal (San Sebastián) | AV111: Fingerville (Spartanburg) | AW111: Eden (Marshall) | AX111: Ducktown (Polk) | AY111: Beeville (Bee) | AZ111: Halls Crossing (San Juan) | BA111: Chester Gap (Rappahannock) | BC111: Cliffdell (Yakima) | BD111: Cambria (Columbia) | BE111: Deep Water (Fayette) | BF111: Lander (Fremont) | BH111: AK | BI111: Takotna (Yukon-Koyukuk) | BJ111: 62.9823 | BK111: -156.0841 | BM111: 132616 | BN111: 30 | BO111: -95.625
G112: Gakona (Valdez-Cordova) | H112: Collinsville (DeKalb) | I112: Cotton Plant (Woodruff) | J112: Drexel Heights (Pima) | K112: Bieber (Lassen) | L112: Delta (Delta) | M112: Wilton Center (Fairfield) | P112: Caryville (Washington) | Q112: Chauncey (Dodge) | R112: Pakala Village (Kauai) | S112: Breda (Carroll) | T112: Kimberly (Twin Falls) | U112: Bingham (Fayette) | V112: Clinton (Vermillion) | W112: Cimarron (Gray) | X112: Columbus (Hickman) | Y112: DeQuincy (Calcasieu) | Z112: South Deerfield (Franklin) | AA112: Clear Spring (Washington) | AC112: Caro (Tuscola) | AD112: Buckman (Morrison) | AE112: Brandsville (Howell) | AF112: Flowood (Rankin) | AG112: Finley Point (Lake) | AH112: Casar (Cleveland) | AI112: Ellendale (Dickey) | AJ112: Clarks (Merrick) | AL112: Demarest (Bergen) | AM112: East Pecos (San Miguel) | AN112: Stateline (Douglas) | AO112: Bronxville (Westchester) | AP112: Bolivar (Tuscarawas) | AQ112: Carlisle (Sequoyah) | AR112: Fort Hill (Polk) | AS112: Bentleyville (Washington) | AT112: Juncos (Juncos) | AV112: Five Forks (Greenville) | AW112: Edgemont (Fall River) | AX112: Dunlap (Sequatchie) | AY112: Bellaire (Harris) | AZ112: Hanksville (Wayne) | BA112: Chilhowie (Smyth) | BC112: Clinton (Island) | BD112: Cambridge (Jefferson) | BE112: Delbarton (Mingo) | BF112: Laramie (Albany) | BH112: AK | BI112: Northway Village (Southeast Fairbanks) | BJ112: 62.9821 | BK112: -141.9294 | BM112: 132617 | BN112: 30 | BO112: -95
G113: Galena (Yukon-Koyukuk) | H113: Colony (Cullman) | I113: Cove (Polk) | J113: Dripping Springs (Gila) | K113: Big Bear City (San Bernardino) | L113: Denver (Denver) | M113: Winsted (Litchfield) | P113: Casselberry (Seminole) | Q113: Cherry Log (Gilmer) | R113: Papaikou (Hawaii) | S113: Bridgewater (Adair) | T113: Kooskia (Idaho) | U113: Bishop Hill (Henry) | V113: Cloverdale (Putnam) | W113: Circleville (Jackson) | X113: Combs (Perry) | Y113: DeRidder (Beauregard) | Z113: South Dennis (Barnstable) | AA113: Clinton (Prince George's) | AC113: Carp Lake (Emmet) | AD113: Buffalo (Wright) | AE113: Branson (Taney) | AF113: Forest (Scott) | AG113: Flaxville (Daniels) | AH113: Cashiers (Jackson) | AI113: Elliott (Ransom) | AJ113: Clarkson (Colfax) | AL113: Diamond Beach (Cape May) | AM113: Edgewood (Santa Fe) | AN113: Summerlin South (Clark) | AO113: Brooklyn (Kings) | AP113: Boston Heights (Summit) | AQ113: Carlton Landing (Pittsburg) | AR113: Fossil (Wheeler) | AS113: Benton (Columbia) | AT113: La Alianza (Arecibo) | AV113: Florence (Florence) | AW113: Egan (Moody) | AX113: Dyer (Gibson) | AY113: Bellevue (Clay) | AZ113: Harrisville (Weber) | BA113: Chincoteague (Accomack) | BC113: Clover Creek (Pierce) | BD113: Cameron (Barron) | BE113: Despard (Harrison) | BF113: Lingle (Goshen) | BH113: AK | BI113: Northway (Southeast Fairbanks) | BJ113: 62.9479 | BK113: -141.8322 | BM113: 132618 | BN113: 30 | BO113: -94.375
G114: Gambell (Nome) | H114: Columbia (Houston) | I114: Coy (Lonoke) | J114: Drysdale (Yuma) | K114: Big Bear Lake (San Bernardino) | L114: Derby (Adams) | M114: Woodbury Center (Litchfield) | P114: Cedar Grove (Bay) | Q114: Chester (Dodge) | R114: Paukaa (Hawaii) | S114: Brighton (Washington) | T114: Kootenai (Bonner) | U114: Bismarck (Vermilion) | V114: Coalmont (Clay) | W114: Claflin (Barton) | X114: Concord (Lewis) | Y114: Des Allemands (St. Charles) | Z114: South Duxbury (Plymouth) | AA114: Cloverly (Montgomery) | AC114: Carson City (Montcalm) | AD114: Buffalo Lake (Renville) | AE114: Branson West (Stone) | AF114: Foxworth (Marion) | AG114: Florence (Ravalli) | AH114: Castalia (Nash) | AI114: Embden (Cass) | AJ114: Clatonia (Gage) | AL114: Dover (Morris) | AM114: Edith Endave (Bernalillo) | AN114: Sun Valley (Washoe) | AO114: Brookville (Nassau) | AP114: Botkins (Shelby) | AQ114: Carmen (Alfalfa) | AR114: Four Corners (Marion) | AS114: Berlin (Somerset) | AT114: La Dolores (Río Grande) | AV114: Folly Beach (Charleston) | AW114: Elk Point (Union) | AX114: Dyersburg (Dyer) | AY114: Bellmead (McLennan) | AZ114: Hatch (Garfield) | BA114: Christiansburg (Montgomery) | BC114: Clyde Hill (King) | BD114: Camp Douglas (Juneau) | BE114: Dixie (Nicholas) | BF114: Little America (Sweetwater) | BH114: AK | BI114: McGrath (Yukon-Koyukuk) | BJ114: 62.9424 | BK114: -155.563 | BM114: 132619 | BN114: 30 | BO114: -93.75
G115: Game Creek (Hoonah-Angoon) | H115: Columbiana (Shelby) | I115: Crawfordsville (Crittenden) | J115: Dudleyville (Pinal) | K115: Big Bend (Shasta) | L115: Dillon (Summit) | M115: Woodmont (New Haven) | P115: Cedar Key (Levy) | Q115: Chickamauga (Walker) | R115: Pearl City (Honolulu) | S115: Bristow (Butler) | T115: Kuna (Ada) | U115: Blandinsville (McDonough) | V115: Coatesville (Hendricks) | W115: Clay Center (Clay) | X115: Corbin (Whitley) | Y115: Destrehan (St. Charles) | Z115: South Lancaster (Worcester) | AA115: Cobb Island (Charles) | AC115: Carsonville (Sanilac) | AD115: Buhl (St. Louis) | AE115: Brashear (Adair) | AF115: French Camp (Choctaw) | AG115: Forest Hill Village (Flathead) | AH115: Castle Hayne (New Hanover) | AI115: Emerado (Grand Forks) | AJ115: Clay Center (Clay) | AL115: Dover Beaches North (Ocean) | AM115: El Cerro (Valencia) | AN115: Sunrise Manor (Clark) | AO115: Brownville (Jefferson) | AP115: Bourneville (Ross) | AQ115: Carnegie (Caddo) | AR115: Garden Home-Whitford (Washington) | AS115: Bernville (Berks) | AT115: La Fermina (Humacao) | AV115: Forest Acres (Richland) | AW115: Elkton (Brookings) | AX115: Eagleton Village (Blount) | AY115: Bells (Grayson) | AZ115: Heber (Wasatch) | BA115: Churchville (Augusta) | BC115: Cohassett Beach (Grays Harbor) | BD115: Campbellsport (Fond du Lac) | BE115: Dunbar (Kanawha) | BF115: Lonetree (Uinta) | BH115: AK | BI115: Grayling (Yukon-Koyukuk) | BJ115: 62.8998 | BK115: -160.1078 | BM115: 132620 | BN115: 30 | BO115: -93.125
G116: Gateway (Matanuska-Susitna) | H116: Concord (Jefferson) | I116: Crossett (Ashley) | J116: Duncan (Greenlee) | K116: Big Creek (Fresno) | L116: Dinosaur (Moffat) | P116: Celebration (Osceola) | Q116: Clarkesville (Habersham) | R116: Pepeekeo (Hawaii) | S116: Britt (Hancock) | T116: Lapwai (Nez Perce) | U116: Bloomingdale (DuPage) | V116: Colburn (Tippecanoe) | W116: Clayton (Norton) | X116: Corinth (Grant) | Y116: Deville (Rapides) | Z116: South Yarmouth (Barnstable) | AA116: Cockeysville (Baltimore) | AC116: Caseville (Huron) | AD116: Burnsville (Dakota) | AE116: Braymer (Caldwell) | AF116: Friars Point (Coahoma) | AG116: Forsyth (Rosebud) | AH116: Caswell Beach (Brunswick) | AI116: Enderlin (Ransom) | AJ116: Clearwater (Antelope) | AL116: Dover Beaches South (Ocean) | AM116: El Cerro Mission (Valencia) | AN116: Sutcliffe (Washoe) | AO116: Brushton (Franklin) | AP116: Bowerston (Harrison) | AQ116: Carney (Lincoln) | AR116: Gardiner (Douglas) | AS116: Berrysburg (Dauphin) | AT116: La Liga (Caguas) | AV116: Forestbrook (Horry) | AW116: Emery (Hanson) | AX116: Eagleville (Rutherford) | AY116: Bellville (Austin) | AZ116: Helper (Carbon) | BA116: Claremont (Surry) | BC116: Colfax (Whitman) | BD116: Caroline (Shawano) | BE116: Durbin (Pocahontas) | BF116: Lost Springs (Converse) | BH116: AK | BI116: Emmonak (Kusilvak) | BJ116: 62.7762 | BK116: -164.5157 | BM116: 132621 | BN116: 30 | BO116: -92.5
G117: Glacier View (Matanuska-Susitna) | H117: Coosada (Elmore) | I117: Cushman (Independence) | J117: Eagar (Apache) | K117: Big Lagoon (Humboldt) | L117: Divide (Teller) | P117: Center Hill (Sumter) | Q117: Clarkston (DeKalb) | R117: Poipu (Kauai) | S117: Bronson (Woodbury) | T117: Lava Hot Springs (Bannock) | U117: Bloomington (McLean) | V117: Colfax (Clinton) | W117: Clearwater (Sedgwick) | X117: Corydon (Henderson) | Y117: Dixie Inn (Webster) | Z117: Southbridge Town (Worcester) | AA117: Colesville (Montgomery) | AC117: Casnovia (Kent) | AD117: Burtrum (Todd) | AE117: Breckenridge (Caldwell) | AF117: Fulton (Itawamba) | AG117: Fort Belknap Agency (Blaine) | AH117: Catawba (Catawba) | AI117: Englevale (Ransom) | AJ117: Clinton (Sheridan) | AL117: Dumont (Bergen) | AM117: El Duende (Rio Arriba) | AN117: Tonopah (Nye) | AO117: Buchanan (Westchester) | AP117: Bowersville (Greene) | AQ117: Carrier (Garfield) | AR117: Garibaldi (Tillamook) | AS117: Berwick (Columbia) | AT117: La Luisa (Manatí) | AV117: Fort Lawn (Chester) | AW117: Erwin (Kingsbury) | AX117: East Cleveland (Bradley) | AY117: Belton (Bell) | AZ117: Henefer (Summit) | BA117: Clarksville (Mecklenburg) | BC117: College Place (Walla Walla) | BD117: Cascade (Sheboygan) | BE117: East Bank (Kanawha) | BF117: Lovell (Big Horn) | BH117: AK | BI117: Alakanuk (Kusilvak) | BJ117: 62.6902 | BK117: -164.6305 | BM117: 132622 | BN117: 30 | BO117: -91.875
G118: Glennallen (Valdez-Cordova) | H118: Cordova (Walker) | I118: Daisy (Pike) | J118: East Fork (Navajo) | K118: Big Pine (Inyo) | L118: Dolores (Montezuma) | P118: Century (Escambia) | Q118: Claxton (Evans) | R118: Princeville (Kauai) | S118: Brooklyn (Poweshiek) | T118: Leadore (Lemhi) | U118: Blue Island (Cook) | V118: Collegeville (Jasper) | W118: Clifton (Washington) | X118: Covington (Kenton) | Y118: Dodson (Winn) | Z118: Southfield (Plymouth) | AA118: College Park (Prince George's) | AC118: Caspian (Iron) | AD118: Butterfield (Watonwan) | AE118: Breckenridge Hills (St. Louis) | AF118: Gattman (Monroe) | AG118: Fort Benton (Chouteau) | AH118: Cedar Point (Carteret) | AI118: Epping (Williams) | AJ118: Cody (Cherry) | AL118: Dunellen (Middlesex) | AM118: El Rancho (Santa Fe) | AN118: Topaz Lake (Douglas) | AO118: Buffalo (Erie) | AP118: Bowling Green (Wood) | AQ118: Carter (Beckham) | AR118: Gaston (Washington) | AS118: Berwyn (Chester) | AT118: La Parguera (Lajas) | AV118: Fort Mill (York) | AW118: Estelline (Hamlin) | AX118: East Ridge (Hamilton) | AY118: Benavides (Duval) | AZ118: Henrieville (Garfield) | BA118: Claypool Hill (Tazewell) | BC118: Colton (Whitman) | BD118: Casco (Kewaunee) | BE118: East Dailey (Randolph) | BF118: Lucerne (Hot Springs) | BH118: AK | BI118: Alcan Border (Southeast Fairbanks) | BJ118: 62.6727 | BK118: -141.1321 | BM118: 132623 | BN118: 30 | BO118: -91.25
G119: Goldstream (Fairbanks North Star) | H119: Cottondale (Tuscaloosa) | I119: Damascus (Van Buren) | J119: East Globe (Gila) | K119: Big River (San Bernardino) | L119: Dotsero (Eagle) | P119: Charleston Park (Lee) | Q119: Clayton (Rabun) | R119: Puako (Hawaii) | S119: Brunsville (Plymouth) | T119: Lewiston (Nez Perce) | U119: Blue Mound (Macon) | V119: Columbia City (Whitley) | W119: Climax (Greenwood) | X119: Coxton (Harlan) | Y119: Donaldsonville (Ascension) | Z119: Springfield (Hampden) | AA119: Colmar Manor (Prince George's) | AC119: Cass City (Tuscola) | AD119: Byron (Olmsted) | AE119: Brentwood (St. Louis) | AF119: Gautier (Jackson) | AG119: Fort Peck (Valley) | AH119: Cedar Rock (Caldwell) | AI119: Erie (Cass) | AJ119: Coleridge (Cedar) | AL119: East Franklin (Somerset) | AM119: El Rito (Rio Arriba) | AN119: Topaz Ranch Estates (Douglas) | AO119: Burdett (Schuyler) | AP119: Bradford (Miami) | AQ119: Cartwright (Bryan) | AR119: Gates (Marion) | AS119: Bessemer (Lawrence) | AT119: La Playa (Añasco) | AV119: Fountain Inn (Greenville) | AW119: Ethan (Davison) | AX119: Eastview (McNairy) | AY119: Benbrook (Tarrant) | AZ119: Herriman (Salt Lake) | BA119: Cleveland (Russell) | BC119: Colville (Stevens) | BD119: Cashton (Monroe) | BE119: Eccles (Raleigh) | BF119: Lusk (Niobrara) | BH119: AK | BI119: Shageluk (Yukon-Koyukuk) | BJ119: 62.6684 | BK119: -159.563 | BM119: 132624 | BN119: 30 | BO119: -90.625
G120: Golovin (Nome) | H120: Cottonwood (Houston) | I120: Danville (Yell) | J120: East Verde Estates (Gila) | K120: Biggs (Butte) | L120: Dove Creek (Dolores) | P120: Charlotte Harbor (Charlotte) | Q120: Clermont (Hall) | R120: Puhi (Kauai) | S120: Buck Grove (Crawford) | T120: Lewisville (Jefferson) | U120: Bluffs (Scott) | V120: Columbus (Bartholomew) | W120: Clyde (Cloud) | X120: Crab Orchard (Lincoln) | Y120: Downsville (Union) | Z120: Taunton (Bristol) | AA120: Columbia (Howard) | AC120: Cassopolis (Cass) | AD120: Caledonia (Houston) | AE120: Brewer (Perry) | AF120: Georgetown (Copiah) | AG120: Fort Shaw (Cascade) | AH120: Centerville (Franklin) | AI120: Esmond (Benson) | AJ120: Colon (Saunders) | AL120: East Freehold (Monmouth) | AM120: El Valle de Arroyo Seco (Santa Fe) | AN120: Unionville (Pershing) | AO120: Burke (Franklin) | AP120: Bradner (Wood) | AQ120: Cashion (Kingfisher) | AR120: Gearhart (Clatsop) | AS120: Bethany (Wayne) | AT120: La Plena (Salinas) | AV120: Furman (Hampton) | AW120: Eureka (McPherson) | AX120: Elgin (Scott) | AY120: Benjamin (Knox) | AZ120: Hideout (Wasatch) | BA120: Clifton (Fairfax) | BC120: Conconully (Okanogan) | BD120: Cassville (Grant) | BE120: Eleanor (Putnam) | BF120: Lyman (Uinta) | BH120: AK | BI120: Anvik (Yukon-Koyukuk) | BJ120: 62.6541 | BK120: -160.214 | BM120: 132625 | BN120: 30 | BO120: -90
G121: Goodnews Bay (Bethel) | H121: County Line (Blount) | I121: Dardanelle (Yell) | J121: Ehrenberg (La Paz) | K121: Biola (Fresno) | L121: Dove Valley (Arapahoe) | P121: Charlotte Park (Charlotte) | Q121: Cleveland (White) | R121: Pukalani (Maui) | S121: Buckeye (Hardin) | T121: Lincoln (Bonneville) | U121: Bluford (Jefferson) | V121: Connersville (Fayette) | W121: Coats (Pratt) | X121: Crayne (Crittenden) | Y121: Doyline (Webster) | Z121: Teaticket (Barnstable) | AA121: Coral Hills (Prince George's) | AC121: Cedar (Leelanau) | AD121: Callaway (Becker) | AE121: Bridgeton (St. Louis) | AF121: Glen (Alcorn) | AG121: Fort Smith (Big Horn) | AH121: Cerro Gordo (Columbus) | AI121: Fairdale (Walsh) | AJ121: Columbus (Platte) | AL121: East Millstone (Somerset) | AM121: Eldorado at Santa Fe (Santa Fe) | AN121: Ursine (Lincoln) | AO121: Byersville (Livingston) | AP121: Brady Lake (Portage) | AQ121: Castle (Okfuskee) | AR121: Gervais (Marion) | AS121: Bethel (Berks) | AT121: La Yuca (Ponce) | AV121: Gadsden (Richland) | AW121: Fairburn (Custer) | AX121: Elizabethton (Carter) | AY121: Benjamin Perez (Starr) | AZ121: Highland (Utah) | BA121: Clifton Forge (Alleghany) | BC121: Concrete (Skagit) | BD121: Cataract (Monroe) | BE121: Elizabeth (Wirt) | BF121: Mammoth (Park) | BH121: AK | BI121: Slana (Valdez-Cordova) | BJ121: 62.6294 | BK121: -143.567 | BM121: 132626 | BN121: 30 | BO121: -89.375
G122: Grayling (Yukon-Koyukuk) | H122: Courtland (Lawrence) | I122: Datto (Clay) | J122: El Capitan (Gila) | K122: Bishop (Inyo) | L122: Downieville-Lawson-Dumont (Clear Creek) | P122: Chattahoochee (Gadsden) | Q122: Climax (Decatur) | R122: Punaluu (Honolulu) | S122: Buffalo (Scott) | T122: Lost River (Custer) | U122: Bolingbrook (Will) | V122: Converse (Miami) | W122: Coffeyville (Montgomery) | X122: Creekside (Jefferson) | Y122: Dry Prong (Grant) | Z122: The Pinehills (Plymouth) | AA122: Cordova (Talbot) | AC122: Cedar Springs (Kent) | AD122: Calumet (Itasca) | AE122: Brimson (Grundy) | AF122: Glendale (Forrest) | AG122: Fortine (Lincoln) | AH122: Chadbourn (Columbus) | AI122: Fairmount (Richland) | AJ122: Comstock (Custer) | AL122: East Newark (Hudson) | AM122: Elephant Butte (Sierra) | AN122: Valmy (Humboldt) | AO122: Calcium (Jefferson) | AP122: Bratenahl (Cuyahoga) | AQ122: Catoosa (Rogers) | AR122: Gladstone (Clackamas) | AS122: Bethel Park (Allegheny) | AT122: Lajas (Lajas) | AV122: Gaffney (Cherokee) | AW122: Fairfax (Gregory) | AX122: Elkton (Giles) | AY122: Berryville (Henderson) | AZ122: Hildale (Washington) | BA122: Clinchco (Dickenson) | BC122: Connell (Franklin) | BD122: Catawba (Price) | BE122: Elk Garden (Mineral) | BF122: Manderson (Big Horn) | BH122: AK | BI122: Chistochina (Valdez-Cordova) | BJ122: 62.5921 | BK122: -144.8136 | BM122: 132632 | BN122: 30 | BO122: -85.625
G123: Gulkana (Valdez-Cordova) | H123: Cowarts (Houston) | I123: De Queen (Sevier) | J123: El Mirage (Maricopa) | K123: Black Point-Green Point (Marin) | L123: Durango (La Plata) | P123: Cheval (Hillsborough) | Q123: Cobbtown (Tattnall) | R123: Pupukea (Honolulu) | S123: Buffalo Center (Winnebago) | T123: Lowman (Boise) | U123: Bondville (Champaign) | V123: Cordry Sweetwater Lakes (Brown) | W123: Colby (Thomas) | X123: Crescent Springs (Kenton) | Y123: Dubach (Lincoln) | Z123: Turners Falls (Franklin) | AA123: Corriganville (Allegany) | AC123: Cement City (Lenawee) | AD123: Cambridge (Isanti) | AE123: Bronaugh (Vernon) | AF123: Glendora (Tallahatchie) | AG123: Four Corners (Gallatin) | AH123: Chapel Hill (Orange) | AI123: Fargo (Cass) | AJ123: Concord (Dixon) | AL123: East Orange (Essex) | AM123: Elida (Roosevelt) | AN123: Verdi (Washoe) | AO123: Caledonia (Livingston) | AP123: Brecksville (Cuyahoga) | AQ123: Cayuga (Delaware) | AR123: Glasgow (Coos) | AS123: Bethlehem (Northampton) | AT123: Lamboglia (Patillas) | AV123: Gantt (Greenville) | AW123: Fairview (Lincoln) | AX123: Englewood (McMinn) | AY123: Bertram (Burnet) | AZ123: Hinckley (Millard) | BA123: Clinchport (Scott) | BC123: Conway (Skagit) | BD123: Cazenovia (Richland) | BE123: Elkins (Randolph) | BF123: Manville (Niobrara) | BH123: AK | BI123: Nunam Iqua (Kusilvak) | BJ123: 62.511 | BK123: -164.8998 | BM123: 132633 | BN123: 30 | BO123: -85
G124: Gustavus (Hoonah-Angoon) | H124: Creola (Mobile) | I124: De Valls Bluff (Prairie) | J124: El Prado Estates (Yuma) | K124: Blackhawk (Contra Costa) | L124: Eads (Kiowa) | P124: Chiefland (Levy) | Q124: Cochran (Bleckley) | R124: Royal Kunia (Honolulu) | S124: Burchinal (Cerro Gordo) | T124: Mackay (Custer) | U124: Bone Gap (Edwards) | V124: Corunna (DeKalb) | W124: Coldwater (Comanche) | X124: Crestview (Campbell) | Y124: Dubberly (Webster) | Z124: Vineyard Haven (Dukes) | AA124: Cottage City (Prince George's) | AC124: Center Line (Macomb) | AD124: Campbell (Wilkin) | AE124: Brookfield (Linn) | AF124: Gloster (Amite) | AG124: Fox Lake (Richland) | AH124: Charlotte (Mecklenburg) | AI124: Fessenden (Wells) | AJ124: Cook (Johnson) | AL124: East Rocky Hill (Somerset) | AM124: Encinal (Cibola) | AN124: Virginia City (Storey) | AO124: Calverton (Suffolk) | AP124: Brecon (Hamilton) | AQ124: Cedar Crest (Mayes) | AR124: Glendale (Douglas) | AS124: Beurys Lake (Schuylkill) | AT124: Lares (Lares) | AV124: Garden City (Horry) | AW124: Faith (Meade) | AX124: Enville (Chester) | AY124: Beverly Hills (McLennan) | AZ124: Holden (Millard) | BA124: Clintwood (Dickenson) | BC124: Copalis Beach (Grays Harbor) | BD124: Cecil (Shawano) | BE124: Elkview (Kanawha) | BF124: Marbleton (Sublette) | BH124: AK | BI124: Chase (Matanuska-Susitna) | BJ124: 62.4624 | BK124: -149.9371 | BM124: 132634 | BN124: 30 | BO124: -84.375
G125: Haines (Haines) | H125: Crossville (DeKalb) | I125: Decatur (Benton) | J125: Elephant Head (Pima) | K125: Blacklake (San Luis Obispo) | L125: Eagle (Eagle) | P125: Chipley (Washington) | Q125: Cohutta (Whitfield) | R125: Schofield Barracks (Honolulu) | S125: Burlington (Des Moines) | T125: Malad City (Oneida) | U125: Bonfield (Kankakee) | V125: Corydon (Harrison) | W125: Collyer (Trego) | X125: Crestview Hills (Kenton) | Y125: Dulac (Terrebonne) | Z125: Waltham (Middlesex) | AA125: Crellin (Garrett) | AC125: Central Lake (Antrim) | AD125: Canby (Yellow Medicine) | AE125: Brooklyn Heights (Jasper) | AF125: Golden (Tishomingo) | AG125: Frazer (Valley) | AH125: Cherokee (Swain) | AI125: Fingal (Barnes) | AJ125: Cordova (Seward) | AL125: East Rutherford (Bergen) | AM125: Encino (Torrance) | AN125: Wadsworth (Washoe) | AO125: Cambridge (Washington) | AP125: Bremen (Fairfield) | AQ125: Cedar Valley (Logan) | AR125: Glide (Douglas) | AS125: Big Bass Lake (Lackawanna) | AT125: Las Carolinas (Caguas) | AV125: Gaston (Lexington) | AW125: Farmer (Hanson) | AX125: Erin (Houston) | AY125: Bevil Oaks (Jefferson) | AZ125: Holladay (Salt Lake) | BA125: Clover (Halifax) | BC125: Cosmopolis (Grays Harbor) | BD125: Cedar Grove (Sheboygan) | BE125: Ellenboro (Ritchie) | BF125: McKinnon (Sweetwater) | BH125: AK | BI125: Nabesna (Valdez-Cordova) | BJ125: 62.4606 | BK125: -143.0402 | BM125: 132635 | BN125: 30 | BO125: -83.75
G126: Halibut Cove (Kenai Peninsula) | H126: Cuba (Sumter) | I126: Delaplaine (Greene) | J126: Elfrida (Cochise) | K126: Blairsden (Plumas) | L126: East Pleasant View (Jefferson) | P126: Chokoloskee (Collier) | Q126: Colbert (Madison) | R126: Ualapue (Maui) | S126: Burr Oak (Winneshiek) | T126: Malta (Cassia) | U126: Bonnie (Jefferson) | V126: Country Club Heights (Madison) | W126: Colony (Anderson) | X126: Crestwood (Oldham) | Y126: Duson (Lafayette) | Z126: Wareham Center (Plymouth) | AA126: Cresaptown (Allegany) | AC126: Centreville (St. Joseph) | AD126: Cannon Falls (Goodhue) | AE126: Browning (Linn) | AF126: Goodman (Holmes) | AG126: Frenchtown (Missoula) | AH126: Cherryville (Gaston) | AI126: Finley (Steele) | AJ126: Cornlea (Platte) | AL126: Eatontown (Monmouth) | AM126: Ensenada (Rio Arriba) | AN126: Walker Lake (Mineral) | AO126: Camden (Oneida) | AP126: Brewster (Stark) | AQ126: Cement (Caddo) | AR126: Gold Beach (Curry) | AS126: Big Beaver (Beaver) | AT126: Las Croabas (Fajardo) | AV126: Gayle Mill (Chester) | AW126: Faulkton (Faulk) | AX126: Erwin (Unicoi) | AY126: Big Lake (Reagan) | AZ126: Honeyville (Box Elder) | BA126: Cloverdale (Botetourt) | BC126: Cottage Lake (King) | BD126: Cedarburg (Ozaukee) | BE126: Enterprise (Harrison) | BF126: Meadow Acres (Natrona) | BH126: AK | BI126: Flat (Yukon-Koyukuk) | BJ126: 62.4415 | BK126: -158.0405 | BM126: 132636 | BN126: 30 | BO126: -83.125
G127: Happy Valley (Kenai Peninsula) | H127: Cullman (Cullman) | I127: Delight (Pike) | J127: Elgin (Santa Cruz) | K127: Bloomfield (Sonoma) | L127: Eaton (Weld) | P127: Christmas (Orange) | Q127: Coleman (Randolph) | R127: Volcano (Hawaii) | S127: Burt (Kossuth) | T127: Marsing (Owyhee) | U127: Boody (Macon) | V127: Country Squire Lakes (Jennings) | W127: Columbus (Cherokee) | X127: Crittenden (Grant) | Y127: East Hodge (Jackson) | Z127: Watertown Town (Middlesex) | AA127: Crisfield (Somerset) | AC127: Charlevoix (Charlevoix) | AD127: Canton (Fillmore) | AE127: Brownington (Henry) | AF127: Greenville (Washington) | AG127: Froid (Roosevelt) | AH127: Chimney Rock Village (Rutherford) | AI127: Flasher (Morton) | AJ127: Cortland (Gage) | AL127: Echelon (Camden) | AM127: Escondida (Socorro) | AN127: Washoe Valley (Washoe) | AO127: Camillus (Onondaga) | AP127: Brice (Franklin) | AQ127: Centrahoma (Coal) | AR127: Gold Hill (Jackson) | AS127: Big Run (Jefferson) | AT127: Las Marías (Añasco) | AV127: Georgetown (Georgetown) | AW127: Fedora (Miner) | AX127: Estill Springs (Franklin) | AY127: Big Sandy (Upshur) | AZ127: Hooper (Weber) | BA127: Cluster Springs (Halifax) | BC127: Coulee City (Grant) | BD127: Centuria (Polk) | BE127: Fairlea (Greenbrier) | BF127: Medicine Bow (Carbon) | BH127: AK | BI127: Petersville (Matanuska-Susitna) | BJ127: 62.4227 | BK127: -150.8441 | BM127: 132637 | BN127: 30 | BO127: -82.5
G128: Harding-Birch Lakes (Fairbanks North Star) | H128: Cullomburg (Choctaw) | I128: Dell (Mississippi) | J128: Eloy (Pinal) | K128: Bloomington (San Bernardino) | L128: Eckley (Yuma) | P128: Chuluota (Seminole) | Q128: College Park (Fulton) | R128: Wahiawa (Honolulu) | S128: Bussey (Marion) | T128: McCall (Valley) | U128: Boulder Hill (Kendall) | V128: Covington (Fountain) | W128: Colwich (Sedgwick) | X128: Crofton (Christian) | Y128: Eastwood (Bossier) | Z128: West Chatham (Barnstable) | AA128: Crofton (Anne Arundel) | AC128: Charlotte (Eaton) | AD128: Carlos (Douglas) | AE128: Brumley (Miller) | AF128: Greenwood (Leflore) | AG128: Fromberg (Carbon) | AH128: China Grove (Rowan) | AI128: Flaxton (Burke) | AJ128: Cotesfield (Howard) | AL128: Edgewater (Bergen) | AM128: Escudilla Bonita (Catron) | AN128: Wells (Elko) | AO128: Canajoharie (Montgomery) | AP128: Bridgeport (Belmont) | AQ128: Central High (Stephens) | AR128: Gopher Flats (Umatilla) | AS128: Bigler (Clearfield) | AT128: Las Ochenta (Salinas) | AV128: Gifford (Hampton) | AW128: Ferney (Brown) | AX128: Ethridge (Lawrence) | AY128: Big Spring (Howard) | AZ128: Howell (Box Elder) | BA128: Coeburn (Wise) | BC128: Coulee Dam (Okanogan) | BD128: Chain O' Lakes (Waupaca) | BE128: Fairmont (Marion) | BF128: Meeteetse (Park) | BH128: AK | BI128: Gakona (Valdez-Cordova) | BJ128: 62.3608 | BK128: -145.2656 | BM128: 132638 | BN128: 30 | BO128: -81.875
G129: Healy (Denali) | H129: Cusseta (Chambers) | I129: Dennard (Van Buren) | J129: First Mesa (Navajo) | K129: Blue Lake (Humboldt) | L129: Edgewater (Jefferson) | P129: Chumuckla (Santa Rosa) | Q129: Collins (Tattnall) | R129: Waialua (Honolulu) | S129: Calamus (Clinton) | T129: McCammon (Bannock) | U129: Bourbonnais (Kankakee) | V129: Crandall (Harrison) | W129: Concordia (Cloud) | X129: Crossgate (Jefferson) | Y129: Eden Isle (St. Tammany) | Z129: West Concord (Middlesex) | AA129: Croom (Prince George's) | AC129: Chatham (Alger) | AD129: Carlton (Carlton) | AE129: Brunswick (Chariton) | AF129: Grenada (Grenada) | AG129: Gallatin Gateway (Gallatin) | AH129: Chocowinity (Beaufort) | AI129: Forbes (Dickey) | AJ129: Cowles (Webster) | AL129: Egg Harbor City (Atlantic) | AM129: Española (Rio Arriba) | AN129: West Wendover (Elko) | AO129: Canandaigua (Ontario) | AP129: Bridgetown (Hamilton) | AQ129: Chandler (Lincoln) | AR129: Government Camp (Clackamas) | AS129: Biglerville (Adams) | AT129: Las Ollas (Santa Isabel) | AV129: Gilbert (Lexington) | AW129: Flandreau (Moody) | AX129: Etowah (McMinn) | AY129: Big Thicket Lake Estates (Liberty) | AZ129: Hoytsville (Summit) | BA129: Collinsville (Henry) | BC129: Country Homes (Spokane) | BD129: Chaseburg (Vernon) | BE129: Fairview (Marion) | BF129: Midwest (Natrona) | BH129: AK | BI129: Trapper Creek (Matanuska-Susitna) | BJ129: 62.3189 | BK129: -150.3965 | BM129: 133178 | BN129: 30.5 | BO129: -104.375
G130: Healy Lake (Southeast Fairbanks) | H130: Dadeville (Tallapoosa) | I130: Denning (Franklin) | J130: Flagstaff (Coconino) | K130: Bluewater (San Bernardino) | L130: Edwards (Eagle) | P130: Cinco Bayou (Okaloosa) | Q130: Colquitt (Miller) | R130: Waianae (Honolulu) | S130: California Junction (Harrison) | T130: Melba (Canyon) | U130: Bowen (Hancock) | V130: Crane (Martin) | W130: Conway Springs (Sumner) | X130: Cumberland (Harlan) | Y130: Edgard (St. John the Baptist) | Z130: West Dennis (Barnstable) | AA130: Crownsville (Anne Arundel) | AC130: Cheboygan (Cheboygan) | AD130: Carver (Carver) | AE130: Bucklin (Linn) | AF130: Gulf Hills (Jackson) | AG130: Gallatin River Ranch (Gallatin) | AH130: Claremont (Catawba) | AI130: Fordville (Walsh) | AJ130: Cozad (Dawson) | AL130: Elizabeth (Union) | AM130: Estancia (Torrance) | AN130: Whitney (Clark) | AO130: Canaseraga (Allegany) | AP130: Brilliant (Jefferson) | AQ130: Chattanooga (Comanche) | AR130: Grand Ronde (Polk) | AS130: Birchwood Lakes (Pike) | AT130: Las Piedras (Las Piedras) | AV130: Glendale (Spartanburg) | AW130: Florence (Codington) | AX130: Eva (Benton) | AY130: Big Wells (Dimmit) | AZ130: Huntington (Emery) | BA130: Colonial Beach (Westmoreland) | BC130: Coupeville (Island) | BD130: Chelsea (Taylor) | BE130: Falling Spring (Greenbrier) | BF130: Mills (Natrona) | BH130: AK | BI130: Lake Louise (Matanuska-Susitna) | BJ130: 62.3131 | BK130: -146.5625 | BM130: 133179 | BN130: 30.5 | BO130: -103.75
G131: Hobart Bay (Petersburg Borough) | H131: Daleville (Dale) | I131: Dermott (Chicot) | J131: Florence (Pinal) | K131: Blythe (Riverside) | L131: El Jebel (Eagle) | P131: Citrus Hills (Citrus) | Q131: Columbus (Muscogee) | R131: Waihee-Waiehu (Maui) | S131: Callender (Webster) | T131: Menan (Jefferson) | U131: Braceville (Grundy) | V131: Crawfordsville (Montgomery) | W131: Coolidge (Hamilton) | X131: Cunningham (Carlisle) | Y131: Edgefield (Red River) | Z131: West Falmouth (Barnstable) | AA131: Cumberland (Allegany) | AC131: Chelsea (Washtenaw) | AD131: Cass Lake (Cass) | AE131: Buckner (Jackson) | AF131: Gulf Park Estates (Jackson) | AG131: Gardiner (Park) | AH131: Clarkton (Bladen) | AI131: Forest River (Walsh) | AJ131: Crab Orchard (Johnson) | AL131: Ellisburg (Camden) | AM131: Eunice (Lea) | AN131: Winchester (Clark) | AO131: Canastota (Madison) | AP131: Brimfield (Portage) | AQ131: Checotah (McIntosh) | AR131: Granite (Grant) | AS131: Bird-in-Hand (Lancaster) | AT131: Levittown (Toa Baja) | AV131: Gloverville (Aiken) | AW131: Forestburg (Sanborn) | AX131: Fairfield (Sumner) | AY131: Bigfoot (Frio) | AZ131: Huntsville (Weber) | BA131: Colonial Heights (Colonial Heights) | BC131: Covington (King) | BD131: Chenequa (Waukesha) | BE131: Falling Waters (Berkeley) | BF131: Moorcroft (Crook) | BH131: AK | BI131: Talkeetna (Matanuska-Susitna) | BJ131: 62.2753 | BK131: -150.0814 | BM131: 133180 | BN131: 30.5 | BO131: -103.125
G132: Hollis (Prince of Wales-Hyder) | H132: Daphne (Baldwin) | I132: Des Arc (Prairie) | J132: Flowing Springs (Gila) | K132: Bodega (Sonoma) | L132: El Moro (Las Animas) | P132: Citrus Park (Hillsborough) | Q132: Comer (Madison) | R132: Waikane (Honolulu) | S132: Calmar (Winneshiek) | T132: Meridian (Ada) | U132: Bradford (Stark) | V132: Cromwell (Noble) | W132: Copeland (Gray) | X132: Cynthiana (Harrison) | Y132: Egan (Acadia) | Z132: West Springfield Town (Hampden) | AA132: Damascus (Montgomery) | AC132: Chesaning (Saginaw) | AD132: Cedar Mills (Meeker) | AE132: Buffalo (Dallas) | AF132: Gulfport (Harrison) | AG132: Garrison (Powell) | AH132: Clayton (Johnston) | AI132: Forman (Sargent) | AJ132: Craig (Burt) | AL132: Elmer (Salem) | AM132: Fairacres (Doña Ana) | AN132: Winnemucca (Humboldt) | AO132: Candor (Tioga) | AP132: Broadview Heights (Cuyahoga) | AQ132: Chelsea (Rogers) | AR132: Grants Pass (Josephine) | AS132: Birdsboro (Berks) | AT132: Liborio Negrón Torres (Sabana Grande) | AV132: Golden Grove (Greenville) | AW132: Fort Pierre (Stanley) | AX132: Fairfield Glade (Cumberland) | AY132: Bishop (Nueces) | AZ132: Hurricane (Washington) | BA132: Columbia (Fluvanna) | BC132: Cowiche (Yakima) | BD132: Chetek (Barron) | BE132: Falls View (Fayette) | BF132: Moose Wilson Road (Teton) | BH132: AK | BI132: Gulkana (Valdez-Cordova) | BJ132: 62.2152 | BK132: -145.4449 | BM132: 133181 | BN132: 30.5 | BO132: -102.5
G133: Holy Cross (Yukon-Koyukuk) | H133: Dauphin Island (Mobile) | I133: DeWitt (Arkansas) | J133: Flowing Wells (Pima) | K133: Bodega Bay (Sonoma) | L133: Elbert (Elbert) | P133: Citrus Springs (Citrus) | Q133: Commerce (Jackson) | R133: Waikapu (Maui) | S133: Calumet (O'Brien) | T133: Middleton (Canyon) | U133: Bradley (Kankakee) | V133: Crothersville (Jackson) | W133: Corning (Nemaha) | X133: Danville (Boyle) | Y133: Elizabeth (Allen) | Z133: West Wareham (Plymouth) | AA133: Dames Quarter (Somerset) | AC133: Chums Corner (Grand Traverse) | AD133: Center City (Chisago) | AE133: Bull Creek (Taney) | AF133: Gunnison (Bolivar) | AG133: Geraldine (Chouteau) | AH133: Clemmons (Forsyth) | AI133: Fort Ransom (Ransom) | AJ133: Crawford (Dawes) | AL133: Elmwood Park (Bergen) | AM133: Farmington (San Juan) | AN133: Yerington (Lyon) | AO133: Canisteo (Steuben) | AP133: Brook Park (Cuyahoga) | AQ133: Cherokee (Alfalfa) | AR133: Grass Valley (Sherman) | AS133: Birmingham (Huntingdon) | AT133: Lluveras (Sabana Grande) | AV133: Goose Creek (Berkeley) | AW133: Fort Thompson (Buffalo) | AX133: Fairgarden (Sevier) | AY133: Bishop Hills (Potter) | AZ133: Hyde Park (Cache) | BA133: Concord (Campbell) | BC133: Creston (Lincoln) | BD133: Chief Lake (Sawyer) | BE133: Farmington (Marion) | BF133: Mountain View (Uinta) | BH133: AK | BI133: Holy Cross (Yukon-Koyukuk) | BJ133: 62.1868 | BK133: -159.8198 | BM133: 133182 | BN133: 30.5 | BO133: -101.875
G134: Homer (Kenai Peninsula) | H134: Daviston (Tallapoosa) | I134: Diamond City (Boone) | J134: Fort Apache (Navajo) | K134: Bodfish (Kern) | L134: Eldora (Boulder) | P134: Clarcona (Orange) | Q134: Concord (Pike) | R134: Waikele (Honolulu) | S134: Camanche (Clinton) | T134: Midvale (Washington) | U134: Braidwood (Will) | V134: Crown Point (Lake) | W134: Cottonwood Falls (Chase) | X134: Dawson Springs (Hopkins) | Y134: Elmwood (Jefferson) | Z134: West Yarmouth (Barnstable) | AA134: Danville (Allegany) | AC134: Clare (Clare) | AD134: Centerville (Anoka) | AE134: Bunceton (Cooper) | AF134: Guntown (Lee) | AG134: Geyser (Judith Basin) | AH134: Cleveland (Rowan) | AI134: Fort Totten (Benson) | AJ134: Creighton (Knox) | AL134: Elwood (Atlantic) | AM134: Faywood (Grant) | AN134: Zephyr Cove (Douglas) | AO134: Canton (St. Lawrence) | AP134: Brookfield Center (Trumbull) | AQ134: Cherry Tree (Adair) | AR134: Green (Douglas) | AS134: Black Lick (Indiana) | AT134: Loíza (Loíza) | AV134: Govan (Bamberg) | AW134: Frankfort (Spink) | AX134: Fairmount (Hamilton) | AY134: Bixby (Cameron) | AZ134: Hyrum (Cache) | BA134: Countryside (Loudoun) | BC134: Crocker (Pierce) | BD134: Chili (Clark) | BE134: Fayetteville (Fayette) | BF134: Newcastle (Weston) | BH134: AK | BI134: Mendeltna (Valdez-Cordova) | BJ134: 62.1359 | BK134: -146.5388 | BM134: 133183 | BN134: 30.5 | BO134: -101.25
G135: Hoonah (Hoonah-Angoon) | H135: Dayton (Marengo) | I135: Diaz (Jackson) | J135: Fort Defiance (Apache) | K135: Bolinas (Marin) | L135: Eldorado Springs (Boulder) | P135: Clearwater (Pinellas) | Q135: Conley (Clayton) | R135: Waikoloa Village (Hawaii) | S135: Cambridge (Story) | T135: Minidoka (Minidoka) | U135: Breese (Clinton) | V135: Crows Nest (Marion) | W135: Council Grove (Morris) | X135: Dayton (Campbell) | Y135: Elton (Jefferson Davis) | Z135: Westfield (Hampden) | AA135: Dargan (Washington) | AC135: Clarksville (Ionia) | AD135: Ceylon (Martin) | AE135: Bunker (Reynolds) | AF135: Hamilton (Monroe) | AG135: Gibson Flats (Cascade) | AH135: Cliffside (Rutherford) | AI135: Fort Yates (Sioux) | AJ135: Creston (Platte) | AL135: Emerson (Bergen) | AM135: Fence Lake (Cibola) | AO135: Cape Vincent (Jefferson) | AP135: Brooklyn (Cuyahoga) | AQ135: Chester (Major) | AR135: Greenhorn (Baker) | AS135: Blain (Perry) | AT135: Lomas (Canóvanas) | AV135: Gramling (Spartanburg) | AW135: Frederick (Brown) | AX135: Fairview (Williamson) | AY135: Blackwell (Nolan) | AZ135: Independence (Wasatch) | BA135: County Center (Prince William) | BC135: Curlew (Ferry) | BD135: Chilton (Calumet) | BE135: Fenwick (Nicholas) | BF135: Nordic (Lincoln) | BH135: AK | BI135: Susitna North (Matanuska-Susitna) | BJ135: 62.1281 | BK135: -149.8593 | BM135: 133184 | BN135: 30.5 | BO135: -100.625
G136: Hooper Bay (Kusilvak) | H136: Deatsville (Elmore) | I136: Dierks (Howard) | J136: Fort Mohave (Mohave) | K136: Bombay Beach (Imperial) | L136: Elizabeth (Elbert) | P136: Clermont (Lake) | Q136: Conyers (Rockdale) | R136: Wailea (Maui) | S136: Cantril (Van Buren) | T136: Montpelier (Bear Lake) | U136: Bridgeport (Lawrence) | V136: Culver (Marshall) | W136: Courtland (Republic) | X136: Dexter (Calloway) | Y136: Empire (Plaquemines) | Z136: Weweantic (Plymouth) | AA136: Darlington (Harford) | AC136: Clawson (Oakland) | AD136: Champlin (Hennepin) | AE136: Burgess (Barton) | AF136: Hatley (Monroe) | AG136: Gildford (Hill) | AH136: Clinton (Sampson) | AI136: Fortuna (Divide) | AJ136: Crete (Saline) | AL136: Englewood (Bergen) | AM136: Flora Vista (San Juan) | AO136: Carle Place (Nassau) | AP136: Brooklyn Heights (Cuyahoga) | AQ136: Chewey (Adair) | AR136: Gresham (Multnomah) | AS136: Blairsville (Indiana) | AT136: Los Llanos (Coamo) | AV136: Graniteville (Aiken) | AW136: Freeman (Hutchinson) | AX136: Fall Branch (Washington) | AY136: Blanco (Blanco) | AZ136: Interlaken (Wasatch) | BA136: Courtland (Southampton) | BC136: Curlew Lake (Ferry) | BD136: Chippewa Falls (Chippewa) | BE136: Flatwoods (Braxton) | BF136: North Rock Springs (Sweetwater) | BH136: AK | BI136: Glennallen (Valdez-Cordova) | BJ136: 62.1278 | BK136: -145.7693 | BM136: 133185 | BN136: 30.5 | BO136: -100
G137: Hope (Kenai Peninsula) | H137: Decatur (Morgan) | I137: Donaldson (Hot Spring) | J137: Fort Thomas (Graham) | K137: Bonadelle Ranchos-Madera Ranchos (Madera) | L137: Ellicott (El Paso) | P137: Cleveland (Charlotte) | Q137: Coolidge (Thomas) | R137: Wailua (Kauai) | S137: Carbon (Adams) | T137: Moore (Butte) | U137: Bridgeview (Cook) | V137: Cumberland (Marion) | W137: Coyville (Wilson) | X137: Diablock (Perry) | Y137: Epps (West Carroll) | Z137: Weymouth Town (Norfolk) | AA137: Darnestown (Montgomery) | AC137: Clayton (Lenawee) | AD137: Chandler (Murray) | AE137: Burlington Junction (Nodaway) | AF137: Hattiesburg (Forrest) | AG137: Glasgow (Valley) | AH137: Clyde (Haywood) | AI137: Four Bears Village (McKenzie) | AJ137: Crofton (Knox) | AL137: Englewood Cliffs (Bergen) | AM137: Floyd (Roosevelt) | AO137: Carmel Hamlet (Putnam) | AP137: Brookside (Belmont) | AQ137: Cheyenne (Roger Mills) | AR137: Haines (Baker) | AS137: Blakely (Lackawanna) | AT137: Los Panes (Caguas) | AV137: Gray Court (Laurens) | AW137: Fruitdale (Butte) | AX137: Falling Water (Hamilton) | AY137: Blanket (Brown) | AZ137: Ivins (Washington) | BA137: Covington (Covington) | BC137: Cusick (Pend Oreille) | BD137: Clam Lake (Ashland) | BE137: Flemington (Taylor) | BF137: Oakley (Lincoln) | BH137: AK | BI137: Chisana (Valdez-Cordova) | BJ137: 62.0946 | BK137: -142.034 | BM137: 133186 | BN137: 30.5 | BO137: -99.375
G138: Houston (Matanuska-Susitna) | H138: Deer Park (Washington) | I138: Dover (Pope) | J138: Fort Valley (Coconino) | K138: Bonita (San Diego) | L138: Empire (Clear Creek) | P138: Clewiston (Hendry) | Q138: Cordele (Crisp) | R138: Wailua Homesteads (Kauai) | S138: Carlisle (Warren) | T138: Moreland (Bingham) | U138: Brighton (Macoupin) | V138: Cynthiana (Posey) | W138: Cuba (Republic) | X138: Dixon (Webster) | Y138: Erath (Vermilion) | Z138: White Island Shores (Plymouth) | AA138: Dawson (Allegany) | AC138: Clifford (Lapeer) | AD138: Chanhassen (Carver) | AE138: Butler (Bates) | AF138: Hazlehurst (Copiah) | AG138: Glendive (Dawson) | AH138: Coats (Harnett) | AI138: Foxholm (Ward) | AJ138: Crookston (Cherry) | AL138: Englishtown (Monmouth) | AM138: Folsom (Union) | AO138: Caroga Lake (Fulton) | AP138: Brookville (Montgomery) | AQ138: Chickasha (Grady) | AR138: Halfway (Baker) | AS138: Blanchard (Centre) | AT138: Los Prados (Caguas) | AV138: Great Falls (Chester) | AW138: Fulton (Hanson) | AX138: Farragut (Knox) | AY138: Blessing (Matagorda) | AZ138: Jensen (Uintah) | BA138: Craigsville (Augusta) | BC138: Custer (Whatcom) | BD138: Clayton (Polk) | BE138: Follansbee (Brooke) | BF138: Opal (Lincoln) | BH138: AK | BI138: Mountain Village (Kusilvak) | BJ138: 62.0911 | BK138: -163.7209 | BM138: 133187 | BN138: 30.5 | BO138: -98.75
G139: Hughes (Yukon-Koyukuk) | H139: Delta (Clay) | I139: Dumas (Desha) | J139: Fortuna Foothills (Yuma) | K139: Bonny Doon (Santa Cruz) | L139: Englewood (Arapahoe) | P139: Cloud Lake (Palm Beach) | Q139: Cornelia (Habersham) | R139: Wailuku (Maui) | S139: Carpenter (Mitchell) | T139: Moscow (Latah) | U139: Brimfield (Peoria) | V139: Dale (Spencer) | W139: Cullison (Pratt) | X139: Doe Valley (Meade) | Y139: Eros (Jackson) | Z139: Whitinsville (Worcester) | AA139: Deal Island (Somerset) | AC139: Climax (Kalamazoo) | AD139: Chaska (Carver) | AE139: Butterfield (Barry) | AF139: Heidelberg (Jasper) | AG139: Grass Range (Fergus) | AH139: Cofield (Hertford) | AI139: Fredonia (Logan) | AJ139: Culbertson (Hitchcock) | AL139: Erma (Cape May) | AM139: Fort Sumner (De Baca) | AO139: Carthage (Jefferson) | AP139: Broughton (Paulding) | AQ139: Choctaw (Oklahoma) | AR139: Halsey (Linn) | AS139: Blandburg (Cambria) | AT139: Luis Lloréns Torres (Juana Díaz) | AV139: Greeleyville (Williamsburg) | AW139: Gann Valley (Buffalo) | AX139: Fayetteville (Lincoln) | AY139: Bloomburg (Cass) | AZ139: Joseph (Sevier) | BA139: Crewe (Nottoway) | BC139: Dallesport (Klickitat) | BD139: Clear Lake (Polk) | BE139: Fort Ashby (Mineral) | BF139: Orin (Converse) | BH139: AK | BI139: Tolsona (Valdez-Cordova) | BJ139: 62.0844 | BK139: -146.092 | BM139: 133188 | BN139: 30.5 | BO139: -98.125
G140: Huslia (Yukon-Koyukuk) | H140: Demopolis (Marengo) | I140: Dyer (Crawford) | J140: Fountain Hills (Maricopa) | K140: Bonsall (San Diego) | L140: Erie (Boulder) | P140: Cobbtown (Santa Rosa) | Q140: Country Club Estates (Glynn) | R140: Waimalu (Honolulu) | S140: Carroll (Carroll) | T140: Mountain Home (Elmore) | U140: Broadlands (Champaign) | V140: Daleville (Delaware) | W140: Culver (Ottawa) | X140: Douglass Hills (Jefferson) | Y140: Erwinville (West Baton Rouge) | Z140: Winthrop Town (Suffolk) | AA140: Deale (Anne Arundel) | AC140: Clinton (Lenawee) | AD140: Chatfield (Fillmore) | AE140: Byrnes Mill (Jefferson) | AF140: Helena (Jackson) | AG140: Great Falls (Cascade) | AH140: Coinjock (Currituck) | AI140: Frontier (Cass) | AJ140: Curtis (Frontier) | AL140: Essex Fells (Essex) | AM140: Galisteo (Santa Fe) | AO140: Cassadaga (Chautauqua) | AP140: Brownsville (Licking) | AQ140: Chouteau (Mayes) | AR140: Happy Valley (Clackamas) | AS140: Blandon (Berks) | AT140: Luis M. Cintrón (Fajardo) | AV140: Greenville (Greenville) | AW140: Garden City (Clark) | AX140: Fincastle (Campbell) | AY140: Blooming Grove (Navarro) | AZ140: Junction (Piute) | BA140: Crimora (Augusta) | BC140: Danville (Ferry) | BD140: Cleveland (Manitowoc) | BE140: Fort Gay (Wayne) | BF140: Osage (Weston) | BH140: AK | BI140: St. Mary's (Kusilvak) | BJ140: 62.0718 | BK140: -163.2805 | BM140: 133189 | BN140: 30.5 | BO140: -97.5
G141: Hydaburg (Prince of Wales-Hyder) | H141: Detroit (Lamar) | I141: Dyess (Mississippi) | J141: Franklin (Greenlee) | K141: Boonville (Mendocino) | L141: Estes Park (Larimer) | P141: Cocoa (Brevard) | Q141: Covington (Newton) | R141: Waimanalo (Honolulu) | S141: Carson (Pottawattamie) | T141: Mountain Home AFB (Elmore) | U141: Broadview (Cook) | V141: Dana (Vermillion) | W141: Cunningham (Kingman) | X141: Dover (Mason) | Y141: Estelle (Jefferson) | Z141: Woburn (Middlesex) | AA141: Deer Park (Garrett) | AC141: Clio (Genesee) | AD141: Chickamaw Beach (Cass) | AE141: Cabool (Texas) | AF141: Henderson Point (Harrison) | AG141: Greycliff (Sweet Grass) | AH141: Colerain (Bertie) | AI141: Fullerton (Dickey) | AJ141: Cushing (Howard) | AL141: Estell Manor (Atlantic) | AM141: Gallina (Rio Arriba) | AO141: Castile (Wyoming) | AP141: Brunswick (Medina) | AQ141: Christie (Adair) | AR141: Harbor (Curry) | AS141: Blawnox (Allegheny) | AT141: Luquillo (Luquillo) | AV141: Greenwood (Greenwood) | AW141: Garretson (Minnehaha) | AX141: Finger (McNairy) | AY141: Bloomington (Victoria) | AZ141: Kamas (Summit) | BA141: Crosspointe (Fairfax) | BC141: Darrington (Snohomish) | BD141: Clinton (Rock) | BE141: Frank (Pocahontas) | BF141: Osmond (Lincoln) | BH141: AK | BI141: Tazlina (Valdez-Cordova) | BJ141: 62.0536 | BK141: -145.4362 | BM141: 133190 | BN141: 30.5 | BO141: -96.875
G142: Hyder (Prince of Wales-Hyder) | H142: Dodge City (Cullman) | I142: Earle (Crittenden) | J142: Fredonia (Coconino) | K142: Bootjack (Mariposa) | L142: Evans (Weld) | P142: Cocoa Beach (Brevard) | Q142: Crawford (Oglethorpe) | R142: Waimanalo Beach (Honolulu) | S142: Carter Lake (Pottawattamie) | T142: Moyie Springs (Boundary) | U142: Broadwell (Logan) | V142: Danville (Hendricks) | W142: Damar (Rooks) | X142: Drakesboro (Muhlenberg) | Y142: Estherwood (Acadia) | Z142: Woods Hole (Barnstable) | AA142: Delmar (Wicomico) | AC142: Coldwater (Branch) | AD142: Chisago City (Chisago) | AE142: Cainsville (Harrison) | AF142: Hernando (DeSoto) | AG142: Hamilton (Ravalli) | AH142: Columbia (Tyrrell) | AI142: Gackle (Logan) | AJ142: Dakota City (Dakota) | AL142: Fair Haven (Monmouth) | AM142: Gallup (McKinley) | AO142: Castleton-on-Hudson (Rensselaer) | AP142: Bryan (Williams) | AQ142: Cimarron City (Logan) | AR142: Harper (Malheur) | AS142: Bloomfield (Perry) | AT142: Luyando (Aguada) | AV142: Greer (Greenville) | AW142: Gary (Deuel) | AX142: Flat Top Mountain (Hamilton) | AY142: Blossom (Lamar) | AZ142: Kanab (Kane) | BA142: Crozet (Albemarle) | BC142: Dash Point (Pierce) | BD142: Clintonville (Waupaca) | BE142: Franklin (Pendleton) | BF142: Owl Creek (Hot Springs) | BH142: AK | BI142: Pitkas Point (Kusilvak) | BJ142: 62.0374 | BK142: -163.2681 | BM142: 133191 | BN142: 30.5 | BO142: -96.25
G143: Igiugig (Lake and Peninsula) | H143: Dora (Walker) | I143: East Camden (Ouachita) | J143: Freedom Acres (Gila) | K143: Boron (Kern) | L143: Evergreen (Jefferson) | P143: Cocoa West (Brevard) | Q143: Crawfordville (Taliaferro) | R143: Waimea (Hawaii) | S143: Cascade (Dubuque) | T143: Mud Lake (Jefferson) | U143: Brocton (Edgar) | V143: Darlington (Montgomery) | W143: Danville (Harper) | X143: Druid Hills (Jefferson) | Y143: Eunice (St. Landry) | Z143: Worcester (Worcester) | AA143: Denton (Caroline) | AC143: Coleman (Midland) | AD143: Chisholm (St. Louis) | AE143: Cairo (Randolph) | AF143: Hickory (Newton) | AG143: Happys Inn (Lincoln) | AH143: Columbus (Polk) | AI143: Galesburg (Traill) | AJ143: Dalton (Cheyenne) | AL143: Fair Lawn (Bergen) | AM143: Garfield (Doña Ana) | AO143: Castorland (Lewis) | AP143: Buchtel (Athens) | AQ143: Claremore (Rogers) | AR143: Harrisburg (Linn) | AS143: Blooming Valley (Crawford) | AT143: Magas Arriba (Guayanilla) | AV143: Hampton (Hampton) | AW143: Gayville (Yankton) | AX143: Flintville (Lincoln) | AY143: Blue Berry Hill (Bee) | AZ143: Kanarraville (Iron) | BA143: Culpeper (Culpeper) | BC143: Davenport (Lincoln) | BD143: Clyman (Dodge) | BE143: Friendly (Tyler) | BF143: Parkman (Sheridan) | BH143: AK | BI143: Silver Springs (Valdez-Cordova) | BJ143: 62.0193 | BK143: -145.3584 | BM143: 133192 | BN143: 30.5 | BO143: -95.625
G144: Iliamna (Lake and Peninsula) | H144: Dothan (Houston) | I144: East End (Saline) | J144: Gadsden (Yuma) | K144: Boronda (Monterey) | L144: Fairmount (Jefferson) | P144: Coconut Creek (Broward) | Q144: Crooked Creek (Putnam) | R144: Wainaku (Hawaii) | S144: Casey (Guthrie) | T144: Mullan (Shoshone) | U144: Brookfield (Cook) | V144: Darmstadt (Vanderburgh) | W144: De Soto (Johnson) | X144: Dry Ridge (Grant) | Y144: Evergreen (Avoyelles) | Z144: Yarmouth Port (Barnstable) | AA144: Derwood (Montgomery) | AC144: Coloma (Berrien) | AD144: Chokio (Stevens) | AE144: Caledonia (Washington) | AF144: Hickory Flat (Benton) | AG144: Hardin (Big Horn) | AH144: Como (Hertford) | AI144: Gardena (Bottineau) | AJ144: Danbury (Red Willow) | AL144: Fairton (Cumberland) | AM144: Gila (Grant) | AO144: Cato (Cayuga) | AP144: Buckeye Lake (Licking) | AQ144: Clarita (Coal) | AR144: Hayesville (Marion) | AS144: Bloomsburg (Columbia) | AT144: Maguayo (Lajas) | AV144: Hanahan (Berkeley) | AW144: Geddes (Charles Mix) | AX144: Forest Hills (Davidson) | AY144: Blue Mound (Tarrant) | AZ144: Kanosh (Millard) | BA144: Cumberland (Cumberland) | BC144: Dayton (Columbia) | BD144: Cobb (Iowa) | BE144: Gallipolis Ferry (Mason) | BF144: Pavillion (Fremont) | BH144: AK | BI144: Nelchina (Valdez-Cordova) | BJ144: 61.9989 | BK144: -146.8112 | BM144: 133193 | BN144: 30.5 | BO144: -95
G145: Ivanof Bay (Lake and Peninsula) | H145: Double Springs (Winston) | I145: Edmondson (Crittenden) | J145: Ganado (Apache) | K145: Borrego Springs (San Diego) | L145: Fairplay (Park) | P145: Coleman (Sumter) | Q145: Culloden (Monroe) | R145: Wainiha (Kauai) | S145: Castalia (Winneshiek) | T145: Murphy (Owyhee) | U145: Brooklyn (St. Clair) | V145: Dayton (Tippecanoe) | W145: Dearing (Montgomery) | X145: Dunmor (Muhlenberg) | Y145: Farmerville (Union) | AA145: Detmold (Allegany) | AC145: Colon (St. Joseph) | AD145: Circle Pines (Anoka) | AE145: Calhoun (Henry) | AF145: Hide-A-Way Lake (Pearl River) | AG145: Harlem (Blaine) | AH145: Concord (Cabarrus) | AI145: Gardner (Cass) | AJ145: Dannebrog (Howard) | AL145: Fairview (Bergen) | AM145: Glen Acres (Hidalgo) | AO145: Catskill (Greene) | AP145: Buckland (Auglaize) | AQ145: Clayton (Pushmataha) | AR145: Hebo (Tillamook) | AS145: Blossburg (Tioga) | AT145: Manatí (Manatí) | AV145: Hardeeville (Jasper) | AW145: Gettysburg (Potter) | AX145: Franklin (Williamson) | AY145: Blue Ridge (Collin) | AZ145: Kaysville (Davis) | BA145: Dahlgren (King George) | BC145: Deep River (Wahkiakum) | BD145: Cochrane (Buffalo) | BE145: Galloway (Barbour) | BF145: Pine Bluffs (Laramie) | BH145: AK | BI145: Copper Center (Valdez-Cordova) | BJ145: 61.9845 | BK145: -145.3544 | BM145: 133194 | BN145: 30.5 | BO145: -94.375
G146: Juneau (Juneau) | H146: Douglas (Marshall) | I146: Egypt (Craighead) | J146: Geronimo Estates (Gila) | K146: Bostonia (San Diego) | L146: Federal Heights (Adams) | P146: Combee Settlement (Polk) | Q146: Cumming (Forsyth) | R146: Waiohinu (Hawaii) | S146: Castana (Monona) | T146: Murtaugh (Twin Falls) | U146: Brookport (Massac) | V146: De Motte (Jasper) | W146: Deerfield (Kearny) | X146: Dwale (Floyd) | Y146: Fenton (Jefferson Davis) | AA146: District Heights (Prince George's) | AC146: Columbiaville (Lapeer) | AD146: Clara City (Chippewa) | AE146: California (Moniteau) | AF146: Hillsboro (Scott) | AG146: Harlowton (Wheatland) | AH146: Conetoe (Edgecombe) | AI146: Garrison (McLean) | AJ146: Davenport (Thayer) | AL146: Fanwood (Union) | AM146: Glenwood (Catron) | AO146: Cattaraugus (Cattaraugus) | AP146: Bucyrus (Crawford) | AQ146: Clearview (Okfuskee) | AR146: Helix (Umatilla) | AS146: Blue Ball (Lancaster) | AT146: María Antonia (Guánica) | AV146: Harleyville (Dorchester) | AW146: Glenham (Walworth) | AX146: Friendship (Crockett) | AY146: Bluetown (Cameron) | AZ146: Kearns (Salt Lake) | BA146: Dahlgren Center (King George) | BC146: Deer Park (Spokane) | BD146: Colby (Clark) | BE146: Gary (McDowell) | BF146: Pine Haven (Crook) | BH146: AK | BI146: Eureka Roadhouse (Matanuska-Susitna) | BJ146: 61.9648 | BK146: -147.1523 | BM146: 133195 | BN146: 30.5 | BO146: -93.75
G147: Kachemak (Kenai Peninsula) | H147: Dozier (Crenshaw) | I147: El Dorado (Union) | J147: Gila Bend (Maricopa) | K147: Boulder Creek (Santa Cruz) | L147: Firestone (Weld) | P147: Connerton (Pasco) | Q147: Cusseta (Chattahoochee) | R147: Waipahu (Honolulu) | S147: Cedar Falls (Black Hawk) | T147: Nampa (Canyon) | U147: Broughton (Hamilton) | V147: Decatur (Adams) | W147: Delia (Jackson) | X147: Dycusburg (Crittenden) | Y147: Ferriday (Concordia) | AA147: Downsville (Washington) | AC147: Comstock Northwest (Kalamazoo) | AD147: Claremont (Dodge) | AE147: Callao (Macon) | AF147: Holcomb (Grenada) | AG147: Harrison (Madison) | AH147: Connelly Springs (Burke) | AI147: Gascoyne (Bowman) | AJ147: Davey (Lancaster) | AL147: Far Hills (Somerset) | AM147: Glorieta (Santa Fe) | AO147: Cayuga (Cayuga) | AP147: Buffalo (Guernsey) | AQ147: Cleo Springs (Major) | AR147: Heppner (Morrow) | AS147: Blue Bell (Montgomery) | AT147: Mariano Colón (Coamo) | AV147: Hartsville (Darlington) | AW147: Goodwill (Roberts) | AX147: Friendsville (Blount) | AY147: Blum (Hill) | AZ147: Kenilworth (Carbon) | BA147: Dale City (Prince William) | BC147: Deming (Whatcom) | BD147: Coleman (Marinette) | BE147: Gassaway (Braxton) | BF147: Pinedale (Sublette) | BH147: AK | BI147: Pilot Station (Kusilvak) | BJ147: 61.9422 | BK147: -162.8828 | BM147: 133196 | BN147: 30.5 | BO147: -93.125
G148: Kake (Prince of Wales-Hyder) | H148: Dunnavant (Shelby) | I148: Elaine (Phillips) | J148: Gila Crossing (Maricopa) | K148: Boulevard (San Diego) | L148: Flagler (Kit Carson) | P148: Conway (Orange) | Q148: Cuthbert (Randolph) | R148: Waipio (Honolulu) | S148: Cedar Rapids (Linn) | T148: New Meadows (Adams) | U148: Browning (Schuyler) | V148: Decker (Knox) | W148: Delphos (Ottawa) | X148: Earlington (Hopkins) | Y148: Fifth Ward (Avoyelles) | AA148: Drum Point (Calvert) | AC148: Comstock Park (Kent) | AD148: Clarissa (Todd) | AE148: Calverton Park (St. Louis) | AF148: Hollandale (Washington) | AG148: Havre (Hill) | AH148: Conover (Catawba) | AI148: Gilby (Grand Forks) | AJ148: David City (Butler) | AL148: Farmingdale (Monmouth) | AM148: Golden (Santa Fe) | AO148: Cayuga Heights (Tompkins) | AP148: Buford (Highland) | AQ148: Cleora (Delaware) | AR148: Hermiston (Umatilla) | AS148: Blue Ridge Summit (Franklin) | AT148: Maricao (Maricao) | AV148: Heath Springs (Lancaster) | AW148: Goodwin (Deuel) | AX148: Gadsden (Crockett) | AY148: Boerne (Kendall) | AZ148: Kingston (Piute) | BA148: Daleville (Botetourt) | BC148: Des Moines (King) | BD148: Colfax (Dunn) | BE148: Gauley Bridge (Fayette) | BF148: Point of Rocks (Sweetwater) | BH148: AK | BI148: Skwentna (Matanuska-Susitna) | BJ148: 61.9314 | BK148: -151.2095 | BM148: 133197 | BN148: 30.5 | BO148: -92.5
G149: Kaktovik (North Slope) | H149: Dutton (Jackson) | I149: Elkins (Washington) | J149: Gilbert (Maricopa) | K149: Bowles (Fresno) | L149: Fleming (Logan) | P149: Cooper City (Broward) | Q149: Dacula (Gwinnett) | R149: Waipio Acres (Honolulu) | S149: Center Junction (Jones) | T149: New Plymouth (Payette) | U149: Browns (Edwards) | V149: Delphi (Carroll) | W149: Denison (Jackson) | X149: East Bernstadt (Laurel) | Y149: Fisher (Sabine) | AA149: Dundalk (Baltimore) | AC149: Concord (Jackson) | AD149: Clarkfield (Yellow Medicine) | AE149: Camden (Ray) | AF149: Holly Springs (Marshall) | AG149: Havre North (Hill) | AH149: Conway (Northampton) | AI149: Gladstone (Stark) | AJ149: Dawson (Richardson) | AL149: Fieldsboro (Burlington) | AM149: Grady (Curry) | AO149: Cazenovia (Madison) | AP149: Burbank (Wayne) | AQ149: Cleveland (Pawnee) | AR149: Hillsboro (Washington) | AS149: Boalsburg (Centre) | AT149: Martorell (Yabucoa) | AV149: Hemingway (Williamsburg) | AW149: Green Grass (Dewey) | AX149: Gainesboro (Jackson) | AY149: Bogata (Red River) | AZ149: Koosharem (Sevier) | BA149: Damascus (Washington) | BC149: Desert Aire (Grant) | BD149: Collins (Manitowoc) | BE149: Ghent (Raleigh) | BF149: Powder River (Natrona) | BH149: AK | BI149: Marshall (Kusilvak) | BJ149: 61.8753 | BK149: -162.0487 | BM149: 133198 | BN149: 30.5 | BO149: -91.875
G150: Kalifornsky (Kenai Peninsula) | H150: East Brewton (Escambia) | I150: Elm Springs (Washington) | J150: Gisela (Gila) | K150: Boyes Hot Springs (Sonoma) | L150: Florence (Fremont) | P150: Coral Gables (Miami-Dade) | Q150: Dahlonega (Lumpkin) | R150: West Loch Estate (Honolulu) | S150: Center Point (Linn) | T150: Newdale (Fremont) | U150: Brownstown (Fayette) | V150: Denver (Miami) | W150: Denton (Doniphan) | X150: Eddyville (Lyon) | Y150: Florien (Sabine) | AA150: Dunkirk (Calvert) | AC150: Constantine (St. Joseph) | AD150: Clarks Grove (Freeborn) | AE150: Camden Point (Platte) | AF150: Horn Lake (DeSoto) | AG150: Hays (Blaine) | AH150: Cooleemee (Davie) | AI150: Glen Ullin (Morton) | AJ150: Daykin (Jefferson) | AL150: Finderne (Somerset) | AM150: Grants (Cibola) | AO150: Cedarhurst (Nassau) | AP150: Burgoon (Sandusky) | AQ150: Clinton (Custer) | AR150: Hines (Harney) | AS150: Bobtown (Greene) | AT150: Marueño (Ponce) | AV150: Hickory Grove (York) | AW150: Green Valley (Pennington) | AX150: Gallatin (Sumner) | AY150: Boling (Wharton) | AZ150: La Sal (San Juan) | BA150: Dante (Russell) | BC150: Disautel (Okanogan) | BD150: Coloma (Waushara) | BE150: Gilbert (Mingo) | BF150: Powell (Park) | BH150: AK | BI150: Glacier View (Matanuska-Susitna) | BJ150: 61.8511 | BK150: -147.7764 | BM150: 133199 | BN150: 30.5 | BO150: -91.25
G151: Kaltag (Yukon-Koyukuk) | H151: East Point (Cullman) | I151: Emerson (Columbia) | J151: Glendale (Maricopa) | K151: Bradbury (Los Angeles) | L151: Florissant (Teller) | P151: Coral Springs (Broward) | Q151: Daisy (Evans) | R151: Wheeler AFB (Honolulu) | S151: Centerville (Appanoose) | T151: Nezperce (Lewis) | U151: Brussels (Calhoun) | V151: Deputy (Jefferson) | W151: Derby (Sedgwick) | X151: Edgewood (Kenton) | Y151: Folsom (St. Tammany) | AA151: Eagle Harbor (Prince George's) | AC151: Conway (Emmet) | AD151: Clear Lake (Sherburne) | AE151: Camdenton (Camden) | AF151: Houston (Chickasaw) | AG151: Heart Butte (Pondera) | AH151: Cordova (Richmond) | AI151: Glenburn (Renville) | AJ151: De Witt (Saline) | AL151: Finesville (Warren) | AM151: Grenville (Union) | AO151: Celoron (Chautauqua) | AP151: Burkettsville (Mercer) | AQ151: Cloud Creek (Delaware) | AR151: Holley (Linn) | AS151: Boiling Springs (Cumberland) | AT151: Maunabo (Maunabo) | AV151: Hilda (Barnwell) | AW151: Gregory (Gregory) | AX151: Gallaway (Fayette) | AY151: Bolivar Peninsula (Galveston) | AZ151: La Verkin (Washington) | BA151: Danville (Danville) | BC151: Dixie (Walla Walla) | BD151: Columbus (Columbia) | BE151: Gilbert Creek (Mingo) | BF151: Purple Sage (Sweetwater) | BH151: AK | BI151: Crooked Creek (Bethel) | BJ151: 61.8439 | BK151: -158.1082 | BM151: 133200 | BN151: 30.5 | BO151: -90.625
G152: Karluk (Kodiak Island) | H152: Eclectic (Elmore) | I152: Emmet (Nevada) | J152: Globe (Gila) | K152: Bradley (Monterey) | L152: Floyd Hill (Clear Creek) | P152: Coral Terrace (Miami-Dade) | Q152: Dallas (Paulding) | R152: Whitmore Village (Honolulu) | S152: Central City (Linn) | T152: Notus (Canyon) | U152: Bryant (Fulton) | V152: Dillsboro (Dearborn) | W152: Detroit (Dickinson) | X152: Edmonton (Metcalfe) | Y152: Fordoche (Pointe Coupee) | AA152: Eakles Mill (Washington) | AC152: Coopersville (Ottawa) | AD152: Clearbrook (Clearwater) | AE152: Cameron (Clinton) | AF152: Hurley (Jackson) | AG152: Hebgen Lake Estates (Gallatin) | AH152: Cornelius (Mecklenburg) | AI152: Glenfield (Foster) | AJ152: Decatur (Burt) | AL152: Flemington (Hunterdon) | AM152: Hachita (Grant) | AO152: Center Moriches (Suffolk) | AP152: Burlington (Lawrence) | AQ152: Coalgate (Coal) | AR152: Hood River (Hood River) | AS152: Bolivar (Westmoreland) | AT152: Mayagüez (Mayagüez) | AV152: Hilton Head Island (Beaufort) | AW152: Grenville (Day) | AX152: Garland (Tipton) | AY152: Bonanza Hills (Webb) | AZ152: Lake Shore (Utah) | BA152: Dayton (Rockingham) | BC152: Donald (Yakima) | BD152: Combined Locks (Outagamie) | BE152: Glasgow (Kanawha) | BF152: Rafter J Ranch (Teton) | BH152: AK | BI152: Scammon Bay (Kusilvak) | BJ152: 61.842 | BK152: -165.5833 | BM152: 133201 | BN152: 30.5 | BO152: -90
G153: Kasaan (Prince of Wales-Hyder) | H153: Edgewater (Jefferson) | I153: England (Lonoke) | J153: Gold Canyon (Pinal) | K153: Brawley (Imperial) | L153: Fort Carson (El Paso) | P153: Cortez (Manatee) | Q153: Dalton (Whitfield) | S153: Centralia (Dubuque) | T153: Oakley (Cassia) | U153: Buckingham (Kankakee) | V153: Dover Hill (Martin) | W153: Dexter (Cowley) | X153: Ekron (Meade) | Y153: Forest (West Carroll) | AA153: East New Market (Dorchester) | AC153: Copemish (Manistee) | AD153: Clearwater (Wright) | AE153: Campbell (Dunklin) | AF153: Indianola (Sunflower) | AG153: Helena (Lewis and Clark) | AH153: Cove City (Craven) | AI153: Golden Valley (Mercer) | AJ153: Denton (Lancaster) | AL153: Florham Park (Morris) | AM153: Hagerman (Chaves) | AO153: Centereach (Suffolk) | AP153: Burton (Geauga) | AQ153: Colbert (Bryan) | AR153: Hubbard (Marion) | AS153: Bonneauville (Adams) | AT153: Miranda (Vega Baja) | AV153: Hodges (Greenwood) | AW153: Groton (Brown) | AX153: Gates (Lauderdale) | AY153: Bonham (Fannin) | AZ153: Laketown (Rich) | BA153: Deep Creek (Accomack) | BC153: Duluth (Clark) | BD153: Como (Walworth) | BE153: Glen Dale (Marshall) | BF153: Ralston (Park) | BH153: AK | BI153: Willow Creek (Valdez-Cordova) | BJ153: 61.8337 | BK153: -145.1837 | BM153: 133202 | BN153: 30.5 | BO153: -89.375
G154: Kasigluk (Bethel) | H154: Edwardsville (Cleburne) | I154: Enola (Faulkner) | J154: Golden Shores (Mohave) | K154: Brea (Orange) | L154: Fort Collins (Larimer) | P154: Cottondale (Jackson) | Q154: Damascus (Early) | S154: Chapin (Franklin) | T154: Oldtown (Bonner) | U154: Buckley (Iroquois) | V154: Dresser (Vigo) | W154: Dighton (Lane) | X154: Elizabethtown (Hardin) | Y154: Forest Hill (Rapides) | AA154: East Riverdale (Prince George's) | AC154: Copper City (Houghton) | AD154: Clements (Redwood) | AE154: Canalou (New Madrid) | AF154: Inverness (Sunflower) | AG154: Helena Flats (Flathead) | AH154: Cove Creek (Watauga) | AI154: Golva (Golden Valley) | AJ154: Deshler (Thayer) | AL154: Folsom (Atlantic) | AM154: Hanover (Grant) | AO154: Centerport (Suffolk) | AP154: Butler (Richland) | AQ154: Colcord (Delaware) | AR154: Huntington (Baker) | AS154: Boothwyn (Delaware) | AT154: Moca (Moca) | AV154: Holly Hill (Orangeburg) | AW154: Hamill (Tripp) | AX154: Gatlinburg (Sevier) | AY154: Bonney (Brazoria) | AZ154: Layton (Davis) | BA154: Deerfield (Augusta) | BC154: DuPont (Pierce) | BD154: Conrath (Rusk) | BE154: Glen Ferris (Fayette) | BF154: Ranchester (Sheridan) | BH154: AK | BI154: Willow (Matanuska-Susitna) | BJ154: 61.8157 | BK154: -149.753 | BM154: 133203 | BN154: 30.5 | BO154: -88.75
G155: Kasilof (Kenai Peninsula) | H155: Egypt (Etowah) | I155: Etowah (Mississippi) | J155: Golden Valley (Mohave) | K155: Brentwood (Contra Costa) | L155: Fort Garland (Costilla) | P155: Country Club (Miami-Dade) | Q155: Danielsville (Madison) | S155: Chariton (Lucas) | T155: Onaway (Latah) | U155: Buckner (Franklin) | V155: Dublin (Wayne) | W155: Dodge City (Ford) | X155: Elizaville (Fleming) | Y155: Fort Jesup (Sabine) | AA155: Easton (Talbot) | AC155: Copper Harbor (Keweenaw) | AD155: Cleveland (Le Sueur) | AE155: Canton (Lewis) | AF155: Isola (Humphreys) | AG155: Helena Valley Northeast (Lewis and Clark) | AH155: Cramerton (Gaston) | AI155: Goodrich (Sheridan) | AJ155: Deweese (Clay) | AL155: Fords (Middlesex) | AM155: Happy Valley (Eddy) | AO155: Central Bridge (Schoharie) | AP155: Butlerville (Warren) | AQ155: Cole (McClain) | AR155: Idanha (Marion) | AS155: Boston (Allegheny) | AT155: Monserrate (Vega Baja) | AV155: Hollywood (Charleston) | AW155: Harrisburg (Lincoln) | AX155: Germantown (Shelby) | AY155: Booker (Lipscomb) | AZ155: Leamington (Millard) | BA155: Deltaville (Middlesex) | BC155: Duvall (King) | BD155: Coon Valley (Vernon) | BE155: Glen Fork (Wyoming) | BF155: Ranchettes (Laramie) | BH155: AK | BI155: Chickaloon (Matanuska-Susitna) | BJ155: 61.804 | BK155: -148.4103 | BM155: 133204 | BN155: 30.5 | BO155: -88.125
G156: Kenai (Kenai Peninsula) | H156: Elba (Coffee) | I156: Eudora (Chicot) | J156: Goodyear (Maricopa) | K156: Bret Harte (Stanislaus) | L156: Fort Lupton (Weld) | P156: Country Walk (Miami-Dade) | Q156: Danville (Twiggs) | S156: Charles City (Floyd) | T156: Orofino (Clearwater) | U156: Buda (Bureau) | V156: Dubois (Dubois) | W156: Dorrance (Russell) | X156: Elk Creek (Spencer) | Y156: Fort Polk North (Vernon) | AA156: Eckhart Mines (Allegany) | AC156: Corunna (Shiawassee) | AD156: Climax (Polk) | AE156: Cape Girardeau (Cape Girardeau) | AF156: Itta Bena (Leflore) | AG156: Helena Valley Northwest (Lewis and Clark) | AH156: Creedmoor (Granville) | AI156: Grace City (Foster) | AJ156: Diller (Jefferson) | AL156: Forked River (Ocean) | AM156: Hatch (Doña Ana) | AO156: Central Islip (Suffolk) | AP156: Byesville (Guernsey) | AQ156: Coleman (Johnston) | AR156: Idaville (Tillamook) | AS156: Boswell (Somerset) | AT156: Monte Grande (Cabo Rojo) | AV156: Homeland Park (Anderson) | AW156: Harrison (Douglas) | AX156: Gibson (Gibson) | AY156: Borger (Hutchinson) | AZ156: Leeds (Washington) | BA156: Dendron (Surry) | BC156: East Cathlamet (Wahkiakum) | BD156: Cornell (Chippewa) | BE156: Glen Jean (Fayette) | BF156: Rawlins (Carbon) | BH156: AK | BI156: Stony River (Bethel) | BJ156: 61.7937 | BK156: -156.5861 | BM156: 133205 | BN156: 30.5 | BO156: -87.5
G157: Kenny Lake (Valdez-Cordova) | H157: Elberta (Baldwin) | I157: Eureka Springs (Carroll) | J157: Goodyear Village (Pinal) | K157: Bridgeport (Mono) | L157: Fort Morgan (Morgan) | P157: Crawfordville (Wakulla) | Q157: Darien (McIntosh) | S157: Charlotte (Clinton) | T157: Osburn (Shoshone) | U157: Buffalo (Sangamon) | V157: Dugger (Sullivan) | W157: Douglass (Butler) | X157: Elkhorn City (Pike) | Y157: Fort Polk South (Vernon) | AA157: Eden (Somerset) | AC157: Cross Village (Emmet) | AD157: Clinton (Big Stone) | AE157: Cardwell (Dunklin) | AF157: Iuka (Tishomingo) | AG157: Helena Valley Southeast (Lewis and Clark) | AH157: Creswell (Washington) | AI157: Grafton (Walsh) | AJ157: Dix (Kimball) | AL157: Fort Dix (Burlington) | AM157: Hernandez (Rio Arriba) | AO157: Central Square (Oswego) | AP157: Cadiz (Harrison) | AQ157: Collinsville (Tulsa) | AR157: Imbler (Union) | AS157: Bowers (Berks) | AT157: Monte Verde (Ponce) | AV157: Honea Path (Anderson) | AW157: Harrold (Hughes) | AX157: Gilt Edge (Tipton) | AY157: Botines (Webb) | AZ157: Lehi (Utah) | BA157: Dillwyn (Buckingham) | BC157: East Port Orchard (Kitsap) | BD157: Cornucopia (Bayfield) | BE157: Glen White (Raleigh) | BF157: Red Butte (Natrona) | BH157: AK | BI157: Russian Mission (Kusilvak) | BJ157: 61.7825 | BK157: -161.3567 | BM157: 133206 | BN157: 30.5 | BO157: -86.875
G158: Ketchikan (Ketchikan Gateway) | H158: Eldridge (Walker) | I158: Evening Shade (Sharp) | J158: Grand Canyon Village (Coconino) | K158: Brisbane (San Mateo) | L158: Fountain (El Paso) | P158: Crescent Beach (St. Johns) | Q158: Dasher (Lowndes) | S158: Charter Oak (Crawford) | T158: Oxford (Franklin) | U158: Buffalo Grove (Cook) | V158: Dune Acres (Porter) | W158: Downs (Osborne) | X158: Elkton (Todd) | Y158: Franklin (St. Mary) | AA158: Edesville (Kent) | AC158: Croswell (Sanilac) | AD158: Clitherall (Otter Tail) | AE158: Carl Junction (Jasper) | AF158: Jackson (Hinds) | AG158: Helena Valley West Central (Lewis and Clark) | AH158: Cricket (Wilkes) | AI158: Grand Forks (Grand Forks) | AJ158: Dixon (Dixon) | AL158: Fort Lee (Bergen) | AM158: High Rolls (Otero) | AO158: Centre Island (Nassau) | AP158: Cairo (Allen) | AQ158: Colony (Washita) | AR158: Independence (Polk) | AS158: Bowmanstown (Carbon) | AT158: Mora (Isabela) | AV158: Hopkins (Richland) | AW158: Hartford (Minnehaha) | AX158: Gleason (Weakley) | AY158: Bovina (Parmer) | AZ158: Levan (Juab) | BA158: Dooms (Augusta) | BC158: East Renton Highlands (King) | BD158: Cottage Grove (Dane) | BE158: Glenville (Gilmer) | BF158: Reliance (Sweetwater) | BH158: AK | BI158: Red Devil (Bethel) | BJ158: 61.7735 | BK158: -157.346 | BM158: 133207 | BN158: 30.5 | BO158: -86.25
G159: Kiana (Northwest Arctic) | H159: Elkmont (Limestone) | I159: Everton (Boone) | J159: Grand Canyon West (Mohave) | K159: Broadmoor (San Mateo) | L159: Fowler (Otero) | P159: Crescent City (Putnam) | Q159: Davisboro (Washington) | S159: Chatsworth (Sioux) | T159: Paris (Bear Lake) | U159: Bull Valley (McHenry) | V159: Dunkirk (Jay) | W159: Dresden (Decatur) | X159: Elsmere (Kenton) | Y159: Franklinton (Washington) | AA159: Edgemere (Baltimore) | AC159: Crystal Downs Country Club (Benzie) | AD159: Clontarf (Swift) | AE159: Carrollton (Carroll) | AF159: Jonestown (Coahoma) | AG159: Helena West Side (Lewis and Clark) | AH159: Crossnore (Avery) | AI159: Grand Forks AFB (Grand Forks) | AJ159: Dodge (Dodge) | AL159: Franklin (Sussex) | AM159: Highland Meadows (Valencia) | AO159: Chadwicks (Oneida) | AP159: Calcutta (Columbiana) | AQ159: Comanche (Stephens) | AR159: Ione (Morrow) | AS159: Bowmansville (Lancaster) | AT159: Morovis (Morovis) | AV159: India Hook (York) | AW159: Hayti (Hamlin) | AX159: Goodlettsville (Davidson) | AY159: Bowie (Montague) | AZ159: Lewiston (Cache) | BA159: Drakes Branch (Charlotte) | BC159: East Wenatchee (Douglas) | BD159: Couderay (Sawyer) | BE159: Grafton (Taylor) | BF159: Riverside (Carbon) | BH159: AK | BI159: Sutton-Alpine (Matanuska-Susitna) | BJ159: 61.7429 | BK159: -148.8542 | BM159: 133208 | BN159: 30.5 | BO159: -85.625
G160: King Cove (Aleutians East) | H160: Elmore (Elmore) | I160: Fairfield Bay (Van Buren) | J160: Greasewood (Navajo) | K160: Brookdale (Santa Cruz) | L160: Foxfield (Arapahoe) | P160: Crestview (Okaloosa) | Q160: Dawson (Terrell) | S160: Chelsea (Tama) | T160: Parker (Fremont) | U160: Bulpitt (Christian) | V160: Dunlap (Elkhart) | W160: Dunlap (Morris) | X160: Eminence (Henry) | Y160: French Settlement (Livingston) | AA160: Edgemont (Washington) | AC160: Crystal Falls (Iron) | AD160: Cloquet (Carlton) | AE160: Carterville (Jasper) | AF160: Jumpertown (Prentiss) | AG160: Heron (Sanders) | AH160: Cullowhee (Jackson) | AI160: Grandin (Cass) | AJ160: Doniphan (Hall) | AL160: Franklin Center (Somerset) | AM160: Hillsboro (Sierra) | AO160: Champlain (Clinton) | AP160: Caldwell (Noble) | AQ160: Commerce (Ottawa) | AR160: Irrigon (Morrow) | AS160: Boyertown (Berks) | AT160: Mucarabones (Toa Alta) | AV160: Inman (Spartanburg) | AW160: Hazel (Hamlin) | AX160: Gordonsville (Smith) | AY160: Box Canyon (Val Verde) | AZ160: Liberty (Weber) | BA160: Dranesville (Fairfax) | BC160: Eastmont (Snohomish) | BD160: Crandon (Forest) | BE160: Grant Town (Marion) | BF160: Riverton (Fremont) | BH160: AK | BI160: Fishhook (Matanuska-Susitna) | BJ160: 61.711 | BK160: -149.2657 | BM160: 133209 | BN160: 30.5 | BO160: -85
G161: King Salmon (Bristol Bay) | H161: Emelle (Sumter) | I161: Fargo (Monroe) | J161: Green Valley (Pima) | K161: Brooktrails (Mendocino) | L161: Franktown (Douglas) | P161: Crooked Lake Park (Polk) | Q161: Dawsonville (Dawson) | S161: Cherokee (Cherokee) | T161: Parkline (Benewah) | U161: Buncombe (Johnson) | V161: Dunreith (Henry) | W161: Durham (Marion) | X161: Emlyn (Whitley) | Y161: Frierson (De Soto) | AA161: Edgewater (Anne Arundel) | AC161: Crystal Mountain (Benzie) | AD161: Coates (Dakota) | AE161: Carthage (Jasper) | AF161: Kearney Park (Madison) | AG161: Herron (Hill) | AH161: Dallas (Gaston) | AI161: Grano (Renville) | AJ161: Dorchester (Saline) | AL161: Franklin Lakes (Bergen) | AM161: Hobbs (Lea) | AO161: Chappaqua (Westchester) | AP161: Caledonia (Marion) | AQ161: Connerville (Johnston) | AR161: Island City (Union) | AS161: Brackenridge (Allegheny) | AT161: Naguabo (Naguabo) | AV161: Inman Mills (Spartanburg) | AW161: Hecla (Brown) | AX161: Graball (Sumner) | AY161: Boyd (Wise) | AZ161: Lindon (Utah) | BA161: Draper (Pulaski) | BC161: Easton (Kittitas) | BD161: Crivitz (Marinette) | BE161: Grantsville (Calhoun) | BF161: Robertson (Uinta) | BH161: AK | BI161: Buffalo Soapstone (Matanuska-Susitna) | BJ161: 61.7073 | BK161: -149.1095 | BM161: 133210 | BN161: 30.5 | BO161: -84.375
G162: Kipnuk (Bethel) | H162: Emerald Mountain (Elmore) | I162: Farmington (Washington) | J162: Greer (Apache) | K162: Buck Meadows (Mariposa) | L162: Fraser (Grand) | P162: Cross City (Dixie) | Q162: De Soto (Sumter) | S162: Chester (Howard) | T162: Parma (Canyon) | U162: Bunker Hill (Macoupin) | V162: Dupont (Jefferson) | W162: Dwight (Morris) | X162: Erlanger (Kenton) | Y162: Galliano (Lafourche) | AA162: Edgewood (Harford) | AC162: Custer (Mason) | AD162: Cobden (Brown) | AE162: Caruthersville (Pemiscot) | AF162: Kilmichael (Montgomery) | AG162: Highwood (Chouteau) | AH162: Dana (Henderson) | AI162: Granville (McHenry) | AJ162: Douglas (Otoe) | AL162: Franklin Park (Somerset) | AM162: Holloman AFB (Otero) | AO162: Chateaugay (Franklin) | AP162: Cambridge (Guernsey) | AQ162: Cooperton (Kiowa) | AR162: Jacksonville (Jackson) | AS162: Braddock (Allegheny) | AT162: Naranjito (Naranjito) | AV162: Irmo (Lexington) | AW162: Henry (Codington) | AX162: Grand Junction (Hardeman) | AY162: Boys Ranch (Oldham) | AZ162: Loa (Wayne) | BA162: Dryden (Lee) | BC162: Eatonville (Pierce) | BD162: Cross Plains (Dane) | BE162: Granville (Monongalia) | BF162: Rock River (Albany) | BH162: AK | BI162: Kenny Lake (Valdez-Cordova) | BJ162: 61.6644 | BK162: -144.8662 | BM162: 133211 | BN162: 30.5 | BO162: -83.75
G163: Kivalina (Northwest Arctic) | H163: Enterprise (Coffee) | I163: Fayetteville (Washington) | J163: Gu Oidak (Pima) | K163: Buckhorn (Amador) | L163: Frederick (Weld) | P163: Crystal Lake (Polk) | Q163: Dearing (McDuffie) | S163: Chillicothe (Wapello) | T163: Paul (Minidoka) | U163: Burbank (Cook) | V163: Dyer (Lake) | W163: Earlton (Neosho) | X163: Eubank (Pulaski) | Y163: Gardere (East Baton Rouge) | AA163: Edmonston (Prince George's) | AC163: Cutlerville (Kent) | AD163: Cohasset (Itasca) | AE163: Carytown (Jasper) | AF163: Kiln (Hancock) | AG163: Hingham (Hill) | AH163: Danbury (Stokes) | AI163: Great Bend (Richland) | AJ163: Du Bois (Pawnee) | AL163: Freehold (Monmouth) | AM163: Homestead (Catron) | AO163: Chatham (Columbia) | AP163: Camden (Preble) | AQ163: Copan (Washington) | AR163: Jeffers Gardens (Clatsop) | AS163: Braddock Hills (Allegheny) | AT163: Olimpo (Guayama) | AV163: Irwin (Lancaster) | AW163: Hermosa (Custer) | AX163: Gray (Washington) | AY163: Brackettville (Kinney) | AZ163: Logan (Cache) | BA163: Dublin (Pulaski) | BC163: Edgewood (Pierce) | BD163: Cuba City (Grant) | BE163: Great Cacapon (Morgan) | BF163: Rock Springs (Sweetwater) | BH163: AK | BI163: Tanaina (Matanuska-Susitna) | BJ163: 61.656 | BK163: -149.4272 | BM163: 133212 | BN163: 30.5 | BO163: -83.125
G164: Klawock (Prince of Wales-Hyder) | H164: Epes (Sumter) | I164: Felsenthal (Union) | J164: Guadalupe (Maricopa) | K164: Bucks Lake (Plumas) | L164: Frisco (Summit) | P164: Crystal River (Citrus) | Q164: Decatur (DeKalb) | S164: Churdan (Greene) | T164: Payette (Payette) | U164: Burlington (Kane) | V164: Earl Park (Benton) | W164: Eastborough (Sedgwick) | X164: Evarts (Harlan) | Y164: Garyville (St. John the Baptist) | AA164: Eldersburg (Carroll) | AC164: Daggett (Menominee) | AD164: Cokato (Wright) | AE164: Cassville (Barry) | AF164: Kosciusko (Attala) | AG164: Hinsdale (Valley) | AH164: Davidson (Mecklenburg) | AI164: Green Acres (Rolette) | AJ164: Dunbar (Otoe) | AL164: Frenchtown (Hunterdon) | AM164: Hope (Eddy) | AO164: Chaumont (Jefferson) | AP164: Camp Dennison (Hamilton) | AQ164: Copeland (Delaware) | AR164: Jefferson (Marion) | AS164: Bradenville (Westmoreland) | AT164: Orocovis (Orocovis) | AV164: Islandton (Colleton) | AW164: Herreid (Campbell) | AX164: Graysville (Rhea) | AY164: Brady (McCulloch) | AZ164: Lyman (Wayne) | BA164: Duffield (Scott) | BC164: Edison (Skagit) | BD164: Cudahy (Milwaukee) | BE164: Green Bank (Pocahontas) | BF164: Rolling Hills (Converse) | BH164: AK | BI164: Sleetmute (Bethel) | BJ164: 61.6516 | BK164: -157.1251 | BM164: 133213 | BN164: 30.5 | BO164: -82.5
G165: Klukwan (Hoonah-Angoon) | H165: Ethelsville (Pickens) | I165: Fifty-Six (Stone) | J165: Hackberry (Mohave) | K165: Buellton (Santa Barbara) | L165: Fruita (Mesa) | P165: Crystal Springs (Pasco) | Q165: Deenwood (Ware) | S165: Cincinnati (Appanoose) | T165: Peck (Nez Perce) | U165: Burnham (Cook) | V165: East Chicago (Lake) | W165: Easton (Leavenworth) | X165: Ewing (Fleming) | Y165: Georgetown (Grant) | AA165: Eldorado (Dorchester) | AC165: Dansville (Ingham) | AD165: Cold Spring (Stearns) | AE165: Castle Point (St. Louis) | AF165: Kossuth (Alcorn) | AG165: Hobson (Judith Basin) | AH165: Davis (Carteret) | AI165: Grenora (Williams) | AJ165: Duncan (Platte) | AL165: Garfield (Bergen) | AM165: Hot Springs Landing (Sierra) | AO165: Chenango Bridge (Broome) | AP165: Campbell (Mahoning) | AQ165: Corn (Washita) | AR165: Jennings Lodge (Clackamas) | AS165: Bradford (McKean) | AT165: Pájaros (Toa Alta) | AV165: Isle of Palms (Charleston) | AW165: Herrick (Gregory) | AX165: Green Hill (Wilson) | AY165: Brazoria (Brazoria) | AZ165: Lynndyl (Millard) | BA165: Dulles Town Center (Loudoun) | BC165: Edmonds (Snohomish) | BD165: Cumberland (Barron) | BE165: Green Spring (Hampshire) | BF165: Ryan Park (Carbon) | BH165: AK | BI165: Lazy Mountain (Matanuska-Susitna) | BJ165: 61.6516 | BK165: -148.902 | BM165: 133214 | BN165: 30.5 | BO165: -81.875
G166: Knik River (Matanuska-Susitna) | H166: Eufaula (Barbour) | I166: Fisher (Poinsett) | J166: Haigler Creek (Gila) | K166: Buena Park (Orange) | L166: Fruitvale (Mesa) | P166: Cudjoe Key (Monroe) | Q166: Deepstep (Washington) | S166: Clare (Webster) | T166: Pierce (Clearwater) | U166: Burnt Prairie (White) | V166: East Enterprise (Switzerland) | W166: Edgerton (Johnson) | X166: Ezel (Morgan) | Y166: Gibsland (Bienville) | AA166: Elkridge (Howard) | AC166: Davison (Genesee) | AD166: Coleraine (Itasca) | AE166: Catron (New Madrid) | AF166: Lake (Scott) | AG166: Hot Springs (Sanders) | AH166: Deercroft (Scotland) | AI166: Gwinner (Sargent) | AJ166: Dunning (Blaine) | AL166: Garwood (Union) | AM166: House (Quay) | AO166: Cherry Creek (Chautauqua) | AP166: Canal Fulton (Stark) | AQ166: Cornish (Jefferson) | AR166: John Day (Grant) | AS166: Bradford Woods (Allegheny) | AT166: Pajonal (Florida) | AV166: Iva (Anderson) | AW166: Hetland (Kingsbury) | AX166: Greenback (Loudon) | AY166: Brazos Bend (Hood) | AZ166: Maeser (Uintah) | BA166: Dumbarton (Henrico) | BC166: Elbe (Pierce) | BD166: Curtiss (Clark) | BE166: Greenview (Boone) | BF166: Saratoga (Carbon) | BH166: AK | BI166: Farm Loop (Matanuska-Susitna) | BJ166: 61.6394 | BK166: -149.1471 | BM166: 133753 | BN166: 31 | BO166: -105
